Workbook

Sheet Spring_Home
A2: Spring selection HOME
C5: DW | D5: 2400 | E5: [mm] | F5: =IF(Date!$B$7>Date!B7,Date!B9,"") -> 
C6: DH | D6: 2000 | E6: [mm] | F6: =IF(Date!$B$7>365,Date!B10,"") -> 
C7: KG | D7: 125 | E7: [kg] | F7: =IF(Date!$B$7>365,Date!B11,"") -> 
C10: Spring Home-X extension spring
D12: Art.nb: | E12: Description
D13: =IF(AND(KG<=130,DH<3001,DW<5501),VeerX,NOSP) -> 115510 | E13: =X_Spring!T1 -> HOME-X Spring SET L=650, 1875_2000 (2,1 / 3,4 / 4,3)
D14: =IF(AND(KG<=130,DH<3001,DW<5501),KabelX,"-") -> 115211-2000 | E14: =IF(AND(KG<=130,DH<3001,DW<5501),X_Spring!Q27,"-") -> HOME Cable set 2 mm for doorheight 2000 mm
C18: Home-F & R torsion spring | K18: ="Build-in information "&SpringCalculation!SC_RESULT_QTY&" Springs." -> Build-in information 2 Springs.
C20: Lifetime | D20: 15000
D22: Art.nb: | E22: Qty set | F22: Turns | G22: Lifetime
D23: =SC_RESULT_ITEM -> 3296508382 | E23: =SpringCalculation!SC_RESULT_QTY/2 -> 1 | F23: =SpringCalculation!SC_RESULT_RST -> 6.8 | G23: =SpringCalculation!SC_RESULT_ELT -> 26667
D25: Other solutions
B26: 1 | D26: =IF($B26>SC_RESULT_MAX,"",SpringCalculation!T3) -> 3296508382 | E26: =IF($B26>SC_RESULT_MAX,"",SpringCalculation!U3/2) -> 1 | F26: =IF($B26>SC_RESULT_MAX,"",SpringCalculation!V3) -> 6.819579022 | G26: =IF($B26>SC_RESULT_MAX,"",SpringCalculation!W3) -> 26667
B27: =B26+1 -> 2 | D27: =IF($B27>SC_RESULT_MAX,"",SpringCalculation!T4) -> 3296509132 | E27: =IF($B27>SC_RESULT_MAX,"",SpringCalculation!U4/2) -> 1 | F27: =IF($B27>SC_RESULT_MAX,"",SpringCalculation!V4) -> 6.926509868 | G27: =IF($B27>SC_RESULT_MAX,"",SpringCalculation!W4) -> 38250
B28: =B27+1 -> 3 | D28: =IF($B28>SC_RESULT_MAX,"",SpringCalculation!T5) ->  | E28: =IF($B28>SC_RESULT_MAX,"",SpringCalculation!U5/2) ->  | F28: =IF($B28>SC_RESULT_MAX,"",SpringCalculation!V5) ->  | G28: =IF($B28>SC_RESULT_MAX,"",SpringCalculation!W5) -> 
B29: 4 | D29: =IF($B29>SC_RESULT_MAX,"",SpringCalculation!T6) ->  | E29: =IF($B29>SC_RESULT_MAX,"",SpringCalculation!U6/2) ->  | F29: =IF($B29>SC_RESULT_MAX,"",SpringCalculation!V6) ->  | G29: =IF($B29>SC_RESULT_MAX,"",SpringCalculation!W6) -> 
B30: 5 | D30: =IF($B30>SC_RESULT_MAX,"",SpringCalculation!T7) ->  | E30: =IF($B30>SC_RESULT_MAX,"",SpringCalculation!U7/2) ->  | F30: =IF($B30>SC_RESULT_MAX,"",SpringCalculation!V7) ->  | G30: =IF($B30>SC_RESULT_MAX,"",SpringCalculation!W7) -> 
B31: 6 | D31: =IF($B31>SC_RESULT_MAX,"",SpringCalculation!T8) ->  | E31: =IF($B31>SC_RESULT_MAX,"",SpringCalculation!U8/2) ->  | F31: =IF($B31>SC_RESULT_MAX,"",SpringCalculation!V8) ->  | G31: =IF($B31>SC_RESULT_MAX,"",SpringCalculation!W8) -> 
B32: 7 | D32: =IF($B32>SC_RESULT_MAX,"",SpringCalculation!T9) ->  | E32: =IF($B32>SC_RESULT_MAX,"",SpringCalculation!U9/2) ->  | F32: =IF($B32>SC_RESULT_MAX,"",SpringCalculation!V9) ->  | G32: =IF($B32>SC_RESULT_MAX,"",SpringCalculation!W9) -> 
B33: 8 | D33: =IF($B33>SC_RESULT_MAX,"",SpringCalculation!T10) ->  | E33: =IF($B33>SC_RESULT_MAX,"",SpringCalculation!U10/2) ->  | F33: =IF($B33>SC_RESULT_MAX,"",SpringCalculation!V10) ->  | G33: =IF($B33>SC_RESULT_MAX,"",SpringCalculation!W10) -> 
B34: 9 | D34: =IF($B34>SC_RESULT_MAX,"",SpringCalculation!T11) ->  | E34: =IF($B34>SC_RESULT_MAX,"",SpringCalculation!U11/2) ->  | F34: =IF($B34>SC_RESULT_MAX,"",SpringCalculation!V11) ->  | G34: =IF($B34>SC_RESULT_MAX,"",SpringCalculation!W11) -> 
B35: 10 | D35: =IF($B35>SC_RESULT_MAX,"",SpringCalculation!T12) ->  | E35: =IF($B35>SC_RESULT_MAX,"",SpringCalculation!U12/2) ->  | F35: =IF($B35>SC_RESULT_MAX,"",SpringCalculation!V12) ->  | G35: =IF($B35>SC_RESULT_MAX,"",SpringCalculation!W12) -> 
B36: 11 | D36: =IF($B36>SC_RESULT_MAX,"",SpringCalculation!T13) ->  | E36: =IF($B36>SC_RESULT_MAX,"",SpringCalculation!U13/2) ->  | F36: =IF($B36>SC_RESULT_MAX,"",SpringCalculation!V13) ->  | G36: =IF($B36>SC_RESULT_MAX,"",SpringCalculation!W13) -> 
B37: 12 | D37: =IF($B37>SC_RESULT_MAX,"",SpringCalculation!T14) ->  | E37: =IF($B37>SC_RESULT_MAX,"",SpringCalculation!U14/2) ->  | F37: =IF($B37>SC_RESULT_MAX,"",SpringCalculation!V14) ->  | G37: =IF($B37>SC_RESULT_MAX,"",SpringCalculation!W14) -> 
D38: Calculated with drum diameter M102
I39: =Date!B13&" Date: "&TEXT(Date!B4,"dd-mmm-jjjj") -> V1.1 Date: 09-feb-2023

Sheet X_Spring (hidden)
A1: ITEM | B1: F0 [N] | C1: RS [N/mm] | D1: DH,min | E1: DH,max | F1: SELECT,H | G1: KG@DH | H1: RESULT_ID | J1: Input: | M1: Vaste gegevens: | T1: =_xlfn.IFNA(VLOOKUP(VeerX,S2:T55,2,0),"-") -> HOME-X Spring SET L=650, 1875_2000 (2,1 / 3,4 / 4,3)
A2: 115501 | B2: 38 | C2: 0.3743650745 | D2: 1751 | E2: 2000 | F2: =IF(AND((DH-IF(VOETJE=TRUE,8,0))>=D2,(DH-IF(VOETJE=TRUE,8,0))<=E2),1,0) -> 1 | G2: =(((C2*VEERWEG)+B2)*CORRECTION_FACTOR)/9.81 -> 40.63771469 | H2: =IF(AND(F2=1,G2<=KG_MAX),MAX($H1:H1)+1,0) -> 1 | J2: DH | K2: =DH -> 2000 | M2: CORRECTION | N2: 1.08 | S2: 115501 | T2: HOME-X Spring SET L=650, 1875_2000 (2,1 / 3,0 / --)
A3: 115502 | B3: 42 | C3: 0.436780566 | D3: 1751 | E3: 2000 | F3: 1 | G3: 47.15586172 | H3: =IF(AND(F3=1,G3<=KG_MAX),MAX($H2:H2)+1,0) -> 2 | J3: KG | K3: =KG -> 125 | M3: KG MAX↑ | N3: 0.05 | S3: 115502 | T3: HOME-X Spring SET L=650, 1875_2000 (2,3 / 3,0 / --)
A4: 115503 | B4: 45 | C4: 0.4704814975 | D4: 1751 | E4: =2000 -> 2000 | F4: 1 | G4: 50.7678038 | H4: =IF(AND(F4=1,G4<=KG_MAX),MAX($H3:H3)+1,0) -> 3 | J4: VOETJE | K4: FALSE | S4: 115503 | T4: HOME-X Spring SET L=650, 1875_2000 (2,1 / 3,2 / --)
A5: 115504 | B5: 49 | C5: 0.532896989 | D5: 1751 | E5: 2000 | F5: 1 | G5: 57.28595084 | H5: =IF(AND(F5=1,G5<=KG_MAX),MAX($H4:H4)+1,0) -> 4 | J5: VEERWEG | K5: =(DH-231)/2 -> 884.5 | M5: KG_MAX | N5: =KG*(1+KG_MAX_FACTOR) -> 131.25 | S5: 115504 | T5: HOME-X Spring SET L=650, 1875_2000 (2,3 / 3,2 / --)
A6: 115505 | B6: 52 | C6: 0.5980647437 | D6: 1751 | E6: =2000 -> 2000 | F6: 1 | G6: 63.96201092 | H6: =IF(AND(F6=1,G6<=KG_MAX),MAX($H5:H5)+1,0) -> 5 | S6: 115505 | T6: HOME-X Spring SET L=650, 1875_2000 (2,1 / 3,4 / --)
A7: 115506 | B7: 56 | C7: 0.6604802352 | D7: 1751 | E7: 2000 | F7: 1 | G7: 70.48015795 | H7: =IF(AND(F7=1,G7<=KG_MAX),MAX($H6:H6)+1,0) -> 6 | S7: 115506 | T7: HOME-X Spring SET L=650, 1875_2000 (2,3 / 3,4 / --)
A8: 115507 | B8: 69 | C8: 0.7511225347 | D8: 1751 | E8: =2000 -> 2000 | F8: 1 | G8: 80.73774847 | H8: =IF(AND(F8=1,G8<=KG_MAX),MAX($H7:H7)+1,0) -> 7 | J8: Resultaat: | S8: 115507 | T8: HOME-X Spring SET L=650, 1875_2000 (-- / 3,4 / 3,8)
A9: 115508 | B9: 76 | C9: 0.8439548828 | D9: 1751 | E9: 2000 | F9: 1 | G9: 90.54804702 | H9: =IF(AND(F9=1,G9<=KG_MAX),MAX($H8:H8)+1,0) -> 8 | J9: RESULT_ID | K9: =MAX(H2:H54) -> 10 | S9: 115508 | T9: HOME-X Spring SET L=650, 1875_2000 (-- / 3,4 / 4,0)
A10: 115509 | B10: 85 | C10: 0.9894237358 | D10: 1751 | E10: =2000 -> 2000 | F10: 1 | G10: 105.7040691 | H10: =IF(AND(F10=1,G10<=KG_MAX),MAX($H9:H9)+1,0) -> 9 | J10: SPRING | K10: =IF(KG>130,"NO SPRING!",IF(RESULT_ID>0,INDEX(A2:A54,MATCH(RESULT_ID,H2:H54,0)),"NO SPRING!")) -> 115510 | S10: 115509 | T10: HOME-X Spring SET L=650, 1875_2000 (-- / 3,4 / 4,3)
A11: 115510 | B11: 99 | C11: 1.129040432 | D11: 1751 | E11: 2000 | F11: 1 | G11: 120.8406894 | H11: =IF(AND(F11=1,G11<=KG_MAX),MAX($H10:H10)+1,0) -> 10 | S11: 115510 | T11: HOME-X Spring SET L=650, 1875_2000 (2,1 / 3,4 / 4,3)
A12: 115511 | B12: 110 | C12: 1.321905291 | D12: 1751 | E12: =2000 -> 2000 | F12: 1 | G12: 140.8321354 | H12: =IF(AND(F12=1,G12<=KG_MAX),MAX($H11:H11)+1,0) -> 0 | S12: 115511 | T12: HOME-X Spring SET L=650, 1875_2000 (2,1 / 3,4 / 4,5)
A13: 115521 | B13: 36 | C13: 0.3207673521 | D13: 2001 | E13: 2250 | F13: 0 | G13: 35.19839152 | H13: =IF(AND(F13=1,G13<=KG_MAX),MAX($H12:H12)+1,0) -> 0 | J13: opmerkingen | S13: 115521 | T13: HOME-X Spring SET L=735, 2125_2250 (2,3 / 2,8 / --)
A14: 115522 | B14: 41 | C14: 0.3626223264 | D14: 2001 | E14: 2250 | F14: 0 | G14: 39.82452635 | H14: =IF(AND(F14=1,G14<=KG_MAX),MAX($H13:H13)+1,0) -> 0 | J14: =B1 -> F0 [N] | K14: Vaste waarde. Eigenschappen van samengestelde veer | S14: 115522 | T14: HOME-X Spring SET L=735, 2125_2250 (1,9 / 3,2 / --)
A15: 115523 | B15: 45 | C15: 0.4135624078 | D15: 2001 | E15: 2250 | F15: 0 | G15: 45.22524217 | H15: =IF(AND(F15=1,G15<=KG_MAX),MAX($H14:H14)+1,0) -> 0 | J15: =C1 -> RS [N/mm] | K15: Vaste waarde. Eigenschappen van samengestelde veer | S15: 115523 | T15: HOME-X Spring SET L=735 (42-48_45-51)
A16: 115524 | B16: 48 | C16: 0.4736654801 | D16: 2001 | E16: 2250 | F16: 0 | G16: 51.40812299 | H16: =IF(AND(F16=1,G16<=KG_MAX),MAX($H15:H15)+1,0) -> 0 | J16: =F1 -> SELECT,H | K16: Keuze van het hoogte bereik. Het kunststof voetje heeft hier invloed op. | S16: 115524 | T16: HOME-X Spring SET L=735, 2125_2250 (1,9 / 3,4 / --)
A17: 115525 | B17: 52 | C17: 0.5246055616 | D17: 2001 | E17: 2250 | F17: 0 | G17: 56.80883881 | H17: =IF(AND(F17=1,G17<=KG_MAX),MAX($H16:H16)+1,0) -> 0 | K17: Door het voetje verschuift je bereik 8mm | S17: 115525 | T17: HOME-X Spring SET L=735, 2125_2250 (2,1 / 3,4 / --)
A18: 115526 | B18: 56 | C18: 0.5797826701 | D18: 2001 | E18: 2250 | F18: 0 | G18: 62.62214001 | H18: =IF(AND(F18=1,G18<=KG_MAX),MAX($H17:H17)+1,0) -> 0 | J18: =G1 -> KG@DH | K18: =_xlfn.FORMULATEXT(G2) -> =(((C2*VEERWEG)+B2)*CORRECTION_FACTOR)/9,81 | S18: 115526 | T18: HOME-X Spring SET L=735, 2125_2250 (2,3 / 3,4 / --)
A19: 115527 | B19: 69 | C19: 0.6575905508 | D19: 2001 | E19: 2250 | F19: 0 | G19: 71.62996428 | H19: =IF(AND(F19=1,G19<=KG_MAX),MAX($H18:H18)+1,0) -> 0 | J19: =H1 -> RESULT_ID | K19: Keuze op basis van het gewicht mits het in het hoogte bereik valt. | S19: 115527 | T19: HOME-X Spring SET L=735, 2125_2250 (-- / 3,4 / 3,8)
A20: 115528 | B20: 78 | C20: 0.7540017472 | D20: 2001 | E20: 2250 | F20: 0 | G20: 82.00894078 | H20: =IF(AND(F20=1,G20<=KG_MAX),MAX($H19:H19)+1,0) -> 0 | K20: Max waarde is RESULT_ID. Als KG>130 dan geen veer | S20: 115527 | T20: HOME-X Spring SET L=735, 2125_2250 (-- / 3,4 / 3,8)
A21: 115529 | B21: 85 | C21: 0.865044901 | D21: 2001 | E21: 2250 | F21: 0 | G21: 93.59253742 | H21: =IF(AND(F21=1,G21<=KG_MAX),MAX($H20:H20)+1,0) -> 0 | S21: 115528 | T21: HOME-X Spring SET L=735, 2125_2250 (-- / 3,2 / 4,3)
A22: 115530 | B22: 99 | C22: 0.9879410346 | D22: 2001 | E22: 2250 | F22: 0 | G22: 107.1009738 | H22: =IF(AND(F22=1,G22<=KG_MAX),MAX($H21:H21)+1,0) -> 0 | S22: 115529 | T22: HOME-X Spring SET L=735, 2125_2250 (-- / 3,4 / 4,3)
A23: 115531 | B23: 108 | C23: 1.127146678 | D23: 2001 | E23: 2250 | F23: 0 | G23: 121.6471087 | H23: =IF(AND(F23=1,G23<=KG_MAX),MAX($H22:H22)+1,0) -> 0 | S23: 115530 | T23: HOME-X Spring SET L=735, 2125_2250 (2,1 / 3,4 / 4,3)
A24: 115541 | B24: 41 | C24: 0.322236745 | D24: 2251 | E24: 2500 | F24: 0 | G24: 35.89193405 | H24: =IF(AND(F24=1,G24<=KG_MAX),MAX($H23:H23)+1,0) -> 0 | S24: 115531 | T24: HOME-X Spring SET L=735, 2125_2250 (2,0 / 3,4 / 4,5)
A25: 115542 | B25: 45 | C25: 0.3675614925 | D25: 2251 | E25: 2500 | F25: 0 | G25: 40.74585029 | H25: =IF(AND(F25=1,G25<=KG_MAX),MAX($H24:H24)+1,0) -> 0 | S25: 115541 | T25: HOME-X Spring SET L=820, 2375_2500 (1,9 / 3,2 / --)
A26: 115543 | B26: 48 | C26: 0.4216030437 | D26: 2251 | E26: 2500 | F26: 0 | G26: 46.33848354 | H26: =IF(AND(F26=1,G26<=KG_MAX),MAX($H25:H25)+1,0) -> 0 | N26: KabelX | S26: 115542 | T26: HOME-X Spring SET L=820, 2375_2500 (2,1 / 3,2 / --)
A27: 115544 | B27: 52 | C27: 0.4669277912 | D27: 2251 | E27: 2500 | F27: 0 | G27: 51.19239978 | H27: =IF(AND(F27=1,G27<=KG_MAX),MAX($H26:H26)+1,0) -> 0 | N27: =_xlfn.IFNA(VLOOKUP(1,M28:P37,4,0),"-") -> 115211-2000 | P27: Cable SET | Q27: =_xlfn.IFNA(VLOOKUP(KabelX,P28:Q37,2,0),"-") -> HOME Cable set 2 mm for doorheight 2000 mm | S27: 115543 | T27: HOME-X Spring SET L=820, 2375_2500 (1,9 / 3,4 / --)
A28: 115545 | B28: 62 | C28: 0.4854075688 | D28: 2251 | E28: 2500 | F28: 0 | G28: 54.09280675 | H28: =IF(AND(F28=1,G28<=KG_MAX),MAX($H27:H27)+1,0) -> 0 | M28: =IF(AND(DH-IF(VOETJE=TRUE,8,0)>=N28,DH-IF(VOETJE=TRUE,8,0)<=O28),1,0) -> 0 | N28: =O28-124 -> 1751 | O28: 1875 | P28: 115211-1875 | Q28: HOME Cable set 2 mm for doorheight 1875 mm | S28: 115544 | T28: HOME-X Spring SET L=820, 2375_2500 (2,1 / 3,4 / --)
A29: 115546 | B29: 69 | C29: 0.5554344022 | D29: 2251 | E29: 2500 | F29: 0 | G29: 61.68239215 | H29: =IF(AND(F29=1,G29<=KG_MAX),MAX($H28:H28)+1,0) -> 0 | M29: =IF(AND(DH-IF(VOETJE=TRUE,8,0)>=N29,DH-IF(VOETJE=TRUE,8,0)<=O29),1,0) -> 1 | N29: 1876 | O29: 2000 | P29: 115211-2000 | Q29: HOME Cable set 2 mm for doorheight 2000 mm | S29: 115545 | T29: HOME-X Spring SET L=820, 2375_2500 (-- / 3,2 / 3,8)
A30: 115547 | B30: 69 | C30: 0.5847738676 | D30: 2251 | E30: 2500 | F30: 0 | G30: 64.53935624 | H30: =IF(AND(F30=1,G30<=KG_MAX),MAX($H29:H29)+1,0) -> 0 | M30: 0 | N30: 2001 | O30: 2125 | P30: 115211-2125 | Q30: HOME Cable set 2 mm for doorheight 2125 mm | S30: 115546 | T30: HOME-X Spring SET L=820, 2375_2500 (-- / 3,2 / 4,0)
A31: 115548 | B31: 78 | C31: 0.6690831851 | D31: 2251 | E31: 2500 | F31: 0 | G31: 73.73989841 | H31: =IF(AND(F31=1,G31<=KG_MAX),MAX($H30:H30)+1,0) -> 0 | M31: 0 | N31: 2126 | O31: 2250 | P31: 115211-2250 | Q31: HOME Cable set 2 mm for doorheight 2250 mm | S31: 115547 | T31: HOME-X Spring SET L=820, 2375_2500 (-- / 3,4 / 3,8)
A32: 115549 | B32: 85 | C32: 0.7684494838 | D32: 2251 | E32: 2500 | F32: 0 | G32: 84.1864479 | H32: =IF(AND(F32=1,G32<=KG_MAX),MAX($H31:H31)+1,0) -> 0 | M32: 0 | N32: 2251 | O32: 2375 | P32: 115211-2375 | Q32: HOME Cable set 2 mm for doorheight 2375 mm | S32: 115548 | T32: HOME-X Spring SET L=820, 2375_2500 (-- / 3,2 / 4,3)
A33: 115550 | B33: 99 | C33: 0.8779089735 | D33: 2251 | E33: 2500 | F33: 0 | G33: 96.38647564 | H33: =IF(AND(F33=1,G33<=KG_MAX),MAX($H32:H32)+1,0) -> 0 | M33: 0 | N33: 2376 | O33: 2500 | P33: 115211-2500 | Q33: HOME Cable set 2 mm for doorheight 2500 mm | S33: 115549 | T33: HOME-X Spring SET L=820, 2375_2500 (-- / 3,4 / 4,3)
A34: 115551 | B34: 108 | C34: 1.000808923 | D34: 2251 | E34: 2500 | F34: =IF(AND((DH-IF(VOETJE=TRUE,8,0))>=D34,(DH-IF(VOETJE=TRUE,8,0))<=E34),1,0) -> 0 | G34: =(((C34*VEERWEG)+B34)*CORRECTION_FACTOR)/9.81 -> 109.3448249 | H34: =IF(AND(F34=1,G34<=KG_MAX),MAX($H33:H33)+1,0) -> 0 | M34: 0 | N34: 2501 | O34: 2625 | P34: 115211-2625 | Q34: HOME Cable set 2 mm for doorheight 2625 mm | S34: 115550 | T34: HOME-X Spring SET L=820, 2375_2500 (2,1 / 3,4 / 4,3)
A35: 115561 | B35: 43 | C35: 0.3090631642 | D35: 2501 | E35: 2750 | F35: 0 | G35: 34.829325 | H35: =IF(AND(F35=1,G35<=KG_MAX),MAX($H34:H34)+1,0) -> 0 | M35: 0 | N35: 2626 | O35: 2750 | P35: 115211-2750 | Q35: HOME Cable set 2 mm for doorheight 2750 mm | S35: 115551 | T35: HOME-X Spring SET L=820, 2375_2500 (2,0 / 3,4 / 4,5)
A36: 115562 | B36: 45 | C36: 0.3318776519 | D36: 2501 | E36: 2750 | F36: 0 | G36: 37.27109539 | H36: =IF(AND(F36=1,G36<=KG_MAX),MAX($H35:H35)+1,0) -> 0 | M36: 0 | N36: 2751 | O36: 2875 | P36: 115211-2875 | Q36: HOME Cable set 2 mm for doorheight 2875 mm | S36: 115561 | T36: HOME-X Spring SET L=905, 2625_2750 (2,0 / 3,2 / --)
A37: 115563 | B37: 49 | C37: 0.3761613909 | D37: 2501 | E37: 2750 | F37: 0 | G37: 42.02364223 | H37: =IF(AND(F37=1,G37<=KG_MAX),MAX($H36:H36)+1,0) -> 0 | M37: 0 | N37: 2876 | O37: 3000 | P37: 115211-3000 | Q37: HOME Cable set 2 mm for doorheight 3000 mm | S37: 115562 | T37: HOME-X Spring SET L=905, 2625_2750 (2,1 / 3,2 / --)
A38: 115564 | B38: 52 | C38: 0.4209143538 | D38: 2501 | E38: 2750 | F38: 0 | G38: 46.71178854 | H38: =IF(AND(F38=1,G38<=KG_MAX),MAX($H37:H37)+1,0) -> 0 | S38: 115563 | T38: HOME-X Spring SET L=905, 2625_2750 (2,3 / 3,2 / --)
A39: 115565 | B39: 56 | C39: 0.4651980928 | D39: 2501 | E39: 2750 | F39: 0 | G39: 51.46433538 | H39: =IF(AND(F39=1,G39<=KG_MAX),MAX($H38:H38)+1,0) -> 0 | S39: 115564 | T39: HOME-X Spring SET L=905, 2625_2750 (2,1 / 3,4 / --)
A40: 115566 | B40: 69 | C40: 0.5255469787 | D40: 2501 | E40: 2750 | F40: 0 | G40: 58.77207002 | H40: =IF(AND(F40=1,G40<=KG_MAX),MAX($H39:H39)+1,0) -> 0 | S40: 115565 | T40: HOME-X Spring SET L=905, 2625_2750 (2,3 / 3,4 / --)
A41: 115567 | B41: 78 | C41: 0.6022256788 | D41: 2501 | E41: 2750 | F41: 0 | G41: 67.22957207 | H41: =IF(AND(F41=1,G41<=KG_MAX),MAX($H40:H40)+1,0) -> 0 | S41: 115566 | T41: HOME-X Spring SET L=905, 2625_2750 (-- / 3,4 / 3,8)
A42: 115568 | B42: 85 | C42: 0.6912623808 | D42: 2501 | E42: 2750 | F42: 0 | G42: 76.67026522 | H42: =IF(AND(F42=1,G42<=KG_MAX),MAX($H41:H41)+1,0) -> 0 | S42: 115567 | T42: HOME-X Spring SET L=905, 2625_2750 (-- / 3,2 / 4,3)
A43: 115569 | B43: 99 | C43: 0.7901715582 | D43: 2501 | E43: 2750 | F43: 0 | G43: 87.84294421 | H43: =IF(AND(F43=1,G43<=KG_MAX),MAX($H42:H42)+1,0) -> 0 | S43: 115568 | T43: HOME-X Spring SET L=905, 2625_2750 (-- / 3,4 / 4,3)
A44: 115570 | B44: 108 | C44: 0.9001183104 | D44: 2501 | E44: 2750 | F44: 0 | G44: 99.53996098 | H44: =IF(AND(F44=1,G44<=KG_MAX),MAX($H43:H43)+1,0) -> 0 | S44: 115569 | T44: HOME-X Spring SET L=905, 2625_2750 (2,1 / 3,4 / 4,3)
A45: 115581 | B45: 43 | C45: 0.280837053 | D45: 2751 | E45: 3000 | F45: 0 | G45: 32.08077505 | H45: =IF(AND(F45=1,G45<=KG_MAX),MAX($H44:H44)+1,0) -> 0 | S45: 115570 | T45: HOME-X Spring SET L=905, 2625_2750 (2,0 / 3,4 / 4,5)
A46: 115582 | B46: 45 | C46: 0.3015894382 | D46: 2751 | E46: 3000 | F46: 0 | G46: 34.32174584 | H46: =IF(AND(F46=1,G46<=KG_MAX),MAX($H45:H45)+1,0) -> 0 | S46: 115581 | T46: HOME-X Spring SET L=990, 2875_3000 (2,0 / 3,2 / --)
A47: 115583 | B47: 49 | C47: 0.3419932498 | D47: 2751 | E47: 3000 | F47: 0 | G47: 38.69648031 | H47: =IF(AND(F47=1,G47<=KG_MAX),MAX($H46:H46)+1,0) -> 0 | S47: 115582 | T47: HOME-X Spring SET L=990, 2875_3000 (2,1 / 3,2 / --)
A48: 115584 | B48: 52 | C48: 0.382959365 | D48: 2751 | E48: 3000 | F48: 0 | G48: 43.01587799 | H48: =IF(AND(F48=1,G48<=KG_MAX),MAX($H47:H47)+1,0) -> 0 | S48: 115583 | T48: HOME-X Spring SET L=990, 2875_3000 (2,3 / 3,2 / --)
A49: 115585 | B49: 56 | C49: 0.4233631767 | D49: 2751 | E49: 3000 | F49: 0 | G49: 47.39061245 | H49: =IF(AND(F49=1,G49<=KG_MAX),MAX($H48:H48)+1,0) -> 0 | S49: 115584 | T49: HOME-X Spring SET L=990, 2875_3000 (2,1 / 3,4 / --)
A50: 115586 | B50: 69 | C50: 0.4779813394 | D50: 2751 | E50: 3000 | F50: 0 | G50: 54.14031135 | H50: =IF(AND(F50=1,G50<=KG_MAX),MAX($H49:H49)+1,0) -> 0 | S50: 115585 | T50: HOME-X Spring SET L=990, 2875_3000 (2,3 / 3,4 / --)
A51: 115587 | B51: 78 | C51: 0.5467976928 | D51: 2751 | E51: 3000 | F51: 0 | G51: 61.83220836 | H51: =IF(AND(F51=1,G51<=KG_MAX),MAX($H50:H50)+1,0) -> 0 | S51: 115586 | T51: HOME-X Spring SET L=990, 2875_3000 (-- / 3,4 / 3,8)
A52: 115588 | B52: 85 | C52: 0.6281676197 | D52: 2751 | E52: 3000 | F52: 0 | G52: 70.52634051 | H52: =IF(AND(F52=1,G52<=KG_MAX),MAX($H51:H51)+1,0) -> 0 | S52: 115587 | T52: HOME-X Spring SET L=990, 2875_3000 (-- / 3,2 / 4,3)
A53: 115589 | B53: 99 | C53: 0.7181836474 | D53: 2751 | E53: 3000 | F53: 0 | G53: 80.83303884 | H53: =IF(AND(F53=1,G53<=KG_MAX),MAX($H52:H52)+1,0) -> 0 | S53: 115588 | T53: HOME-X Spring SET L=990, 2875_3000 (-- / 3,4 / 4,3)
A54: 115590 | B54: 108 | C54: 0.8176968853 | D54: 2751 | E54: 3000 | F54: 0 | G54: 91.51408019 | H54: =IF(AND(F54=1,G54<=KG_MAX),MAX($H53:H53)+1,0) -> 0 | S54: 115589 | T54: HOME-X Spring SET L=990, 2875_3000 (2,1 / 3,4 / 4,3)
S55: 115590 | T55: HOME-X Spring SET L=990, 2875_3000 (2,0 / 3,4 / 4,5)

Sheet SpringCalculation (hidden)
B2: DH | C2: =DH -> 2000 | D2: mm | F2: Cable | G2: 3 | H2: mm | J2: DRUM | K2: HMA | L2: LMA | M2: REV_S | O2: Di | P2: inactive | Q2: art nb | S2: RESULTS | T2: ITEM | U2: QTY | V2: RST | W2: ELT | X2: MIN DW | Y2: ZAGEN | Z2: MASS
J3: M76 | K3: =1.5*25.4 -> 38.1 | L3: =1.5*25.4 -> 38.1 | M3: 0 | O3: 50.8 | P3: 8 | Q3: 329 | S3: 1 | T3: =_xlfn.IFNA(INDEX(SC_TABLE,MATCH($S3,$W$26:$W$155,0),MATCH(T$2,$B$25:$V$25,0)),NOSP) -> 3296508382 | U3: =_xlfn.IFNA(INDEX(SC_TABLE,MATCH($S3,$W$26:$W$155,0),MATCH(U$2,$B$25:$V$25,0)),0) -> 2 | V3: 6.819579022 | W3: =_xlfn.IFNA(INDEX(SC_TABLE,MATCH($S3,$W$26:$W$155,0),MATCH(W$2,$B$25:$V$25,0)),"") -> 26667 | X3: =_xlfn.IFNA(INDEX(SC_TABLE,MATCH($S3,$W$26:$W$155,0),MATCH(X$2,$B$25:$V$25,0)),0) -> 2138.654527 | Y3: Center | Z3: 11.99691657 | AA3: 0 | AB3: 0 | AC3: 0
B4: DW | C4: =DW -> 2400 | D4: mm | F4: Drum | G4: M102 | H4: [-] | J4: M102 | K4: =2.1875*25.4 -> 55.5625 | L4: =2*25.4 -> 50.8 | M4: 0.75 | O4: 66.675 | P4: 7 | Q4: 339 | S4: 2 | T4: =_xlfn.IFNA(INDEX(SC_TABLE,MATCH($S4,$W$26:$W$155,0),MATCH(T$2,$B$25:$V$25,0)),"") -> 3296509132 | U4: 2 | V4: 6.926509868 | W4: 38250 | X4: 2290.044628 | Y4: No cut | Z4: 13.07901969 | AA4: 0 | AB4: 0 | AC4: 0
F5: HMA | G5: =INDEX($K$3:$M$4,MATCH($G$4,$J$3:$J$4,0),MATCH($F5,$K$2:$M$2,0))+($G$2/2) -> 57.0625 | H5: mm | S5: 3 | U5: 0 | V5: 0 | X5: 0 | Y5: 0 | Z5: 0 | AA5: 0 | AB5: 0 | AC5: 0
B6: Weight | C6: =KG -> 125 | D6: KG | F6: LMA | G6: =INDEX($K$3:$M$4,MATCH($G$4,$J$3:$J$4,0),MATCH($F6,$K$2:$M$2,0))+($G$2/2) -> 52.3 | H6: mm | O6: draad | P6: Rm | S6: 4 | U6: 0 | V6: 0 | X6: 0 | Y6: 0 | Z6: 0 | AA6: 0 | AB6: 0 | AC6: 0
F7: REV_S | G7: =INDEX($K$3:$M$4,MATCH($G$4,$J$3:$J$4,0),MATCH($F7,$K$2:$M$2,0)) -> 0.75 | H7: rev | O7: 5 | P7: 1660 | S7: 5 | U7: 0 | V7: 0 | X7: 0 | Y7: 0 | Z7: 0 | AA7: 0 | AB7: 0 | AC7: 0
B8: Lifetime | C8: =O15/1.5 -> 10000 | D8: cycles | F8: CCSP | G8: =PI()*(G6+G5)*G7 -> 257.6793199 | H8: mm | J8: SBD-DW | K8: 87 | L8: mm | O8: 5.3 | P8: 1640 | S8: 6 | U8: 0 | V8: 0 | X8: 0 | Y8: 0 | Z8: 0 | AA8: 0 | AB8: 0 | AC8: 0
F9: CIRF | G9: =PI()*G6*2 -> 328.6105916 | H9: mm | J9: Veerkop | K9: 50 | L9: mm/veer | O9: 5.5 | P9: 1630 | S9: 7 | U9: 0 | V9: 0 | X9: 0 | Y9: 0 | Z9: 0 | AA9: 0 | AB9: 0 | AC9: 0
B10: ODW | C10: =(303/SC_DH)*SC_W -> 18.9375 | D10: KG | J10: 4veren beugel | K10: 116 | L10: mm | O10: 6 | P10: 1590 | S10: 8 | U10: 0 | V10: 0 | X10: 0 | Y10: 0 | Z10: 0 | AA10: 0 | AB10: 0 | AC10: 0
B11: HMT | C11: =SC_W*9.81*G5 -> 69972.89062 | D11: Nmm | F11: DH_not_active | G11: 113 | H11: mm | J11: extra ruimte | K11: 50 | L11: mm/veer | O11: 6.5 | P11: 1560 | S11: 9 | U11: 0 | V11: 0 | X11: 0 | Y11: 0 | Z11: 0 | AA11: 0 | AB11: 0 | AC11: 0
B12: LMT | C12: =C10*9.81*G6 -> 9716.130563 | D12: Nmm | O12: 7 | P12: 1540 | S12: 10 | U12: 0 | V12: 0 | X12: 0 | Y12: 0 | Z12: 0 | AA12: 0 | AB12: 0 | AC12: 0
F13: SBD torque | G13: =21*46.7 -> 980.7 | H13: Nmm | J13: No cut | K13: 0 | L13: mm | O13: 7.5 | P13: 1510 | S13: 11 | U13: 0 | V13: 0 | X13: =_xlfn.IFNA(INDEX(SC_TABLE,MATCH($S13,$W$26:$W$155,0),MATCH(X$2,$B$25:$V$25,0)),0) -> 0 | Y13: 0 | Z13: 0 | AA13: 0 | AB13: 0 | AC13: 0
F14: tol. + | G14: 0.75 | H14: turns | J14: Center | K14: 150 | L14: mm | S14: 12 | U14: 0 | V14: 0 | X14: 0 | Y14: 0 | Z14: 0 | AA14: 0 | AB14: 0 | AC14: 0
B15: RDT | C15: =((SC_DH-G8-G11)/G9)+G7 -> 5.708211092 | D15: turns | F15: tol. - | G15: 0 | H15: turns | J15: Ex_Center | K15: 490 | L15: mm | N15: Min. lifetime Step 1 | O15: =Lifetime -> 15000 | P15: if > … | S15: 13 | U15: 0 | V15: 0 | X15: 0 | Y15: 0 | Z15: 0 | AA15: 0 | AB15: 0 | AC15: 0
N16: Min. lifetime Step 2 | O16: =O15/1.2 -> 12500 | P16: elseif > … else > "C8" | S16: 14 | U16: 0 | V16: 0 | X16: 0 | Y16: 0 | Z16: 0 | AA16: 0 | AB16: 0 | AC16: 0
B17: Results | C17: =MAX(W26:W155) -> 2 | F17: No Cut DW | G17: 3000 | N17: SELECTED RESULT: | O17: =IF(MAX(W3:W22)>=O15,INDEX(T3:T22,MIN(IF(W3:W22>=O15,ROW(W3:W22)-2,""))),IF(MAX(W3:W22)>=O16,INDEX(T3:T22,MIN(IF(W3:W22>=O16,ROW(W3:W22)-2,""))),T3)) -> 3296508382 | Q17: =SC_RESULT_ITEM&" ("&SC_RESULT_QTY&")" -> 3296508382 (2) | S17: 15 | U17: 0 | V17: 0 | X17: 0 | Y17: 0 | Z17: 0 | AA17: 0 | AB17: 0 | AC17: 0
I18: 215 | N18: SELECTED QTY: | O18: =VLOOKUP(SC_RESULT_ITEM,$T$3:$AA$22,2,0) -> 2 | S18: 16 | U18: 0 | V18: 0 | X18: 0 | Y18: 0 | Z18: 0 | AA18: 0 | AB18: 0 | AC18: 0
B19: Density | C19: 10.5 | D19: KG/m² | H19: No cut | I19: ="L = "&DW+I18 -> L = 2615 | N19: SELECTED RST: | O19: =IFERROR(ROUND(VLOOKUP(SC_RESULT_ITEM,$T$3:$AA$22,3,0),1),"") -> 6.8 | S19: 17 | U19: 0 | V19: 0 | X19: 0 | Y19: 0 | Z19: 0 | AA19: 0 | AB19: 0 | AC19: 0
B20: Additional | C20: 5.5 | D20: KG | H20: Center | I20: ="L = "&ROUND((DW+I18)/2,0)&";L = "&ROUND((DW+I18)/2,0) -> L = 1308;L = 1308 | N20: SELECTED ELT: | O20: =VLOOKUP(SC_RESULT_ITEM,$T$3:$AA$22,4,0) -> 26667 | S20: 18 | U20: 0 | V20: 0 | X20: 0 | Y20: 0 | Z20: 0 | AA20: 0 | AB20: 0 | AC20: 0
B21: endcap | C21: =2*0.768 -> 1.536 | D21: KG/mtr | H21: Ex_Center | I21: ="L = "&ROUND((DW+I18)/2,0)-200&";L = "&ROUND((DW+I18)/2,0)+200 -> L = 1108;L = 1508 | N21: SELECTED min DW: | O21: =IFERROR(ROUND(VLOOKUP(SC_RESULT_ITEM,$T$3:$AA$22,5,0),0),"") -> 2139 | S21: 19 | U21: 0 | V21: 0 | X21: 0 | Y21: 0 | Z21: 0 | AA21: 0 | AB21: 0 | AC21: 0
B22: alu/seal | C22: 1 | D22: KG/mtr | I22: =VLOOKUP(SC_RESULT_BUILD,H19:I21,2,0) -> L = 2615 | N22: SELECTED BUILD: | O22: =IF(DW>SC_NOCUTDW,VLOOKUP(SC_RESULT_ITEM,$T$3:$AA$22,6,0),"No cut") -> No cut | S22: 20 | U22: 0 | V22: 0 | X22: 0 | Y22: 0 | Z22: 0 | AA22: 0 | AB22: 0 | AC22: 0
C23: =(((SC_DH+20)*(SC_DW+20)*$C$19)/1000000)+$C$20+(SC_DH*$C$21/1000)+((SC_DW+20)*$C$22/1000) -> 62.3202 | H23: as zaag instuctie | N23: SELECTED MASS: | O23: =IFERROR(ROUND(VLOOKUP(SC_RESULT_ITEM,$T$3:$AA$22,7,0),3),"") -> 11.997
B25: USE M102 | C25: ITEM | D25: D | E25: d | F25: L | G25: nw | H25: nw,act | I25: MF | J25: MB | K25: TPST | L25: MASS | M25: QTY | N25: PRE-TURN | O25: RST | P25: KG- | Q25: KG+ | S25: ELT | T25: MIN DW | U25: RUIMTE | V25: ZAGEN
B26: X | C26: 3295004482 | D26: =INDEX($O$3:$O$4,MATCH(VALUE(LEFT(C26,3)),$Q$3:$Q$4,0)) -> 50.8 | E26: =VALUE(RIGHT(LEFT(C26,5),2))/10 -> 5 | F26: =VALUE(RIGHT(LEFT(C26,9),4)) -> 448 | G26: =(F26/E26)-1 -> 88.6 | H26: =G26-VLOOKUP(D26,$O$3:$P$4,2,0) -> 80.6 | I26: =(($E26^4)*206000*PI())/(32*($D26+$E26)) -> 226523.3278 | J26: =((E26^3)*VLOOKUP(E26,$O$7:$P$13,2,0)*PI())/32 -> 20371.26486 | K26: =I26/H26 -> 2810.463124 | L26: =((PI()*((E26/2)^2))*(PI()*(D26+E26)))*G26*(7.85/1000000)*M26 -> 4.787924969 | M26: 2 | N26: =((SC_LMT/M26)+SC_SBD)/K26 -> 2.077510013 | O26: =N26+SC_RDT -> 7.785721105 | P26: =((((O26+SC_TOL_MIN)*K26)-SC_SBD)*M26)/(SC_HMA*9.81) -> 74.67456995 | Q26: =((((O26+SC_TOL_PLUS)*K26)-SC_SBD)*M26)/(SC_HMA*9.81) -> 82.20551273 | R26: =IF(AND(SC_W>=P26,SC_W<=Q26),1,0) -> 0 | S26: =_xlfn.IFNA(VLOOKUP(ROUND(VLOOKUP(ROUND(1-(SC_RDT/O26),2),SC_LT_TABLE,2,0)-(($I26*O26)/($H26*J26)),2),SC_LT_TABLE,3,0),0) -> 10833 | T26: =((F26+(O26*E26)+$K$9+$K$8+$K$11)*M26)+IF(M26=4,$K$10,0) -> 1347.857211 | U26: =SC_DW-T26 -> 1052.142789 | V26: =IF(U26>=$K$15,$J$15,IF(U26>=$K$14,$J$14,IF(AND(U26>=$K$13,M26=4),$J$14,IF(U26>=$K$13,$J$13,0)))) -> Ex_Center | W26: =IF(AND(R26=1,S26>=SC_LT,V26<>0,OR(IF(AND($G$4=$J$4,B26="X"),TRUE,FALSE),IF(AND($G$4=$J$3,A26="X",D26<>$O$4),TRUE,FALSE))),MAX($W$25:W25)+1,0) -> 0
B27: X | C27: 3295004902 | D27: 50.8 | E27: 5 | F27: 490 | G27: 97 | H27: 89 | I27: 226523.3278 | J27: 20371.26486 | K27: 2545.205931 | L27: 5.241859164 | M27: 2 | N27: 2.294024704 | O27: 8.002235796 | P27: 69.26481753 | Q27: 76.08497471 | R27: 0 | S27: 16667 | T27: 1434.022358 | U27: 965.977642 | V27: =IF(U27>=$K$15,$J$15,IF(U27>=$K$14,$J$14,IF(AND(U27>=$K$13,M27=4),$J$14,IF(U27>=$K$13,$J$13,0)))) -> Ex_Center | W27: =IF(AND(R27=1,S27>=SC_LT,V27<>0,OR(IF(AND($G$4=$J$4,B27="X"),TRUE,FALSE),IF(AND($G$4=$J$3,A27="X",D27<>$O$4),TRUE,FALSE))),MAX($W$25:W26)+1,0) -> 0
B28: X | C28: 3295005332 | D28: 50.8 | E28: 5 | F28: 533 | G28: 105.6 | H28: 97.6 | I28: 226523.3278 | J28: 20371.26486 | K28: 2320.935736 | L28: 5.706601317 | M28: 2 | N28: 2.515694507 | O28: 8.223905599 | P28: 64.690969 | Q28: 70.9101697 | R28: 0 | S28: 23750 | T28: 1522.239056 | U28: 877.760944 | V28: Ex_Center | W28: =IF(AND(R28=1,S28>=SC_LT,V28<>0,OR(IF(AND($G$4=$J$4,B28="X"),TRUE,FALSE),IF(AND($G$4=$J$3,A28="X",D28<>$O$4),TRUE,FALSE))),MAX($W$25:W27)+1,0) -> 0
B29: X | C29: 3295005762 | D29: 50.8 | E29: 5 | F29: 576 | G29: 114.2 | H29: 106.2 | I29: 226523.3278 | J29: 20371.26486 | K29: 2132.988021 | L29: 6.17134347 | M29: 2 | N29: 2.73736431 | O29: 8.445575402 | P29: 60.85789443 | Q29: 66.5734687 | R29: 0 | S29: 35000 | T29: 1610.455754 | U29: 789.544246 | V29: Ex_Center | W29: =IF(AND(R29=1,S29>=SC_LT,V29<>0,OR(IF(AND($G$4=$J$4,B29="X"),TRUE,FALSE),IF(AND($G$4=$J$3,A29="X",D29<>$O$4),TRUE,FALSE))),MAX($W$25:W28)+1,0) -> 0
B30: X | C30: 3295006192 | D30: 50.8 | E30: 5 | F30: 619 | G30: 122.8 | H30: 114.8 | I30: 226523.3278 | J30: 20371.26486 | K30: 1973.19972 | L30: 6.636085622 | M30: 2 | N30: 2.959034113 | O30: 8.667245205 | P30: 57.59911326 | Q30: 62.88651734 | R30: 0 | S30: 53125 | T30: 1698.672452 | U30: 701.327548 | V30: Ex_Center | W30: =IF(AND(R30=1,S30>=SC_LT,V30<>0,OR(IF(AND($G$4=$J$4,B30="X"),TRUE,FALSE),IF(AND($G$4=$J$3,A30="X",D30<>$O$4),TRUE,FALSE))),MAX($W$25:W29)+1,0) -> 0
B31: X | C31: 3295006632 | D31: 50.8 | E31: 5 | F31: 663 | G31: 131.6 | H31: 123.6 | I31: 226523.3278 | J31: 20371.26486 | K31: 1832.713008 | L31: 7.111635732 | M31: 2 | N31: 3.185859027 | O31: 8.894070119 | P31: 54.73397578 | Q31: 59.64493038 | R31: 0 | S31: 65625 | T31: 1788.940701 | U31: 611.0592988 | V31: Ex_Center | W31: =IF(AND(R31=1,S31>=SC_LT,V31<>0,OR(IF(AND($G$4=$J$4,B31="X"),TRUE,FALSE),IF(AND($G$4=$J$3,A31="X",D31<>$O$4),TRUE,FALSE))),MAX($W$25:W30)+1,0) -> 0
B32: X | C32: 3295305032 | D32: 50.8 | E32: 5.3 | F32: 503 | G32: 93.90566038 | H32: 85.90566038 | I32: 284451.1749 | J32: 23970.18309 | K32: 3311.2041 | L32: 5.732522633 | M32: 2 | N32: 1.763335966 | O32: 7.471547058 | P32: 84.88686491 | Q32: 93.75959781 | R32: 0 | S32: 12500 | T32: 1459.198399 | U32: 940.8016012 | V32: Ex_Center | W32: =IF(AND(R32=1,S32>=SC_LT,V32<>0,OR(IF(AND($G$4=$J$4,B32="X"),TRUE,FALSE),IF(AND($G$4=$J$3,A32="X",D32<>$O$4),TRUE,FALSE))),MAX($W$25:W31)+1,0) -> 0
B33: X | C33: 3295305512 | D33: 50.8 | E33: 5.3 | F33: 551 | G33: 102.9622642 | H33: 94.96226415 | I33: 284451.1749 | J33: 23970.18309 | K33: 2995.41273 | L33: 6.285387986 | M33: 2 | N33: 1.949235651 | O33: 7.657446743 | P33: 78.44649997 | Q33: 86.47303542 | R33: 0 | S33: 18333 | T33: 1557.168935 | U33: 842.8310645 | V33: Ex_Center | W33: =IF(AND(R33=1,S33>=SC_LT,V33<>0,OR(IF(AND($G$4=$J$4,B33="X"),TRUE,FALSE),IF(AND($G$4=$J$3,A33="X",D33<>$O$4),TRUE,FALSE))),MAX($W$25:W32)+1,0) -> 0
B34: X | C34: 3295306002 | D34: 50.8 | E34: 5.3 | F34: 600 | G34: 112.2075472 | H34: 104.2075472 | I34: 284451.1749 | J34: 23970.18309 | K34: 2729.660016 | L34: 6.849771368 | M34: 2 | N34: 2.139008245 | O34: 7.847219337 | P34: 73.02664175 | Q34: 80.34106378 | R34: 0 | S34: 28333 | T34: 1657.180525 | U34: 742.819475 | V34: Ex_Center | W34: =IF(AND(R34=1,S34>=SC_LT,V34<>0,OR(IF(AND($G$4=$J$4,B34="X"),TRUE,FALSE),IF(AND($G$4=$J$3,A34="X",D34<>$O$4),TRUE,FALSE))),MAX($W$25:W33)+1,0) -> 0
B35: X | C35: 3295306492 | D35: 50.8 | E35: 5.3 | F35: 649 | G35: 121.4528302 | H35: 113.4528302 | I35: 284451.1749 | J35: 23970.18309 | K35: 2507.219735 | L35: 7.414154749 | M35: 2 | N35: 2.32878084 | O35: 8.036991932 | P35: 68.49011315 | Q35: 75.20848216 | R35: 0 | S35: 41500 | T35: 1757.192114 | U35: 642.8078855 | V35: Ex_Center | W35: =IF(AND(R35=1,S35>=SC_LT,V35<>0,OR(IF(AND($G$4=$J$4,B35="X"),TRUE,FALSE),IF(AND($G$4=$J$3,A35="X",D35<>$O$4),TRUE,FALSE))),MAX($W$25:W34)+1,0) -> 0
B36: X | C36: 3295306972 | D36: 50.8 | E36: 5.3 | F36: 697 | G36: 130.509434 | H36: 122.509434 | I36: 284451.1749 | J36: 23970.18309 | K36: 2321.871595 | L36: 7.967020103 | M36: 2 | N36: 2.514680525 | O36: 8.222891617 | P36: 64.71005526 | Q36: 70.9317637 | R36: 0 | S36: 59375 | T36: 1855.162651 | U36: 544.8373489 | V36: Ex_Center | W36: =IF(AND(R36=1,S36>=SC_LT,V36<>0,OR(IF(AND($G$4=$J$4,B36="X"),TRUE,FALSE),IF(AND($G$4=$J$3,A36="X",D36<>$O$4),TRUE,FALSE))),MAX($W$25:W35)+1,0) -> 0
B37: X | C37: 3295307462 | D37: 50.8 | E37: 5.3 | F37: 746 | G37: 139.754717 | H37: 131.754717 | I37: 284451.1749 | J37: 23970.18309 | K37: 2158.944905 | L37: 8.531403484 | M37: 2 | N37: 2.704453119 | O37: 8.412664211 | P37: 61.38726862 | Q37: 67.17239721 | R37: 0 | S37: 75000 | T37: 1955.174241 | U37: 444.8257594 | V37: Center | W37: =IF(AND(R37=1,S37>=SC_LT,V37<>0,OR(IF(AND($G$4=$J$4,B37="X"),TRUE,FALSE),IF(AND($G$4=$J$3,A37="X",D37<>$O$4),TRUE,FALSE))),MAX($W$25:W36)+1,0) -> 0
B38: X | C38: 3295307952 | D38: 50.8 | E38: 5.3 | F38: 795 | G38: 149 | H38: 141 | I38: 284451.1749 | J38: 23970.18309 | K38: 2017.384219 | L38: 9.095786866 | M38: 2 | N38: 2.894225714 | O38: 8.602436806 | P38: 58.50022813 | Q38: 63.9060294 | R38: 0 | S38: 90625 | T38: 2055.18583 | U38: 344.8141699 | V38: Center | W38: =IF(AND(R38=1,S38>=SC_LT,V38<>0,OR(IF(AND($G$4=$J$4,B38="X"),TRUE,FALSE),IF(AND($G$4=$J$3,A38="X",D38<>$O$4),TRUE,FALSE))),MAX($W$25:W37)+1,0) -> 0
B39: X | C39: 3295505412 | D39: 50.8 | E39: 5.5 | F39: 541 | G39: 97.36363636 | H39: 89.36363636 | I39: 328707.3975 | J39: 26624.13871 | K39: 3678.312688 | L39: 6.423473932 | M39: 2 | N39: 1.587348814 | O39: 7.295559906 | P39: 92.37381197 | Q39: 102.2302524 | R39: 0 | S39: 13125 | T39: 1536.251159 | U39: 863.748841 | V39: Ex_Center | W39: =IF(AND(R39=1,S39>=SC_LT,V39<>0,OR(IF(AND($G$4=$J$4,B39="X"),TRUE,FALSE),IF(AND($G$4=$J$3,A39="X",D39<>$O$4),TRUE,FALSE))),MAX($W$25:W38)+1,0) -> 0
B40: X | C40: 3295505932 | D40: 50.8 | E40: 5.5 | F40: 593 | G40: 106.8181818 | H40: 98.81818182 | I40: 328707.3975 | J40: 26624.13871 | K40: 3326.385807 | L40: 7.047228637 | M40: 2 | N40: 1.755288057 | O40: 7.463499149 | P40: 85.1964862 | Q40: 94.10990014 | R40: 0 | S40: 20000 | T40: 1642.098491 | U40: 757.9015094 | V40: Ex_Center | W40: =IF(AND(R40=1,S40>=SC_LT,V40<>0,OR(IF(AND($G$4=$J$4,B40="X"),TRUE,FALSE),IF(AND($G$4=$J$3,A40="X",D40<>$O$4),TRUE,FALSE))),MAX($W$25:W39)+1,0) -> 0
B41: X | C41: 3295506462 | D41: 50.8 | E41: 5.5 | F41: 646 | G41: 116.4545455 | H41: 108.4545455 | I41: 328707.3975 | J41: 26624.13871 | K41: 3030.830991 | L41: 7.682978624 | M41: 2 | N41: 1.926456902 | O41: 7.634667994 | P41: 79.16883297 | Q41: 87.29027551 | R41: 0 | S41: 30000 | T41: 1749.981348 | U41: 650.0186521 | V41: Ex_Center | W41: =IF(AND(R41=1,S41>=SC_LT,V41<>0,OR(IF(AND($G$4=$J$4,B41="X"),TRUE,FALSE),IF(AND($G$4=$J$3,A41="X",D41<>$O$4),TRUE,FALSE))),MAX($W$25:W40)+1,0) -> 0
B42: X | C42: 3295506982 | D42: 50.8 | E42: 5.5 | F42: 698 | G42: 125.9090909 | H42: 117.9090909 | I42: 328707.3975 | J42: 26624.13871 | K42: 2787.803679 | L42: 8.306733329 | M42: 2 | N42: 2.094396146 | O42: 7.802607238 | P42: 74.21244492 | Q42: 81.68266925 | R42: 0 | S42: 44750 | T42: 1855.82868 | U42: 544.1713204 | V42: Ex_Center | W42: =IF(AND(R42=1,S42>=SC_LT,V42<>0,OR(IF(AND($G$4=$J$4,B42="X"),TRUE,FALSE),IF(AND($G$4=$J$3,A42="X",D42<>$O$4),TRUE,FALSE))),MAX($W$25:W41)+1,0) -> 0
B43: X | C43: 3295507512 | D43: 50.8 | E43: 5.5 | F43: 751 | G43: 135.5454545 | H43: 127.5454545 | I43: 328707.3975 | J43: 26624.13871 | K43: 2577.178455 | L43: 8.942483317 | M43: 2 | N43: 2.26556499 | O43: 7.973776082 | P43: 69.91687691 | Q43: 76.82270795 | R43: 0 | S43: 65625 | T43: 1963.711537 | U43: 436.2884631 | V43: Center | W43: =IF(AND(R43=1,S43>=SC_LT,V43<>0,OR(IF(AND($G$4=$J$4,B43="X"),TRUE,FALSE),IF(AND($G$4=$J$3,A43="X",D43<>$O$4),TRUE,FALSE))),MAX($W$25:W42)+1,0) -> 0
B44: X | C44: 3295508042 | D44: 50.8 | E44: 5.5 | F44: 804 | G44: 145.1818182 | H44: 137.1818182 | I44: 328707.3975 | J44: 26624.13871 | K44: 2396.14405 | L44: 9.578233305 | M44: 2 | N44: 2.436733835 | O44: 8.144944927 | P44: 66.22479493 | Q44: 72.64552452 | R44: 0 | S44: 81250 | T44: 2071.594394 | U44: 328.4056058 | V44: Center | W44: =IF(AND(R44=1,S44>=SC_LT,V44<>0,OR(IF(AND($G$4=$J$4,B44="X"),TRUE,FALSE),IF(AND($G$4=$J$3,A44="X",D44<>$O$4),TRUE,FALSE))),MAX($W$25:W43)+1,0) -> 0
B45: X | C45: 3295508572 | D45: 50.8 | E45: 5.5 | F45: 857 | G45: 154.8181818 | H45: 146.8181818 | I45: 328707.3975 | J45: 26624.13871 | K45: 2238.873915 | L45: 10.21398329 | M45: 2 | N45: 2.60790268 | O45: 8.316113772 | P45: 63.01737015 | Q45: 69.01667724 | R45: 0 | S45: 90625 | T45: 2179.477251 | U45: 220.5227485 | V45: Center | W45: =IF(AND(R45=1,S45>=SC_LT,V45<>0,OR(IF(AND($G$4=$J$4,B45="X"),TRUE,FALSE),IF(AND($G$4=$J$3,A45="X",D45<>$O$4),TRUE,FALSE))),MAX($W$25:W44)+1,0) -> 0
B46: X | C46: 3296006482 | D46: 50.8 | E46: 6 | F46: 648 | G46: 107 | H46: 99 | I46: 461449.0759 | J46: 33717.14315 | K46: 4661.101776 | L46: 8.475669639 | M46: 2 | N46: 1.252657754 | O46: 6.960868846 | P46: 112.4171728 | Q46: 124.9071039 | R46: 0 | S46: 15000 | T46: 1753.530426 | U46: 646.4695739 | V46: Ex_Center | W46: =IF(AND(R46=1,S46>=SC_LT,V46<>0,OR(IF(AND($G$4=$J$4,B46="X"),TRUE,FALSE),IF(AND($G$4=$J$3,A46="X",D46<>$O$4),TRUE,FALSE))),MAX($W$25:W45)+1,0) -> 0
B47: X | C47: 3296007112 | D47: 50.8 | E47: 6 | F47: 711 | G47: 117.5 | H47: 109.5 | I47: 461449.0759 | J47: 33717.14315 | K47: 4214.146812 | L47: 9.30739423 | M47: 2 | N47: 1.385515394 | O47: 7.093726486 | P47: 103.3018094 | Q47: 114.5940759 | R47: 0 | S47: 22500 | T47: 1881.124718 | U47: 518.8752822 | V47: Ex_Center | W47: =IF(AND(R47=1,S47>=SC_LT,V47<>0,OR(IF(AND($G$4=$J$4,B47="X"),TRUE,FALSE),IF(AND($G$4=$J$3,A47="X",D47<>$O$4),TRUE,FALSE))),MAX($W$25:W46)+1,0) -> 0
B48: X | C48: 3296007752 | D48: 50.8 | E48: 6 | F48: 775 | G48: 128.1666667 | H48: 120.1666667 | I48: 461449.0759 | J48: 33717.14315 | K48: 3840.075527 | L48: 10.1523208 | M48: 2 | N48: 1.520481886 | O48: 7.228692978 | P48: 95.67286259 | Q48: 105.9627642 | R48: 0 | S48: 33333 | T48: 2010.744316 | U48: 389.2556843 | V48: Center | W48: =IF(AND(R48=1,S48>=SC_LT,V48<>0,OR(IF(AND($G$4=$J$4,B48="X"),TRUE,FALSE),IF(AND($G$4=$J$3,A48="X",D48<>$O$4),TRUE,FALSE))),MAX($W$25:W47)+1,0) -> 0
B49: X | C49: 3296008382 | D49: 50.8 | E49: 6 | F49: 838 | G49: 138.6666667 | H49: 130.6666667 | I49: 461449.0759 | J49: 33717.14315 | K49: 3531.49803 | L49: 10.98404539 | M49: 2 | N49: 1.653339527 | O49: 7.361550619 | P49: 89.37962003 | Q49: 98.84265456 | R49: 0 | S49: 53125 | T49: 2138.338607 | U49: 261.6613926 | V49: Center | W49: =IF(AND(R49=1,S49>=SC_LT,V49<>0,OR(IF(AND($G$4=$J$4,B49="X"),TRUE,FALSE),IF(AND($G$4=$J$3,A49="X",D49<>$O$4),TRUE,FALSE))),MAX($W$25:W48)+1,0) -> 0
B50: X | C50: 3296009022 | D50: 50.8 | E50: 6 | F50: 902 | G50: 149.3333333 | H50: 141.3333333 | I50: 461449.0759 | J50: 33717.14315 | K50: 3264.969876 | L50: 11.82897196 | M50: 2 | N50: 1.788306019 | O50: 7.496517111 | P50: 83.9439472 | Q50: 92.69279045 | R50: 0 | S50: 68750 | T50: 2267.958205 | U50: 132.0417947 | V50: No cut | W50: =IF(AND(R50=1,S50>=SC_LT,V50<>0,OR(IF(AND($G$4=$J$4,B50="X"),TRUE,FALSE),IF(AND($G$4=$J$3,A50="X",D50<>$O$4),TRUE,FALSE))),MAX($W$25:W49)+1,0) -> 0
B51: X | C51: 3296009662 | D51: 50.8 | E51: 6 | F51: 966 | G51: 160 | H51: 152 | I51: 461449.0759 | J51: 33717.14315 | K51: 3035.849183 | L51: 12.67389853 | M51: 2 | N51: 1.923272511 | O51: 7.631483603 | P51: 79.27117583 | Q51: 87.40606516 | R51: 0 | S51: 84375 | T51: 2397.577803 | U51: 2.422196765 | V51: No cut | W51: =IF(AND(R51=1,S51>=SC_LT,V51<>0,OR(IF(AND($G$4=$J$4,B51="X"),TRUE,FALSE),IF(AND($G$4=$J$3,A51="X",D51<>$O$4),TRUE,FALSE))),MAX($W$25:W50)+1,0) -> 0
B52: X | C52: 3296010302 | D52: 50.8 | E52: 6 | F52: 1030 | G52: 170.6666667 | H52: 162.6666667 | I52: 461449.0759 | J52: 33717.14315 | K52: 2836.777106 | L52: 13.51882509 | M52: 2 | N52: 2.058239003 | O52: 7.766450095 | P52: 75.21122693 | Q52: 82.8126809 | R52: 0 | S52: 100000 | T52: 2527.197401 | U52: -127.1974011 | V52: 0 | W52: =IF(AND(R52=1,S52>=SC_LT,V52<>0,OR(IF(AND($G$4=$J$4,B52="X"),TRUE,FALSE),IF(AND($G$4=$J$3,A52="X",D52<>$O$4),TRUE,FALSE))),MAX($W$25:W51)+1,0) -> 0
B53: X | C53: 3296010942 | D53: 50.8 | E53: 6 | F53: 1094 | G53: 181.3333333 | H53: 173.3333333 | I53: 461449.0759 | J53: 33717.14315 | K53: 2662.206207 | L53: 14.36375166 | M53: 2 | N53: 2.193205495 | O53: 7.901416587 | P53: 71.65096404 | Q53: 78.78463623 | R53: 0 | S53: 157143 | T53: 2656.816999 | U53: -256.816999 | V53: 0 | W53: =IF(AND(R53=1,S53>=SC_LT,V53<>0,OR(IF(AND($G$4=$J$4,B53="X"),TRUE,FALSE),IF(AND($G$4=$J$3,A53="X",D53<>$O$4),TRUE,FALSE))),MAX($W$25:W52)+1,0) -> 0
B54: X | C54: 3396008112 | D54: 66.675 | E54: 6 | F54: 811 | G54: 134.1666667 | H54: 127.1666667 | I54: 360650.9461 | J54: 33717.14315 | K54: 2836.04938 | L54: 13.59789169 | M54: 2 | N54: 2.058767144 | O54: 7.766978236 | P54: 75.19638541 | Q54: 82.79588936 | R54: 0 | S54: 100000 | T54: 2089.203739 | U54: 310.7962612 | V54: Center | W54: =IF(AND(R54=1,S54>=SC_LT,V54<>0,OR(IF(AND($G$4=$J$4,B54="X"),TRUE,FALSE),IF(AND($G$4=$J$3,A54="X",D54<>$O$4),TRUE,FALSE))),MAX($W$25:W53)+1,0) -> 0
B55: X | C55: 3396008612 | D55: 66.675 | E55: 6 | F55: 861 | G55: 142.5 | H55: 135.5 | I55: 360650.9461 | J55: 33717.14315 | K55: 2661.630599 | L55: 14.44248124 | M55: 2 | N55: 2.193679801 | O55: 7.901890893 | P55: 71.63922488 | Q55: 78.77135466 | R55: 0 | S55: 157143 | T55: 2190.822691 | U55: 209.1773093 | V55: Center | W55: =IF(AND(R55=1,S55>=SC_LT,V55<>0,OR(IF(AND($G$4=$J$4,B55="X"),TRUE,FALSE),IF(AND($G$4=$J$3,A55="X",D55<>$O$4),TRUE,FALSE))),MAX($W$25:W54)+1,0) -> 0
B56: X | C56: 3396009112 | D56: 66.675 | E56: 6 | F56: 911 | G56: 150.8333333 | H56: 143.8333333 | I56: 360650.9461 | J56: 33717.14315 | K56: 2507.422569 | L56: 15.28707078 | M56: 2 | N56: 2.328592458 | O56: 8.03680355 | P56: 68.4942498 | Q56: 75.21316233 | R56: 0 | S56: 185714 | T56: 2292.441643 | U56: 107.5583574 | V56: No cut | W56: =IF(AND(R56=1,S56>=SC_LT,V56<>0,OR(IF(AND($G$4=$J$4,B56="X"),TRUE,FALSE),IF(AND($G$4=$J$3,A56="X",D56<>$O$4),TRUE,FALSE))),MAX($W$25:W55)+1,0) -> 0
B57: X | C57: 3396009612 | D57: 66.675 | E57: 6 | F57: 961 | G57: 159.1666667 | H57: 152.1666667 | I57: 360650.9461 | J57: 33717.14315 | K57: 2370.104794 | L57: 16.13166033 | M57: 2 | N57: 2.463505114 | O57: 8.171716207 | P57: 65.69374078 | Q57: 72.04469534 | R57: 0 | S57: 237500 | T57: 2394.060594 | U57: 5.939405522 | V57: No cut | W57: =IF(AND(R57=1,S57>=SC_LT,V57<>0,OR(IF(AND($G$4=$J$4,B57="X"),TRUE,FALSE),IF(AND($G$4=$J$3,A57="X",D57<>$O$4),TRUE,FALSE))),MAX($W$25:W56)+1,0) -> 0
B58: X | C58: 3296507632 | D58: 50.8 | E58: 6.5 | F58: 763 | G58: 116.3846154 | H58: 108.3846154 | I58: 630036.8034 | J58: 42059.54427 | K58: 5812.972636 | L58: 10.91481345 | M58: 2 | N58: 1.004437084 | O58: 6.712648176 | P58: 135.9088492 | Q58: 151.485344 | R58: 0 | S58: 17500 | T58: 1987.264426 | U58: 412.7355737 | V58: Center | W58: =IF(AND(R58=1,S58>=SC_LT,V58<>0,OR(IF(AND($G$4=$J$4,B58="X"),TRUE,FALSE),IF(AND($G$4=$J$3,A58="X",D58<>$O$4),TRUE,FALSE))),MAX($W$25:W57)+1,0) -> 0
B59: X | C59: 3296508382 | D59: 50.8 | E59: 6.5 | F59: 838 | G59: 127.9230769 | H59: 119.9230769 | I59: 630036.8034 | J59: 42059.54427 | K59: 5253.674435 | L59: 11.99691657 | M59: 2 | N59: 1.11136793 | O59: 6.819579022 | P59: 124.5023167 | Q59: 138.580111 | R59: 1 | S59: 26667 | T59: 2138.654527 | U59: 261.3454727 | V59: Center | W59: =IF(AND(R59=1,S59>=SC_LT,V59<>0,OR(IF(AND($G$4=$J$4,B59="X"),TRUE,FALSE),IF(AND($G$4=$J$3,A59="X",D59<>$O$4),TRUE,FALSE))),MAX($W$25:W58)+1,0) -> 1
B60: X | C60: 3296509132 | D60: 50.8 | E60: 6.5 | F60: 913 | G60: 139.4615385 | H60: 131.4615385 | I60: 630036.8034 | J60: 42059.54427 | K60: 4792.55614 | L60: 13.07901969 | M60: 2 | N60: 1.218298776 | O60: 6.926509868 | P60: 115.0981013 | Q60: 127.9402787 | R60: 1 | S60: 38250 | T60: 2290.044628 | U60: 109.9553717 | V60: No cut | W60: =IF(AND(R60=1,S60>=SC_LT,V60<>0,OR(IF(AND($G$4=$J$4,B60="X"),TRUE,FALSE),IF(AND($G$4=$J$3,A60="X",D60<>$O$4),TRUE,FALSE))),MAX($W$25:W59)+1,0) -> 2
B61: X | C61: 3296509892 | D61: 50.8 | E61: 6.5 | F61: 989 | G61: 151.1538462 | H61: 143.1538462 | I61: 630036.8034 | J61: 42059.54427 | K61: 4401.116842 | L61: 14.17555085 | M61: 2 | N61: 1.326655367 | O61: 7.034866459 | P61: 107.1149448 | Q61: 118.9082179 | R61: 0 | S61: 56250 | T61: 2443.453264 | U61: -43.45326397 | V61: 0 | W61: =IF(AND(R61=1,S61>=SC_LT,V61<>0,OR(IF(AND($G$4=$J$4,B61="X"),TRUE,FALSE),IF(AND($G$4=$J$3,A61="X",D61<>$O$4),TRUE,FALSE))),MAX($W$25:W60)+1,0) -> 0
B62: X | C62: 3296510642 | D62: 50.8 | E62: 6.5 | F62: 1064 | G62: 162.6923077 | H62: 154.6923077 | I62: 630036.8034 | J62: 42059.54427 | K62: 4072.83861 | L62: 15.25765397 | M62: 2 | N62: 1.433586214 | O62: 7.141797306 | P62: 100.4199182 | Q62: 111.3335339 | R62: 0 | S62: 75000 | T62: 2594.843365 | U62: -194.843365 | V62: 0 | W62: =IF(AND(R62=1,S62>=SC_LT,V62<>0,OR(IF(AND($G$4=$J$4,B62="X"),TRUE,FALSE),IF(AND($G$4=$J$3,A62="X",D62<>$O$4),TRUE,FALSE))),MAX($W$25:W61)+1,0) -> 0
B63: X | C63: 3296511402 | D63: 50.8 | E63: 6.5 | F63: 1140 | G63: 174.3846154 | H63: 166.3846154 | I63: 630036.8034 | J63: 42059.54427 | K63: 3786.628962 | L63: 16.35418513 | M63: 2 | N63: 1.541942805 | O63: 7.250153897 | P63: 94.58285375 | Q63: 104.7295395 | R63: 0 | S63: 87500 | T63: 2748.252001 | U63: -348.2520007 | V63: 0 | W63: =IF(AND(R63=1,S63>=SC_LT,V63<>0,OR(IF(AND($G$4=$J$4,B63="X"),TRUE,FALSE),IF(AND($G$4=$J$3,A63="X",D63<>$O$4),TRUE,FALSE))),MAX($W$25:W62)+1,0) -> 0
B64: X | C64: 3296512162 | D64: 50.8 | E64: 6.5 | F64: 1216 | G64: 186.0769231 | H64: 178.0769231 | I64: 630036.8034 | J64: 42059.54427 | K64: 3538.003647 | L64: 17.45071628 | M64: 2 | N64: 1.650299396 | O64: 7.358510488 | P64: 89.51229798 | Q64: 98.99276503 | R64: 0 | S64: 100000 | T64: 2901.660636 | U64: -501.6606363 | V64: 0 | W64: =IF(AND(R64=1,S64>=SC_LT,V64<>0,OR(IF(AND($G$4=$J$4,B64="X"),TRUE,FALSE),IF(AND($G$4=$J$3,A64="X",D64<>$O$4),TRUE,FALSE))),MAX($W$25:W63)+1,0) -> 0
B65: X | C65: 3396510182 | D65: 66.675 | E65: 6.5 | F65: 1018 | G65: 155.6153846 | H65: 148.6153846 | I65: 493353.0418 | J65: 42059.54427 | K65: 3319.663325 | L65: 18.63723071 | M65: 2 | N65: 1.758842602 | O65: 7.467053695 | P65: 85.05938543 | Q65: 93.95478575 | R65: 0 | S65: 157143 | T65: 2507.071698 | U65: -107.071698 | V65: 0 | W65: =IF(AND(R65=1,S65>=SC_LT,V65<>0,OR(IF(AND($G$4=$J$4,B65="X"),TRUE,FALSE),IF(AND($G$4=$J$3,A65="X",D65<>$O$4),TRUE,FALSE))),MAX($W$25:W64)+1,0) -> 0
B66: X | C66: 3396510772 | D66: 66.675 | E66: 6.5 | F66: 1077 | G66: 164.6923077 | H66: 157.6923077 | I66: 493353.0418 | J66: 42059.54427 | K66: 3128.580265 | L66: 19.72432573 | M66: 2 | N66: 1.866266737 | O66: 7.574477829 | P66: 81.16236749 | Q66: 89.54573988 | R66: 0 | S66: 212500 | T66: 2626.468212 | U66: -226.4682118 | V66: 0 | W66: =IF(AND(R66=1,S66>=SC_LT,V66<>0,OR(IF(AND($G$4=$J$4,B66="X"),TRUE,FALSE),IF(AND($G$4=$J$3,A66="X",D66<>$O$4),TRUE,FALSE))),MAX($W$25:W65)+1,0) -> 0
B67: X | C67: 3396511372 | D67: 66.675 | E67: 6.5 | F67: 1137 | G67: 173.9230769 | H67: 166.9230769 | I67: 493353.0418 | J67: 42059.54427 | K67: 2955.571218 | L67: 20.82984609 | M67: 2 | N67: 1.975511619 | O67: 7.683722711 | P67: 77.63395759 | Q67: 85.55373335 | R67: 0 | S67: 250000 | T67: 2747.888395 | U67: -347.8883952 | V67: 0 | W67: =IF(AND(R67=1,S67>=SC_LT,V67<>0,OR(IF(AND($G$4=$J$4,B67="X"),TRUE,FALSE),IF(AND($G$4=$J$3,A67="X",D67<>$O$4),TRUE,FALSE))),MAX($W$25:W66)+1,0) -> 0
B68: X | C68: 3397008372 | D68: =INDEX($O$3:$O$4,MATCH(VALUE(LEFT(C68,3)),$Q$3:$Q$4,0)) -> 66.675 | E68: =VALUE(RIGHT(LEFT(C68,5),2))/10 -> 7 | F68: =VALUE(RIGHT(LEFT(C68,9),4)) -> 837 | G68: =(F68/E68)-1 -> 118.5714286 | H68: =G68-VLOOKUP(D68,$O$3:$P$4,2,0) -> 111.5714286 | I68: =(($E68^4)*206000*PI())/(32*($D68+$E68)) -> 659081.5134 | J68: =((E68^3)*VLOOKUP(E68,$O$7:$P$13,2,0)*PI())/32 -> 51857.87723 | K68: =I68/H68 -> 5907.260684 | L68: =((PI()*((E68/2)^2))*(PI()*(D68+E68)))*G68*(7.85/1000000)*M68 -> 16.58195314 | M68: 2 | N68: =((SC_LMT/M68)+SC_SBD)/K68 -> 0.988404879 | O68: =N68+SC_RDT -> 6.696615971 | P68: =((((O68+SC_TOL_MIN)*K68)-SC_SBD)*M68)/(SC_HMA*9.81) -> 137.8317942 | Q68: =((((O68+SC_TOL_PLUS)*K68)-SC_SBD)*M68)/(SC_HMA*9.81) -> 153.6609441 | R68: =IF(AND(SC_W>=P68,SC_W<=Q68),1,0) -> 0 | S68: =_xlfn.IFNA(VLOOKUP(ROUND(VLOOKUP(ROUND(1-(SC_RDT/O68),2),SC_LT_TABLE,2,0)-(($I68*O68)/($H68*J68)),2),SC_LT_TABLE,3,0),0) -> 50000 | T68: =((F68+(O68*E68)+$K$9+$K$8+$K$11)*M68)+IF(M68=4,$K$10,0) -> 2141.752624 | U68: =SC_DW-T68 -> 258.2473764 | V68: =IF(U68>=$K$15,$J$15,IF(U68>=$K$14,$J$14,IF(AND(U68>=$K$13,M68=4),$J$14,IF(U68>=$K$13,$J$13,0)))) -> Center | W68: =IF(AND(R68=1,S68>=SC_LT,V68<>0,OR(IF(AND($G$4=$J$4,B68="X"),TRUE,FALSE),IF(AND($G$4=$J$3,A68="X",D68<>$O$4),TRUE,FALSE))),MAX($W$25:W67)+1,0) -> 0
B69: X | C69: 3397009062 | D69: 66.675 | E69: 7 | F69: 906 | G69: 128.4285714 | H69: 121.4285714 | I69: 659081.5134 | J69: 51857.87723 | K69: 5427.73011 | L69: 17.96045285 | M69: 2 | N69: 1.075728742 | O69: 6.783939834 | P69: 128.052072 | Q69: 142.5962674 | R69: 0 | S69: 65625 | T69: 2280.975158 | U69: 119.0248423 | V69: No cut | W69: =IF(AND(R69=1,S69>=SC_LT,V69<>0,OR(IF(AND($G$4=$J$4,B69="X"),TRUE,FALSE),IF(AND($G$4=$J$3,A69="X",D69<>$O$4),TRUE,FALSE))),MAX($W$25:W68)+1,0) -> 0
B70: X | C70: 3397009752 | D70: 66.675 | E70: 7 | F70: 975 | G70: 138.2857143 | H70: 131.2857143 | I70: 659081.5134 | J70: 51857.87723 | K70: 5020.207393 | L70: 19.33895257 | M70: 2 | N70: 1.163052604 | O70: 6.871263696 | P70: 119.7409043 | Q70: 133.1930981 | R70: 1 | S70: 78125 | T70: 2420.197692 | U70: -20.19769175 | V70: 0 | W70: =IF(AND(R70=1,S70>=SC_LT,V70<>0,OR(IF(AND($G$4=$J$4,B70="X"),TRUE,FALSE),IF(AND($G$4=$J$3,A70="X",D70<>$O$4),TRUE,FALSE))),MAX($W$25:W69)+1,0) -> 0
B71: X | C71: 3397010442 | D71: 66.675 | E71: 7 | F71: 1044 | G71: 148.1428571 | H71: 141.1428571 | I71: 659081.5134 | J71: 51857.87723 | K71: 4669.605864 | L71: 20.71745229 | M71: 2 | N71: 1.250376467 | O71: 6.958587559 | P71: 112.5906083 | Q71: 125.103327 | R71: 1 | S71: 90625 | T71: 2559.420226 | U71: -159.4202258 | V71: 0 | W71: =IF(AND(R71=1,S71>=SC_LT,V71<>0,OR(IF(AND($G$4=$J$4,B71="X"),TRUE,FALSE),IF(AND($G$4=$J$3,A71="X",D71<>$O$4),TRUE,FALSE))),MAX($W$25:W70)+1,0) -> 0
B72: X | C72: 3397011132 | D72: 66.675 | E72: 7 | F72: 1113 | G72: 158 | H72: 151 | I72: 659081.5134 | J72: 51857.87723 | K72: 4364.778235 | L72: 22.09595201 | M72: 2 | N72: 1.337700329 | O72: 7.045911421 | P72: 106.3738419 | Q72: 118.0697417 | R72: 0 | S72: 114286 | T72: 2698.64276 | U72: -298.6427599 | V72: 0 | W72: =IF(AND(R72=1,S72>=SC_LT,V72<>0,OR(IF(AND($G$4=$J$4,B72="X"),TRUE,FALSE),IF(AND($G$4=$J$3,A72="X",D72<>$O$4),TRUE,FALSE))),MAX($W$25:W71)+1,0) -> 0
B73: X | C73: 3397011832 | D73: 66.675 | E73: 7 | F73: 1183 | G73: 168 | H73: 161 | I73: 659081.5134 | J73: 51857.87723 | K73: 4093.673996 | L73: 23.49442998 | M73: 2 | N73: 1.426289755 | O73: 7.134500847 | P73: 100.8448427 | Q73: 111.8142891 | R73: 0 | S73: 171429 | T73: 2839.883012 | U73: -439.8830119 | V73: 0 | W73: =IF(AND(R73=1,S73>=SC_LT,V73<>0,OR(IF(AND($G$4=$J$4,B73="X"),TRUE,FALSE),IF(AND($G$4=$J$3,A73="X",D73<>$O$4),TRUE,FALSE))),MAX($W$25:W72)+1,0) -> 0
B74: X | C74: 3397012522 | D74: 66.675 | E74: 7 | F74: 1252 | G74: 177.8571429 | H74: 170.8571429 | I74: 659081.5134 | J74: 51857.87723 | K74: 3857.500497 | L74: 24.8729297 | M74: 2 | N74: 1.513613618 | O74: 7.22182471 | P74: 96.0282338 | Q74: 106.3648275 | R74: 0 | S74: 200000 | T74: 2979.105546 | U74: -579.1055459 | V74: 0 | W74: =IF(AND(R74=1,S74>=SC_LT,V74<>0,OR(IF(AND($G$4=$J$4,B74="X"),TRUE,FALSE),IF(AND($G$4=$J$3,A74="X",D74<>$O$4),TRUE,FALSE))),MAX($W$25:W73)+1,0) -> 0
B75: X | C75: 3295004482 | D75: 50.8 | E75: 5 | F75: 448 | G75: 88.6 | H75: 80.6 | I75: 226523.3278 | J75: 20371.26486 | K75: 2810.463124 | L75: 9.575849937 | M75: 4 | N75: 1.21322803 | O75: 6.921439122 | P75: 131.9921848 | Q75: 147.0540704 | R75: 0 | S75: 15833 | T75: 2794.428782 | U75: -394.4287824 | V75: 0 | W75: =IF(AND(R75=1,S75>=SC_LT,V75<>0,OR(IF(AND($G$4=$J$4,B75="X"),TRUE,FALSE),IF(AND($G$4=$J$3,A75="X",D75<>$O$4),TRUE,FALSE))),MAX($W$25:W74)+1,0) -> 0
B76: X | C76: 3295004902 | D76: 50.8 | E76: 5 | F76: 490 | G76: 97 | H76: 89 | I76: 226523.3278 | J76: 20371.26486 | K76: 2545.205931 | L76: 10.48371833 | M76: 4 | N76: 1.339668669 | O76: 7.047879761 | P76: 121.17268 | Q76: 134.8129943 | R76: 1 | S76: 22500 | T76: 2964.957595 | U76: -564.9575952 | V76: 0 | W76: =IF(AND(R76=1,S76>=SC_LT,V76<>0,OR(IF(AND($G$4=$J$4,B76="X"),TRUE,FALSE),IF(AND($G$4=$J$3,A76="X",D76<>$O$4),TRUE,FALSE))),MAX($W$25:W75)+1,0) -> 0
B77: X | C77: 3295005332 | D77: 50.8 | E77: 5 | F77: 533 | G77: 105.6 | H77: 97.6 | I77: 226523.3278 | J77: 20371.26486 | K77: 2320.935736 | L77: 11.41320263 | M77: 4 | N77: 1.469119799 | O77: 7.177330891 | P77: 112.0249829 | Q77: 124.4633843 | R77: 0 | S77: 33333 | T77: 3139.546618 | U77: -739.5466178 | V77: 0 | W77: =IF(AND(R77=1,S77>=SC_LT,V77<>0,OR(IF(AND($G$4=$J$4,B77="X"),TRUE,FALSE),IF(AND($G$4=$J$3,A77="X",D77<>$O$4),TRUE,FALSE))),MAX($W$25:W76)+1,0) -> 0
B78: X | C78: 3295005762 | D78: 50.8 | E78: 5 | F78: 576 | G78: 114.2 | H78: 106.2 | I78: 226523.3278 | J78: 20371.26486 | K78: 2132.988021 | L78: 12.34268694 | M78: 4 | N78: 1.598570928 | O78: 7.30678202 | P78: 104.3588338 | Q78: 115.7899823 | R78: 0 | S78: 53125 | T78: 3314.13564 | U78: -914.1356404 | V78: 0 | W78: =IF(AND(R78=1,S78>=SC_LT,V78<>0,OR(IF(AND($G$4=$J$4,B78="X"),TRUE,FALSE),IF(AND($G$4=$J$3,A78="X",D78<>$O$4),TRUE,FALSE))),MAX($W$25:W77)+1,0) -> 0
B79: X | C79: 3295006192 | D79: 50.8 | E79: 5 | F79: 619 | G79: 122.8 | H79: 114.8 | I79: 226523.3278 | J79: 20371.26486 | K79: 1973.19972 | L79: 13.27217124 | M79: 4 | N79: 1.728022058 | O79: 7.43623315 | P79: 97.84127142 | Q79: 108.4160796 | R79: 0 | S79: 68750 | T79: 3488.724663 | U79: -1088.724663 | V79: 0 | W79: =IF(AND(R79=1,S79>=SC_LT,V79<>0,OR(IF(AND($G$4=$J$4,B79="X"),TRUE,FALSE),IF(AND($G$4=$J$3,A79="X",D79<>$O$4),TRUE,FALSE))),MAX($W$25:W78)+1,0) -> 0
B80: X | C80: 3295006632 | D80: 50.8 | E80: 5 | F80: 663 | G80: 131.6 | H80: 123.6 | I80: 226523.3278 | J80: 20371.26486 | K80: 1832.713008 | L80: 14.22327146 | M80: 4 | N80: 1.860483679 | O80: 7.568694771 | P80: 92.11099647 | Q80: 101.9329057 | R80: 0 | S80: 87500 | T80: 3667.373895 | U80: -1267.373895 | V80: 0 | W80: =IF(AND(R80=1,S80>=SC_LT,V80<>0,OR(IF(AND($G$4=$J$4,B80="X"),TRUE,FALSE),IF(AND($G$4=$J$3,A80="X",D80<>$O$4),TRUE,FALSE))),MAX($W$25:W79)+1,0) -> 0
B81: X | C81: 3295305032 | D81: 50.8 | E81: 5.3 | F81: 503 | G81: 93.90566038 | H81: 85.90566038 | I81: 284451.1749 | J81: 23970.18309 | K81: 3311.2041 | L81: 11.46504527 | M81: 4 | N81: 1.029756106 | O81: 6.737967198 | P81: 152.4167747 | Q81: 170.1622405 | R81: 0 | S81: 17500 | T81: 3018.844905 | U81: -618.8449046 | V81: 0 | W81: =IF(AND(R81=1,S81>=SC_LT,V81<>0,OR(IF(AND($G$4=$J$4,B81="X"),TRUE,FALSE),IF(AND($G$4=$J$3,A81="X",D81<>$O$4),TRUE,FALSE))),MAX($W$25:W80)+1,0) -> 0
B82: X | C82: 3295305512 | D82: 50.8 | E82: 5.3 | F82: 551 | G82: 102.9622642 | H82: 94.96226415 | I82: 284451.1749 | J82: 23970.18309 | K82: 2995.41273 | L82: 12.57077597 | M82: 4 | N82: 1.138318138 | O82: 6.84652923 | P82: 139.5360449 | Q82: 155.5891157 | R82: 0 | S82: 25000 | T82: 3213.14642 | U82: -813.1464197 | V82: 0 | W82: =IF(AND(R82=1,S82>=SC_LT,V82<>0,OR(IF(AND($G$4=$J$4,B82="X"),TRUE,FALSE),IF(AND($G$4=$J$3,A82="X",D82<>$O$4),TRUE,FALSE))),MAX($W$25:W81)+1,0) -> 0
B83: X | C83: 3295306002 | D83: 50.8 | E83: 5.3 | F83: 600 | G83: 112.2075472 | H83: 104.2075472 | I83: 284451.1749 | J83: 23970.18309 | K83: 2729.660016 | L83: 13.69954274 | M83: 4 | N83: 1.249141879 | O83: 6.957352971 | P83: 128.6963284 | Q83: 143.3251725 | R83: 0 | S83: 38250 | T83: 3411.495883 | U83: -1011.495883 | V83: 0 | W83: =IF(AND(R83=1,S83>=SC_LT,V83<>0,OR(IF(AND($G$4=$J$4,B83="X"),TRUE,FALSE),IF(AND($G$4=$J$3,A83="X",D83<>$O$4),TRUE,FALSE))),MAX($W$25:W82)+1,0) -> 0
B84: X | C84: 3295306492 | D84: 50.8 | E84: 5.3 | F84: 649 | G84: 121.4528302 | H84: 113.4528302 | I84: 284451.1749 | J84: 23970.18309 | K84: 2507.219735 | L84: 14.8283095 | M84: 4 | N84: 1.35996562 | O84: 7.068176712 | P84: 119.6232712 | Q84: 133.0600092 | R84: 1 | S84: 56250 | T84: 3609.845346 | U84: -1209.845346 | V84: 0 | W84: =IF(AND(R84=1,S84>=SC_LT,V84<>0,OR(IF(AND($G$4=$J$4,B84="X"),TRUE,FALSE),IF(AND($G$4=$J$3,A84="X",D84<>$O$4),TRUE,FALSE))),MAX($W$25:W83)+1,0) -> 0
B85: X | C85: 3295306972 | D85: 50.8 | E85: 5.3 | F85: 697 | G85: 130.509434 | H85: 122.509434 | I85: 284451.1749 | J85: 23970.18309 | K85: 2321.871595 | L85: 15.93404021 | M85: 4 | N85: 1.468527651 | O85: 7.176738743 | P85: 112.0631554 | Q85: 124.5065723 | R85: 0 | S85: 71875 | T85: 3804.146861 | U85: -1404.146861 | V85: 0 | W85: =IF(AND(R85=1,S85>=SC_LT,V85<>0,OR(IF(AND($G$4=$J$4,B85="X"),TRUE,FALSE),IF(AND($G$4=$J$3,A85="X",D85<>$O$4),TRUE,FALSE))),MAX($W$25:W84)+1,0) -> 0
B86: X | C86: 3295307462 | D86: 50.8 | E86: 5.3 | F86: 746 | G86: 139.754717 | H86: 131.754717 | I86: 284451.1749 | J86: 23970.18309 | K86: 2158.944905 | L86: 17.06280697 | M86: 4 | N86: 1.579351392 | O86: 7.287562484 | P86: 105.4175822 | Q86: 116.9878393 | R86: 0 | S86: 87500 | T86: 4002.496325 | U86: -1602.496325 | V86: 0 | W86: =IF(AND(R86=1,S86>=SC_LT,V86<>0,OR(IF(AND($G$4=$J$4,B86="X"),TRUE,FALSE),IF(AND($G$4=$J$3,A86="X",D86<>$O$4),TRUE,FALSE))),MAX($W$25:W85)+1,0) -> 0
B87: X | C87: 3295307952 | D87: 50.8 | E87: 5.3 | F87: 795 | G87: 149 | H87: 141 | I87: 284451.1749 | J87: 23970.18309 | K87: 2017.384219 | L87: 18.19157373 | M87: 4 | N87: 1.690175133 | O87: 7.398386225 | P87: 99.64350116 | Q87: 110.4551037 | R87: 0 | S87: 100000 | T87: 4200.845788 | U87: -1800.845788 | V87: 0 | W87: =IF(AND(R87=1,S87>=SC_LT,V87<>0,OR(IF(AND($G$4=$J$4,B87="X"),TRUE,FALSE),IF(AND($G$4=$J$3,A87="X",D87<>$O$4),TRUE,FALSE))),MAX($W$25:W86)+1,0) -> 0
B88: X | C88: 3295505412 | D88: 50.8 | E88: 5.5 | F88: 541 | G88: 97.36363636 | H88: 89.36363636 | I88: 328707.3975 | J88: 26624.13871 | K88: 3678.312688 | L88: 12.84694786 | M88: 4 | N88: 0.9269828125 | O88: 6.635193905 | P88: 167.3906688 | Q88: 187.1035497 | R88: 0 | S88: 18333 | T88: 3173.974266 | U88: -773.9742659 | V88: 0 | W88: =IF(AND(R88=1,S88>=SC_LT,V88<>0,OR(IF(AND($G$4=$J$4,B88="X"),TRUE,FALSE),IF(AND($G$4=$J$3,A88="X",D88<>$O$4),TRUE,FALSE))),MAX($W$25:W87)+1,0) -> 0
B89: X | C89: 3295505932 | D89: 50.8 | E89: 5.5 | F89: 593 | G89: 106.8181818 | H89: 98.81818182 | I89: 328707.3975 | J89: 26624.13871 | K89: 3326.385807 | L89: 14.09445727 | M89: 4 | N89: 1.025056274 | O89: 6.733267366 | P89: 153.0360173 | Q89: 170.8628452 | R89: 0 | S89: 28333 | T89: 3384.131882 | U89: -984.131882 | V89: 0 | W89: =IF(AND(R89=1,S89>=SC_LT,V89<>0,OR(IF(AND($G$4=$J$4,B89="X"),TRUE,FALSE),IF(AND($G$4=$J$3,A89="X",D89<>$O$4),TRUE,FALSE))),MAX($W$25:W88)+1,0) -> 0
B90: X | C90: 3295506462 | D90: 50.8 | E90: 5.5 | F90: 646 | G90: 116.4545455 | H90: 108.4545455 | I90: 328707.3975 | J90: 26624.13871 | K90: 3030.830991 | L90: 15.36595725 | M90: 4 | N90: 1.125015763 | O90: 6.833226855 | P90: 140.9807109 | Q90: 157.2235959 | R90: 0 | S90: 41500 | T90: 3598.330991 | U90: -1198.330991 | V90: 0 | W90: =IF(AND(R90=1,S90>=SC_LT,V90<>0,OR(IF(AND($G$4=$J$4,B90="X"),TRUE,FALSE),IF(AND($G$4=$J$3,A90="X",D90<>$O$4),TRUE,FALSE))),MAX($W$25:W89)+1,0) -> 0
B91: X | C91: 3295506982 | D91: 50.8 | E91: 5.5 | F91: 698 | G91: 125.9090909 | H91: 117.9090909 | I91: 328707.3975 | J91: 26624.13871 | K91: 2787.803679 | L91: 16.61346666 | M91: 4 | N91: 1.223089225 | O91: 6.931300317 | P91: 131.0679348 | Q91: 146.0083834 | R91: 0 | S91: 59375 | T91: 3808.488607 | U91: -1408.488607 | V91: 0 | W91: =IF(AND(R91=1,S91>=SC_LT,V91<>0,OR(IF(AND($G$4=$J$4,B91="X"),TRUE,FALSE),IF(AND($G$4=$J$3,A91="X",D91<>$O$4),TRUE,FALSE))),MAX($W$25:W90)+1,0) -> 0
B92: X | C92: 3295507512 | D92: 50.8 | E92: 5.5 | F92: 751 | G92: 135.5454545 | H92: 127.5454545 | I92: 328707.3975 | J92: 26624.13871 | K92: 2577.178455 | L92: 17.88496663 | M92: 4 | N92: 1.323048714 | O92: 7.031259806 | P92: 122.4767987 | Q92: 136.2884608 | R92: 1 | S92: 75000 | T92: 4022.687716 | U92: -1622.687716 | V92: 0 | W92: =IF(AND(R92=1,S92>=SC_LT,V92<>0,OR(IF(AND($G$4=$J$4,B92="X"),TRUE,FALSE),IF(AND($G$4=$J$3,A92="X",D92<>$O$4),TRUE,FALSE))),MAX($W$25:W91)+1,0) -> 0
B93: X | C93: 3295508042 | D93: 50.8 | E93: 5.5 | F93: 804 | G93: 145.1818182 | H93: 137.1818182 | I93: 328707.3975 | J93: 26624.13871 | K93: 2396.14405 | L93: 19.15646661 | M93: 4 | N93: 1.423008204 | O93: 7.131219296 | P93: 115.0926348 | Q93: 127.9340939 | R93: 1 | S93: 90625 | T93: 4236.886825 | U93: -1836.886825 | V93: 0 | W93: =IF(AND(R93=1,S93>=SC_LT,V93<>0,OR(IF(AND($G$4=$J$4,B93="X"),TRUE,FALSE),IF(AND($G$4=$J$3,A93="X",D93<>$O$4),TRUE,FALSE))),MAX($W$25:W92)+1,0) -> 0
B94: X | C94: 3295508572 | D94: 50.8 | E94: 5.5 | F94: 857 | G94: 154.8181818 | H94: 146.8181818 | I94: 328707.3975 | J94: 26624.13871 | K94: 2238.873915 | L94: 20.42796658 | M94: 4 | N94: 1.522967693 | O94: 7.231178785 | P94: 108.6777852 | Q94: 120.6763994 | R94: 0 | S94: 100000 | T94: 4451.085933 | U94: -2051.085933 | V94: 0 | W94: =IF(AND(R94=1,S94>=SC_LT,V94<>0,OR(IF(AND($G$4=$J$4,B94="X"),TRUE,FALSE),IF(AND($G$4=$J$3,A94="X",D94<>$O$4),TRUE,FALSE))),MAX($W$25:W93)+1,0) -> 0
B95: X | C95: 3296006482 | D95: 50.8 | E95: 6 | F95: 648 | G95: 107 | H95: 99 | I95: 461449.0759 | J95: 33717.14315 | K95: 4661.101776 | L95: 16.95133928 | M95: 4 | N95: 0.7315293259 | O95: 6.439740418 | P95: 207.4773905 | Q95: 232.4572527 | R95: 0 | S95: 21250 | T95: 3610.55377 | U95: -1210.55377 | V95: 0 | W95: =IF(AND(R95=1,S95>=SC_LT,V95<>0,OR(IF(AND($G$4=$J$4,B95="X"),TRUE,FALSE),IF(AND($G$4=$J$3,A95="X",D95<>$O$4),TRUE,FALSE))),MAX($W$25:W94)+1,0) -> 0
B96: X | C96: 3296007112 | D96: 50.8 | E96: 6 | F96: 711 | G96: 117.5 | H96: 109.5 | I96: 461449.0759 | J96: 33717.14315 | K96: 4214.146812 | L96: 18.61478846 | M96: 4 | N96: 0.8091157696 | O96: 6.517326862 | P96: 189.2466638 | Q96: 211.8311967 | R96: 0 | S96: 33333 | T96: 3864.415845 | U96: -1464.415845 | V96: 0 | W96: =IF(AND(R96=1,S96>=SC_LT,V96<>0,OR(IF(AND($G$4=$J$4,B96="X"),TRUE,FALSE),IF(AND($G$4=$J$3,A96="X",D96<>$O$4),TRUE,FALSE))),MAX($W$25:W95)+1,0) -> 0
B97: X | C97: 3296007752 | D97: 50.8 | E97: 6 | F97: 775 | G97: 128.1666667 | H97: 120.1666667 | I97: 461449.0759 | J97: 33717.14315 | K97: 3840.075527 | L97: 20.3046416 | M97: 4 | N97: 0.8879337441 | O97: 6.596144836 | P97: 173.9887701 | Q97: 194.5685734 | R97: 0 | S97: 53125 | T97: 4122.307476 | U97: -1722.307476 | V97: 0 | W97: =IF(AND(R97=1,S97>=SC_LT,V97<>0,OR(IF(AND($G$4=$J$4,B97="X"),TRUE,FALSE),IF(AND($G$4=$J$3,A97="X",D97<>$O$4),TRUE,FALSE))),MAX($W$25:W96)+1,0) -> 0
B98: X | C98: 3296008382 | D98: 50.8 | E98: 6 | F98: 838 | G98: 138.6666667 | H98: 130.6666667 | I98: 461449.0759 | J98: 33717.14315 | K98: 3531.49803 | L98: 21.96809078 | M98: 4 | N98: 0.9655201878 | O98: 6.67373128 | P98: 161.402285 | Q98: 180.328354 | R98: 0 | S98: 68750 | T98: 4376.169551 | U98: -1976.169551 | V98: 0 | W98: =IF(AND(R98=1,S98>=SC_LT,V98<>0,OR(IF(AND($G$4=$J$4,B98="X"),TRUE,FALSE),IF(AND($G$4=$J$3,A98="X",D98<>$O$4),TRUE,FALSE))),MAX($W$25:W97)+1,0) -> 0
B99: X | C99: 3296009022 | D99: 50.8 | E99: 6 | F99: 902 | G99: 149.3333333 | H99: 141.3333333 | I99: 461449.0759 | J99: 33717.14315 | K99: 3264.969876 | L99: 23.65794391 | M99: 4 | N99: 1.044338162 | O99: 6.752549254 | P99: 150.5309393 | Q99: 168.0286258 | R99: 0 | S99: 84375 | T99: 4634.061182 | U99: -2234.061182 | V99: 0 | W99: =IF(AND(R99=1,S99>=SC_LT,V99<>0,OR(IF(AND($G$4=$J$4,B99="X"),TRUE,FALSE),IF(AND($G$4=$J$3,A99="X",D99<>$O$4),TRUE,FALSE))),MAX($W$25:W98)+1,0) -> 0
B100: X | C100: 3296009662 | D100: 50.8 | E100: 6 | F100: 966 | G100: 160 | H100: 152 | I100: 461449.0759 | J100: 33717.14315 | K100: 3035.849183 | L100: 25.34779705 | M100: 4 | N100: 1.123156137 | O100: 6.831367229 | P100: 141.1853966 | Q100: 157.4551752 | R100: 0 | S100: 93750 | T100: 4891.952813 | U100: -2491.952813 | V100: 0 | W100: =IF(AND(R100=1,S100>=SC_LT,V100<>0,OR(IF(AND($G$4=$J$4,B100="X"),TRUE,FALSE),IF(AND($G$4=$J$3,A100="X",D100<>$O$4),TRUE,FALSE))),MAX($W$25:W99)+1,0) -> 0
B101: X | C101: 3296010302 | D101: 50.8 | E101: 6 | F101: 1030 | G101: 170.6666667 | H101: 162.6666667 | I101: 461449.0759 | J101: 33717.14315 | K101: 2836.777106 | L101: 27.03765019 | M101: 4 | N101: 1.201974111 | O101: 6.910185203 | P101: 133.0654988 | Q101: 148.2684067 | R101: 0 | S101: 128571 | T101: 5149.844445 | U101: -2749.844445 | V101: 0 | W101: =IF(AND(R101=1,S101>=SC_LT,V101<>0,OR(IF(AND($G$4=$J$4,B101="X"),TRUE,FALSE),IF(AND($G$4=$J$3,A101="X",D101<>$O$4),TRUE,FALSE))),MAX($W$25:W100)+1,0) -> 0
B102: X | C102: 3296010942 | D102: 50.8 | E102: 6 | F102: 1094 | G102: 181.3333333 | H102: 173.3333333 | I102: 461449.0759 | J102: 33717.14315 | K102: 2662.206207 | L102: 28.72750333 | M102: 4 | N102: 1.280792086 | O102: 6.989003178 | P102: 125.944973 | Q102: 140.2123174 | R102: 0 | S102: 171429 | T102: 5407.736076 | U102: -3007.736076 | V102: 0 | W102: =IF(AND(R102=1,S102>=SC_LT,V102<>0,OR(IF(AND($G$4=$J$4,B102="X"),TRUE,FALSE),IF(AND($G$4=$J$3,A102="X",D102<>$O$4),TRUE,FALSE))),MAX($W$25:W101)+1,0) -> 0
B103: X | C103: 3396008112 | D103: 66.675 | E103: 6 | F103: 811 | G103: 134.1666667 | H103: 127.1666667 | I103: 360650.9461 | J103: 33717.14315 | K103: 2836.04938 | L103: 27.19578338 | M103: 4 | N103: 1.202282536 | O103: 6.910493628 | P103: 133.0358157 | Q103: 148.2348236 | R103: 0 | S103: 128571 | T103: 4273.851847 | U103: -1873.851847 | V103: 0 | W103: =IF(AND(R103=1,S103>=SC_LT,V103<>0,OR(IF(AND($G$4=$J$4,B103="X"),TRUE,FALSE),IF(AND($G$4=$J$3,A103="X",D103<>$O$4),TRUE,FALSE))),MAX($W$25:W102)+1,0) -> 0
B104: X | C104: 3396008612 | D104: 66.675 | E104: 6 | F104: 861 | G104: 142.5 | H104: 135.5 | I104: 360650.9461 | J104: 33717.14315 | K104: 2661.630599 | L104: 28.88496248 | M104: 4 | N104: 1.281069072 | O104: 6.989280164 | P104: 125.9214947 | Q104: 140.1857542 | R104: 0 | S104: 171429 | T104: 4475.742724 | U104: -2075.742724 | V104: 0 | W104: =IF(AND(R104=1,S104>=SC_LT,V104<>0,OR(IF(AND($G$4=$J$4,B104="X"),TRUE,FALSE),IF(AND($G$4=$J$3,A104="X",D104<>$O$4),TRUE,FALSE))),MAX($W$25:W103)+1,0) -> 0
B105: X | C105: 3396009112 | D105: 66.675 | E105: 6 | F105: 911 | G105: 150.8333333 | H105: 143.8333333 | I105: 360650.9461 | J105: 33717.14315 | K105: 2507.422569 | L105: 30.57414157 | M105: 4 | N105: 1.359855608 | O105: 7.0680667 | P105: 119.6315445 | Q105: 133.0693696 | R105: 1 | S105: 200000 | T105: 4677.633601 | U105: -2277.633601 | V105: 0 | W105: =IF(AND(R105=1,S105>=SC_LT,V105<>0,OR(IF(AND($G$4=$J$4,B105="X"),TRUE,FALSE),IF(AND($G$4=$J$3,A105="X",D105<>$O$4),TRUE,FALSE))),MAX($W$25:W104)+1,0) -> 0
B106: X | C106: 3396009612 | D106: 66.675 | E106: 6 | F106: 961 | G106: 159.1666667 | H106: 152.1666667 | I106: 360650.9461 | J106: 33717.14315 | K106: 2370.104794 | L106: 32.26332066 | M106: 4 | N106: 1.438642143 | O106: 7.146853235 | P106: 114.0305265 | Q106: 126.7324356 | R106: 1 | S106: 250000 | T106: 4879.524478 | U106: -2479.524478 | V106: 0 | W106: =IF(AND(R106=1,S106>=SC_LT,V106<>0,OR(IF(AND($G$4=$J$4,B106="X"),TRUE,FALSE),IF(AND($G$4=$J$3,A106="X",D106<>$O$4),TRUE,FALSE))),MAX($W$25:W105)+1,0) -> 0
B107: X | C107: 3296507632 | D107: 50.8 | E107: 6.5 | F107: 763 | G107: 116.3846154 | H107: 108.3846154 | I107: 630036.8034 | J107: 42059.54427 | K107: 5812.972636 | L107: 21.8296269 | M107: 4 | N107: 0.5865729729 | O107: 6.294784065 | P107: 254.4607433 | Q107: 285.613733 | R107: 0 | S107: 23750 | T107: 4079.664386 | U107: -1679.664386 | V107: 0 | W107: =IF(AND(R107=1,S107>=SC_LT,V107<>0,OR(IF(AND($G$4=$J$4,B107="X"),TRUE,FALSE),IF(AND($G$4=$J$3,A107="X",D107<>$O$4),TRUE,FALSE))),MAX($W$25:W106)+1,0) -> 0
B108: X | C108: 3296508382 | D108: 50.8 | E108: 6.5 | F108: 838 | G108: 127.9230769 | H108: 119.9230769 | I108: 630036.8034 | J108: 42059.54427 | K108: 5253.674435 | L108: 23.99383314 | M108: 4 | N108: 0.6490186408 | O108: 6.357229733 | P108: 231.6476784 | Q108: 259.8032668 | R108: 0 | S108: 38250 | T108: 4381.287973 | U108: -1981.287973 | V108: 0 | W108: =IF(AND(R108=1,S108>=SC_LT,V108<>0,OR(IF(AND($G$4=$J$4,B108="X"),TRUE,FALSE),IF(AND($G$4=$J$3,A108="X",D108<>$O$4),TRUE,FALSE))),MAX($W$25:W107)+1,0) -> 0
B109: X | C109: 3296509132 | D109: 50.8 | E109: 6.5 | F109: 913 | G109: 139.4615385 | H109: 131.4615385 | I109: 630036.8034 | J109: 42059.54427 | K109: 4792.55614 | L109: 26.15803938 | M109: 4 | N109: 0.7114643086 | O109: 6.419675401 | P109: 212.8392474 | Q109: 238.5236023 | R109: 0 | S109: 59375 | T109: 4682.91156 | U109: -2282.91156 | V109: 0 | W109: =IF(AND(R109=1,S109>=SC_LT,V109<>0,OR(IF(AND($G$4=$J$4,B109="X"),TRUE,FALSE),IF(AND($G$4=$J$3,A109="X",D109<>$O$4),TRUE,FALSE))),MAX($W$25:W108)+1,0) -> 0
B110: X | C110: 3296509892 | D110: 50.8 | E110: 6.5 | F110: 989 | G110: 151.1538462 | H110: 143.1538462 | I110: 630036.8034 | J110: 42059.54427 | K110: 4401.116842 | L110: 28.35110169 | M110: 4 | N110: 0.7747425853 | O110: 6.482953677 | P110: 196.8729344 | Q110: 220.4594806 | R110: 0 | S110: 75000 | T110: 4988.556796 | U110: -2588.556796 | V110: 0 | W110: =IF(AND(R110=1,S110>=SC_LT,V110<>0,OR(IF(AND($G$4=$J$4,B110="X"),TRUE,FALSE),IF(AND($G$4=$J$3,A110="X",D110<>$O$4),TRUE,FALSE))),MAX($W$25:W109)+1,0) -> 0
B111: X | C111: 3296510642 | D111: =INDEX($O$3:$O$4,MATCH(VALUE(LEFT(C111,3)),$Q$3:$Q$4,0)) -> 50.8 | E111: =VALUE(RIGHT(LEFT(C111,5),2))/10 -> 6.5 | F111: =VALUE(RIGHT(LEFT(C111,9),4)) -> 1064 | G111: =(F111/E111)-1 -> 162.6923077 | H111: =G111-VLOOKUP(D111,$O$3:$P$4,2,0) -> 154.6923077 | I111: =(($E111^4)*206000*PI())/(32*($D111+$E111)) -> 630036.8034 | J111: =((E111^3)*VLOOKUP(E111,$O$7:$P$13,2,0)*PI())/32 -> 42059.54427 | K111: =I111/H111 -> 4072.83861 | L111: =((PI()*((E111/2)^2))*(PI()*(D111+E111)))*G111*(7.85/1000000)*M111 -> 30.51530793 | M111: 4 | N111: =((SC_LMT/M111)+SC_SBD)/K111 -> 0.8371882531 | O111: =N111+SC_RDT -> 6.545399345 | P111: =((((O111+SC_TOL_MIN)*K111)-SC_SBD)*M111)/(SC_HMA*9.81) -> 183.4828813 | Q111: =((((O111+SC_TOL_PLUS)*K111)-SC_SBD)*M111)/(SC_HMA*9.81) -> 205.3101127 | R111: =IF(AND(SC_W>=P111,SC_W<=Q111),1,0) -> 0 | S111: =_xlfn.IFNA(VLOOKUP(ROUND(VLOOKUP(ROUND(1-(SC_RDT/O111),2),SC_LT_TABLE,2,0)-(($I111*O111)/($H111*J111)),2),SC_LT_TABLE,3,0),0) -> 90625 | T111: =((F111+(O111*E111)+$K$9+$K$8+$K$11)*M111)+IF(M111=4,$K$10,0) -> 5290.180383 | U111: =SC_DW-T111 -> -2890.180383 | V111: 0 | W111: =IF(AND(R111=1,S111>=SC_LT,V111<>0,OR(IF(AND($G$4=$J$4,B111="X"),TRUE,FALSE),IF(AND($G$4=$J$3,A111="X",D111<>$O$4),TRUE,FALSE))),MAX($W$25:W110)+1,0) -> 0
B112: X | C112: 3296511402 | D112: 50.8 | E112: 6.5 | F112: 1140 | G112: 174.3846154 | H112: 166.3846154 | I112: 630036.8034 | J112: 42059.54427 | K112: 3786.628962 | L112: 32.70837025 | M112: 4 | N112: 0.9004665298 | O112: 6.608677622 | P112: 171.8087524 | Q112: 192.1021238 | R112: 0 | S112: 114286 | T112: 5595.825618 | U112: -3195.825618 | V112: =IF(U112>=$K$15,$J$15,IF(U112>=$K$14,$J$14,IF(AND(U112>=$K$13,M112=4),$J$14,IF(U112>=$K$13,$J$13,0)))) -> 0 | W112: =IF(AND(R112=1,S112>=SC_LT,V112<>0,OR(IF(AND($G$4=$J$4,B112="X"),TRUE,FALSE),IF(AND($G$4=$J$3,A112="X",D112<>$O$4),TRUE,FALSE))),MAX($W$25:W111)+1,0) -> 0
B113: X | C113: 3296512162 | D113: 50.8 | E113: 6.5 | F113: 1216 | G113: 186.0769231 | H113: 178.0769231 | I113: 630036.8034 | J113: 42059.54427 | K113: 3538.003647 | L113: 34.90143257 | M113: 4 | N113: 0.9637448065 | O113: 6.671955899 | P113: 161.6676409 | Q113: 180.628575 | R113: 0 | S113: 157143 | T113: 5901.470853 | U113: -3501.470853 | V113: 0 | W113: =IF(AND(R113=1,S113>=SC_LT,V113<>0,OR(IF(AND($G$4=$J$4,B113="X"),TRUE,FALSE),IF(AND($G$4=$J$3,A113="X",D113<>$O$4),TRUE,FALSE))),MAX($W$25:W112)+1,0) -> 0
B114: X | C114: 3396510182 | D114: 66.675 | E114: 6.5 | F114: 1018 | G114: 155.6153846 | H114: 148.6153846 | I114: 493353.0418 | J114: 42059.54427 | K114: 3319.663325 | L114: 37.27446142 | M114: 4 | N114: 1.027132063 | O114: 6.735343156 | P114: 152.7618158 | Q114: 170.5526164 | R114: 0 | S114: 200000 | T114: 5111.118922 | U114: -2711.118922 | V114: 0 | W114: =IF(AND(R114=1,S114>=SC_LT,V114<>0,OR(IF(AND($G$4=$J$4,B114="X"),TRUE,FALSE),IF(AND($G$4=$J$3,A114="X",D114<>$O$4),TRUE,FALSE))),MAX($W$25:W113)+1,0) -> 0
B115: X | C115: 3396510772 | D115: 66.675 | E115: 6.5 | F115: 1077 | G115: 164.6923077 | H115: 157.6923077 | I115: 493353.0418 | J115: 42059.54427 | K115: 3128.580265 | L115: 39.44865145 | M115: 4 | N115: 1.089865802 | O115: 6.798076894 | P115: 144.9677799 | Q115: 161.7345247 | R115: 0 | S115: 225000 | T115: 5348.749999 | U115: -2948.749999 | V115: 0 | W115: =IF(AND(R115=1,S115>=SC_LT,V115<>0,OR(IF(AND($G$4=$J$4,B115="X"),TRUE,FALSE),IF(AND($G$4=$J$3,A115="X",D115<>$O$4),TRUE,FALSE))),MAX($W$25:W114)+1,0) -> 0
B116: X | C116: 3396511372 | D116: 66.675 | E116: 6.5 | F116: 1137 | G116: 173.9230769 | H116: 166.9230769 | I116: 493353.0418 | J116: 42059.54427 | K116: 2955.571218 | L116: 41.65969217 | M116: 4 | N116: 1.153662825 | O116: 6.861873917 | P116: 137.9109601 | Q116: 153.7505116 | R116: 0 | S116: 262500 | T116: 5590.408722 | U116: -3190.408722 | V116: 0 | W116: =IF(AND(R116=1,S116>=SC_LT,V116<>0,OR(IF(AND($G$4=$J$4,B116="X"),TRUE,FALSE),IF(AND($G$4=$J$3,A116="X",D116<>$O$4),TRUE,FALSE))),MAX($W$25:W115)+1,0) -> 0
B117: X | C117: 3397008372 | D117: 66.675 | E117: 7 | F117: 837 | G117: 118.5714286 | H117: 111.5714286 | I117: 659081.5134 | J117: 51857.87723 | K117: 5907.260684 | L117: 33.16390627 | M117: 4 | N117: 0.5772104573 | O117: 6.285421549 | P117: 258.3066333 | Q117: 289.9649332 | R117: 0 | S117: 62500 | T117: 4387.991803 | U117: -1987.991803 | V117: 0 | W117: =IF(AND(R117=1,S117>=SC_LT,V117<>0,OR(IF(AND($G$4=$J$4,B117="X"),TRUE,FALSE),IF(AND($G$4=$J$3,A117="X",D117<>$O$4),TRUE,FALSE))),MAX($W$25:W116)+1,0) -> 0
B118: X | C118: 3397009062 | D118: 66.675 | E118: 7 | F118: 906 | G118: 128.4285714 | H118: 121.4285714 | I118: 659081.5134 | J118: 51857.87723 | K118: 5427.73011 | L118: 35.92090571 | M118: 4 | N118: 0.6282060035 | O118: 6.336417096 | P118: 238.7471888 | Q118: 267.8355797 | R118: 0 | S118: 81250 | T118: 4665.419679 | U118: -2265.419679 | V118: 0 | W118: =IF(AND(R118=1,S118>=SC_LT,V118<>0,OR(IF(AND($G$4=$J$4,B118="X"),TRUE,FALSE),IF(AND($G$4=$J$3,A118="X",D118<>$O$4),TRUE,FALSE))),MAX($W$25:W117)+1,0) -> 0
B119: X | C119: 3397009752 | D119: 66.675 | E119: 7 | F119: 975 | G119: 138.2857143 | H119: 131.2857143 | I119: 659081.5134 | J119: 51857.87723 | K119: 5020.207393 | L119: 38.67790514 | M119: 4 | N119: 0.6792015496 | O119: 6.387412642 | P119: 222.1248535 | Q119: 249.0292412 | R119: 0 | S119: 93750 | T119: 4942.847554 | U119: -2542.847554 | V119: 0 | W119: =IF(AND(R119=1,S119>=SC_LT,V119<>0,OR(IF(AND($G$4=$J$4,B119="X"),TRUE,FALSE),IF(AND($G$4=$J$3,A119="X",D119<>$O$4),TRUE,FALSE))),MAX($W$25:W118)+1,0) -> 0
B120: X | C120: 3397010442 | D120: 66.675 | E120: 7 | F120: 1044 | G120: 148.1428571 | H120: 141.1428571 | I120: 659081.5134 | J120: 51857.87723 | K120: 4669.605864 | L120: 41.43490458 | M120: 4 | N120: 0.7301970958 | O120: 6.438408188 | P120: 207.8242614 | Q120: 232.8496989 | R120: 0 | S120: 128571 | T120: 5220.275429 | U120: -2820.275429 | V120: 0 | W120: =IF(AND(R120=1,S120>=SC_LT,V120<>0,OR(IF(AND($G$4=$J$4,B120="X"),TRUE,FALSE),IF(AND($G$4=$J$3,A120="X",D120<>$O$4),TRUE,FALSE))),MAX($W$25:W119)+1,0) -> 0
B121: X | C121: 3397011132 | D121: 66.675 | E121: 7 | F121: 1113 | G121: 158 | H121: 151 | I121: 659081.5134 | J121: 51857.87723 | K121: 4364.778235 | L121: 44.19190402 | M121: 4 | N121: 0.781192642 | O121: 6.489403734 | P121: 195.3907287 | Q121: 218.7825283 | R121: 0 | S121: 171429 | T121: 5497.703305 | U121: -3097.703305 | V121: 0 | W121: =IF(AND(R121=1,S121>=SC_LT,V121<>0,OR(IF(AND($G$4=$J$4,B121="X"),TRUE,FALSE),IF(AND($G$4=$J$3,A121="X",D121<>$O$4),TRUE,FALSE))),MAX($W$25:W120)+1,0) -> 0
B122: X | C122: 3397011832 | D122: 66.675 | E122: 7 | F122: 1183 | G122: 168 | H122: 161 | I122: 659081.5134 | J122: 51857.87723 | K122: 4093.673996 | L122: 46.98885997 | M122: 4 | N122: 0.832927254 | O122: 6.541138346 | P122: 184.3327303 | Q122: 206.2716231 | R122: 0 | S122: 212500 | T122: 5779.151874 | U122: -3379.151874 | V122: 0 | W122: =IF(AND(R122=1,S122>=SC_LT,V122<>0,OR(IF(AND($G$4=$J$4,B122="X"),TRUE,FALSE),IF(AND($G$4=$J$3,A122="X",D122<>$O$4),TRUE,FALSE))),MAX($W$25:W121)+1,0) -> 0
B123: X | C123: 3397012522 | D123: 66.675 | E123: 7 | F123: 1252 | G123: 177.8571429 | H123: 170.8571429 | I123: 659081.5134 | J123: 51857.87723 | K123: 3857.500497 | L123: 49.74585941 | M123: 4 | N123: 0.8839228002 | O123: 6.592133892 | P123: 174.6995125 | Q123: 195.3727 | R123: 0 | S123: 250000 | T123: 6056.579749 | U123: -3656.579749 | V123: 0 | W123: =IF(AND(R123=1,S123>=SC_LT,V123<>0,OR(IF(AND($G$4=$J$4,B123="X"),TRUE,FALSE),IF(AND($G$4=$J$3,A123="X",D123<>$O$4),TRUE,FALSE))),MAX($W$25:W122)+1,0) -> 0
C124: =ROUND(D124,0)&"x"&E124&"-"&ROUND(F124,0) -> 51x5-260 | D124: 50.8 | E124: 5 | F124: =(G124+1)*E124 -> 259.5888646 | G124: =H124+VLOOKUP(D124,$O$3:$P$4,2,0) -> 50.91777291 | H124: =I124/K124 -> 42.91777291 | I124: =(($E124^4)*206000*PI())/(32*($D124+$E124)) -> 226523.3278 | J124: =((E124^3)*VLOOKUP(E124,$O$7:$P$13,2,0)*PI())/32 -> 20371.26486 | K124: =(SC_HMT-SC_LMT)/(M124*SC_RDT) -> 5278.077413 | L124: =((PI()*((E124/2)^2))*(PI()*(D124+E124)))*G124*(7.85/1000000)*M124 -> 2.751585511 | M124: 2 | N124: =((SC_LMT/M124)+SC_SBD)/K124 -> 1.106229565 | O124: =N124+SC_RDT -> 6.814440657 | P124: =((((O124+SC_TOL_MIN)*K124)-SC_SBD)*M124)/(SC_HMA*9.81) -> 125 | Q124: =((((O124+SC_TOL_PLUS)*K124)-SC_SBD)*M124)/(SC_HMA*9.81) -> 139.1431847 | R124: =IF(AND(SC_W>=P124,SC_W<=Q124),1,0) -> 1 | S124: =_xlfn.IFNA(VLOOKUP(ROUND(VLOOKUP(ROUND(1-(SC_RDT/O124),2),SC_LT_TABLE,2,0)-(($I124*O124)/($H124*J124)),2),SC_LT_TABLE,3,0),0) -> 0 | T124: =((F124+(O124*E124)+$K$9+$K$8+$K$11)*M124)+IF(M124=4,$K$10,0) -> 961.3221357 | U124: =SC_DW-T124 -> 1438.677864 | V124: =IF(U124>=$K$15,$J$15,IF(U124>=$K$14,$J$14,IF(AND(U124>=$K$13,M124=4),$J$14,IF(U124>=$K$13,$J$13,0)))) -> Ex_Center | W124: =IF(AND(R124=1,S124>=SC_LT,V124<>0,OR(IF(AND($G$4=$J$4,B124="X"),TRUE,FALSE),IF(AND($G$4=$J$3,A124="X",D124<>$O$4),TRUE,FALSE))),MAX($W$25:W123)+1,0) -> 0
C125: 51x5,5-392 | D125: 50.8 | E125: 5.5 | F125: 392.0282626 | G125: 70.27786593 | H125: 62.27786593 | I125: 328707.3975 | J125: 26624.13871 | K125: 5278.077413 | L125: 4.636515815 | M125: 2 | N125: 1.106229565 | O125: 6.814440657 | P125: 125 | Q125: 139.1431847 | R125: 1 | S125: 0 | T125: 1233.015372 | U125: 1166.984628 | V125: Ex_Center | W125: =IF(AND(R125=1,S125>=SC_LT,V125<>0,OR(IF(AND($G$4=$J$4,B125="X"),TRUE,FALSE),IF(AND($G$4=$J$3,A125="X",D125<>$O$4),TRUE,FALSE))),MAX($W$25:W124)+1,0) -> 0
C126: 51x6-579 | D126: 50.8 | E126: 6 | F126: 578.5649578 | G126: 95.42749297 | H126: 87.42749297 | I126: 461449.0759 | J126: 33717.14315 | K126: 5278.077413 | L126: 7.558989765 | M126: 2 | N126: 1.106229565 | O126: 6.814440657 | P126: 125 | Q126: 139.1431847 | R126: 1 | S126: 0 | T126: 1612.903203 | U126: 787.0967965 | V126: Ex_Center | W126: =IF(AND(R126=1,S126>=SC_LT,V126<>0,OR(IF(AND($G$4=$J$4,B126="X"),TRUE,FALSE),IF(AND($G$4=$J$3,A126="X",D126<>$O$4),TRUE,FALSE))),MAX($W$25:W125)+1,0) -> 0
C127: 67x6-458 | D127: 66.675 | E127: 6 | F127: 457.9799051 | G127: 75.32998418 | H127: 68.32998418 | I127: 360650.9461 | J127: 33717.14315 | K127: 5278.077413 | L127: 7.634750058 | M127: 2 | N127: 1.106229565 | O127: 6.814440657 | P127: 125 | Q127: 139.1431847 | R127: 1 | S127: 0 | T127: 1371.733098 | U127: 1028.266902 | V127: Ex_Center | W127: =IF(AND(R127=1,S127>=SC_LT,V127<>0,OR(IF(AND($G$4=$J$4,B127="X"),TRUE,FALSE),IF(AND($G$4=$J$3,A127="X",D127<>$O$4),TRUE,FALSE))),MAX($W$25:W126)+1,0) -> 0
C128: 51x6,5-834 | D128: 50.8 | E128: 6.5 | F128: 834.3960132 | G128: 127.3686174 | H128: 119.3686174 | I128: 630036.8034 | J128: 42059.54427 | K128: 5278.077413 | L128: 11.9449181 | M128: 2 | N128: 1.106229565 | O128: 6.814440657 | P128: 125 | Q128: 139.1431847 | R128: 1 | S128: 25000 | T128: 2131.379755 | U128: 268.620245 | V128: Center | W128: =IF(AND(R128=1,S128>=SC_LT,V128<>0,OR(IF(AND($G$4=$J$4,B128="X"),TRUE,FALSE),IF(AND($G$4=$J$3,A128="X",D128<>$O$4),TRUE,FALSE))),MAX($W$25:W127)+1,0) -> 0
C129: 67x6,5-660 | D129: 66.675 | E129: 6.5 | F129: 659.5687264 | G129: 100.4721118 | H129: 93.47211176 | I129: 493353.0418 | J129: 42059.54427 | K129: 5278.077413 | L129: 12.03301287 | M129: 2 | N129: 1.106229565 | O129: 6.814440657 | P129: 125 | Q129: 139.1431847 | R129: 1 | S129: 25000 | T129: 1781.725181 | U129: 618.2748186 | V129: Ex_Center | W129: =IF(AND(R129=1,S129>=SC_LT,V129<>0,OR(IF(AND($G$4=$J$4,B129="X"),TRUE,FALSE),IF(AND($G$4=$J$3,A129="X",D129<>$O$4),TRUE,FALSE))),MAX($W$25:W128)+1,0) -> 0
C130: 67x7-930 | D130: 66.675 | E130: 7 | F130: 930.1005926 | G130: 131.8715132 | H130: 124.8715132 | I130: 659081.5134 | J130: 51857.87723 | K130: 5278.077413 | L130: 18.44194068 | M130: 2 | N130: 1.106229565 | O130: 6.814440657 | P130: 125 | Q130: 139.1431847 | R130: 1 | S130: 71875 | T130: 2329.603354 | U130: 70.39664569 | V130: No cut | W130: =IF(AND(R130=1,S130>=SC_LT,V130<>0,OR(IF(AND($G$4=$J$4,B130="X"),TRUE,FALSE),IF(AND($G$4=$J$3,A130="X",D130<>$O$4),TRUE,FALSE))),MAX($W$25:W129)+1,0) -> 0
C131: 67x7,5-1286 | D131: 66.675 | E131: 7.5 | F131: 1285.857874 | G131: 170.4477166 | H131: 163.4477166 | I131: 862689.7009 | J131: 62540.39672 | K131: 5278.077413 | L131: 27.54930681 | M131: 2 | N131: 1.106229565 | O131: 6.814440657 | P131: 125 | Q131: 139.1431847 | R131: 1 | S131: 128571 | T131: 3047.932358 | U131: -647.9323583 | V131: 0 | W131: =IF(AND(R131=1,S131>=SC_LT,V131<>0,OR(IF(AND($G$4=$J$4,B131="X"),TRUE,FALSE),IF(AND($G$4=$J$3,A131="X",D131<>$O$4),TRUE,FALSE))),MAX($W$25:W130)+1,0) -> 0
C132: 51x5-474 | D132: 50.8 | E132: 5 | F132: 474.1777291 | G132: 93.83554583 | H132: 85.83554583 | I132: 226523.3278 | J132: 20371.26486 | K132: 2639.038706 | L132: 10.14170548 | M132: 4 | N132: 1.292035859 | O132: 7.000246951 | P132: 125 | Q132: 139.1431847 | R132: 1 | S132: 19167 | T132: 2900.715856 | U132: -500.7158556 | V132: 0 | W132: =IF(AND(R132=1,S132>=SC_LT,V132<>0,OR(IF(AND($G$4=$J$4,B132="X"),TRUE,FALSE),IF(AND($G$4=$J$3,A132="X",D132<>$O$4),TRUE,FALSE))),MAX($W$25:W131)+1,0) -> 0
C133: 51x5,5-735 | D133: 50.8 | E133: 5.5 | F133: 734.5565252 | G133: 132.5557319 | H133: 124.5557319 | I133: 328707.3975 | J133: 26624.13871 | K133: 2639.038706 | L133: 17.49047837 | M133: 4 | N133: 1.292035859 | O133: 7.000246951 | P133: 125 | Q133: 139.1431847 | R133: 1 | S133: 71875 | T133: 3956.231534 | U133: -1556.231534 | V133: 0 | W133: =IF(AND(R133=1,S133>=SC_LT,V133<>0,OR(IF(AND($G$4=$J$4,B133="X"),TRUE,FALSE),IF(AND($G$4=$J$3,A133="X",D133<>$O$4),TRUE,FALSE))),MAX($W$25:W132)+1,0) -> 0
C134: 51x6-1103 | D134: 50.8 | E134: 6 | F134: 1103.129916 | G134: 182.8549859 | H134: 174.8549859 | I134: 461449.0759 | J134: 33717.14315 | K134: 2639.038706 | L134: 28.96856921 | M134: 4 | N134: 1.292035859 | O134: 7.000246951 | P134: 125 | Q134: 139.1431847 | R134: 1 | S134: 171429 | T134: 5444.525589 | U134: -3044.525589 | V134: 0 | W134: =IF(AND(R134=1,S134>=SC_LT,V134<>0,OR(IF(AND($G$4=$J$4,B134="X"),TRUE,FALSE),IF(AND($G$4=$J$3,A134="X",D134<>$O$4),TRUE,FALSE))),MAX($W$25:W133)+1,0) -> 0
C135: 67x6-868 | D135: 66.675 | E135: 6 | F135: 867.9598102 | G135: 143.6599684 | H135: 136.6599684 | I135: 360650.9461 | J135: 33717.14315 | K135: 2639.038706 | L135: 29.12008979 | M135: 4 | N135: 1.292035859 | O135: 7.000246951 | P135: 125 | Q135: 139.1431847 | R135: 1 | S135: 171429 | T135: 4503.845168 | U135: -2103.845168 | V135: 0 | W135: =IF(AND(R135=1,S135>=SC_LT,V135<>0,OR(IF(AND($G$4=$J$4,B135="X"),TRUE,FALSE),IF(AND($G$4=$J$3,A135="X",D135<>$O$4),TRUE,FALSE))),MAX($W$25:W134)+1,0) -> 0
C136: 51x6,5-1610 | D136: 50.8 | E136: 6.5 | F136: 1610.292026 | G136: 246.7372348 | H136: 238.7372348 | I136: 630036.8034 | J136: 42059.54427 | K136: 2639.038706 | L136: 46.27915607 | M136: 4 | N136: 1.292035859 | O136: 7.000246951 | P136: 125 | Q136: 139.1431847 | R136: 1 | S136: 310000 | T136: 7487.174526 | U136: -5087.174526 | V136: 0 | W136: =IF(AND(R136=1,S136>=SC_LT,V136<>0,OR(IF(AND($G$4=$J$4,B136="X"),TRUE,FALSE),IF(AND($G$4=$J$3,A136="X",D136<>$O$4),TRUE,FALSE))),MAX($W$25:W135)+1,0) -> 0
C137: 67x6,5-1267 | D137: 66.675 | E137: 6.5 | F137: 1267.137453 | G137: 193.9442235 | H137: 186.9442235 | I137: 493353.0418 | J137: 42059.54427 | K137: 2639.038706 | L137: 46.45534562 | M137: 4 | N137: 1.292035859 | O137: 7.000246951 | P137: 125 | Q137: 139.1431847 | R137: 1 | S137: 310000 | T137: 6114.556232 | U137: -3714.556232 | V137: 0 | W137: =IF(AND(R137=1,S137>=SC_LT,V137<>0,OR(IF(AND($G$4=$J$4,B137="X"),TRUE,FALSE),IF(AND($G$4=$J$3,A137="X",D137<>$O$4),TRUE,FALSE))),MAX($W$25:W136)+1,0) -> 0
C138: 67x7-1804 | D138: 66.675 | E138: 7 | F138: 1804.201185 | G138: 256.7430264 | H138: 249.7430264 | I138: 659081.5134 | J138: 51857.87723 | K138: 2639.038706 | L138: 71.80989356 | M138: 4 | N138: 1.292035859 | O138: 7.000246951 | P138: 125 | Q138: 139.1431847 | R138: 1 | S138: 390000 | T138: 8276.811655 | U138: -5876.811655 | V138: 0 | W138: =IF(AND(R138=1,S138>=SC_LT,V138<>0,OR(IF(AND($G$4=$J$4,B138="X"),TRUE,FALSE),IF(AND($G$4=$J$3,A138="X",D138<>$O$4),TRUE,FALSE))),MAX($W$25:W137)+1,0) -> 0
C139: 67x7,5-2512 | D139: 66.675 | E139: 7.5 | F139: 2511.715748 | G139: 333.8954331 | H139: 326.8954331 | I139: 862689.7009 | J139: 62540.39672 | K139: 2639.038706 | L139: 107.9344202 | M139: 4 | N139: 1.292035859 | O139: 7.000246951 | P139: 125 | Q139: 139.1431847 | R139: 1 | S139: 450000 | T139: 11120.8704 | U139: -8720.870402 | V139: 0 | W139: =IF(AND(R139=1,S139>=SC_LT,V139<>0,OR(IF(AND($G$4=$J$4,B139="X"),TRUE,FALSE),IF(AND($G$4=$J$3,A139="X",D139<>$O$4),TRUE,FALSE))),MAX($W$25:W138)+1,0) -> 0
C140: 51x5-152 | D140: 50.8 | E140: 5 | F140: 152.2944323 | G140: 29.45888646 | H140: 21.45888646 | I140: 226523.3278 | J140: 20371.26486 | K140: 10556.15483 | L140: 0.7959759482 | M140: 1 | N140: 1.013326419 | O140: 6.721537511 | P140: 125 | Q140: 139.1431847 | R140: 1 | S140: 0 | T140: 372.9021198 | U140: 2027.09788 | V140: Ex_Center | W140: =IF(AND(R140=1,S140>=SC_LT,V140<>0,OR(IF(AND($G$4=$J$4,B140="X"),TRUE,FALSE),IF(AND($G$4=$J$3,A140="X",D140<>$O$4),TRUE,FALSE))),MAX($W$25:W139)+1,0) -> 0
C141: 51x5,5-221 | D141: 50.8 | E141: 5.5 | F141: 220.7641313 | G141: 39.13893296 | H141: 31.13893296 | I141: 328707.3975 | J141: 26624.13871 | K141: 10556.15483 | L141: 1.291077064 | M141: 1 | N141: 1.013326419 | O141: 6.721537511 | P141: 125 | Q141: 139.1431847 | R141: 1 | S141: 0 | T141: 444.7325876 | U141: 1955.267412 | V141: Ex_Center | W141: =IF(AND(R141=1,S141>=SC_LT,V141<>0,OR(IF(AND($G$4=$J$4,B141="X"),TRUE,FALSE),IF(AND($G$4=$J$3,A141="X",D141<>$O$4),TRUE,FALSE))),MAX($W$25:W140)+1,0) -> 0
C142: 51x6-316 | D142: 50.8 | E142: 6 | F142: 316.2824789 | G142: 51.71374648 | H142: 43.71374648 | I142: 461449.0759 | J142: 33717.14315 | K142: 10556.15483 | L142: 2.048171173 | M142: 1 | N142: 1.013326419 | O142: 6.721537511 | P142: 125 | Q142: 139.1431847 | R142: 1 | S142: 0 | T142: 543.611704 | U142: 1856.388296 | V142: Ex_Center | W142: =IF(AND(R142=1,S142>=SC_LT,V142<>0,OR(IF(AND($G$4=$J$4,B142="X"),TRUE,FALSE),IF(AND($G$4=$J$3,A142="X",D142<>$O$4),TRUE,FALSE))),MAX($W$25:W141)+1,0) -> 0
C143: 67x6-253 | D143: 66.675 | E143: 6 | F143: 252.9899525 | G143: 41.16499209 | H143: 34.16499209 | I143: 360650.9461 | J143: 33717.14315 | K143: 10556.15483 | L143: 2.086051319 | M143: 1 | N143: 1.013326419 | O143: 6.721537511 | P143: 125 | Q143: 139.1431847 | R143: 1 | S143: 0 | T143: 480.3191776 | U143: 1919.680822 | V143: Ex_Center | W143: =IF(AND(R143=1,S143>=SC_LT,V143<>0,OR(IF(AND($G$4=$J$4,B143="X"),TRUE,FALSE),IF(AND($G$4=$J$3,A143="X",D143<>$O$4),TRUE,FALSE))),MAX($W$25:W142)+1,0) -> 0
C144: 51x6,5-446 | D144: 50.8 | E144: 6.5 | F144: 446.4480066 | G144: 67.68430871 | H144: 59.68430871 | I144: 630036.8034 | J144: 42059.54427 | K144: 10556.15483 | L144: 3.173794065 | M144: 1 | N144: 1.013326419 | O144: 6.721537511 | P144: 125 | Q144: 139.1431847 | R144: 1 | S144: 0 | T144: 677.1380004 | U144: 1722.862 | V144: Ex_Center | W144: =IF(AND(R144=1,S144>=SC_LT,V144<>0,OR(IF(AND($G$4=$J$4,B144="X"),TRUE,FALSE),IF(AND($G$4=$J$3,A144="X",D144<>$O$4),TRUE,FALSE))),MAX($W$25:W143)+1,0) -> 0
C145: 67x6,5-356 | D145: 66.675 | E145: 6.5 | F145: 355.7843632 | G145: 53.73605588 | H145: 46.73605588 | I145: 493353.0418 | J145: 42059.54427 | K145: 10556.15483 | L145: 3.217841453 | M145: 1 | N145: 1.013326419 | O145: 6.721537511 | P145: 125 | Q145: 139.1431847 | R145: 1 | S145: 0 | T145: 586.474357 | U145: 1813.525643 | V145: Ex_Center | W145: =IF(AND(R145=1,S145>=SC_LT,V145<>0,OR(IF(AND($G$4=$J$4,B145="X"),TRUE,FALSE),IF(AND($G$4=$J$3,A145="X",D145<>$O$4),TRUE,FALSE))),MAX($W$25:W144)+1,0) -> 0
C146: 67x7-493 | D146: 66.675 | E146: 7 | F146: 493.0502963 | G146: 69.43575661 | H146: 62.43575661 | I146: 659081.5134 | J146: 51857.87723 | K146: 10556.15483 | L146: 4.855218816 | M146: 1 | N146: 1.013326419 | O146: 6.721537511 | P146: 125 | Q146: 139.1431847 | R146: 1 | S146: 0 | T146: 727.1010589 | U146: 1672.898941 | V146: Ex_Center | W146: =IF(AND(R146=1,S146>=SC_LT,V146<>0,OR(IF(AND($G$4=$J$4,B146="X"),TRUE,FALSE),IF(AND($G$4=$J$3,A146="X",D146<>$O$4),TRUE,FALSE))),MAX($W$25:W145)+1,0) -> 0
C147: 67x7,5-673 | D147: 66.675 | E147: 7.5 | F147: 672.9289371 | G147: 88.72385828 | H147: 81.72385828 | I147: 862689.7009 | J147: 62540.39672 | K147: 10556.15483 | L147: 7.170177585 | M147: 1 | N147: 1.013326419 | O147: 6.721537511 | P147: 125 | Q147: 139.1431847 | R147: 1 | S147: 0 | T147: 910.3404684 | U147: 1489.659532 | V147: Ex_Center | W147: =IF(AND(R147=1,S147>=SC_LT,V147<>0,OR(IF(AND($G$4=$J$4,B147="X"),TRUE,FALSE),IF(AND($G$4=$J$3,A147="X",D147<>$O$4),TRUE,FALSE))),MAX($W$25:W146)+1,0) -> 0
C148: 51x5-367 | D148: 50.8 | E148: 5 | F148: 366.8832969 | G148: 72.37665937 | H148: 64.37665937 | I148: 226523.3278 | J148: 20371.26486 | K148: 3518.718275 | L148: 5.866828689 | M148: 3 | N148: 1.199132712 | O148: 6.907343804 | P148: 125 | Q148: 139.1431847 | R148: 1 | S148: 0 | T148: 1765.260048 | U148: 634.7399524 | V148: Ex_Center | W148: =IF(AND(R148=1,S148>=SC_LT,V148<>0,OR(IF(AND($G$4=$J$4,B148="X"),TRUE,FALSE),IF(AND($G$4=$J$3,A148="X",D148<>$O$4),TRUE,FALSE))),MAX($W$25:W147)+1,0) -> 0
C149: 51x5,5-563 | D149: 50.8 | E149: 5.5 | F149: 563.2923939 | G149: 101.4167989 | H149: 93.41679889 | I149: 328707.3975 | J149: 26624.13871 | K149: 3518.718275 | L149: 10.03631625 | M149: 3 | N149: 1.199132712 | O149: 6.907343804 | P149: 125 | Q149: 139.1431847 | R149: 1 | S149: 19167 | T149: 2364.848355 | U149: 35.15164547 | V149: No cut | W149: =IF(AND(R149=1,S149>=SC_LT,V149<>0,OR(IF(AND($G$4=$J$4,B149="X"),TRUE,FALSE),IF(AND($G$4=$J$3,A149="X",D149<>$O$4),TRUE,FALSE))),MAX($W$25:W148)+1,0) -> 0
C150: 51x6-841 | D150: 50.8 | E150: 6 | F150: 840.8474367 | G150: 139.1412394 | H150: 131.1412394 | I150: 461449.0759 | J150: 33717.14315 | K150: 3518.718275 | L150: 16.53245578 | M150: 3 | N150: 1.199132712 | O150: 6.907343804 | P150: 125 | Q150: 139.1431847 | R150: 1 | S150: 62500 | T150: 3207.874499 | U150: -807.8744985 | V150: 0 | W150: =IF(AND(R150=1,S150>=SC_LT,V150<>0,OR(IF(AND($G$4=$J$4,B150="X"),TRUE,FALSE),IF(AND($G$4=$J$3,A150="X",D150<>$O$4),TRUE,FALSE))),MAX($W$25:W149)+1,0) -> 0
C151: 67x6-663 | D151: 66.675 | E151: 6 | F151: 662.9698576 | G151: 109.4949763 | H151: 102.4949763 | I151: 360650.9461 | J151: 33717.14315 | K151: 3518.718275 | L151: 16.64609622 | M151: 3 | N151: 1.199132712 | O151: 6.907343804 | P151: 125 | Q151: 139.1431847 | R151: 1 | S151: 62500 | T151: 2674.241761 | U151: -274.2417614 | V151: 0 | W151: =IF(AND(R151=1,S151>=SC_LT,V151<>0,OR(IF(AND($G$4=$J$4,B151="X"),TRUE,FALSE),IF(AND($G$4=$J$3,A151="X",D151<>$O$4),TRUE,FALSE))),MAX($W$25:W150)+1,0) -> 0
C152: 51x6,5-1222 | D152: 50.8 | E152: 6.5 | F152: 1222.34402 | G152: 187.0529261 | H152: 179.0529261 | I152: 630036.8034 | J152: 42059.54427 | K152: 3518.718275 | L152: 26.3133721 | M152: 3 | N152: 1.199132712 | O152: 6.907343804 | P152: 125 | Q152: 139.1431847 | R152: 1 | S152: 128571 | T152: 4362.725264 | U152: -1962.725264 | V152: 0 | W152: =IF(AND(R152=1,S152>=SC_LT,V152<>0,OR(IF(AND($G$4=$J$4,B152="X"),TRUE,FALSE),IF(AND($G$4=$J$3,A152="X",D152<>$O$4),TRUE,FALSE))),MAX($W$25:W151)+1,0) -> 0
C153: 67x6,5-963 | D153: 66.675 | E153: 6.5 | F153: 963.3530897 | G153: 147.2081676 | H153: 140.2081676 | I153: 493353.0418 | J153: 42059.54427 | K153: 3518.718275 | L153: 26.44551426 | M153: 3 | N153: 1.199132712 | O153: 6.907343804 | P153: 125 | Q153: 139.1431847 | R153: 1 | S153: 128571 | T153: 3585.752473 | U153: -1185.752473 | V153: 0 | W153: =IF(AND(R153=1,S153>=SC_LT,V153<>0,OR(IF(AND($G$4=$J$4,B153="X"),TRUE,FALSE),IF(AND($G$4=$J$3,A153="X",D153<>$O$4),TRUE,FALSE))),MAX($W$25:W152)+1,0) -> 0
C154: 67x7-1367 | D154: 66.675 | E154: 7 | F154: 1367.150889 | G154: 194.3072698 | H154: 187.3072698 | I154: 659081.5134 | J154: 51857.87723 | K154: 3518.718275 | L154: 40.76016559 | M154: 3 | N154: 1.199132712 | O154: 6.907343804 | P154: 125 | Q154: 139.1431847 | R154: 1 | S154: 275000 | T154: 4807.506886 | U154: -2407.506886 | V154: 0 | W154: =IF(AND(R154=1,S154>=SC_LT,V154<>0,OR(IF(AND($G$4=$J$4,B154="X"),TRUE,FALSE),IF(AND($G$4=$J$3,A154="X",D154<>$O$4),TRUE,FALSE))),MAX($W$25:W153)+1,0) -> 0
C155: 67x7,5-1899 | D155: 66.675 | E155: 7.5 | F155: 1898.786811 | G155: 252.1715748 | H155: 245.1715748 | I155: 862689.7009 | J155: 62540.39672 | K155: 3518.718275 | L155: 61.13738768 | M155: 3 | N155: 1.199132712 | O155: 6.907343804 | P155: 125 | Q155: 139.1431847 | R155: 1 | S155: 360000 | T155: 6412.77567 | U155: -4012.77567 | V155: 0 | W155: =IF(AND(R155=1,S155>=SC_LT,V155<>0,OR(IF(AND($G$4=$J$4,B155="X"),TRUE,FALSE),IF(AND($G$4=$J$3,A155="X",D155<>$O$4),TRUE,FALSE))),MAX($W$25:W154)+1,0) -> 0
C159: -0.03 | E159: 10000
C160: -0.02 | E160: 10833
C161: -0.01 | E161: 11667
C162: 0 | E162: 12500
C163: 0.01 | D163: 1 | E163: 13125
C164: 0.02 | D164: 1 | E164: 13750
C165: 0.03 | D165: 1 | E165: 14375
C166: 0.04 | D166: 1 | E166: 15000
C167: 0.05 | D167: 1 | E167: 15833
C168: 0.06 | D168: 1 | E168: 16667
C169: 0.07 | D169: 1 | E169: 17500
C170: 0.08 | D170: 1 | E170: 18333
C171: 0.09 | D171: 1 | E171: 19167
C172: 0.1 | D172: 1 | E172: 20000
C173: 0.11 | D173: 1 | E173: 21250
C174: 0.12 | D174: 1 | E174: 22500
C175: 0.13 | D175: 1 | E175: 23750
C176: 0.14 | D176: 1 | E176: 25000
C177: 0.15 | D177: 1 | E177: 26667
C178: 0.16 | D178: 1 | E178: 28333
C179: 0.17 | D179: 1 | E179: 30000
C180: 0.18 | D180: 1 | E180: 31667
C181: 0.19 | D181: 1 | E181: 33333
C182: 0.2 | D182: 1.01 | E182: 35000
C183: 0.21 | D183: 1.01 | E183: 38250
C184: 0.22 | D184: 1.02 | E184: 41500
C185: 0.23 | D185: 1.02 | E185: 44750
C186: 0.24 | D186: 1.03 | E186: 50000
C187: 0.25 | D187: 1.04 | E187: 53125
C188: 0.26 | D188: 1.05 | E188: 56250
C189: 0.27 | D189: 1.05 | E189: 59375
C190: 0.28 | D190: 1.06 | E190: 62500
C191: 0.29 | D191: 1.06 | E191: 65625
C192: 0.3 | D192: 1.07 | E192: 68750
C193: 0.31 | D193: 1.07 | E193: 71875
C194: 0.32 | D194: 1.08 | E194: 75000
C195: 0.33 | D195: 1.08 | E195: 78125
C196: 0.34 | D196: 1.09 | E196: 81250
C197: 0.35 | D197: 1.09 | E197: 84375
C198: 0.36 | D198: 1.09 | E198: 87500
C199: 0.37 | D199: 1.09 | E199: 90625
C200: 0.38 | D200: 1.09 | E200: 93750
C201: 0.39 | D201: 1.09 | E201: 96875
C202: 0.4 | D202: 1.1 | E202: 100000
C203: 0.41 | D203: 1.1 | E203: 114286
C204: 0.42 | D204: 1.1 | E204: 128571
C205: 0.43 | D205: 1.1 | E205: 142857
... 57 more rows

Sheet Date (hidden)
A2: today | B2: =TODAY() -> 2023-02-10
A4: release date | B4: 2023-02-09
A5: expiration date | B5: =B4+365 -> 2024-02-09
A7: days | B7: =B2-B4 -> 1
A9: warning | B9: This file is more than one year old.
B10: Please check if you have the latest version.
B11: www.doco-international.com/en/support
A13: Versie | B13: V1.1
A15: 1.0 | B15: 2021-03-01 | C15: start
A16: 1.1 | B16: 2020-02-09 | C16: Kabelset Home-X toegevoegd op verzoek van PM

Sheet Matrix (hidden)
BT1: =COLUMN() -> 72
B2: DH-KG | C2: 1775 | D2: =C2+25 -> 1800 | E2: =D2+25 -> 1825 | F2: 1850 | G2: 1875 | H2: 1900 | I2: 1925 | J2: 1950 | K2: 1975 | L2: 2000 | M2: 2025 | N2: 2050 | O2: 2075 | P2: 2100 | Q2: 2125 | R2: 2150 | S2: 2175 | T2: 2200 | U2: 2225 | V2: 2250 | W2: 2275 | X2: 2300 | Y2: 2325 | Z2: 2350 | AA2: 2375 | AB2: 2400 | AC2: 2425 | AD2: 2450 | AE2: 2475 | AF2: 2500 | AG2: 2525 | AH2: 2550 | AI2: 2575 | AJ2: 2600 | AK2: 2625 | AL2: 2650 | AM2: 2675 | AN2: 2700 | AO2: 2725 | AP2: 2750 | AQ2: 2775 | AR2: 2800 | AS2: 2825 | AT2: 2850 | AU2: 2875 | AV2: =AU2+25 -> 2900 | AW2: 2925 | AX2: 2950 | AY2: 2975 | AZ2: 3000 | BA2: 3025 | BB2: 3050 | BC2: 3075 | BD2: 3100 | BE2: 3125 | BF2: 3150 | BG2: 3175 | BH2: 3200 | BI2: 3225 | BJ2: 3250 | BK2: 3275 | BL2: 3300 | BM2: 3325 | BN2: 3350 | BO2: 3375 | BP2: 3400 | BQ2: =BP2+25 -> 3425 | BR2: 3450 | BS2: 3475 | BT2: 3500
B3: 40 | C3: 3295006632 (2) | D3: 3295006632 (2) | E3: 3295006632 (2)
B4: =B3+2 -> 42 | C4: 3295006192 (2) | D4: 3295006632 (2) | E4: 3295006632 (2) | F4: 3295006632 (2) | G4: 3295006632 (2) | H4: 3295006632 (2) | I4: 3295006632 (2)
B5: =B4+2 -> 44 | C5: 3295006192 (2) | D5: 3295006192 (2) | E5: 3295006192 (2) | F5: 3295006192 (2) | G5: 3295006632 (2) | H5: 3295006632 (2) | I5: 3295006632 (2) | J5: 3295006632 (2) | K5: 3295006632 (2) | L5: 3295006632 (2) | M5: 3295006632 (2)
B6: 46 | C6: 3295005762 (2) | D6: 3295005762 (2) | E6: 3295006192 (2) | F6: 3295006192 (2) | G6: 3295006192 (2) | H6: 3295006192 (2) | I6: 3295006192 (2) | J6: 3295006192 (2) | K6: 3295006632 (2) | L6: 3295006632 (2) | M6: 3295006632 (2) | N6: 3295006632 (2) | O6: 3295006632 (2) | P6: 3295006632 (2) | Q6: 3295006632 (2)
B7: 48 | C7: 3295005762 (2) | D7: 3295005762 (2) | E7: 3295005762 (2) | F7: 3295005762 (2) | G7: 3295005762 (2) | H7: 3295006192 (2) | I7: 3295006192 (2) | J7: 3295006192 (2) | K7: 3295006192 (2) | L7: 3295006192 (2) | M7: 3295006192 (2) | N7: 3295006192 (2) | O7: 3295006632 (2) | P7: 3295006632 (2) | Q7: 3295006632 (2) | R7: 3295006632 (2) | S7: 3295006632 (2) | T7: 3295006632 (2) | U7: 3295006632 (2)
B8: 50 | C8: 3295005332 (2) | D8: 3295005762 (2) | E8: 3295005762 (2) | F8: 3295005762 (2) | G8: 3295005762 (2) | H8: 3295005762 (2) | I8: 3295005762 (2) | J8: 3295005762 (2) | K8: 3295005762 (2) | L8: 3295006192 (2) | M8: 3295006192 (2) | N8: 3295006192 (2) | O8: 3295006192 (2) | P8: 3295006192 (2) | Q8: 3295006192 (2) | R8: 3295006192 (2) | S8: 3295006632 (2) | T8: 3295006632 (2) | U8: 3295006632 (2) | V8: 3295006632 (2) | W8: 3295006632 (2) | X8: 3295006632 (2) | Y8: 3295006632 (2)
B9: 52 | C9: 3295005332 (2) | D9: 3295005332 (2) | E9: 3295005332 (2) | F9: 3295005332 (2) | G9: 3295005332 (2) | H9: 3295005762 (2) | I9: 3295005762 (2) | J9: 3295005762 (2) | K9: 3295005762 (2) | L9: 3295005762 (2) | M9: 3295005762 (2) | N9: 3295005762 (2) | O9: 3295006192 (2) | P9: 3295006192 (2) | Q9: 3295006192 (2) | R9: 3295006192 (2) | S9: 3295006192 (2) | T9: 3295006192 (2) | U9: 3295006192 (2) | V9: 3295006632 (2) | W9: 3295006632 (2) | X9: 3295006632 (2) | Y9: 3295006632 (2) | Z9: 3295006632 (2) | AA9: 3295006632 (2) | AB9: 3295006632 (2) | AC9: 3295006632 (2)
B10: 54 | C10: 3295005332 (2) | D10: 3295005332 (2) | E10: 3295005332 (2) | F10: 3295005332 (2) | G10: 3295005332 (2) | H10: 3295005332 (2) | I10: 3295005332 (2) | J10: 3295005332 (2) | K10: 3295005762 (2) | L10: 3295005762 (2) | M10: 3295005762 (2) | N10: 3295005762 (2) | O10: 3295005762 (2) | P10: 3295005762 (2) | Q10: 3295005762 (2) | R10: 3295005762 (2) | S10: 3295006192 (2) | T10: 3295006192 (2) | U10: 3295006192 (2) | V10: 3295006192 (2) | W10: 3295006192 (2) | X10: 3295006192 (2) | Y10: 3295006192 (2) | Z10: 3295006632 (2) | AA10: 3295006632 (2) | AB10: 3295006632 (2) | AC10: 3295006632 (2) | AD10: 3295006632 (2) | AE10: 3295006632 (2) | AF10: 3295006632 (2) | AG10: 3295006632 (2)
B11: 56 | C11: 3295004902 (2) | D11: 3295004902 (2) | E11: 3295004902 (2) | F11: 3295005332 (2) | G11: 3295005332 (2) | H11: 3295005332 (2) | I11: 3295005332 (2) | J11: 3295005332 (2) | K11: 3295005332 (2) | L11: 3295005332 (2) | M11: 3295005332 (2) | N11: 3295005762 (2) | O11: 3295005762 (2) | P11: 3295005762 (2) | Q11: 3295005762 (2) | R11: 3295005762 (2) | S11: 3295005762 (2) | T11: 3295005762 (2) | U11: 3295005762 (2) | V11: 3295006192 (2) | W11: 3295006192 (2) | X11: 3295006192 (2) | Y11: 3295006192 (2) | Z11: 3295006192 (2) | AA11: 3295006192 (2) | AB11: 3295006192 (2) | AC11: 3295006192 (2) | AD11: 3295006632 (2) | AE11: 3295006632 (2) | AF11: 3295006632 (2) | AG11: 3295006632 (2) | AH11: 3295006632 (2) | AI11: 3295006632 (2) | AJ11: 3295006632 (2) | AK11: 3295006632 (2)
B12: 58 | C12: 3295004902 (2) | D12: 3295004902 (2) | E12: 3295004902 (2) | F12: 3295004902 (2) | G12: 3295004902 (2) | H12: 3295004902 (2) | I12: 3295005332 (2) | J12: 3295005332 (2) | K12: 3295005332 (2) | L12: 3295005332 (2) | M12: 3295005332 (2) | N12: 3295005332 (2) | O12: 3295005332 (2) | P12: 3295005332 (2) | Q12: 3295005762 (2) | R12: 3295005762 (2) | S12: 3295005762 (2) | T12: 3295005762 (2) | U12: 3295005762 (2) | V12: 3295005762 (2) | W12: 3295005762 (2) | X12: 3295005762 (2) | Y12: 3295005762 (2) | Z12: 3295006192 (2) | AA12: 3295006192 (2) | AB12: 3295006192 (2) | AC12: 3295006192 (2) | AD12: 3295006192 (2) | AE12: 3295006192 (2) | AF12: 3295006192 (2) | AG12: 3295006192 (2) | AH12: 3295006632 (2) | AI12: 3295006632 (2) | AJ12: 3295006632 (2) | AK12: 3295006632 (2) | AL12: 3295006632 (2) | AM12: 3295006632 (2) | AN12: 3295006632 (2) | AO12: 3295006632 (2)
B13: 60 | C13: 3295004482 (2) | D13: 3295004902 (2) | E13: 3295004902 (2) | F13: 3295004902 (2) | G13: 3295004902 (2) | H13: 3295004902 (2) | I13: 3295004902 (2) | J13: 3295004902 (2) | K13: 3295004902 (2) | L13: 3295005332 (2) | M13: 3295005332 (2) | N13: 3295005332 (2) | O13: 3295005332 (2) | P13: 3295005332 (2) | Q13: 3295005332 (2) | R13: 3295005332 (2) | S13: 3295005332 (2) | T13: 3295005332 (2) | U13: 3295005762 (2) | V13: 3295005762 (2) | W13: 3295005762 (2) | X13: 3295005762 (2) | Y13: 3295005762 (2) | Z13: 3295005762 (2) | AA13: 3295005762 (2) | AB13: 3295005762 (2) | AC13: 3295006192 (2) | AD13: 3295006192 (2) | AE13: 3295006192 (2) | AF13: 3295006192 (2) | AG13: 3295006192 (2) | AH13: 3295006192 (2) | AI13: 3295006192 (2) | AJ13: 3295006192 (2) | AK13: 3295006192 (2) | AL13: 3295006632 (2) | AM13: 3295006632 (2) | AN13: 3295006632 (2) | AO13: 3295006632 (2) | AP13: 3295006632 (2) | AQ13: 3295006632 (2) | AR13: 3295006632 (2) | AS13: 3295006632 (2)
B14: 62 | C14: 3295004482 (2) | D14: 3295004482 (2) | E14: 3295004482 (2) | F14: 3295004902 (2) | G14: 3295004902 (2) | H14: 3295004902 (2) | I14: 3295004902 (2) | J14: 3295004902 (2) | K14: 3295004902 (2) | L14: 3295004902 (2) | M14: 3295004902 (2) | N14: 3295004902 (2) | O14: 3295005332 (2) | P14: 3295005332 (2) | Q14: 3295005332 (2) | R14: 3295005332 (2) | S14: 3295005332 (2) | T14: 3295005332 (2) | U14: 3295005332 (2) | V14: 3295005332 (2) | W14: 3295005332 (2) | X14: 3295005762 (2) | Y14: 3295005762 (2) | Z14: 3295005762 (2) | AA14: 3295005762 (2) | AB14: 3295005762 (2) | AC14: 3295005762 (2) | AD14: 3295005762 (2) | AE14: 3295005762 (2) | AF14: 3295005762 (2) | AG14: 3295006192 (2) | AH14: 3295006192 (2) | AI14: 3295006192 (2) | AJ14: 3295006192 (2) | AK14: 3295006192 (2) | AL14: 3295006192 (2) | AM14: 3295006192 (2) | AN14: 3295006192 (2) | AO14: 3295006632 (2) | AP14: 3295006632 (2) | AQ14: 3295006632 (2) | AR14: 3295006632 (2) | AS14: 3295006632 (2) | AT14: 3295006632 (2) | AU14: 3295006632 (2) | AV14: 3295006632 (2) | AW14: 3295006632 (2)
B15: 64 | C15: 3295004482 (2) | D15: 3295004482 (2) | E15: 3295004482 (2) | F15: 3295004482 (2) | G15: 3295004482 (2) | H15: 3295004482 (2) | I15: 3295004902 (2) | J15: 3295004902 (2) | K15: 3295004902 (2) | L15: 3295004902 (2) | M15: 3295004902 (2) | N15: 3295004902 (2) | O15: 3295004902 (2) | P15: 3295004902 (2) | Q15: 3295004902 (2) | R15: 3295005332 (2) | S15: 3295005332 (2) | T15: 3295005332 (2) | U15: 3295005332 (2) | V15: 3295005332 (2) | W15: 3295005332 (2) | X15: 3295005332 (2) | Y15: 3295005332 (2) | Z15: 3295005332 (2) | AA15: 3295005762 (2) | AB15: 3295005762 (2) | AC15: 3295005762 (2) | AD15: 3295005762 (2) | AE15: 3295005762 (2) | AF15: 3295005762 (2) | AG15: 3295005762 (2) | AH15: 3295005762 (2) | AI15: 3295005762 (2) | AJ15: 3295006192 (2) | AK15: 3295006192 (2) | AL15: 3295006192 (2) | AM15: 3295006192 (2) | AN15: 3295006192 (2) | AO15: 3295006192 (2) | AP15: 3295006192 (2) | AQ15: 3295006192 (2) | AR15: 3295006192 (2) | AS15: 3295006632 (2) | AT15: 3295006632 (2) | AU15: 3295006632 (2) | AV15: 3295006632 (2) | AW15: 3295006632 (2) | AX15: 3295006632 (2) | AY15: 3295006632 (2) | AZ15: 3295006632 (2) | BA15: 3295006632 (2)
B16: 66 | C16: 3295004482 (2) | D16: 3295004482 (2) | E16: 3295004482 (2) | F16: 3295004482 (2) | G16: 3295004482 (2) | H16: 3295004482 (2) | I16: 3295004482 (2) | J16: 3295004482 (2) | K16: 3295004482 (2) | L16: 3295004902 (2) | M16: 3295004902 (2) | N16: 3295004902 (2) | O16: 3295004902 (2) | P16: 3295004902 (2) | Q16: 3295004902 (2) | R16: 3295004902 (2) | S16: 3295004902 (2) | T16: 3295004902 (2) | U16: 3295005332 (2) | V16: 3295005332 (2) | W16: 3295005332 (2) | X16: 3295005332 (2) | Y16: 3295005332 (2) | Z16: 3295005332 (2) | AA16: 3295005332 (2) | AB16: 3295005332 (2) | AC16: 3295005332 (2) | AD16: 3295005762 (2) | AE16: 3295005762 (2) | AF16: 3295005762 (2) | AG16: 3295005762 (2) | AH16: 3295005762 (2) | AI16: 3295005762 (2) | AJ16: 3295005762 (2) | AK16: 3295005762 (2) | AL16: 3295005762 (2) | AM16: 3295006192 (2) | AN16: 3295006192 (2) | AO16: 3295006192 (2) | AP16: 3295006192 (2) | AQ16: 3295006192 (2) | AR16: 3295006192 (2) | AS16: 3295006192 (2) | AT16: 3295006192 (2) | AU16: 3295006192 (2) | AV16: 3295006192 (2) | AW16: 3295006632 (2) | AX16: 3295006632 (2) | AY16: 3295006632 (2) | AZ16: 3295006632 (2) | BA16: 3295006632 (2) | BB16: 3295006632 (2) | BC16: 3295006632 (2) | BD16: 3295006632 (2) | BE16: 3295006632 (2)
B17: 68 | C17: 3295004482 (2) | D17: 3295004482 (2) | E17: 3295004482 (2) | F17: 3295004482 (2) | G17: 3295004482 (2) | H17: 3295004482 (2) | I17: 3295004482 (2) | J17: 3295004482 (2) | K17: 3295004482 (2) | L17: 3295004902 (2) | M17: 3295004902 (2) | N17: 3295004902 (2) | O17: 3295004902 (2) | P17: 3295004902 (2) | Q17: 3295004902 (2) | R17: 3295004902 (2) | S17: 3295004902 (2) | T17: 3295004902 (2) | U17: 3295004902 (2) | V17: 3295005332 (2) | W17: 3295005332 (2) | X17: 3295005332 (2) | Y17: 3295005332 (2) | Z17: 3295005332 (2) | AA17: 3295005332 (2) | AB17: 3295005332 (2) | AC17: 3295005332 (2) | AD17: 3295005332 (2) | AE17: 3295306972 (2) | AF17: 3295005762 (2) | AG17: 3295005762 (2) | AH17: 3295005762 (2) | AI17: 3295005762 (2) | AJ17: 3295005762 (2) | AK17: 3295005762 (2) | AL17: 3295005762 (2) | AM17: 3295005762 (2) | AN17: 3295005762 (2) | AO17: 3295006192 (2) | AP17: 3295006192 (2) | AQ17: 3295006192 (2) | AR17: 3295006192 (2) | AS17: 3295006192 (2) | AT17: 3295006192 (2) | AU17: 3295006192 (2) | AV17: 3295006192 (2) | AW17: 3295006192 (2) | AX17: 3295006192 (2) | AY17: 3295006632 (2) | AZ17: 3295006632 (2) | BA17: 3295006632 (2) | BB17: 3295006632 (2) | BC17: 3295006632 (2) | BD17: 3295006632 (2) | BE17: 3295006632 (2) | BF17: 3295006632 (2) | BG17: 3295006632 (2) | BH17: 3295006632 (2) | BI17: 3295006632 (2)
B18: 70 | C18: 3295305512 (2) | D18: 3295305512 (2) | E18: 3295004482 (2) | F18: 3295004482 (2) | G18: 3295004482 (2) | H18: 3295004482 (2) | I18: 3295004482 (2) | J18: 3295004482 (2) | K18: 3295004482 (2) | L18: 3295306002 (2) | M18: 3295306002 (2) | N18: 3295306002 (2) | O18: 3295004902 (2) | P18: 3295004902 (2) | Q18: 3295004902 (2) | R18: 3295004902 (2) | S18: 3295004902 (2) | T18: 3295004902 (2) | U18: 3295306492 (2) | V18: 3295306492 (2) | W18: 3295306492 (2) | X18: 3295306492 (2) | Y18: 3295005332 (2) | Z18: 3295005332 (2) | AA18: 3295005332 (2) | AB18: 3295005332 (2) | AC18: 3295005332 (2) | AD18: 3295005332 (2) | AE18: 3295306972 (2) | AF18: 3295306972 (2) | AG18: 3295306972 (2) | AH18: 3295306972 (2) | AI18: 3295005762 (2) | AJ18: 3295005762 (2) | AK18: 3295005762 (2) | AL18: 3295005762 (2) | AM18: 3295005762 (2) | AN18: 3295307462 (2) | AO18: 3295307462 (2) | AP18: 3295307462 (2) | AQ18: 3295307462 (2) | AR18: 3295307462 (2) | AS18: 3295006192 (2) | AT18: 3295006192 (2) | AU18: 3295006192 (2) | AV18: 3295006192 (2) | AW18: 3295307952 (2) | AX18: 3295307952 (2) | AY18: 3295307952 (2) | AZ18: 3295307952 (2) | BA18: 3295006192 (2) | BB18: 3295006192 (2) | BC18: 3295006632 (2) | BD18: 3295006632 (2) | BE18: 3295006632 (2) | BF18: 3295006632 (2) | BG18: 3295006632 (2) | BH18: 3295006632 (2) | BI18: 3295006632 (2) | BJ18: 3295006632 (2) | BK18: 3295006632 (2) | BL18: 3295006632 (2) | BM18: 3295006632 (2)
B19: 72 | C19: 3295305032 (2) | D19: 3295305032 (2) | E19: 3295305512 (2) | F19: 3295305512 (2) | G19: 3295305512 (2) | H19: 3295004482 (2) | I19: 3295004482 (2) | J19: 3295004482 (2) | K19: 3295004482 (2) | L19: 3295305512 (2) | M19: 3295305512 (2) | N19: 3295306002 (2) | O19: 3295306002 (2) | P19: 3295306002 (2) | Q19: 3295306002 (2) | R19: 3295004902 (2) | S19: 3295004902 (2) | T19: 3295004902 (2) | U19: 3295306002 (2) | V19: 3295306002 (2) | W19: 3295306492 (2) | X19: 3295306492 (2) | Y19: 3295306492 (2) | Z19: 3295306492 (2) | AA19: 3295306492 (2) | AB19: 3295306492 (2) | AC19: 3295005332 (2) | AD19: 3295306492 (2) | AE19: 3295306972 (2) | AF19: 3295306972 (2) | AG19: 3295306972 (2) | AH19: 3295306972 (2) | AI19: 3295306972 (2) | AJ19: 3295306972 (2) | AK19: 3295306972 (2) | AL19: 3295306972 (2) | AM19: 3295005762 (2) | AN19: 3295307462 (2) | AO19: 3295307462 (2) | AP19: 3295307462 (2) | AQ19: 3295307462 (2) | AR19: 3295307462 (2) | AS19: 3295307462 (2) | AT19: 3295307462 (2) | AU19: 3295307462 (2) | AV19: 3295307952 (2) | AW19: 3295307952 (2) | AX19: 3295307952 (2) | AY19: 3295307952 (2) | AZ19: 3295307952 (2) | BA19: 3295307952 (2) | BB19: 3295307952 (2) | BC19: 3295307952 (2) | BD19: 3295307952 (2) | BE19: 3295006192 (2) | BF19: 3295006192 (2) | BG19: 3295006192 (2) | BH19: 3295006632 (2) | BI19: 3295006632 (2) | BJ19: 3295006632 (2) | BK19: 3295006632 (2) | BL19: 3295006632 (2) | BM19: 3295006632 (2) | BN19: 3295006632 (2) | BO19: 3295006632 (2) | BP19: 3295006632 (2) | BQ19: 3295006632 (2)
B20: 74 | C20: 3295305032 (2) | D20: 3295305032 (2) | E20: 3295305032 (2) | F20: 3295305032 (2) | G20: 3295305032 (2) | H20: 3295305512 (2) | I20: 3295305512 (2) | J20: 3295305512 (2) | K20: 3295004482 (2) | L20: 3295305512 (2) | M20: 3295305512 (2) | N20: 3295305512 (2) | O20: 3295305512 (2) | P20: 3295306002 (2) | Q20: 3295306002 (2) | R20: 3295306002 (2) | S20: 3295306002 (2) | T20: 3295306002 (2) | U20: 3295306002 (2) | V20: 3295306002 (2) | W20: 3295306002 (2) | X20: 3295306002 (2) | Y20: 3295306492 (2) | Z20: 3295306492 (2) | AA20: 3295306492 (2) | AB20: 3295306492 (2) | AC20: 3295306492 (2) | AD20: 3295306492 (2) | AE20: 3295306492 (2) | AF20: 3295306492 (2) | AG20: 3295306492 (2) | AH20: 3295306972 (2) | AI20: 3295306972 (2) | AJ20: 3295306972 (2) | AK20: 3295306972 (2) | AL20: 3295306972 (2) | AM20: 3295306972 (2) | AN20: 3295306972 (2) | AO20: 3295306972 (2) | AP20: 3295306972 (2) | AQ20: 3295307462 (2) | AR20: 3295307462 (2) | AS20: 3295307462 (2) | AT20: 3295307462 (2) | AU20: 3295307462 (2) | AV20: 3295307462 (2) | AW20: 3295307462 (2) | AX20: 3295307462 (2) | AY20: 3295307462 (2) | AZ20: 3295307952 (2) | BA20: 3295307952 (2) | BB20: 3295307952 (2) | BC20: 3295307952 (2) | BD20: 3295307952 (2) | BE20: 3295307952 (2) | BF20: 3295307952 (2) | BG20: 3295307952 (2) | BH20: 3295307952 (2) | BL20: 3295006632 (2) | BM20: 3295006632 (2) | BN20: 3295006632 (2) | BO20: 3295006632 (2) | BP20: 3295006632 (2) | BQ20: 3295006632 (2)
B21: 76 | C21: 3295305032 (2) | D21: 3295305032 (2) | E21: 3295305032 (2) | F21: 3295305032 (2) | G21: 3295305032 (2) | H21: 3295305032 (2) | I21: 3295305032 (2) | J21: 3295305512 (2) | K21: 3295305512 (2) | L21: 3295305512 (2) | M21: 3295305512 (2) | N21: 3295305512 (2) | O21: 3295305512 (2) | P21: 3295305512 (2) | Q21: 3295305512 (2) | R21: 3295305512 (2) | S21: 3295306002 (2) | T21: 3295306002 (2) | U21: 3295306002 (2) | V21: 3295306002 (2) | W21: 3295306002 (2) | X21: 3295306002 (2) | Y21: 3295306002 (2) | Z21: 3295306002 (2) | AA21: 3295306002 (2) | AB21: 3295306492 (2) | AC21: 3295306492 (2) | AD21: 3295306492 (2) | AE21: 3295306492 (2) | AF21: 3295306492 (2) | AG21: 3295306492 (2) | AH21: 3295306492 (2) | AI21: 3295306492 (2) | AJ21: 3295306492 (2) | AK21: 3295306972 (2) | AL21: 3295306972 (2) | AM21: 3295306972 (2) | AN21: 3295306972 (2) | AO21: 3295306972 (2) | AP21: 3295306972 (2) | AQ21: 3295306972 (2) | AR21: 3295306972 (2) | AS21: 3295306972 (2) | AT21: 3295307462 (2) | AU21: 3295307462 (2) | AV21: 3295307462 (2) | AW21: 3295307462 (2) | AX21: 3295307462 (2) | AY21: 3295307462 (2) | AZ21: 3295307462 (2) | BA21: 3295307462 (2) | BB21: 3295307462 (2) | BC21: 3295307952 (2) | BD21: 3295307952 (2) | BE21: 3295307952 (2) | BF21: 3295307952 (2) | BG21: 3295307952 (2) | BH21: 3295307952 (2) | BI21: 3295307952 (2) | BJ21: 3295307952 (2) | BK21: 3295307952 (2) | BP21: 3295006632 (2)
B22: 78 | C22: 3295305032 (2) | D22: 3295305032 (2) | E22: 3295305032 (2) | F22: 3295305032 (2) | G22: 3295305032 (2) | H22: 3295305032 (2) | I22: 3295305032 (2) | J22: 3295305032 (2) | K22: 3295305032 (2) | L22: 3295305512 (2) | M22: 3295305512 (2) | N22: 3295305512 (2) | O22: 3295305512 (2) | P22: 3295305512 (2) | Q22: 3295305512 (2) | R22: 3295305512 (2) | S22: 3295305512 (2) | T22: 3295305512 (2) | U22: 3295306002 (2) | V22: 3295306002 (2) | W22: 3295306002 (2) | X22: 3295306002 (2) | Y22: 3295306002 (2) | Z22: 3295306002 (2) | AA22: 3295306002 (2) | AB22: 3295306002 (2) | AC22: 3295306002 (2) | AD22: 3295306002 (2) | AE22: 3295306492 (2) | AF22: 3295306492 (2) | AG22: 3295306492 (2) | AH22: 3295306492 (2) | AI22: 3295306492 (2) | AJ22: 3295306492 (2) | AK22: 3295306492 (2) | AL22: 3295306492 (2) | AM22: 3295306492 (2) | AN22: 3295306972 (2) | AO22: 3295306972 (2) | AP22: 3295306972 (2) | AQ22: 3295306972 (2) | AR22: 3295306972 (2) | AS22: 3295306972 (2) | AT22: 3295306972 (2) | AU22: 3295306972 (2) | AV22: 3295306972 (2) | AW22: 3295307462 (2) | AX22: 3295307462 (2) | AY22: 3295307462 (2) | AZ22: 3295307462 (2) | BA22: 3295307462 (2) | BB22: 3295307462 (2) | BC22: 3295307462 (2) | BD22: 3295307462 (2) | BE22: 3295307462 (2) | BF22: 3295307462 (2) | BG22: 3295307952 (2) | BH22: 3295307952 (2) | BI22: 3295307952 (2) | BJ22: 3295307952 (2) | BK22: 3295307952 (2) | BL22: 3295307952 (2) | BM22: 3295307952 (2) | BN22: 3295307952 (2) | BO22: 3295307952 (2)
B23: 80 | C23: 3295305032 (2) | D23: 3295305032 (2) | E23: 3295305032 (2) | F23: 3295305032 (2) | G23: 3295305032 (2) | H23: 3295305032 (2) | I23: 3295305032 (2) | J23: 3295305032 (2) | K23: 3295305032 (2) | L23: 3295305032 (2) | M23: 3295305512 (2) | N23: 3295305512 (2) | O23: 3295305512 (2) | P23: 3295305512 (2) | Q23: 3295305512 (2) | R23: 3295305512 (2) | S23: 3295305512 (2) | T23: 3295305512 (2) | U23: 3295305512 (2) | V23: 3295305512 (2) | W23: 3295306002 (2) | X23: 3295306002 (2) | Y23: 3295306002 (2) | Z23: 3295306002 (2) | AA23: 3295306002 (2) | AB23: 3295306002 (2) | AC23: 3295306002 (2) | AD23: 3295306002 (2) | AE23: 3295306002 (2) | AF23: 3295306492 (2) | AG23: 3295306492 (2) | AH23: 3295306492 (2) | AI23: 3295306492 (2) | AJ23: 3295306492 (2) | AK23: 3295306492 (2) | AL23: 3295306492 (2) | AM23: 3295306492 (2) | AN23: 3295306492 (2) | AO23: 3295306492 (2) | AP23: 3295306972 (2) | AQ23: 3295306972 (2) | AR23: 3295306972 (2) | AS23: 3295306972 (2) | AT23: 3295306972 (2) | AU23: 3295306972 (2) | AV23: 3295306972 (2) | AW23: 3295306972 (2) | AX23: 3295306972 (2) | AY23: 3295307462 (2) | AZ23: 3295307462 (2) | BA23: 3295307462 (2) | BB23: 3295307462 (2) | BC23: 3295307462 (2) | BD23: 3295307462 (2) | BE23: 3295307462 (2) | BF23: 3295307462 (2) | BG23: 3295307462 (2) | BH23: 3295307462 (2) | BI23: 3295307952 (2) | BJ23: 3295307952 (2) | BK23: 3295307952 (2) | BL23: 3295307952 (2) | BM23: 3295307952 (2) | BN23: 3295307952 (2) | BO23: 3295307952 (2) | BP23: 3295307952 (2) | BQ23: 3295307952 (2) | BR23: 3295307952 (2) | BS23: 3295307952 (2)
B24: 82 | C24: 3295505412 (2) | D24: 3295505412 (2) | E24: 3295305032 (2) | F24: 3295305032 (2) | G24: 3295305032 (2) | H24: 3295305032 (2) | I24: 3295305032 (2) | J24: 3295305032 (2) | K24: 3295305032 (2) | L24: 3295305032 (2) | M24: 3295505932 (2) | N24: 3295505932 (2) | O24: 3295305512 (2) | P24: 3295305512 (2) | Q24: 3295305512 (2) | R24: 3295305512 (2) | S24: 3295305512 (2) | T24: 3295305512 (2) | U24: 3295305512 (2) | V24: 3295506462 (2) | W24: 3295506462 (2) | X24: 3295506462 (2) | Y24: 3295306002 (2) | Z24: 3295306002 (2) | AA24: 3295306002 (2) | AB24: 3295306002 (2) | AC24: 3295306002 (2) | AD24: 3295306002 (2) | AE24: 3295306002 (2) | AF24: 3295506982 (2) | AG24: 3295506982 (2) | AH24: 3295507512 (2) | AI24: 3295306492 (2) | AJ24: 3295306492 (2) | AK24: 3295306492 (2) | AL24: 3295306492 (2) | AM24: 3295306492 (2) | AN24: 3295306492 (2) | AO24: 3295507512 (2) | AP24: 3295507512 (2) | AQ24: 3295508042 (2) | AR24: 3295508042 (2) | AS24: 3295306972 (2) | AT24: 3295306972 (2) | AU24: 3295306972 (2) | AV24: 3295306972 (2) | AW24: 3295306972 (2) | AX24: 3295306972 (2) | AY24: 3295508042 (2) | AZ24: 3295508572 (2) | BA24: 3295508572 (2) | BB24: 3295508572 (2) | BC24: 3295307462 (2) | BD24: 3295307462 (2) | BE24: 3295307462 (2) | BF24: 3295307462 (2) | BG24: 3295307462 (2) | BH24: 3295508572 (2) | BI24: 3295307462 (2) | BJ24: 3295307462 (2) | BK24: 3295307462 (2) | BL24: 3295307462 (2) | BM24: 3295307952 (2) | BN24: 3295307952 (2) | BO24: 3295307952 (2) | BP24: 3295307952 (2) | BQ24: 3295307952 (2) | BR24: 3295307952 (2) | BS24: 3295307952 (2) | BT24: 3295307952 (2)
B25: 84 | C25: 3295505412 (2) | D25: 3295505412 (2) | E25: 3295505412 (2) | F25: 3295505412 (2) | G25: 3295305032 (2) | H25: 3295305032 (2) | I25: 3295305032 (2) | J25: 3295305032 (2) | K25: 3295305032 (2) | L25: 3295505932 (2) | M25: 3295505932 (2) | N25: 3295505932 (2) | O25: 3295505932 (2) | P25: 3295505932 (2) | Q25: 3295305512 (2) | R25: 3295305512 (2) | S25: 3295305512 (2) | T25: 3295305512 (2) | U25: 3295305512 (2) | V25: 3295506462 (2) | W25: 3295506462 (2) | X25: 3295506462 (2) | Y25: 3295506462 (2) | Z25: 3295506462 (2) | AA25: 3295506462 (2) | AB25: 3295306002 (2) | AC25: 3295306002 (2) | AD25: 3295306002 (2) | AE25: 3295506982 (2) | AF25: 3295506982 (2) | AG25: 3295506982 (2) | AH25: 3295506982 (2) | AI25: 3295506982 (2) | AJ25: 3295507512 (2) | AK25: 3295507512 (2) | AL25: 3295306492 (2) | AM25: 3295306492 (2) | AN25: 3295306492 (2) | AO25: 3295507512 (2) | AP25: 3295507512 (2) | AQ25: 3295507512 (2) | AR25: 3295507512 (2) | AS25: 3295507512 (2) | AT25: 3295508042 (2) | AU25: 3295508042 (2) | AV25: 3295306972 (2) | AW25: 3295306972 (2) | AX25: 3295508042 (2) | AY25: 3295508042 (2) | AZ25: 3295508042 (2) | BA25: 3295508042 (2) | BB25: 3295508042 (2) | BC25: 3295508572 (2) | BD25: 3295508572 (2) | BE25: 3295508572 (2) | BF25: 3295307462 (2) | BG25: 3295307462 (2) | BH25: 3295508572 (2) | BI25: 3295508572 (2) | BJ25: 3295508572 (2) | BK25: 3295508572 (2) | BL25: 3295307462 (2) | BM25: 3295307462 (2) | BN25: 3295307462 (2) | BO25: 3295307462 (2) | BP25: 3295307952 (2) | BQ25: 3295307952 (2) | BR25: 3295307952 (2) | BS25: 3295307952 (2) | BT25: 3295307952 (2)
B26: 86 | C26: 3295505412 (2) | D26: 3295505412 (2) | E26: 3295505412 (2) | F26: 3295505412 (2) | G26: 3295505412 (2) | H26: 3295505412 (2) | I26: 3295305032 (2) | J26: 3295305032 (2) | K26: 3295305032 (2) | L26: 3295505932 (2) | M26: 3295505932 (2) | N26: 3295505932 (2) | O26: 3295505932 (2) | P26: 3295505932 (2) | Q26: 3295505932 (2) | R26: 3295505932 (2) | S26: 3295505932 (2) | T26: 3295305512 (2) | U26: 3295506462 (2) | V26: 3295506462 (2) | W26: 3295506462 (2) | X26: 3295506462 (2) | Y26: 3295506462 (2) | Z26: 3295506462 (2) | AA26: 3295506462 (2) | AB26: 3295506462 (2) | AC26: 3295506462 (2) | AD26: 3295306002 (2) | AE26: 3295506982 (2) | AF26: 3295506982 (2) | AG26: 3295506982 (2) | AH26: 3295506982 (2) | AI26: 3295506982 (2) | AJ26: 3295506982 (2) | AK26: 3295506982 (2) | AL26: 3295506982 (2) | AM26: 3295507512 (2) | AN26: 3295507512 (2) | AO26: 3295507512 (2) | AP26: 3295507512 (2) | AQ26: 3295507512 (2) | AR26: 3295507512 (2) | AS26: 3295507512 (2) | AT26: 3295507512 (2) | AU26: 3295507512 (2) | AV26: 3295508042 (2) | AW26: 3295508042 (2) | AX26: 3295508042 (2) | AY26: 3295508042 (2) | AZ26: 3295508042 (2) | BA26: 3295508042 (2) | BB26: 3295508042 (2) | BC26: 3295508042 (2) | BD26: 3295508042 (2) | BE26: 3295508042 (2) | BF26: 3295508572 (2) | BG26: 3295508572 (2) | BH26: 3295508572 (2) | BI26: 3295508572 (2) | BJ26: 3295508572 (2) | BK26: 3295508572 (2) | BL26: 3295508572 (2) | BM26: 3295508572 (2) | BN26: 3295508572 (2) | BO26: 3295307462 (2) | BP26: 3295307462 (2) | BQ26: 3295307462 (2) | BR26: 3295307462 (2) | BT26: 3295307952 (2)
B27: 88 | C27: 3295505412 (2) | D27: 3295505412 (2) | E27: 3295505412 (2) | F27: 3295505412 (2) | G27: 3295505412 (2) | H27: 3295505412 (2) | I27: 3295505412 (2) | J27: 3295505412 (2) | K27: 3295505412 (2) | L27: 3295505412 (2) | M27: 3295505932 (2) | N27: 3295505932 (2) | O27: 3295505932 (2) | P27: 3295505932 (2) | Q27: 3295505932 (2) | R27: 3295505932 (2) | S27: 3295505932 (2) | T27: 3295505932 (2) | U27: 3295505932 (2) | V27: 3295505932 (2) | W27: 3295506462 (2) | X27: 3295506462 (2) | Y27: 3295506462 (2) | Z27: 3295506462 (2) | AA27: 3295506462 (2) | AB27: 3295506462 (2) | AC27: 3295506462 (2) | AD27: 3295506462 (2) | AE27: 3295506462 (2) | AF27: 3295506982 (2) | AG27: 3295506982 (2) | AH27: 3295506982 (2) | AI27: 3295506982 (2) | AJ27: 3295506982 (2) | AK27: 3295506982 (2) | AL27: 3295506982 (2) | AM27: 3295506982 (2) | AN27: 3295506982 (2) | AO27: 3295506982 (2) | AP27: 3295507512 (2) | AQ27: 3295507512 (2) | AR27: 3295507512 (2) | AS27: 3295507512 (2) | AT27: 3295507512 (2) | AU27: 3295507512 (2) | AV27: 3295507512 (2) | AW27: 3295507512 (2) | AX27: 3295507512 (2) | AY27: 3295508042 (2) | AZ27: 3295508042 (2) | BA27: 3295508042 (2) | BB27: 3295508042 (2) | BC27: 3295508042 (2) | BD27: 3295508042 (2) | BE27: 3295508042 (2) | BF27: 3295508042 (2) | BG27: 3295508042 (2) | BH27: 3295508042 (2) | BI27: 3295508572 (2) | BJ27: 3295508572 (2) | BK27: 3295508572 (2) | BL27: 3295508572 (2) | BM27: 3295508572 (2) | BN27: 3295508572 (2) | BO27: 3295508572 (2) | BP27: 3295508572 (2) | BQ27: 3295508572 (2)
B28: 90 | C28: 3296007112 (2) | D28: 3295505412 (2) | E28: 3295505412 (2) | F28: 3295505412 (2) | G28: 3295505412 (2) | H28: 3295505412 (2) | I28: 3295505412 (2) | J28: 3295505412 (2) | K28: 3295505412 (2) | L28: 3295505412 (2) | M28: 3296008382 (2) | N28: 3295505932 (2) | O28: 3295505932 (2) | P28: 3295505932 (2) | Q28: 3295505932 (2) | R28: 3295505932 (2) | S28: 3295505932 (2) | T28: 3295505932 (2) | U28: 3295505932 (2) | V28: 3295505932 (2) | W28: 3296009022 (2) | X28: 3295506462 (2) | Y28: 3295506462 (2) | Z28: 3295506462 (2) | AA28: 3295506462 (2) | AB28: 3295506462 (2) | AC28: 3295506462 (2) | AD28: 3295506462 (2) | AE28: 3295506462 (2) | AF28: 3295506462 (2) | AG28: 3295506982 (2) | AH28: 3295506982 (2) | AI28: 3295506982 (2) | AJ28: 3295506982 (2) | AK28: 3295506982 (2) | AL28: 3295506982 (2) | AM28: 3295506982 (2) | AN28: 3295506982 (2) | AO28: 3295506982 (2) | AP28: 3296010942 (2) | AQ28: 3295507512 (2) | AR28: 3295507512 (2) | AS28: 3295507512 (2) | AT28: 3295507512 (2) | AU28: 3295507512 (2) | AV28: 3295507512 (2) | AW28: 3295507512 (2) | AX28: 3295507512 (2) | AY28: 3295507512 (2) | AZ28: 3396009112 (2) | BA28: 3295508042 (2) | BB28: 3295508042 (2) | BC28: 3295508042 (2) | BD28: 3295508042 (2) | BE28: 3295508042 (2) | BF28: 3295508042 (2) | BG28: 3295508042 (2) | BH28: 3295508042 (2) | BI28: 3396009612 (2) | BJ28: 3396009612 (2) | BK28: 3295508572 (2) | BL28: 3295508572 (2) | BM28: 3295508572 (2) | BN28: 3295508572 (2) | BO28: 3295508572 (2) | BP28: 3295508572 (2) | BQ28: 3295508572 (2) | BR28: 3295508572 (2) | BS28: 3295508572 (2) | BT28: 3295508572 (2)
B29: 92 | C29: 3296007112 (2) | D29: 3296007112 (2) | E29: 3296007112 (2) | F29: 3295505412 (2) | G29: 3295505412 (2) | H29: 3295505412 (2) | I29: 3295505412 (2) | J29: 3295505412 (2) | K29: 3295505412 (2) | L29: 3295505412 (2) | M29: 3296007752 (2) | N29: 3296008382 (2) | O29: 3296008382 (2) | P29: 3295505932 (2) | Q29: 3295505932 (2) | R29: 3295505932 (2) | S29: 3295505932 (2) | T29: 3295505932 (2) | U29: 3295505932 (2) | V29: 3295505932 (2) | W29: 3296009022 (2) | X29: 3296009022 (2) | Y29: 3296009022 (2) | Z29: 3295506462 (2) | AA29: 3295506462 (2) | AB29: 3295506462 (2) | AC29: 3295506462 (2) | AD29: 3295506462 (2) | AE29: 3295506462 (2) | AF29: 3296009662 (2) | AG29: 3296009662 (2) | AH29: 3296009662 (2) | AI29: 3296009662 (2) | AJ29: 3295506982 (2) | AK29: 3295506982 (2) | AL29: 3295506982 (2) | AM29: 3295506982 (2) | AN29: 3295506982 (2) | AO29: 3295506982 (2) | AP29: 3296010302 (2) | AQ29: 3296010302 (2) | AR29: 3296010302 (2) | AS29: 3296010942 (2) | AT29: 3295507512 (2) | AU29: 3295507512 (2) | AV29: 3295507512 (2) | AW29: 3295507512 (2) | AX29: 3295507512 (2) | AY29: 3296010942 (2) | AZ29: 3296010942 (2) | BA29: 3396009112 (2) | BB29: 3396009112 (2) | BC29: 3396009112 (2) | BD29: 3295508042 (2) | BE29: 3295508042 (2) | BF29: 3295508042 (2) | BG29: 3295508042 (2) | BH29: 3295508042 (2) | BI29: 3396009612 (2) | BJ29: 3396009612 (2) | BK29: 3396009612 (2) | BL29: 3396009612 (2) | BM29: 3396009612 (2) | BN29: 3295508572 (2) | BO29: 3295508572 (2) | BP29: 3295508572 (2) | BQ29: 3295508572 (2) | BR29: 3295508572 (2) | BS29: 3295508572 (2) | BT29: 3295508572 (2)
B30: 94 | C30: 3296007112 (2) | D30: 3296007112 (2) | E30: 3296007112 (2) | F30: 3296007112 (2) | G30: 3296007752 (2) | H30: 3295505412 (2) | I30: 3295505412 (2) | J30: 3295505412 (2) | K30: 3295505412 (2) | L30: 3295505412 (2) | M30: 3296007752 (2) | N30: 3296007752 (2) | O30: 3296008382 (2) | P30: 3296008382 (2) | Q30: 3296008382 (2) | R30: 3295505932 (2) | S30: 3295505932 (2) | T30: 3295505932 (2) | U30: 3295505932 (2) | V30: 3296008382 (2) | W30: 3296009022 (2) | X30: 3296009022 (2) | Y30: 3296009022 (2) | Z30: 3296009022 (2) | AA30: 3296009022 (2) | AB30: 3296009022 (2) | AC30: 3295506462 (2) | AD30: 3295506462 (2) | AE30: 3295506462 (2) | AF30: 3296009662 (2) | AG30: 3296009662 (2) | AH30: 3296009662 (2) | AI30: 3296009662 (2) | AJ30: 3296009662 (2) | AK30: 3296009662 (2) | AL30: 3296009662 (2) | AM30: 3295506982 (2) | AN30: 3295506982 (2) | AO30: 3296010302 (2) | AP30: 3296010302 (2) | AQ30: 3296010302 (2) | AR30: 3296010302 (2) | AS30: 3296010302 (2) | AT30: 3296010302 (2) | AU30: 3296010302 (2) | AV30: 3296010942 (2) | AW30: 3295507512 (2) | AX30: 3295507512 (2) | AY30: 3296010942 (2) | AZ30: 3296010942 (2) | BA30: 3296010942 (2) | BB30: 3296010942 (2) | BC30: 3296010942 (2) | BD30: 3396009112 (2) | BE30: 3396009112 (2) | BF30: 3396009112 (2) | BG30: 3295508042 (2) | BH30: 3295508042 (2) | BI30: 3396009112 (2) | BJ30: 3396009112 (2) | BK30: 3396009112 (2) | BL30: 3396009612 (2) | BM30: 3396009612 (2) | BN30: 3396009612 (2) | BO30: 3396009612 (2) | BP30: 3396009612 (2) | BQ30: 3396009612 (2) | BR30: 3396009612 (2) | BS30: 3396009612 (2) | BT30: 3295508572 (2)
B31: 96 | C31: 3296007112 (2) | D31: 3296007112 (2) | E31: 3296007112 (2) | F31: 3296007112 (2) | G31: 3296007112 (2) | H31: 3296007112 (2) | I31: 3296007752 (2) | J31: 3295505412 (2) | K31: 3295505412 (2) | L31: 3296007752 (2) | M31: 3296007752 (2) | N31: 3296007752 (2) | O31: 3296007752 (2) | P31: 3296007752 (2) | Q31: 3296008382 (2) | R31: 3296008382 (2) | S31: 3296008382 (2) | T31: 3295505932 (2) | U31: 3295505932 (2) | V31: 3296008382 (2) | W31: 3296008382 (2) | X31: 3296008382 (2) | Y31: 3296008382 (2) | Z31: 3296009022 (2) | AA31: 3296009022 (2) | AB31: 3296009022 (2) | AC31: 3296009022 (2) | AD31: 3296009022 (2) | AE31: 3295506462 (2) | AF31: 3296009022 (2) | AG31: 3296009022 (2) | AH31: 3296009662 (2) | AI31: 3296009662 (2) | AJ31: 3296009662 (2) | AK31: 3296009662 (2) | AL31: 3296009662 (2) | AM31: 3296009662 (2) | AN31: 3296009662 (2) | AO31: 3296009662 (2) | AP31: 3296010302 (2) | AQ31: 3296010302 (2) | AR31: 3296010302 (2) | AS31: 3296010302 (2) | AT31: 3296010302 (2) | AU31: 3296010302 (2) | AV31: 3296010302 (2) | AW31: 3296010302 (2) | AX31: 3296010942 (2) | AY31: 3296010942 (2) | AZ31: 3296010942 (2) | BA31: 3296010942 (2) | BB31: 3296010942 (2) | BC31: 3296010942 (2) | BD31: 3296010942 (2) | BE31: 3296010942 (2) | BF31: 3396009112 (2) | BG31: 3396009112 (2) | BH31: 3396009112 (2) | BI31: 3396009112 (2) | BJ31: 3396009112 (2) | BK31: 3396009112 (2) | BL31: 3396009112 (2) | BM31: 3396009112 (2) | BN31: 3396009112 (2) | BO31: 3396009612 (2) | BP31: 3396009612 (2) | BQ31: 3396009612 (2) | BR31: 3396009612 (2) | BS31: 3396009612 (2) | BT31: 3396009612 (2)
B32: 98 | C32: 3296007112 (2) | D32: 3296007112 (2) | E32: 3296007112 (2) | F32: 3296007112 (2) | G32: 3296007112 (2) | H32: 3296007112 (2) | I32: 3296007112 (2) | J32: 3296007112 (2) | K32: 3296007752 (2) | L32: 3296007752 (2) | M32: 3296007752 (2) | N32: 3296007752 (2) | O32: 3296007752 (2) | P32: 3296007752 (2) | Q32: 3296007752 (2) | R32: 3296007752 (2) | S32: 3296008382 (2) | T32: 3296008382 (2) | U32: 3296008382 (2) | V32: 3296008382 (2) | W32: 3296008382 (2) | X32: 3296008382 (2) | Y32: 3296008382 (2) | Z32: 3296008382 (2) | AA32: 3296008382 (2) | AB32: 3296009022 (2) | AC32: 3296009022 (2) | AD32: 3296009022 (2) | AE32: 3296009022 (2) | AF32: 3296009022 (2) | AG32: 3296009022 (2) | AH32: 3296009022 (2) | AI32: 3296009022 (2) | AJ32: 3296009662 (2) | AK32: 3296009662 (2) | AL32: 3296009662 (2) | AM32: 3296009662 (2) | AN32: 3296009662 (2) | AO32: 3296009662 (2) | AP32: 3296009662 (2) | AQ32: 3296009662 (2) | AR32: 3296010302 (2) | AS32: 3296010302 (2) | AT32: 3296010302 (2) | AU32: 3296010302 (2) | AV32: 3296010302 (2) | AW32: 3296010302 (2) | AX32: 3296010302 (2) | AY32: 3296010302 (2) | AZ32: 3296010302 (2) | BA32: 3296010942 (2) | BB32: 3296010942 (2) | BC32: 3296010942 (2) | BD32: 3296010942 (2) | BE32: 3296010942 (2) | BF32: 3296010942 (2) | BG32: 3296010942 (2) | BH32: 3296010942 (2) | BI32: 3396009112 (2) | BJ32: 3396009112 (2) | BK32: 3396009112 (2) | BL32: 3396009112 (2) | BM32: 3396009112 (2) | BN32: 3396009112 (2) | BO32: 3396009112 (2) | BP32: 3396009112 (2) | BQ32: 3396009112 (2) | BR32: 3396009612 (2) | BS32: 3396009612 (2) | BT32: 3396009612 (2)
B33: 100 | C33: 3296006482 (2) | D33: 3296007112 (2) | E33: 3296007112 (2) | F33: 3296007112 (2) | G33: 3296007112 (2) | H33: 3296007112 (2) | I33: 3296007112 (2) | J33: 3296007112 (2) | K33: 3296007112 (2) | L33: 3296007112 (2) | M33: 3296007752 (2) | N33: 3296007752 (2) | O33: 3296007752 (2) | P33: 3296007752 (2) | Q33: 3296007752 (2) | R33: 3296007752 (2) | S33: 3296007752 (2) | T33: 3296007752 (2) | U33: 3296008382 (2) | V33: 3296008382 (2) | W33: 3296008382 (2) | X33: 3296008382 (2) | Y33: 3296008382 (2) | Z33: 3296008382 (2) | AA33: 3296008382 (2) | AB33: 3296008382 (2) | AC33: 3296008382 (2) | AD33: 3296009022 (2) | AE33: 3296009022 (2) | AF33: 3296009022 (2) | AG33: 3296009022 (2) | AH33: 3296009022 (2) | AI33: 3296009022 (2) | AJ33: 3296009022 (2) | AK33: 3296009022 (2) | AL33: 3296009662 (2) | AM33: 3296009662 (2) | AN33: 3296009662 (2) | AO33: 3296009662 (2) | AP33: 3296009662 (2) | AQ33: 3296009662 (2) | AR33: 3296009662 (2) | AS33: 3296009662 (2) | AT33: 3296009662 (2) | AU33: 3296010302 (2) | AV33: 3296010302 (2) | AW33: 3296010302 (2) | AX33: 3296010302 (2) | AY33: 3296010302 (2) | AZ33: 3296010302 (2) | BA33: 3296010302 (2) | BB33: 3296010302 (2) | BC33: 3296010942 (2) | BD33: 3296010942 (2) | BE33: 3296010942 (2) | BF33: 3296010942 (2) | BG33: 3296010942 (2) | BH33: 3296010942 (2) | BI33: 3296010942 (2) | BJ33: 3296010942 (2) | BK33: 3296010942 (2) | BL33: 3396009112 (2) | BM33: 3396009112 (2) | BN33: 3396009112 (2) | BO33: 3396009112 (2) | BP33: 3396009112 (2) | BQ33: 3396009112 (2) | BR33: 3396009112 (2) | BS33: 3396009112 (2) | BT33: 3396009112 (2)
B34: 102 | C34: 3296006482 (2) | D34: 3296006482 (2) | E34: 3296006482 (2) | F34: 3296007112 (2) | G34: 3296007112 (2) | H34: 3296007112 (2) | I34: 3296007112 (2) | J34: 3296007112 (2) | K34: 3296007112 (2) | L34: 3296007112 (2) | M34: 3296007112 (2) | N34: 3296007752 (2) | O34: 3296007752 (2) | P34: 3296007752 (2) | Q34: 3296007752 (2) | R34: 3296007752 (2) | S34: 3296007752 (2) | T34: 3296007752 (2) | U34: 3296007752 (2) | V34: 3296007752 (2) | W34: 3296008382 (2) | X34: 3296008382 (2) | Y34: 3296008382 (2) | Z34: 3296008382 (2) | AA34: 3296008382 (2) | AB34: 3296008382 (2) | AC34: 3296008382 (2) | AD34: 3296008382 (2) | AE34: 3296008382 (2) | AF34: 3296009022 (2) | AG34: 3296009022 (2) | AH34: 3296009022 (2) | AI34: 3296009022 (2) | AJ34: 3296009022 (2) | AK34: 3296009022 (2) | AL34: 3296009022 (2) | AM34: 3296009022 (2) | AN34: 3296009022 (2) | AO34: 3296009662 (2) | AP34: 3296009662 (2) | AQ34: 3296009662 (2) | AR34: 3296009662 (2) | AS34: 3296009662 (2) | AT34: 3296009662 (2) | AU34: 3296009662 (2) | AV34: 3296009662 (2) | AW34: 3296010302 (2) | AX34: 3296010302 (2) | AY34: 3296010302 (2) | AZ34: 3296010302 (2) | BA34: 3296010302 (2) | BB34: 3296010302 (2) | BC34: 3296010302 (2) | BD34: 3296010302 (2) | BE34: 3296010302 (2) | BF34: 3296010942 (2) | BG34: 3296010942 (2) | BH34: 3296010942 (2) | BI34: 3296010942 (2) | BJ34: 3296010942 (2) | BK34: 3296010942 (2) | BL34: 3296010942 (2) | BM34: 3296010942 (2) | BN34: 3296010942 (2) | BO34: 3396009112 (2) | BP34: 3396009112 (2) | BQ34: 3396009112 (2) | BR34: 3396009112 (2) | BS34: 3396009112 (2) | BT34: 3396009112 (2)
B35: 104 | C35: 3296006482 (2) | D35: 3296006482 (2) | E35: 3296006482 (2) | F35: 3296006482 (2) | G35: 3296007112 (2) | H35: 3296007112 (2) | I35: 3296007112 (2) | J35: 3296007112 (2) | K35: 3296007112 (2) | L35: 3296007112 (2) | M35: 3296007112 (2) | N35: 3296007112 (2) | O35: 3296007112 (2) | P35: 3296007752 (2) | Q35: 3296007752 (2) | R35: 3296007752 (2) | S35: 3296007752 (2) | T35: 3296007752 (2) | U35: 3296007752 (2) | V35: 3296007752 (2) | W35: 3296007752 (2) | X35: 3296007752 (2) | Y35: 3296008382 (2) | Z35: 3296008382 (2) | AA35: 3296008382 (2) | AB35: 3296008382 (2) | AC35: 3296008382 (2) | AD35: 3296008382 (2) | AE35: 3296008382 (2) | AF35: 3296008382 (2) | AG35: 3296008382 (2) | AH35: 3296009022 (2) | AI35: 3296009022 (2) | AJ35: 3296009022 (2) | AK35: 3296009022 (2) | AL35: 3296009022 (2) | AM35: 3296009022 (2) | AN35: 3296009022 (2) | AO35: 3296009022 (2) | AP35: 3296009022 (2) | AQ35: 3296009662 (2) | AR35: 3296009662 (2) | AS35: 3296009662 (2) | AT35: 3296009662 (2) | AU35: 3296009662 (2) | AV35: 3296009662 (2) | AW35: 3296009662 (2) | AX35: 3296009662 (2) | AY35: 3296009662 (2) | AZ35: 3296010302 (2) | BA35: 3296010302 (2) | BB35: 3296010302 (2) | BC35: 3296010302 (2) | BD35: 3296010302 (2) | BE35: 3296010302 (2) | BF35: 3296010302 (2) | BG35: 3296010302 (2) | BH35: 3296010302 (2) | BI35: 3296010942 (2) | BJ35: 3296010942 (2) | BK35: 3296010942 (2) | BL35: 3296010942 (2) | BM35: 3296010942 (2) | BN35: 3296010942 (2) | BO35: 3296010942 (2) | BP35: 3296010942 (2) | BQ35: 3296010942 (2) | BR35: 3396009112 (2) | BS35: 3396009112 (2) | BT35: 3396009112 (2)
B36: 106 | C36: 3296006482 (2) | D36: 3296006482 (2) | E36: 3296006482 (2) | F36: 3296006482 (2) | G36: 3296006482 (2) | H36: 3296006482 (2) | I36: 3296007112 (2) | J36: 3296007112 (2) | K36: 3296007112 (2) | L36: 3296007112 (2) | M36: 3296007112 (2) | N36: 3296007112 (2) | O36: 3296007112 (2) | P36: 3296007112 (2) | Q36: 3296007112 (2) | R36: 3296007752 (2) | S36: 3296007752 (2) | T36: 3296007752 (2) | U36: 3296007752 (2) | V36: 3296007752 (2) | W36: 3296007752 (2) | X36: 3296007752 (2) | Y36: 3296007752 (2) | Z36: 3296007752 (2) | AA36: 3296008382 (2) | AB36: 3296008382 (2) | AC36: 3296008382 (2) | AD36: 3296008382 (2) | AE36: 3296008382 (2) | AF36: 3296008382 (2) | AG36: 3296008382 (2) | AH36: 3296008382 (2) | AI36: 3296008382 (2) | AJ36: 3296009022 (2) | AK36: 3296009022 (2) | AL36: 3296009022 (2) | AM36: 3296009022 (2) | AN36: 3296009022 (2) | AO36: 3296009022 (2) | AP36: 3296009022 (2) | AQ36: 3296009022 (2) | AR36: 3296009022 (2) | AS36: 3296009662 (2) | AT36: 3296009662 (2) | AU36: 3296009662 (2) | AV36: 3296009662 (2) | AW36: 3296009662 (2) | AX36: 3296009662 (2) | AY36: 3296009662 (2) | AZ36: 3296009662 (2) | BA36: 3296009662 (2) | BB36: 3296010302 (2) | BC36: 3296010302 (2) | BD36: 3296010302 (2) | BE36: 3296010302 (2) | BF36: 3296010302 (2) | BG36: 3296010302 (2) | BH36: 3296010302 (2) | BI36: 3296010302 (2) | BJ36: 3296010302 (2) | BK36: 3296010942 (2) | BL36: 3296010942 (2) | BM36: 3296010942 (2) | BN36: 3296010942 (2) | BO36: 3296010942 (2) | BP36: 3296010942 (2) | BQ36: 3296010942 (2) | BR36: 3296010942 (2) | BS36: 3296010942 (2) | BT36: 3396009112 (2)
B37: 108 | C37: 3296006482 (2) | D37: 3296006482 (2) | E37: 3296006482 (2) | F37: 3296006482 (2) | G37: 3296006482 (2) | H37: 3296006482 (2) | I37: 3296006482 (2) | J37: 3296006482 (2) | K37: 3296007112 (2) | L37: 3296007112 (2) | M37: 3296007112 (2) | N37: 3296007112 (2) | O37: 3296007112 (2) | P37: 3296007112 (2) | Q37: 3296007112 (2) | R37: 3296007112 (2) | S37: 3296007112 (2) | T37: 3296007752 (2) | U37: 3296007752 (2) | V37: 3296007752 (2) | W37: 3296007752 (2) | X37: 3296007752 (2) | Y37: 3296007752 (2) | Z37: 3296007752 (2) | AA37: 3296007752 (2) | AB37: 3296007752 (2) | AC37: 3296008382 (2) | AD37: 3296008382 (2) | AE37: 3296008382 (2) | AF37: 3296008382 (2) | AG37: 3296008382 (2) | AH37: 3296008382 (2) | AI37: 3296008382 (2) | AJ37: 3296008382 (2) | AK37: 3296008382 (2) | AL37: 3296009022 (2) | AM37: 3296009022 (2) | AN37: 3296009022 (2) | AO37: 3296009022 (2) | AP37: 3296009022 (2) | AQ37: 3296009022 (2) | AR37: 3296009022 (2) | AS37: 3296009022 (2) | AT37: 3296009022 (2) | AU37: 3296009662 (2) | AV37: 3296009662 (2) | AW37: 3296009662 (2) | AX37: 3296009662 (2) | AY37: 3296009662 (2) | AZ37: 3296009662 (2) | BA37: 3296009662 (2) | BB37: 3296009662 (2) | BC37: 3296009662 (2) | BD37: 3296009662 (2) | BE37: 3296010302 (2) | BF37: 3296010302 (2) | BG37: 3296010302 (2) | BH37: 3296010302 (2) | BI37: 3296010302 (2) | BJ37: 3296010302 (2) | BK37: 3296010302 (2) | BL37: 3296010302 (2) | BM37: 3296010302 (2) | BN37: 3296010942 (2) | BO37: 3296010942 (2) | BP37: 3296010942 (2) | BQ37: 3296010942 (2) | BR37: 3296010942 (2) | BS37: 3296010942 (2) | BT37: 3296010942 (2)
B38: 110 | C38: 3296006482 (2) | D38: 3296006482 (2) | E38: 3296006482 (2) | F38: 3296006482 (2) | G38: 3296006482 (2) | H38: 3296006482 (2) | I38: 3296006482 (2) | J38: 3296006482 (2) | K38: 3296006482 (2) | L38: 3296007112 (2) | M38: 3296007112 (2) | N38: 3296007112 (2) | O38: 3296007112 (2) | P38: 3296007112 (2) | Q38: 3296007112 (2) | R38: 3296007112 (2) | S38: 3296007112 (2) | T38: 3296007112 (2) | U38: 3296007112 (2) | V38: 3296007752 (2) | W38: 3296007752 (2) | X38: 3296007752 (2) | Y38: 3296007752 (2) | Z38: 3296007752 (2) | AA38: 3296007752 (2) | AB38: 3296007752 (2) | AC38: 3296007752 (2) | AD38: 3296007752 (2) | AE38: 3296008382 (2) | AF38: 3296008382 (2) | AG38: 3296008382 (2) | AH38: 3296008382 (2) | AI38: 3296008382 (2) | AJ38: 3296008382 (2) | AK38: 3296008382 (2) | AL38: 3296008382 (2) | AM38: 3296008382 (2) | AN38: 3296009022 (2) | AO38: 3296009022 (2) | AP38: 3296009022 (2) | AQ38: 3296009022 (2) | AR38: 3296009022 (2) | AS38: 3296009022 (2) | AT38: 3296009022 (2) | AU38: 3296009022 (2) | AV38: 3296009022 (2) | AW38: 3296009022 (2) | AX38: 3296009662 (2) | AY38: 3296009662 (2) | AZ38: 3296009662 (2) | BA38: 3296009662 (2) | BB38: 3296009662 (2) | BC38: 3296009662 (2) | BD38: 3296009662 (2) | BE38: 3296009662 (2) | BF38: 3296009662 (2) | BG38: 3296010302 (2) | BH38: 3296010302 (2) | BI38: 3296010302 (2) | BJ38: 3296010302 (2) | BK38: 3296010302 (2) | BL38: 3296010302 (2) | BM38: 3296010302 (2) | BN38: 3296010302 (2) | BO38: 3296010302 (2) | BP38: 3296010942 (2) | BQ38: 3296010942 (2) | BR38: 3296010942 (2) | BS38: 3296010942 (2) | BT38: 3296010942 (2)
B39: 112 | C39: 3296006482 (2) | D39: 3296006482 (2) | E39: 3296006482 (2) | F39: 3296006482 (2) | G39: 3296006482 (2) | H39: 3296006482 (2) | I39: 3296006482 (2) | J39: 3296006482 (2) | K39: 3296006482 (2) | L39: 3296006482 (2) | M39: 3296006482 (2) | N39: 3296007112 (2) | O39: 3296007112 (2) | P39: 3296007112 (2) | Q39: 3296007112 (2) | R39: 3296007112 (2) | S39: 3296007112 (2) | T39: 3296007112 (2) | U39: 3296007112 (2) | V39: 3296007112 (2) | W39: 3296007752 (2) | X39: 3296007752 (2) | Y39: 3296007752 (2) | Z39: 3296007752 (2) | AA39: 3296007752 (2) | AB39: 3296007752 (2) | AC39: 3296007752 (2) | AD39: 3296007752 (2) | AE39: 3296007752 (2) | AF39: 3296007752 (2) | AG39: 3296008382 (2) | AH39: 3296008382 (2) | AI39: 3296008382 (2) | AJ39: 3296008382 (2) | AK39: 3296008382 (2) | AL39: 3296008382 (2) | AM39: 3296008382 (2) | AN39: 3296008382 (2) | AO39: 3296008382 (2) | AP39: 3296009022 (2) | AQ39: 3296009022 (2) | AR39: 3296009022 (2) | AS39: 3296009022 (2) | AT39: 3296009022 (2) | AU39: 3296009022 (2) | AV39: 3296009022 (2) | AW39: 3296009022 (2) | AX39: 3296009022 (2) | AY39: 3296009022 (2) | AZ39: 3296009662 (2) | BA39: 3296009662 (2) | BB39: 3296009662 (2) | BC39: 3296009662 (2) | BD39: 3296009662 (2) | BE39: 3296009662 (2) | BF39: 3296009662 (2) | BG39: 3296009662 (2) | BH39: 3296009662 (2) | BI39: 3296009662 (2) | BJ39: 3296010302 (2) | BK39: 3296010302 (2) | BL39: 3296010302 (2) | BM39: 3296010302 (2) | BN39: 3296010302 (2) | BO39: 3296010302 (2) | BP39: 3296010302 (2) | BQ39: 3296010302 (2) | BR39: 3296010302 (2) | BS39: 3296010942 (2) | BT39: 3296010942 (2)
B40: 114 | C40: 3296508382 (2) | D40: 3296006482 (2) | E40: 3296006482 (2) | F40: 3296006482 (2) | G40: 3296006482 (2) | H40: 3296006482 (2) | I40: 3296006482 (2) | J40: 3296006482 (2) | K40: 3296006482 (2) | L40: 3296006482 (2) | M40: 3296006482 (2) | N40: 3296007112 (2) | O40: 3296007112 (2) | P40: 3296007112 (2) | Q40: 3296007112 (2) | R40: 3296007112 (2) | S40: 3296007112 (2) | T40: 3296007112 (2) | U40: 3296007112 (2) | V40: 3296007112 (2) | W40: 3296007112 (2) | X40: 3296007752 (2) | Y40: 3296007752 (2) | Z40: 3296007752 (2) | AA40: 3296007752 (2) | AB40: 3296007752 (2) | AC40: 3296007752 (2) | AD40: 3296007752 (2) | AE40: 3296007752 (2) | AF40: 3296007752 (2) | AG40: 3296008382 (2) | AH40: 3296008382 (2) | AI40: 3296008382 (2) | AJ40: 3296008382 (2) | AK40: 3296008382 (2) | AL40: 3296008382 (2) | AM40: 3296008382 (2) | AN40: 3296008382 (2) | AO40: 3296008382 (2) | AP40: 3296008382 (2) | AQ40: 3296009022 (2) | AR40: 3296009022 (2) | AS40: 3296009022 (2) | AT40: 3296009022 (2) | AU40: 3296009022 (2) | AV40: 3296009022 (2) | AW40: 3296009022 (2) | AX40: 3296009022 (2) | AY40: 3296009022 (2) | AZ40: 3296009022 (2) | BA40: 3296009662 (2) | BB40: 3296009662 (2) | BC40: 3296009662 (2) | BD40: 3296009662 (2) | BE40: 3296009662 (2) | BF40: 3296009662 (2) | BG40: 3296009662 (2) | BH40: 3296009662 (2) | BI40: 3296009662 (2) | BJ40: 3396511372 (2) | BK40: 3296010302 (2) | BL40: 3296010302 (2) | BM40: 3296010302 (2) | BN40: 3296010302 (2) | BO40: 3296010302 (2) | BP40: 3296010302 (2) | BQ40: 3296010302 (2) | BR40: 3296010302 (2) | BS40: 3296010302 (2) | BT40: 3296010302 (2)
B41: 116 | C41: 3296508382 (2) | D41: 3296508382 (2) | E41: 3296006482 (2) | F41: 3296006482 (2) | G41: 3296006482 (2) | H41: 3296006482 (2) | I41: 3296006482 (2) | J41: 3296006482 (2) | K41: 3296006482 (2) | L41: 3296006482 (2) | M41: 3296006482 (2) | N41: 3296509892 (2) | O41: 3296007112 (2) | P41: 3296007112 (2) | Q41: 3296007112 (2) | R41: 3296007112 (2) | S41: 3296007112 (2) | T41: 3296007112 (2) | U41: 3296007112 (2) | V41: 3296007112 (2) | W41: 3296007112 (2) | X41: 3296510642 (2) | Y41: 3296007752 (2) | Z41: 3296007752 (2) | AA41: 3296007752 (2) | AB41: 3296007752 (2) | AC41: 3296007752 (2) | AD41: 3296007752 (2) | AE41: 3296007752 (2) | AF41: 3296007752 (2) | AG41: 3296511402 (2) | AH41: 3296511402 (2) | AI41: 3296008382 (2) | AJ41: 3296008382 (2) | AK41: 3296008382 (2) | AL41: 3296008382 (2) | AM41: 3296008382 (2) | AN41: 3296008382 (2) | AO41: 3296008382 (2) | AP41: 3296008382 (2) | AQ41: 3296512162 (2) | AR41: 3296512162 (2) | AS41: 3296009022 (2) | AT41: 3296009022 (2) | AU41: 3296009022 (2) | AV41: 3296009022 (2) | AW41: 3296009022 (2) | AX41: 3296009022 (2) | AY41: 3296009022 (2) | AZ41: 3396510182 (2) | BA41: 3396510182 (2) | BB41: 3396510772 (2) | BC41: 3296009662 (2) | BD41: 3296009662 (2) | BE41: 3296009662 (2) | BF41: 3296009662 (2) | BG41: 3296009662 (2) | BH41: 3296009662 (2) | BI41: 3296009662 (2) | BJ41: 3396511372 (2) | BK41: 3396511372 (2) | BL41: 3396511372 (2) | BM41: 3296010302 (2) | BN41: 3296010302 (2) | BO41: 3296010302 (2) | BP41: 3296010302 (2) | BQ41: 3296010302 (2) | BR41: 3296010302 (2) | BS41: 3296010302 (2) | BT41: 3296010302 (2)
B42: 118 | C42: 3296508382 (2) | D42: 3296508382 (2) | E42: 3296508382 (2) | F42: 3296508382 (2) | G42: 3296006482 (2) | H42: 3296006482 (2) | I42: 3296006482 (2) | J42: 3296006482 (2) | K42: 3296006482 (2) | L42: 3296006482 (2) | M42: 3296006482 (2) | N42: 3296509132 (2) | O42: 3296509132 (2) | P42: 3296509892 (2) | Q42: 3296007112 (2) | R42: 3296007112 (2) | S42: 3296007112 (2) | T42: 3296007112 (2) | U42: 3296007112 (2) | V42: 3296007112 (2) | W42: 3296509892 (2) | X42: 3296510642 (2) | Y42: 3296510642 (2) | Z42: 3296510642 (2) | AA42: 3296007752 (2) | AB42: 3296007752 (2) | AC42: 3296007752 (2) | AD42: 3296007752 (2) | AE42: 3296007752 (2) | AF42: 3296007752 (2) | AG42: 3296511402 (2) | AH42: 3296511402 (2) | AI42: 3296511402 (2) | AJ42: 3296511402 (2) | AK42: 3296511402 (2) | AL42: 3296008382 (2) | AM42: 3296008382 (2) | AN42: 3296008382 (2) | AO42: 3296008382 (2) | AP42: 3296008382 (2) | AQ42: 3296512162 (2) | AR42: 3296512162 (2) | AS42: 3296512162 (2) | AT42: 3296512162 (2) | AU42: 3296512162 (2) | AV42: 3296009022 (2) | AW42: 3296009022 (2) | AX42: 3296009022 (2) | AY42: 3296009022 (2) | AZ42: 3396510182 (2) | BA42: 3396510182 (2) | BB42: 3396510182 (2) | BC42: 3396510182 (2) | BD42: 3396510182 (2) | BE42: 3396510772 (2) | BF42: 3296009662 (2) | BG42: 3296009662 (2) | BH42: 3296009662 (2) | BI42: 3296009662 (2) | BJ42: 3396510772 (2) | BK42: 3396510772 (2) | BL42: 3396510772 (2) | BM42: 3396511372 (2) | BN42: 3396511372 (2) | BO42: 3396511372 (2) | BP42: 3296010302 (2) | BQ42: 3296010302 (2) | BR42: 3296010302 (2) | BS42: 3396511372 (2) | BT42: 3396511372 (2)
B43: 120 | C43: 3296508382 (2) | D43: 3296508382 (2) | E43: 3296508382 (2) | F43: 3296508382 (2) | G43: 3296508382 (2) | H43: 3296006482 (2) | I43: 3296006482 (2) | J43: 3296006482 (2) | K43: 3296006482 (2) | L43: 3296006482 (2) | M43: 3296509132 (2) | N43: 3296509132 (2) | O43: 3296509132 (2) | P43: 3296509132 (2) | Q43: 3296509132 (2) | R43: 3296509892 (2) | S43: 3296007112 (2) | T43: 3296007112 (2) | U43: 3296007112 (2) | V43: 3296007112 (2) | W43: 3296509892 (2) | X43: 3296509892 (2) | Y43: 3296509892 (2) | Z43: 3296510642 (2) | AA43: 3296510642 (2) | AB43: 3296510642 (2) | AC43: 3296007752 (2) | AD43: 3296007752 (2) | AE43: 3296007752 (2) | AF43: 3296007752 (2) | AG43: 3296510642 (2) | AH43: 3296511402 (2) | AI43: 3296511402 (2) | AJ43: 3296511402 (2) | AK43: 3296511402 (2) | AL43: 3296511402 (2) | AM43: 3296511402 (2) | AN43: 3296008382 (2) | AO43: 3296008382 (2) | AP43: 3296512162 (2) | AQ43: 3296512162 (2) | AR43: 3296512162 (2) | AS43: 3296512162 (2) | AT43: 3296512162 (2) | AU43: 3296512162 (2) | AV43: 3296512162 (2) | AW43: 3296512162 (2) | AX43: 3296009022 (2) | AY43: 3296009022 (2) | AZ43: 3396510182 (2) | BA43: 3396510182 (2) | BB43: 3396510182 (2) | BC43: 3396510182 (2) | BD43: 3396510182 (2) | BE43: 3396510182 (2) | BF43: 3396510182 (2) | BG43: 3396510772 (2) | BH43: 3296009662 (2) | BI43: 3296009662 (2) | BJ43: 3396510772 (2) | BK43: 3396510772 (2) | BL43: 3396510772 (2) | BM43: 3396510772 (2) | BN43: 3396510772 (2) | BO43: 3396511372 (2) | BP43: 3396511372 (2) | BQ43: 3396511372 (2) | BR43: 3396511372 (2) | BS43: 3396511372 (2) | BT43: 3396511372 (2)
B44: 122 | C44: 3296508382 (2) | D44: 3296508382 (2) | E44: 3296508382 (2) | F44: 3296508382 (2) | G44: 3296508382 (2) | H44: 3296508382 (2) | I44: 3296508382 (2) | J44: 3296006482 (2) | K44: 3296006482 (2) | L44: 3296006482 (2) | M44: 3296509132 (2) | N44: 3296509132 (2) | O44: 3296509132 (2) | P44: 3296509132 (2) | Q44: 3296509132 (2) | R44: 3296509132 (2) | S44: 3296509892 (2) | T44: 3296509892 (2) | U44: 3296007112 (2) | V44: 3296007112 (2) | W44: 3296509892 (2) | X44: 3296509892 (2) | Y44: 3296509892 (2) | Z44: 3296509892 (2) | AA44: 3296509892 (2) | AB44: 3296510642 (2) | AC44: 3296510642 (2) | AD44: 3296510642 (2) | AE44: 3296007752 (2) | AF44: 3296007752 (2) | AG44: 3296510642 (2) | AH44: 3296510642 (2) | AI44: 3296510642 (2) | AJ44: 3296511402 (2) | AK44: 3296511402 (2) | AL44: 3296511402 (2) | AM44: 3296511402 (2) | AN44: 3296511402 (2) | AO44: 3296511402 (2) | AP44: 3296511402 (2) | AQ44: 3296511402 (2) | AR44: 3296512162 (2) | AS44: 3296512162 (2) | AT44: 3296512162 (2) | AU44: 3296512162 (2) | AV44: 3296512162 (2) | AW44: 3296512162 (2) | AX44: 3296512162 (2) | AY44: 3296512162 (2) | AZ44: 3296512162 (2) | BA44: 3396510182 (2) | BB44: 3396510182 (2) | BC44: 3396510182 (2) | BD44: 3396510182 (2) | BE44: 3396510182 (2) | BF44: 3396510182 (2) | BG44: 3396510182 (2) | BH44: 3396510182 (2) | BI44: 3396510772 (2) | BJ44: 3396510772 (2) | BK44: 3396510772 (2) | BL44: 3396510772 (2) | BM44: 3396510772 (2) | BN44: 3396510772 (2) | BO44: 3396510772 (2) | BP44: 3396510772 (2) | BQ44: 3396511372 (2) | BR44: 3396511372 (2) | BS44: 3396511372 (2) | BT44: 3396511372 (2)
B45: 124 | C45: 3296507632 (2) | D45: 3296508382 (2) | E45: 3296508382 (2) | F45: 3296508382 (2) | G45: 3296508382 (2) | H45: 3296508382 (2) | I45: 3296508382 (2) | J45: 3296508382 (2) | K45: 3296508382 (2) | L45: 3296006482 (2) | M45: 3296509132 (2) | N45: 3296509132 (2) | O45: 3296509132 (2) | P45: 3296509132 (2) | Q45: 3296509132 (2) | R45: 3296509132 (2) | S45: 3296509132 (2) | T45: 3296509132 (2) | U45: 3296509892 (2) | V45: 3296509892 (2) | W45: 3296509892 (2) | X45: 3296509892 (2) | Y45: 3296509892 (2) | Z45: 3296509892 (2) | AA45: 3296509892 (2) | AB45: 3296509892 (2) | AC45: 3296510642 (2) | AD45: 3296510642 (2) | AE45: 3296510642 (2) | AF45: 3296510642 (2) | AG45: 3296510642 (2) | AH45: 3296510642 (2) | AI45: 3296510642 (2) | AJ45: 3296510642 (2) | AK45: 3296510642 (2) | AL45: 3296511402 (2) | AM45: 3296511402 (2) | AN45: 3296511402 (2) | AO45: 3296511402 (2) | AP45: 3296511402 (2) | AQ45: 3296511402 (2) | AR45: 3296511402 (2) | AS45: 3296511402 (2) | AT45: 3296512162 (2) | AU45: 3296512162 (2) | AV45: 3296512162 (2) | AW45: 3296512162 (2) | AX45: 3296512162 (2) | AY45: 3296512162 (2) | AZ45: 3296512162 (2) | BA45: 3296512162 (2) | BB45: 3296512162 (2) | BC45: 3396510182 (2) | BD45: 3396510182 (2) | BE45: 3396510182 (2) | BF45: 3396510182 (2) | BG45: 3396510182 (2) | BH45: 3396510182 (2) | BI45: 3396510182 (2) | BJ45: 3396510182 (2) | BK45: 3396510772 (2) | BL45: 3396510772 (2) | BM45: 3396510772 (2) | BN45: 3396510772 (2) | BO45: 3396510772 (2) | BP45: 3396510772 (2) | BQ45: 3396510772 (2) | BR45: 3396510772 (2) | BS45: 3396510772 (2) | BT45: 3396511372 (2)
B46: 126 | C46: 3296507632 (2) | D46: 3296507632 (2) | E46: 3296508382 (2) | F46: 3296508382 (2) | G46: 3296508382 (2) | H46: 3296508382 (2) | I46: 3296508382 (2) | J46: 3296508382 (2) | K46: 3296508382 (2) | L46: 3296508382 (2) | M46: 3296508382 (2) | N46: 3296509132 (2) | O46: 3296509132 (2) | P46: 3296509132 (2) | Q46: 3296509132 (2) | R46: 3296509132 (2) | S46: 3296509132 (2) | T46: 3296509132 (2) | U46: 3296509132 (2) | V46: 3296509892 (2) | W46: 3296509892 (2) | X46: 3296509892 (2) | Y46: 3296509892 (2) | Z46: 3296509892 (2) | AA46: 3296509892 (2) | AB46: 3296509892 (2) | AC46: 3296509892 (2) | AD46: 3296509892 (2) | AE46: 3296510642 (2) | AF46: 3296510642 (2) | AG46: 3296510642 (2) | AH46: 3296510642 (2) | AI46: 3296510642 (2) | AJ46: 3296510642 (2) | AK46: 3296510642 (2) | AL46: 3296510642 (2) | AM46: 3296511402 (2) | AN46: 3296511402 (2) | AO46: 3296511402 (2) | AP46: 3296511402 (2) | AQ46: 3296511402 (2) | AR46: 3296511402 (2) | AS46: 3296511402 (2) | AT46: 3296511402 (2) | AU46: 3296511402 (2) | AV46: 3296512162 (2) | AW46: 3296512162 (2) | AX46: 3296512162 (2) | AY46: 3296512162 (2) | AZ46: 3296512162 (2) | BA46: 3296512162 (2) | BB46: 3296512162 (2) | BC46: 3296512162 (2) | BD46: 3296512162 (2) | BE46: 3396510182 (2) | BF46: 3396510182 (2) | BG46: 3396510182 (2) | BH46: 3396510182 (2) | BI46: 3396510182 (2) | BJ46: 3396510182 (2) | BK46: 3396510182 (2) | BL46: 3396510182 (2) | BM46: 3396510772 (2) | BN46: 3396510772 (2) | BO46: 3396510772 (2) | BP46: 3396510772 (2) | BQ46: 3396510772 (2) | BR46: 3396510772 (2) | BS46: 3396510772 (2) | BT46: 3396510772 (2)
B47: 128 | C47: 3296507632 (2) | D47: 3296507632 (2) | E47: 3296507632 (2) | F47: 3296508382 (2) | G47: 3296508382 (2) | H47: 3296508382 (2) | I47: 3296508382 (2) | J47: 3296508382 (2) | K47: 3296508382 (2) | L47: 3296508382 (2) | M47: 3296508382 (2) | N47: 3296508382 (2) | O47: 3296509132 (2) | P47: 3296509132 (2) | Q47: 3296509132 (2) | R47: 3296509132 (2) | S47: 3296509132 (2) | T47: 3296509132 (2) | U47: 3296509132 (2) | V47: 3296509132 (2) | W47: 3296509132 (2) | X47: 3296509892 (2) | Y47: 3296509892 (2) | Z47: 3296509892 (2) | AA47: 3296509892 (2) | AB47: 3296509892 (2) | AC47: 3296509892 (2) | AD47: 3296509892 (2) | AE47: 3296509892 (2) | AF47: 3296509892 (2) | AG47: 3296510642 (2) | AH47: 3296510642 (2) | AI47: 3296510642 (2) | AJ47: 3296510642 (2) | AK47: 3296510642 (2) | AL47: 3296510642 (2) | AM47: 3296510642 (2) | AN47: 3296510642 (2) | AO47: 3296511402 (2) | AP47: 3296511402 (2) | AQ47: 3296511402 (2) | AR47: 3296511402 (2) | AS47: 3296511402 (2) | AT47: 3296511402 (2) | AU47: 3296511402 (2) | AV47: 3296511402 (2) | AW47: 3296511402 (2) | AX47: 3296512162 (2) | AY47: 3296512162 (2) | AZ47: 3296512162 (2) | BA47: 3296512162 (2) | BB47: 3296512162 (2) | BC47: 3296512162 (2) | BD47: 3296512162 (2) | BE47: 3296512162 (2) | BF47: 3296512162 (2) | BG47: 3396510182 (2) | BH47: 3396510182 (2) | BI47: 3396510182 (2) | BJ47: 3396510182 (2) | BK47: 3396510182 (2) | BL47: 3396510182 (2) | BM47: 3396510182 (2) | BN47: 3396510182 (2) | BO47: 3396510182 (2) | BP47: 3396510772 (2) | BQ47: 3396510772 (2) | BR47: 3396510772 (2) | BS47: 3396510772 (2) | BT47: 3396510772 (2)
B48: 130 | C48: 3296507632 (2) | D48: 3296507632 (2) | E48: 3296507632 (2) | F48: 3296507632 (2) | G48: 3296507632 (2) | H48: 3296508382 (2) | I48: 3296508382 (2) | J48: 3296508382 (2) | K48: 3296508382 (2) | L48: 3296508382 (2) | M48: 3296508382 (2) | N48: 3296508382 (2) | O48: 3296508382 (2) | P48: 3296509132 (2) | Q48: 3296509132 (2) | R48: 3296509132 (2) | S48: 3296509132 (2) | T48: 3296509132 (2) | U48: 3296509132 (2) | V48: 3296509132 (2) | W48: 3296509132 (2) | X48: 3296509132 (2) | Y48: 3296509892 (2) | Z48: 3296509892 (2) | AA48: 3296509892 (2) | AB48: 3296509892 (2) | AC48: 3296509892 (2) | AD48: 3296509892 (2) | AE48: 3296509892 (2) | AF48: 3296509892 (2) | AG48: 3296509892 (2) | AH48: 3296510642 (2) | AI48: 3296510642 (2) | AJ48: 3296510642 (2) | AK48: 3296510642 (2) | AL48: 3296510642 (2) | AM48: 3296510642 (2) | AN48: 3296510642 (2) | AO48: 3296510642 (2) | AP48: 3296510642 (2) | AQ48: 3296511402 (2) | AR48: 3296511402 (2) | AS48: 3296511402 (2) | AT48: 3296511402 (2) | AU48: 3296511402 (2) | AV48: 3296511402 (2) | AW48: 3296511402 (2) | AX48: 3296511402 (2) | AY48: 3296511402 (2) | AZ48: 3296512162 (2) | BA48: 3296512162 (2) | BB48: 3296512162 (2) | BC48: 3296512162 (2) | BD48: 3296512162 (2) | BE48: 3296512162 (2) | BF48: 3296512162 (2) | BG48: 3296512162 (2) | BH48: 3296512162 (2) | BI48: 3396510182 (2) | BJ48: 3396510182 (2) | BK48: 3396510182 (2) | BL48: 3396510182 (2) | BM48: 3396510182 (2) | BN48: 3396510182 (2) | BO48: 3396510182 (2) | BP48: 3396510182 (2) | BQ48: 3396510182 (2) | BR48: 3396510772 (2) | BS48: 3396510772 (2) | BT48: 3396510772 (2)
B49: 132 | C49: 3296507632 (2) | D49: 3296507632 (2) | E49: 3296507632 (2) | F49: 3296507632 (2) | G49: 3296507632 (2) | H49: 3296507632 (2) | I49: 3296508382 (2) | J49: 3296508382 (2) | K49: 3296508382 (2) | L49: 3296508382 (2) | M49: 3296508382 (2) | N49: 3296508382 (2) | O49: 3296508382 (2) | P49: 3296508382 (2) | Q49: 3296508382 (2) | R49: 3296509132 (2) | S49: 3296509132 (2) | T49: 3296509132 (2) | U49: 3296509132 (2) | V49: 3296509132 (2) | W49: 3296509132 (2) | X49: 3296509132 (2) | Y49: 3296509132 (2) | Z49: 3296509132 (2) | AA49: 3296509892 (2) | AB49: 3296509892 (2) | AC49: 3296509892 (2) | AD49: 3296509892 (2) | AE49: 3296509892 (2) | AF49: 3296509892 (2) | AG49: 3296509892 (2) | AH49: 3296509892 (2) | AI49: 3296509892 (2) | AJ49: 3296510642 (2) | AK49: 3296510642 (2) | AL49: 3296510642 (2) | AM49: 3296510642 (2) | AN49: 3296510642 (2) | AO49: 3296510642 (2) | AP49: 3296510642 (2) | AQ49: 3296510642 (2) | AR49: 3296510642 (2) | AS49: 3296511402 (2) | AT49: 3296511402 (2) | AU49: 3296511402 (2) | AV49: 3296511402 (2) | AW49: 3296511402 (2) | AX49: 3296511402 (2) | AY49: 3296511402 (2) | AZ49: 3296511402 (2) | BA49: 3296511402 (2) | BB49: 3296512162 (2) | BC49: 3296512162 (2) | BD49: 3296512162 (2) | BE49: 3296512162 (2) | BF49: 3296512162 (2) | BG49: 3296512162 (2) | BH49: 3296512162 (2) | BI49: 3296512162 (2) | BJ49: 3296512162 (2) | BK49: 3396510182 (2) | BL49: 3396510182 (2) | BM49: 3396510182 (2) | BN49: 3396510182 (2) | BO49: 3396510182 (2) | BP49: 3396510182 (2) | BQ49: 3396510182 (2) | BR49: 3396510182 (2) | BS49: 3396510182 (2) | BT49: 3396510772 (2)
B50: 134 | C50: 3296507632 (2) | D50: 3296507632 (2) | E50: 3296507632 (2) | F50: 3296507632 (2) | G50: 3296507632 (2) | H50: 3296507632 (2) | I50: 3296507632 (2) | J50: 3296508382 (2) | K50: 3296508382 (2) | L50: 3296508382 (2) | M50: 3296508382 (2) | N50: 3296508382 (2) | O50: 3296508382 (2) | P50: 3296508382 (2) | Q50: 3296508382 (2) | R50: 3296508382 (2) | S50: 3296509132 (2) | T50: 3296509132 (2) | U50: 3296509132 (2) | V50: 3296509132 (2) | W50: 3296509132 (2) | X50: 3296509132 (2) | Y50: 3296509132 (2) | Z50: 3296509132 (2) | AA50: 3296509132 (2) | AB50: 3296509892 (2) | AC50: 3296509892 (2) | AD50: 3296509892 (2) | AE50: 3296509892 (2) | AF50: 3296509892 (2) | AG50: 3296509892 (2) | AH50: 3296509892 (2) | AI50: 3296509892 (2) | AJ50: 3296509892 (2) | AK50: 3296509892 (2) | AL50: 3296510642 (2) | AM50: 3296510642 (2) | AN50: 3296510642 (2) | AO50: 3296510642 (2) | AP50: 3296510642 (2) | AQ50: 3296510642 (2) | AR50: 3296510642 (2) | AS50: 3296510642 (2) | AT50: 3296510642 (2) | AU50: 3296511402 (2) | AV50: 3296511402 (2) | AW50: 3296511402 (2) | AX50: 3296511402 (2) | AY50: 3296511402 (2) | AZ50: 3296511402 (2) | BA50: 3296511402 (2) | BB50: 3296511402 (2) | BC50: 3296511402 (2) | BD50: 3296512162 (2) | BE50: 3296512162 (2) | BF50: 3296512162 (2) | BG50: 3296512162 (2) | BH50: 3296512162 (2) | BI50: 3296512162 (2) | BJ50: 3296512162 (2) | BK50: 3296512162 (2) | BL50: 3296512162 (2) | BM50: 3396510182 (2) | BN50: 3396510182 (2) | BO50: 3396510182 (2) | BP50: 3396510182 (2) | BQ50: 3396510182 (2) | BR50: 3396510182 (2) | BS50: 3396510182 (2) | BT50: 3396510182 (2)
B51: 136 | C51: 3296507632 (2) | D51: 3296507632 (2) | E51: 3296507632 (2) | F51: 3296507632 (2) | G51: 3296507632 (2) | H51: 3296507632 (2) | I51: 3296507632 (2) | J51: 3296507632 (2) | K51: 3296508382 (2) | L51: 3296508382 (2) | M51: 3296508382 (2) | N51: 3296508382 (2) | O51: 3296508382 (2) | P51: 3296508382 (2) | Q51: 3296508382 (2) | R51: 3296508382 (2) | S51: 3296508382 (2) | T51: 3296508382 (2) | U51: 3296509132 (2) | V51: 3296509132 (2) | W51: 3296509132 (2) | X51: 3296509132 (2) | Y51: 3296509132 (2) | Z51: 3296509132 (2) | AA51: 3296509132 (2) | AB51: 3296509132 (2) | AC51: 3296509132 (2) | AD51: 3296509892 (2) | AE51: 3296509892 (2) | AF51: 3296509892 (2) | AG51: 3296509892 (2) | AH51: 3296509892 (2) | AI51: 3296509892 (2) | AJ51: 3296509892 (2) | AK51: 3296509892 (2) | AL51: 3296509892 (2) | AM51: 3296510642 (2) | AN51: 3296510642 (2) | AO51: 3296510642 (2) | AP51: 3296510642 (2) | AQ51: 3296510642 (2) | AR51: 3296510642 (2) | AS51: 3296510642 (2) | AT51: 3296510642 (2) | AU51: 3296510642 (2) | AV51: 3296510642 (2) | AW51: 3296511402 (2) | AX51: 3296511402 (2) | AY51: 3296511402 (2) | AZ51: 3296511402 (2) | BA51: 3296511402 (2) | BB51: 3296511402 (2) | BC51: 3296511402 (2) | BD51: 3296511402 (2) | BE51: 3296511402 (2) | BF51: 3296512162 (2) | BG51: 3296512162 (2) | BH51: 3296512162 (2) | BI51: 3296512162 (2) | BJ51: 3296512162 (2) | BK51: 3296512162 (2) | BL51: 3296512162 (2) | BM51: 3296512162 (2) | BN51: 3296512162 (2) | BO51: 3396510182 (2) | BP51: 3396510182 (2) | BQ51: 3396510182 (2) | BR51: 3396510182 (2) | BS51: 3396510182 (2) | BT51: 3396510182 (2)
B52: 138 | C52: 3296507632 (2) | D52: 3296507632 (2) | E52: 3296507632 (2) | F52: 3296507632 (2) | G52: 3296507632 (2) | H52: 3296507632 (2) | I52: 3296507632 (2) | J52: 3296507632 (2) | K52: 3296507632 (2) | L52: 3296507632 (2) | M52: 3296508382 (2) | N52: 3296508382 (2) | O52: 3296508382 (2) | P52: 3296508382 (2) | Q52: 3296508382 (2) | R52: 3296508382 (2) | S52: 3296508382 (2) | T52: 3296508382 (2) | U52: 3296508382 (2) | V52: 3296509132 (2) | W52: 3296509132 (2) | X52: 3296509132 (2) | Y52: 3296509132 (2) | Z52: 3296509132 (2) | AA52: 3296509132 (2) | AB52: 3296509132 (2) | AC52: 3296509132 (2) | AD52: 3296509132 (2) | AE52: 3296509132 (2) | AF52: 3296509892 (2) | AG52: 3296509892 (2) | AH52: 3296509892 (2) | AI52: 3296509892 (2) | AJ52: 3296509892 (2) | AK52: 3296509892 (2) | AL52: 3296509892 (2) | AM52: 3296509892 (2) | AN52: 3296509892 (2) | AO52: 3296510642 (2) | AP52: 3296510642 (2) | AQ52: 3296510642 (2) | AR52: 3296510642 (2) | AS52: 3296510642 (2) | AT52: 3296510642 (2) | AU52: 3296510642 (2) | AV52: 3296510642 (2) | AW52: 3296510642 (2) | AX52: 3296511402 (2) | AY52: 3296511402 (2) | AZ52: 3296511402 (2) | BA52: 3296511402 (2) | BB52: 3296511402 (2) | BC52: 3296511402 (2) | BD52: 3296511402 (2) | BE52: 3296511402 (2) | BF52: 3296511402 (2) | BG52: 3296511402 (2) | BH52: 3296512162 (2) | BI52: 3296512162 (2) | BJ52: 3296512162 (2) | BK52: 3296512162 (2) | BL52: 3296512162 (2) | BM52: 3296512162 (2) | BN52: 3296512162 (2) | BO52: 3296512162 (2) | BP52: 3296512162 (2) | BQ52: 3396510182 (2) | BR52: 3396510182 (2) | BS52: 3396510182 (2) | BT52: 3396510182 (2)
B53: 140 | C53: 3296507632 (2) | D53: 3296507632 (2) | E53: 3296507632 (2) | F53: 3296507632 (2) | G53: 3296507632 (2) | H53: 3296507632 (2) | I53: 3296507632 (2) | J53: 3296507632 (2) | K53: 3296507632 (2) | L53: 3296507632 (2) | M53: 3296507632 (2) | N53: 3296508382 (2) | O53: 3296508382 (2) | P53: 3296508382 (2) | Q53: 3296508382 (2) | R53: 3296508382 (2) | S53: 3296508382 (2) | T53: 3296508382 (2) | U53: 3296508382 (2) | V53: 3296508382 (2) | W53: 3296508382 (2) | X53: 3296509132 (2) | Y53: 3296509132 (2) | Z53: 3296509132 (2) | AA53: 3296509132 (2) | AB53: 3296509132 (2) | AC53: 3296509132 (2) | AD53: 3296509132 (2) | AE53: 3296509132 (2) | AF53: 3296509132 (2) | AG53: 3296509892 (2) | AH53: 3296509892 (2) | AI53: 3296509892 (2) | AJ53: 3296509892 (2) | AK53: 3296509892 (2) | AL53: 3296509892 (2) | AM53: 3296509892 (2) | AN53: 3296509892 (2) | AO53: 3296509892 (2) | AP53: 3296509892 (2) | AQ53: 3296510642 (2) | AR53: 3296510642 (2) | AS53: 3296510642 (2) | AT53: 3296510642 (2) | AU53: 3296510642 (2) | AV53: 3296510642 (2) | AW53: 3296510642 (2) | AX53: 3296510642 (2) | AY53: 3296510642 (2) | AZ53: 3296511402 (2) | BA53: 3296511402 (2) | BB53: 3296511402 (2) | BC53: 3296511402 (2) | BD53: 3296511402 (2) | BE53: 3296511402 (2) | BF53: 3296511402 (2) | BG53: 3296511402 (2) | BH53: 3296511402 (2) | BI53: 3296511402 (2) | BJ53: 3296512162 (2) | BK53: 3296512162 (2) | BL53: 3296512162 (2) | BM53: 3296512162 (2) | BN53: 3296512162 (2) | BO53: 3296512162 (2) | BP53: 3296512162 (2) | BQ53: 3296512162 (2) | BR53: 3296512162 (2) | BS53: 3396510182 (2) | BT53: 3396510182 (2)
B54: 142 | C54: 3296507632 (2) | D54: 3296507632 (2) | E54: 3296507632 (2) | F54: 3296507632 (2) | G54: 3296507632 (2) | H54: 3296507632 (2) | I54: 3296507632 (2) | J54: 3296507632 (2) | K54: 3296507632 (2) | L54: 3296507632 (2) | M54: 3296507632 (2) | N54: 3296507632 (2) | O54: 3296508382 (2) | P54: 3296508382 (2) | Q54: 3296508382 (2) | R54: 3296508382 (2) | S54: 3296508382 (2) | T54: 3296508382 (2) | U54: 3296508382 (2) | V54: 3296508382 (2) | W54: 3296508382 (2) | X54: 3296508382 (2) | Y54: 3296509132 (2) | Z54: 3296509132 (2) | AA54: 3296509132 (2) | AB54: 3296509132 (2) | AC54: 3296509132 (2) | AD54: 3296509132 (2) | AE54: 3296509132 (2) | AF54: 3296509132 (2) | AG54: 3296509132 (2) | AH54: 3296509892 (2) | AI54: 3296509892 (2) | AJ54: 3296509892 (2) | AK54: 3296509892 (2) | AL54: 3296509892 (2) | AM54: 3296509892 (2) | AN54: 3296509892 (2) | AO54: 3296509892 (2) | AP54: 3296509892 (2) | AQ54: 3296509892 (2) | AR54: 3296510642 (2) | AS54: 3296510642 (2) | AT54: 3296510642 (2) | AU54: 3296510642 (2) | AV54: 3296510642 (2) | AW54: 3296510642 (2) | AX54: 3296510642 (2) | AY54: 3296510642 (2) | AZ54: 3296510642 (2) | BA54: 3296510642 (2) | BB54: 3296511402 (2) | BC54: 3296511402 (2) | BD54: 3296511402 (2) | BE54: 3296511402 (2) | BF54: 3296511402 (2) | BG54: 3296511402 (2) | BH54: 3296511402 (2) | BI54: 3296511402 (2) | BJ54: 3296511402 (2) | BK54: 3296512162 (2) | BL54: 3296512162 (2) | BM54: 3296512162 (2) | BN54: 3296512162 (2) | BO54: 3296512162 (2) | BP54: 3296512162 (2) | BQ54: 3296512162 (2) | BR54: 3296512162 (2) | BS54: 3296512162 (2) | BT54: 3296512162 (2)
B55: 144 | C55: 3397008372 (2) | D55: 3397008372 (2) | E55: 3296507632 (2) | F55: 3296507632 (2) | G55: 3296507632 (2) | H55: 3296507632 (2) | I55: 3296507632 (2) | J55: 3296507632 (2) | K55: 3296507632 (2) | L55: 3296507632 (2) | M55: 3296507632 (2) | N55: 3296507632 (2) | O55: 3296508382 (2) | P55: 3296508382 (2) | Q55: 3296508382 (2) | R55: 3296508382 (2) | S55: 3296508382 (2) | T55: 3296508382 (2) | U55: 3296508382 (2) | V55: 3296508382 (2) | W55: 3296508382 (2) | X55: 3397009752 (2) | Y55: 3296509132 (2) | Z55: 3296509132 (2) | AA55: 3296509132 (2) | AB55: 3296509132 (2) | AC55: 3296509132 (2) | AD55: 3296509132 (2) | AE55: 3296509132 (2) | AF55: 3296509132 (2) | AG55: 3296509132 (2) | AH55: 3397010442 (2) | AI55: 3296509892 (2) | AJ55: 3296509892 (2) | AK55: 3296509892 (2) | AL55: 3296509892 (2) | AM55: 3296509892 (2) | AN55: 3296509892 (2) | AO55: 3296509892 (2) | AP55: 3296509892 (2) | AQ55: 3296509892 (2) | AR55: 3397011132 (2) | AS55: 3296510642 (2) | AT55: 3296510642 (2) | AU55: 3296510642 (2) | AV55: 3296510642 (2) | AW55: 3296510642 (2) | AX55: 3296510642 (2) | AY55: 3296510642 (2) | AZ55: 3296510642 (2) | BA55: 3397011832 (2) | BB55: 3397011832 (2) | BC55: 3296511402 (2) | BD55: 3296511402 (2) | BE55: 3296511402 (2) | BF55: 3296511402 (2) | BG55: 3296511402 (2) | BH55: 3296511402 (2) | BI55: 3296511402 (2) | BJ55: 3296511402 (2) | BK55: 3296511402 (2) | BL55: 3296511402 (2) | BM55: 3296512162 (2) | BN55: 3296512162 (2) | BO55: 3296512162 (2) | BP55: 3296512162 (2) | BQ55: 3296512162 (2) | BR55: 3296512162 (2) | BS55: 3296512162 (2) | BT55: 3296512162 (2)
B56: 146 | C56: 3295305032 (4) | D56: 3295305032 (4) | E56: 3397008372 (2) | F56: 3296507632 (2) | G56: 3296507632 (2) | H56: 3296507632 (2) | I56: 3296507632 (2) | J56: 3296507632 (2) | K56: 3296507632 (2) | L56: 3296507632 (2) | M56: 3296507632 (2) | N56: 3296507632 (2) | O56: 3397008372 (2) | P56: 3296508382 (2) | Q56: 3296508382 (2) | R56: 3296508382 (2) | S56: 3296508382 (2) | T56: 3296508382 (2) | U56: 3296508382 (2) | V56: 3296508382 (2) | W56: 3296508382 (2) | X56: 3397009752 (2) | Y56: 3397009752 (2) | Z56: 3296509132 (2) | AA56: 3296509132 (2) | AB56: 3296509132 (2) | AC56: 3296509132 (2) | AD56: 3296509132 (2) | AE56: 3296509132 (2) | AF56: 3296509132 (2) | AG56: 3296509132 (2) | AH56: 3397010442 (2) | AI56: 3397010442 (2) | AJ56: 3397010442 (2) | AK56: 3296509892 (2) | AL56: 3296509892 (2) | AM56: 3296509892 (2) | AN56: 3296509892 (2) | AO56: 3296509892 (2) | AP56: 3296509892 (2) | AQ56: 3296509892 (2) | AR56: 3397011132 (2) | AS56: 3397011132 (2) | AT56: 3397011132 (2) | AU56: 3296510642 (2) | AV56: 3296510642 (2) | AW56: 3296510642 (2) | AX56: 3296510642 (2) | AY56: 3296510642 (2) | AZ56: 3296510642 (2) | BA56: 3397011832 (2) | BB56: 3397011832 (2) | BC56: 3397011832 (2) | BD56: 3397011832 (2) | BE56: 3296511402 (2) | BF56: 3296511402 (2) | BG56: 3296511402 (2) | BH56: 3296511402 (2) | BI56: 3296511402 (2) | BJ56: 3296511402 (2) | BK56: 3397012522 (2) | BL56: 3397012522 (2) | BM56: 3296511402 (2) | BN56: 3296511402 (2) | BO56: 3296512162 (2) | BP56: 3296512162 (2) | BQ56: 3296512162 (2) | BR56: 3296512162 (2) | BS56: 3296512162 (2) | BT56: 3296512162 (2)
B57: 148 | C57: 3295305032 (4) | D57: 3295305032 (4) | E57: 3295305032 (4) | F57: 3397008372 (2) | G57: 3296507632 (2) | H57: 3296507632 (2) | I57: 3296507632 (2) | J57: 3296507632 (2) | K57: 3296507632 (2) | L57: 3296507632 (2) | M57: 3296507632 (2) | N57: 3397008372 (2) | O57: 3397008372 (2) | P57: 3397008372 (2) | Q57: 3397008372 (2) | R57: 3296508382 (2) | S57: 3296508382 (2) | T57: 3296508382 (2) | U57: 3296508382 (2) | V57: 3296508382 (2) | W57: 3296508382 (2) | X57: 3397009062 (2) | Y57: 3397009062 (2) | Z57: 3397009752 (2) | AA57: 3397009752 (2) | AB57: 3296509132 (2) | AC57: 3296509132 (2) | AD57: 3296509132 (2) | AE57: 3296509132 (2) | AF57: 3296509132 (2) | AG57: 3296509132 (2) | AH57: 3397010442 (2) | AI57: 3397010442 (2) | AJ57: 3397010442 (2) | AK57: 3397010442 (2) | AL57: 3296509892 (2) | AM57: 3296509892 (2) | AN57: 3296509892 (2) | AO57: 3296509892 (2) | AP57: 3296509892 (2) | AQ57: 3397011132 (2) | AR57: 3397011132 (2) | AS57: 3397011132 (2) | AT57: 3397011132 (2) | AU57: 3397011132 (2) | AV57: 3296510642 (2) | AW57: 3296510642 (2) | AX57: 3296510642 (2) | AY57: 3296510642 (2) | AZ57: 3296510642 (2) | BA57: 3397011832 (2) | BB57: 3397011832 (2) | BC57: 3397011832 (2) | BD57: 3397011832 (2) | BE57: 3397011832 (2) | BF57: 3397011832 (2) | BG57: 3296511402 (2) | BH57: 3296511402 (2) | BI57: 3296511402 (2) | BJ57: 3296511402 (2) | BK57: 3397012522 (2) | BL57: 3397012522 (2) | BM57: 3397012522 (2) | BN57: 3397012522 (2) | BO57: 3296511402 (2) | BP57: 3296511402 (2) | BQ57: 3296512162 (2) | BR57: 3296512162 (2) | BS57: 3296512162 (2) | BT57: 3296512162 (2)
B58: 150 | C58: 3295305032 (4) | D58: 3295305032 (4) | E58: 3295305032 (4) | F58: 3295305032 (4) | G58: 3397008372 (2) | H58: 3397008372 (2) | I58: 3296507632 (2) | J58: 3296507632 (2) | K58: 3296507632 (2) | L58: 3296507632 (2) | M58: 3296507632 (2) | N58: 3397008372 (2) | O58: 3397008372 (2) | P58: 3397008372 (2) | Q58: 3397008372 (2) | R58: 3397008372 (2) | S58: 3296508382 (2) | T58: 3296508382 (2) | U58: 3296508382 (2) | V58: 3296508382 (2) | W58: 3296508382 (2) | X58: 3397009062 (2) | Y58: 3397009062 (2) | Z58: 3397009062 (2) | AA58: 3397009752 (2) | AB58: 3397009752 (2) | AC58: 3397009752 (2) | AD58: 3296509132 (2) | AE58: 3296509132 (2) | AF58: 3296509132 (2) | AG58: 3397009752 (2) | AH58: 3397009752 (2) | AI58: 3397009752 (2) | AJ58: 3397010442 (2) | AK58: 3397010442 (2) | AL58: 3397010442 (2) | AM58: 3397010442 (2) | AN58: 3296509892 (2) | AO58: 3296509892 (2) | AP58: 3296509892 (2) | AQ58: 3397010442 (2) | AR58: 3397011132 (2) | AS58: 3397011132 (2) | AT58: 3397011132 (2) | AU58: 3397011132 (2) | AV58: 3397011132 (2) | AW58: 3397011132 (2) | AX58: 3296510642 (2) | AY58: 3296510642 (2) | AZ58: 3296510642 (2) | BA58: 3397011832 (2) | BB58: 3397011832 (2) | BC58: 3397011832 (2) | BD58: 3397011832 (2) | BE58: 3397011832 (2) | BF58: 3397011832 (2) | BG58: 3397011832 (2) | BH58: 3397011832 (2) | BI58: 3296511402 (2) | BJ58: 3296511402 (2) | BK58: 3397012522 (2) | BL58: 3397012522 (2) | BM58: 3397012522 (2) | BN58: 3397012522 (2) | BO58: 3397012522 (2) | BP58: 3397012522 (2) | BQ58: 3296511402 (2) | BR58: 3296511402 (2) | BS58: 3296512162 (2) | BT58: 3296512162 (2)
B59: 152 | C59: 3295305032 (4) | D59: 3295305032 (4) | E59: 3295305032 (4) | F59: 3295305032 (4) | G59: 3295305032 (4) | H59: 3397008372 (2) | I59: 3397008372 (2) | J59: 3296507632 (2) | K59: 3296507632 (2) | L59: 3296507632 (2) | M59: 3296507632 (2) | N59: 3397008372 (2) | O59: 3397008372 (2) | P59: 3397008372 (2) | Q59: 3397008372 (2) | R59: 3397008372 (2) | S59: 3397008372 (2) | T59: 3397009062 (2) | U59: 3296508382 (2) | V59: 3296508382 (2) | W59: 3296508382 (2) | X59: 3397009062 (2) | Y59: 3397009062 (2) | Z59: 3397009062 (2) | AA59: 3397009062 (2) | AB59: 3397009062 (2) | AC59: 3397009752 (2) | AD59: 3397009752 (2) | AE59: 3296509132 (2) | AF59: 3296509132 (2) | AG59: 3397009752 (2) | AH59: 3397009752 (2) | AI59: 3397009752 (2) | AJ59: 3397009752 (2) | AK59: 3397010442 (2) | AL59: 3397010442 (2) | AM59: 3397010442 (2) | AN59: 3397010442 (2) | AO59: 3397010442 (2) | AP59: 3296509892 (2) | AQ59: 3397010442 (2) | AR59: 3397010442 (2) | AS59: 3397011132 (2) | AT59: 3397011132 (2) | AU59: 3397011132 (2) | AV59: 3397011132 (2) | AW59: 3397011132 (2) | AX59: 3397011132 (2) | AY59: 3397011132 (2) | AZ59: 3296510642 (2) | BA59: 3397011132 (2) | BB59: 3397011832 (2) | BC59: 3397011832 (2) | BD59: 3397011832 (2) | BE59: 3397011832 (2) | BF59: 3397011832 (2) | BG59: 3397011832 (2) | BH59: 3397011832 (2) | BI59: 3397011832 (2) | BJ59: 3397012522 (2) | BK59: 3397012522 (2) | BL59: 3397012522 (2) | BM59: 3397012522 (2) | BN59: 3397012522 (2) | BO59: 3397012522 (2) | BP59: 3397012522 (2) | BQ59: 3397012522 (2) | BR59: 3397012522 (2) | BS59: 3296511402 (2) | BT59: 3296511402 (2)
B60: 154 | C60: 3295305032 (4) | D60: 3295305032 (4) | E60: 3295305032 (4) | F60: 3295305032 (4) | G60: 3295305032 (4) | H60: 3295305032 (4) | I60: 3295305032 (4) | J60: 3397008372 (2) | K60: 3296507632 (2) | L60: 3296507632 (2) | M60: 3296507632 (2) | N60: 3397008372 (2) | O60: 3397008372 (2) | P60: 3397008372 (2) | Q60: 3397008372 (2) | R60: 3397008372 (2) | S60: 3397008372 (2) | T60: 3397008372 (2) | U60: 3397009062 (2) | V60: 3296508382 (2) | W60: 3397009062 (2) | X60: 3397009062 (2) | Y60: 3397009062 (2) | Z60: 3397009062 (2) | AA60: 3397009062 (2) | AB60: 3397009062 (2) | AC60: 3397009062 (2) | AD60: 3397009752 (2) | AE60: 3397009752 (2) | AF60: 3397009752 (2) | AG60: 3397009752 (2) | AH60: 3397009752 (2) | AI60: 3397009752 (2) | AJ60: 3397009752 (2) | AK60: 3397009752 (2) | AL60: 3397010442 (2) | AM60: 3397010442 (2) | AN60: 3397010442 (2) | AO60: 3397010442 (2) | AP60: 3397010442 (2) | AQ60: 3397010442 (2) | AR60: 3397010442 (2) | AS60: 3397010442 (2) | AT60: 3397010442 (2) | AU60: 3397011132 (2) | AV60: 3397011132 (2) | AW60: 3397011132 (2) | AX60: 3397011132 (2) | AY60: 3397011132 (2) | AZ60: 3397011132 (2) | BA60: 3397011132 (2) | BB60: 3397011132 (2) | BC60: 3397011132 (2) | BD60: 3397011832 (2) | BE60: 3397011832 (2) | BF60: 3397011832 (2) | BG60: 3397011832 (2) | BH60: 3397011832 (2) | BI60: 3397011832 (2) | BJ60: 3397011832 (2) | BK60: 3397011832 (2) | BL60: 3397012522 (2) | BM60: 3397012522 (2) | BN60: 3397012522 (2) | BO60: 3397012522 (2) | BP60: 3397012522 (2) | BQ60: 3397012522 (2) | BR60: 3397012522 (2) | BS60: 3397012522 (2) | BT60: 3397012522 (2)
B61: 156 | C61: 3295305032 (4) | D61: 3295305032 (4) | E61: 3295305032 (4) | F61: 3295305032 (4) | G61: 3295305032 (4) | H61: 3295305032 (4) | I61: 3295305032 (4) | J61: 3295305032 (4) | K61: 3397008372 (2) | L61: 3397008372 (2) | M61: 3397008372 (2) | N61: 3397008372 (2) | O61: 3397008372 (2) | P61: 3397008372 (2) | Q61: 3397008372 (2) | R61: 3397008372 (2) | S61: 3397008372 (2) | T61: 3397008372 (2) | U61: 3397008372 (2) | V61: 3397008372 (2) | W61: 3397009062 (2) | X61: 3397009062 (2) | Y61: 3397009062 (2) | Z61: 3397009062 (2) | AA61: 3397009062 (2) | AB61: 3397009062 (2) | AC61: 3397009062 (2) | AD61: 3397009062 (2) | AE61: 3397009752 (2) | AF61: 3397009752 (2) | AG61: 3397009752 (2) | AH61: 3397009752 (2) | AI61: 3397009752 (2) | AJ61: 3397009752 (2) | AK61: 3397009752 (2) | AL61: 3397009752 (2) | AM61: 3397009752 (2) | AN61: 3397010442 (2) | AO61: 3397010442 (2) | AP61: 3397010442 (2) | AQ61: 3397010442 (2) | AR61: 3397010442 (2) | AS61: 3397010442 (2) | AT61: 3397010442 (2) | AU61: 3397010442 (2) | AV61: 3397010442 (2) | AW61: 3397011132 (2) | AX61: 3397011132 (2) | AY61: 3397011132 (2) | AZ61: 3397011132 (2) | BA61: 3397011132 (2) | BB61: 3397011132 (2) | BC61: 3397011132 (2) | BD61: 3397011132 (2) | BE61: 3397011832 (2) | BF61: 3397011832 (2) | BG61: 3397011832 (2) | BH61: 3397011832 (2) | BI61: 3397011832 (2) | BJ61: 3397011832 (2) | BK61: 3397011832 (2) | BL61: 3397011832 (2) | BM61: 3397011832 (2) | BN61: 3397012522 (2) | BO61: 3397012522 (2) | BP61: 3397012522 (2) | BQ61: 3397012522 (2) | BR61: 3397012522 (2) | BS61: 3397012522 (2) | BT61: 3397012522 (2)
B62: 158 | C62: 3295305032 (4) | D62: 3295305032 (4) | E62: 3295305032 (4) | F62: 3295305032 (4) | G62: 3295305032 (4) | H62: 3295305032 (4) | I62: 3295305032 (4) | J62: 3295305032 (4) | K62: 3295305032 (4) | L62: 3397008372 (2) | M62: 3397008372 (2) | N62: 3397008372 (2) | O62: 3397008372 (2) | P62: 3397008372 (2) | Q62: 3397008372 (2) | R62: 3397008372 (2) | S62: 3397008372 (2) | T62: 3397008372 (2) | U62: 3397008372 (2) | V62: 3397008372 (2) | W62: 3397008372 (2) | X62: 3397009062 (2) | Y62: 3397009062 (2) | Z62: 3397009062 (2) | AA62: 3397009062 (2) | AB62: 3397009062 (2) | AC62: 3397009062 (2) | AD62: 3397009062 (2) | AE62: 3397009062 (2) | AF62: 3397009062 (2) | AG62: 3397009752 (2) | AH62: 3397009752 (2) | AI62: 3397009752 (2) | AJ62: 3397009752 (2) | AK62: 3397009752 (2) | AL62: 3397009752 (2) | AM62: 3397009752 (2) | AN62: 3397009752 (2) | AO62: 3397010442 (2) | AP62: 3397010442 (2) | AQ62: 3397010442 (2) | AR62: 3397010442 (2) | AS62: 3397010442 (2) | AT62: 3397010442 (2) | AU62: 3397010442 (2) | AV62: 3397010442 (2) | AW62: 3397010442 (2) | AX62: 3397011132 (2) | AY62: 3397011132 (2) | AZ62: 3397011132 (2) | BA62: 3397011132 (2) | BB62: 3397011132 (2) | BC62: 3397011132 (2) | BD62: 3397011132 (2) | BE62: 3397011132 (2) | BF62: 3397011132 (2) | BG62: 3397011832 (2) | BH62: 3397011832 (2) | BI62: 3397011832 (2) | BJ62: 3397011832 (2) | BK62: 3397011832 (2) | BL62: 3397011832 (2) | BM62: 3397011832 (2) | BN62: 3397011832 (2) | BO62: 3397011832 (2) | BP62: 3397012522 (2) | BQ62: 3397012522 (2) | BR62: 3397012522 (2) | BS62: 3397012522 (2) | BT62: 3397012522 (2)
B63: 160 | C63: 3295305032 (4) | D63: 3295305032 (4) | E63: 3295305032 (4) | F63: 3295305032 (4) | G63: 3295305032 (4) | H63: 3295305032 (4) | I63: 3295305032 (4) | J63: 3295305032 (4) | K63: 3295305032 (4) | L63: 3295305032 (4) | M63: 3295305512 (4) | N63: 3397008372 (2) | O63: 3397008372 (2) | P63: 3397008372 (2) | Q63: 3397008372 (2) | R63: 3397008372 (2) | S63: 3397008372 (2) | T63: 3397008372 (2) | U63: 3397008372 (2) | V63: 3397008372 (2) | W63: 3397008372 (2) | X63: 3397008372 (2) | Y63: 3397009062 (2) | Z63: 3397009062 (2) | AA63: 3397009062 (2) | AB63: 3397009062 (2) | AC63: 3397009062 (2) | AD63: 3397009062 (2) | AE63: 3397009062 (2) | AF63: 3397009062 (2) | AG63: 3397009062 (2) | AH63: 3397009752 (2) | AI63: 3397009752 (2) | AJ63: 3397009752 (2) | AK63: 3397009752 (2) | AL63: 3397009752 (2) | AM63: 3397009752 (2) | AN63: 3397009752 (2) | AO63: 3397009752 (2) | AP63: 3397009752 (2) | AQ63: 3397010442 (2) | AR63: 3397010442 (2) | AS63: 3397010442 (2) | AT63: 3397010442 (2) | AU63: 3397010442 (2) | AV63: 3397010442 (2) | AW63: 3397010442 (2) | AX63: 3397010442 (2) | AY63: 3397010442 (2) | AZ63: 3397011132 (2) | BA63: 3397011132 (2) | BB63: 3397011132 (2) | BC63: 3397011132 (2) | BD63: 3397011132 (2) | BE63: 3397011132 (2) | BF63: 3397011132 (2) | BG63: 3397011132 (2) | BH63: 3397011132 (2) | BI63: 3397011832 (2) | BJ63: 3397011832 (2) | BK63: 3397011832 (2) | BL63: 3397011832 (2) | BM63: 3397011832 (2) | BN63: 3397011832 (2) | BO63: 3397011832 (2) | BP63: 3397011832 (2) | BQ63: 3397011832 (2) | BR63: 3397012522 (2) | BS63: 3397012522 (2) | BT63: 3397012522 (2)
B64: 162 | C64: 3295505412 (4) | D64: 3295305032 (4) | E64: 3295305032 (4) | F64: 3295305032 (4) | G64: 3295305032 (4) | H64: 3295305032 (4) | I64: 3295305032 (4) | J64: 3295305032 (4) | K64: 3295305032 (4) | L64: 3295305032 (4) | M64: 3295305512 (4) | N64: 3295305512 (4) | O64: 3397008372 (2) | P64: 3397008372 (2) | Q64: 3397008372 (2) | R64: 3397008372 (2) | S64: 3397008372 (2) | T64: 3397008372 (2) | U64: 3397008372 (2) | V64: 3397008372 (2) | W64: 3397008372 (2) | X64: 3397008372 (2) | Y64: 3397008372 (2) | Z64: 3397009062 (2) | AA64: 3397009062 (2) | AB64: 3397009062 (2) | AC64: 3397009062 (2) | AD64: 3397009062 (2) | AE64: 3397009062 (2) | AF64: 3397009062 (2) | AG64: 3397009062 (2) | AH64: 3397009062 (2) | AI64: 3397009752 (2) | AJ64: 3397009752 (2) | AK64: 3397009752 (2) | AL64: 3397009752 (2) | AM64: 3397009752 (2) | AN64: 3397009752 (2) | AO64: 3397009752 (2) | AP64: 3397009752 (2) | AQ64: 3397009752 (2) | AR64: 3397010442 (2) | AS64: 3397010442 (2) | AT64: 3397010442 (2) | AU64: 3397010442 (2) | AV64: 3397010442 (2) | AW64: 3397010442 (2) | AX64: 3397010442 (2) | AY64: 3397010442 (2) | AZ64: 3397010442 (2) | BA64: 3397011132 (2) | BB64: 3397011132 (2) | BC64: 3397011132 (2) | BD64: 3397011132 (2) | BE64: 3397011132 (2) | BF64: 3397011132 (2) | BG64: 3397011132 (2) | BH64: 3397011132 (2) | BI64: 3397011132 (2) | BJ64: 3397011832 (2) | BK64: 3397011832 (2) | BL64: 3397011832 (2) | BM64: 3397011832 (2) | BN64: 3397011832 (2) | BO64: 3397011832 (2) | BP64: 3397011832 (2) | BQ64: 3397011832 (2) | BR64: 3397011832 (2) | BS64: 3397012522 (2) | BT64: 3397012522 (2)
B65: 164 | C65: 3295505412 (4) | D65: 3295505412 (4) | E65: 3295305032 (4) | F65: 3295305032 (4) | G65: 3295305032 (4) | H65: 3295305032 (4) | I65: 3295305032 (4) | J65: 3295305032 (4) | K65: 3295305032 (4) | L65: 3295305032 (4) | M65: 3295505932 (4) | N65: 3295505932 (4) | O65: 3295305512 (4) | P65: 3397008372 (2) | Q65: 3397008372 (2) | R65: 3397008372 (2) | S65: 3397008372 (2) | T65: 3397008372 (2) | U65: 3397008372 (2) | V65: 3397008372 (2) | W65: 3397008372 (2) | X65: 3397008372 (2) | Y65: 3397008372 (2) | Z65: 3397008372 (2) | AA65: 3397008372 (2) | AB65: 3397009062 (2) | AC65: 3397009062 (2) | AD65: 3397009062 (2) | AE65: 3397009062 (2) | AF65: 3397009062 (2) | AG65: 3397009062 (2) | AH65: 3397009062 (2) | AI65: 3397009062 (2) | AJ65: 3397009062 (2) | AK65: 3397009752 (2) | AL65: 3397009752 (2) | AM65: 3397009752 (2) | AN65: 3397009752 (2) | AO65: 3397009752 (2) | AP65: 3397009752 (2) | AQ65: 3397009752 (2) | AR65: 3397009752 (2) | AS65: 3397009752 (2) | AT65: 3397010442 (2) | AU65: 3397010442 (2) | AV65: 3397010442 (2) | AW65: 3397010442 (2) | AX65: 3397010442 (2) | AY65: 3397010442 (2) | AZ65: 3397010442 (2) | BA65: 3397010442 (2) | BB65: 3397010442 (2) | BC65: 3397011132 (2) | BD65: 3397011132 (2) | BE65: 3397011132 (2) | BF65: 3397011132 (2) | BG65: 3397011132 (2) | BH65: 3397011132 (2) | BI65: 3397011132 (2) | BJ65: 3397011132 (2) | BK65: 3397011132 (2) | BL65: 3397011832 (2) | BM65: 3397011832 (2) | BN65: 3397011832 (2) | BO65: 3397011832 (2) | BP65: 3397011832 (2) | BQ65: 3397011832 (2) | BR65: 3397011832 (2) | BS65: 3397011832 (2) | BT65: 3397011832 (2)
B66: 166 | C66: 3295505412 (4) | D66: 3295505412 (4) | E66: 3295505412 (4) | F66: 3295305032 (4) | G66: 3295305032 (4) | H66: 3295305032 (4) | I66: 3295305032 (4) | J66: 3295305032 (4) | K66: 3295305032 (4) | L66: 3295305032 (4) | M66: 3295505932 (4) | N66: 3295505932 (4) | O66: 3295505932 (4) | P66: 3295305512 (4) | Q66: 3397008372 (2) | R66: 3397008372 (2) | S66: 3397008372 (2) | T66: 3397008372 (2) | U66: 3397008372 (2) | V66: 3397008372 (2) | W66: 3397008372 (2) | X66: 3397008372 (2) | Y66: 3397008372 (2) | Z66: 3397008372 (2) | AA66: 3397008372 (2) | AB66: 3397008372 (2) | AC66: 3397009062 (2) | AD66: 3397009062 (2) | AE66: 3397009062 (2) | AF66: 3397009062 (2) | AG66: 3397009062 (2) | AH66: 3397009062 (2) | AI66: 3397009062 (2) | AJ66: 3397009062 (2) | AK66: 3397009062 (2) | AL66: 3397009752 (2) | AM66: 3397009752 (2) | AN66: 3397009752 (2) | AO66: 3397009752 (2) | AP66: 3397009752 (2) | AQ66: 3397009752 (2) | AR66: 3397009752 (2) | AS66: 3397009752 (2) | AT66: 3397009752 (2) | AU66: 3397010442 (2) | AV66: 3397010442 (2) | AW66: 3397010442 (2) | AX66: 3397010442 (2) | AY66: 3397010442 (2) | AZ66: 3397010442 (2) | BA66: 3397010442 (2) | BB66: 3397010442 (2) | BC66: 3397010442 (2) | BD66: 3397010442 (2) | BE66: 3397011132 (2) | BF66: 3397011132 (2) | BG66: 3397011132 (2) | BH66: 3397011132 (2) | BI66: 3397011132 (2) | BJ66: 3397011132 (2) | BK66: 3397011132 (2) | BL66: 3397011132 (2) | BM66: 3397011132 (2) | BN66: 3397011832 (2) | BO66: 3397011832 (2) | BP66: 3397011832 (2) | BQ66: 3397011832 (2) | BR66: 3397011832 (2) | BS66: 3397011832 (2) | BT66: 3397011832 (2)
B67: 168 | C67: 3295505412 (4) | D67: 3295505412 (4) | E67: 3295505412 (4) | F67: 3295505412 (4) | G67: 3295305032 (4) | H67: 3295305032 (4) | I67: 3295305032 (4) | J67: 3295305032 (4) | K67: 3295305032 (4) | L67: 3295505932 (4) | M67: 3295505932 (4) | N67: 3295505932 (4) | O67: 3295505932 (4) | P67: 3295505932 (4) | Q67: 3295305512 (4) | R67: 3295305512 (4) | S67: 3397008372 (2) | T67: 3397008372 (2) | U67: 3397008372 (2) | V67: 3397008372 (2) | W67: 3397008372 (2) | X67: 3397008372 (2) | Y67: 3397008372 (2) | Z67: 3397008372 (2) | AA67: 3397008372 (2) | AB67: 3397008372 (2) | AC67: 3397008372 (2) | AD67: 3397009062 (2) | AE67: 3397009062 (2) | AF67: 3397009062 (2) | AG67: 3397009062 (2) | AH67: 3397009062 (2) | AI67: 3397009062 (2) | AJ67: 3397009062 (2) | AK67: 3397009062 (2) | AL67: 3397009062 (2) | AM67: 3397009062 (2) | AN67: 3397009752 (2) | AO67: 3397009752 (2) | AP67: 3397009752 (2) | AQ67: 3397009752 (2) | AR67: 3397009752 (2) | AS67: 3397009752 (2) | AT67: 3397009752 (2) | AU67: 3397009752 (2) | AV67: 3397009752 (2) | AW67: 3397010442 (2) | AX67: 3397010442 (2) | AY67: 3397010442 (2) | AZ67: 3397010442 (2) | BA67: 3397010442 (2) | BB67: 3397010442 (2) | BC67: 3397010442 (2) | BD67: 3397010442 (2) | BE67: 3397010442 (2) | BF67: 3397011132 (2) | BG67: 3397011132 (2) | BH67: 3397011132 (2) | BI67: 3397011132 (2) | BJ67: 3397011132 (2) | BK67: 3397011132 (2) | BL67: 3397011132 (2) | BM67: 3397011132 (2) | BN67: 3397011132 (2) | BO67: 3397011832 (2) | BP67: 3397011832 (2) | BQ67: 3397011832 (2) | BR67: 3397011832 (2) | BS67: 3397011832 (2) | BT67: 3397011832 (2)
B68: 170 | C68: 3295505412 (4) | D68: 3295505412 (4) | E68: 3295505412 (4) | F68: 3295505412 (4) | G68: 3295505412 (4) | H68: 3295305032 (4) | I68: 3295305032 (4) | J68: 3295305032 (4) | K68: 3295305032 (4) | L68: 3295505932 (4) | M68: 3295505932 (4) | N68: 3295505932 (4) | O68: 3295505932 (4) | P68: 3295505932 (4) | Q68: 3295505932 (4) | R68: 3295505932 (4) | S68: 3295305512 (4) | T68: 3397008372 (2) | U68: 3397008372 (2) | V68: 3397008372 (2) | W68: 3397008372 (2) | X68: 3397008372 (2) | Y68: 3397008372 (2) | Z68: 3397008372 (2) | AA68: 3397008372 (2) | AB68: 3397008372 (2) | AC68: 3397008372 (2) | AD68: 3397008372 (2) | AE68: 3397009062 (2) | AF68: 3397009062 (2) | AG68: 3397009062 (2) | AH68: 3397009062 (2) | AI68: 3397009062 (2) | AJ68: 3397009062 (2) | AK68: 3397009062 (2) | AL68: 3397009062 (2) | AM68: 3397009062 (2) | AN68: 3397009062 (2) | AO68: 3397009752 (2) | AP68: 3397009752 (2) | AQ68: 3397009752 (2) | AR68: 3397009752 (2) | AS68: 3397009752 (2) | AT68: 3397009752 (2) | AU68: 3397009752 (2) | AV68: 3397009752 (2) | AW68: 3397009752 (2) | AX68: 3397010442 (2) | AY68: 3397010442 (2) | AZ68: 3397010442 (2) | BA68: 3397010442 (2) | BB68: 3397010442 (2) | BC68: 3397010442 (2) | BD68: 3397010442 (2) | BE68: 3397010442 (2) | BF68: 3397010442 (2) | BG68: 3397010442 (2) | BH68: 3397011132 (2) | BI68: 3397011132 (2) | BJ68: 3397011132 (2) | BK68: 3397011132 (2) | BL68: 3397011132 (2) | BM68: 3397011132 (2) | BN68: 3397011132 (2) | BO68: 3397011132 (2) | BP68: 3397011132 (2) | BQ68: 3397011832 (2) | BR68: 3397011832 (2) | BS68: 3397011832 (2) | BT68: 3397011832 (2)
B69: =B68+2 -> 172 | C69: 3295505412 (4) | D69: 3295505412 (4) | E69: 3295505412 (4) | F69: 3295505412 (4) | G69: 3295505412 (4) | H69: 3295505412 (4) | I69: 3295305032 (4) | J69: 3295305032 (4) | K69: 3295305032 (4) | L69: 3295505932 (4) | M69: 3295505932 (4) | N69: 3295505932 (4) | O69: 3295505932 (4) | P69: 3295505932 (4) | Q69: 3295505932 (4) | R69: 3295505932 (4) | S69: 3295505932 (4) | T69: 3295305512 (4) | U69: 3397008372 (2) | V69: 3397008372 (2) | W69: 3397008372 (2) | X69: 3397008372 (2) | Y69: 3397008372 (2) | Z69: 3397008372 (2) | AA69: 3397008372 (2) | AB69: 3397008372 (2) | AC69: 3397008372 (2) | AD69: 3397008372 (2) | AE69: 3397008372 (2) | AF69: 3397008372 (2) | AG69: 3397009062 (2) | AH69: 3397009062 (2) | AI69: 3397009062 (2) | AJ69: 3397009062 (2) | AK69: 3397009062 (2) | AL69: 3397009062 (2) | AM69: 3397009062 (2) | AN69: 3397009062 (2) | AO69: 3397009062 (2) | AP69: 3397009752 (2) | AQ69: 3397009752 (2) | AR69: 3397009752 (2) | AS69: 3397009752 (2) | AT69: 3397009752 (2) | AU69: 3397009752 (2) | AV69: 3397009752 (2) | AW69: 3397009752 (2) | AX69: 3397009752 (2) | AY69: 3397009752 (2) | AZ69: 3397010442 (2) | BA69: 3397010442 (2) | BB69: 3397010442 (2) | BC69: 3397010442 (2) | BD69: 3397010442 (2) | BE69: 3397010442 (2) | BF69: 3397010442 (2) | BG69: 3397010442 (2) | BH69: 3397010442 (2) | BI69: 3397011132 (2) | BJ69: 3397011132 (2) | BK69: 3397011132 (2) | BL69: 3397011132 (2) | BM69: 3397011132 (2) | BN69: 3397011132 (2) | BO69: 3397011132 (2) | BP69: 3397011132 (2) | BQ69: 3397011132 (2) | BR69: 3397011132 (2) | BS69: 3397011832 (2) | BT69: 3397011832 (2)
B70: 174 | C70: 3295505412 (4) | D70: 3295505412 (4) | E70: 3295505412 (4) | F70: 3295505412 (4) | G70: 3295505412 (4) | H70: 3295505412 (4) | I70: 3295505412 (4) | J70: 3295505412 (4) | K70: 3295305032 (4) | L70: 3295505932 (4) | M70: 3295505932 (4) | N70: 3295505932 (4) | O70: 3295505932 (4) | P70: 3295505932 (4) | Q70: 3295505932 (4) | R70: 3295505932 (4) | S70: 3295505932 (4) | T70: 3295505932 (4) | U70: 3295505932 (4) | V70: 3295506462 (4) | W70: 3397008372 (2) | X70: 3397008372 (2) | Y70: 3397008372 (2) | Z70: 3397008372 (2) | AA70: 3397008372 (2) | AB70: 3397008372 (2) | AC70: 3397008372 (2) | AD70: 3397008372 (2) | AE70: 3397008372 (2) | AF70: 3397008372 (2) | AG70: 3397008372 (2) | AH70: 3397009062 (2) | AI70: 3397009062 (2) | AJ70: 3397009062 (2) | AK70: 3397009062 (2) | AL70: 3397009062 (2) | AM70: 3397009062 (2) | AN70: 3397009062 (2) | AO70: 3397009062 (2) | AP70: 3397009062 (2) | AQ70: 3397009062 (2) | AR70: 3397009752 (2) | AS70: 3397009752 (2) | AT70: 3397009752 (2) | AU70: 3397009752 (2) | AV70: 3397009752 (2) | AW70: 3397009752 (2) | AX70: 3397009752 (2) | AY70: 3397009752 (2) | AZ70: 3397009752 (2) | BA70: 3397010442 (2) | BB70: 3397010442 (2) | BC70: 3397010442 (2) | BD70: 3397010442 (2) | BE70: 3397010442 (2) | BF70: 3397010442 (2) | BG70: 3397010442 (2) | BH70: 3397010442 (2) | BI70: 3397010442 (2) | BJ70: 3397010442 (2) | BK70: 3397011132 (2) | BL70: 3397011132 (2) | BM70: 3397011132 (2) | BN70: 3397011132 (2) | BO70: 3397011132 (2) | BP70: 3397011132 (2) | BQ70: 3397011132 (2) | BR70: 3397011132 (2) | BS70: 3397011132 (2) | BT70: 3397011832 (2)
B71: 176 | C71: 3295505412 (4) | D71: 3295505412 (4) | E71: 3295505412 (4) | F71: 3295505412 (4) | G71: 3295505412 (4) | H71: 3295505412 (4) | I71: 3295505412 (4) | J71: 3295505412 (4) | K71: 3295505412 (4) | L71: 3295505412 (4) | M71: 3295505932 (4) | N71: 3295505932 (4) | O71: 3295505932 (4) | P71: 3295505932 (4) | Q71: 3295505932 (4) | R71: 3295505932 (4) | S71: 3295505932 (4) | T71: 3295505932 (4) | U71: 3295505932 (4) | V71: 3295505932 (4) | W71: 3295506462 (4) | X71: 3397008372 (2) | Y71: 3397008372 (2) | Z71: 3397008372 (2) | AA71: 3397008372 (2) | AB71: 3397008372 (2) | AC71: 3397008372 (2) | AD71: 3397008372 (2) | AE71: 3397008372 (2) | AF71: 3397008372 (2) | AG71: 3397008372 (2) | AH71: 3397008372 (2) | AI71: 3397009062 (2) | AJ71: 3397009062 (2) | AK71: 3397009062 (2) | AL71: 3397009062 (2) | AM71: 3397009062 (2) | AN71: 3397009062 (2) | AO71: 3397009062 (2) | AP71: 3397009062 (2) | AQ71: 3397009062 (2) | AR71: 3397009752 (2) | AS71: 3397009752 (2) | AT71: 3397009752 (2) | AU71: 3397009752 (2) | AV71: 3397009752 (2) | AW71: 3397009752 (2) | AX71: 3397009752 (2) | AY71: 3397009752 (2) | AZ71: 3397009752 (2) | BA71: 3397009752 (2) | BB71: 3397010442 (2) | BC71: 3397010442 (2) | BD71: 3397010442 (2) | BE71: 3397010442 (2) | BF71: 3397010442 (2) | BG71: 3397010442 (2) | BH71: 3397010442 (2) | BI71: 3397010442 (2) | BJ71: 3397010442 (2) | BK71: 3397010442 (2) | BL71: 3397011132 (2) | BM71: 3397011132 (2) | BN71: 3397011132 (2) | BO71: 3397011132 (2) | BP71: 3397011132 (2) | BQ71: 3397011132 (2) | BR71: 3397011132 (2) | BS71: 3397011132 (2) | BT71: 3397011132 (2)
B72: 178 | C72: 3295505412 (4) | D72: 3295505412 (4) | E72: 3295505412 (4) | F72: 3295505412 (4) | G72: 3295505412 (4) | H72: 3295505412 (4) | I72: 3295505412 (4) | J72: 3295505412 (4) | K72: 3295505412 (4) | L72: 3295505412 (4) | M72: 3295505412 (4) | N72: 3295505932 (4) | O72: 3295505932 (4) | P72: 3295505932 (4) | Q72: 3295505932 (4) | R72: 3295505932 (4) | S72: 3295505932 (4) | T72: 3295505932 (4) | U72: 3295505932 (4) | V72: 3295505932 (4) | W72: 3295506462 (4) | X72: 3295506462 (4) | Y72: 3397008372 (2) | Z72: 3397008372 (2) | AA72: 3397008372 (2) | AB72: 3397008372 (2) | AC72: 3397008372 (2) | AD72: 3397008372 (2) | AE72: 3397008372 (2) | AF72: 3397008372 (2) | AG72: 3397008372 (2) | AH72: 3397008372 (2) | AI72: 3397009062 (2) | AJ72: 3397009062 (2) | AK72: 3397009062 (2) | AL72: 3397009062 (2) | AM72: 3397009062 (2) | AN72: 3397009062 (2) | AO72: 3397009062 (2) | AP72: 3397009062 (2) | AQ72: 3397009062 (2) | AR72: 3295507512 (4) | AS72: 3397009752 (2) | AT72: 3397009752 (2) | AU72: 3397009752 (2) | AV72: 3397009752 (2) | AW72: 3397009752 (2) | AX72: 3397009752 (2) | AY72: 3397009752 (2) | AZ72: 3397009752 (2) | BA72: 3397009752 (2) | BB72: 3295508042 (4) | BC72: 3397010442 (2) | BD72: 3397010442 (2) | BE72: 3397010442 (2) | BF72: 3397010442 (2) | BG72: 3397010442 (2) | BH72: 3397010442 (2) | BI72: 3397010442 (2) | BJ72: 3397010442 (2) | BK72: 3397010442 (2) | BL72: 3295508572 (4) | BM72: 3397011132 (2) | BN72: 3397011132 (2) | BO72: 3397011132 (2) | BP72: 3397011132 (2) | BQ72: 3397011132 (2) | BR72: 3397011132 (2) | BS72: 3397011132 (2) | BT72: 3397011132 (2)
B73: 180 | C73: 3296007112 (4) | D73: 3295505412 (4) | E73: 3295505412 (4) | F73: 3295505412 (4) | G73: 3295505412 (4) | H73: 3295505412 (4) | I73: 3295505412 (4) | J73: 3295505412 (4) | K73: 3295505412 (4) | L73: 3295505412 (4) | M73: 3296008382 (4) | N73: 3295505932 (4) | O73: 3295505932 (4) | P73: 3295505932 (4) | Q73: 3295505932 (4) | R73: 3295505932 (4) | S73: 3295505932 (4) | T73: 3295505932 (4) | U73: 3295505932 (4) | V73: 3295505932 (4) | W73: 3296009022 (4) | X73: 3295506462 (4) | Y73: 3295506462 (4) | Z73: 3397008372 (2) | AA73: 3397008372 (2) | AB73: 3397008372 (2) | AC73: 3397008372 (2) | AD73: 3397008372 (2) | AE73: 3397008372 (2) | AF73: 3397008372 (2) | AG73: 3397008372 (2) | AH73: 3295506982 (4) | AI73: 3295506982 (4) | AJ73: 3295506982 (4) | AK73: 3397009062 (2) | AL73: 3397009062 (2) | AM73: 3397009062 (2) | AN73: 3397009062 (2) | AO73: 3397009062 (2) | AP73: 3397009062 (2) | AQ73: 3397009062 (2) | AR73: 3295507512 (4) | AS73: 3295507512 (4) | AT73: 3295507512 (4) | AU73: 3397009752 (2) | AV73: 3397009752 (2) | AW73: 3397009752 (2) | AX73: 3397009752 (2) | AY73: 3397009752 (2) | AZ73: 3397009752 (2) | BA73: 3397009752 (2) | BB73: 3295508042 (4) | BC73: 3295508042 (4) | BD73: 3295508042 (4) | BE73: 3397010442 (2) | BF73: 3397010442 (2) | BG73: 3397010442 (2) | BH73: 3397010442 (2) | BI73: 3397010442 (2) | BJ73: 3397010442 (2) | BK73: 3397010442 (2) | BL73: 3295508572 (4) | BM73: 3295508572 (4) | BN73: 3295508572 (4) | BO73: 3397011132 (2) | BP73: 3397011132 (2) | BQ73: 3397011132 (2) | BR73: 3397011132 (2) | BS73: 3397011132 (2) | BT73: 3397011132 (2)
B74: 182 | C74: 3296007112 (4) | D74: 3296007112 (4) | E74: 3295505412 (4) | F74: 3295505412 (4) | G74: 3295505412 (4) | H74: 3295505412 (4) | I74: 3295505412 (4) | J74: 3295505412 (4) | K74: 3295505412 (4) | L74: 3295505412 (4) | M74: 3296008382 (4) | N74: 3296008382 (4) | O74: 3295505932 (4) | P74: 3295505932 (4) | Q74: 3295505932 (4) | R74: 3295505932 (4) | S74: 3295505932 (4) | T74: 3295505932 (4) | U74: 3295505932 (4) | V74: 3295505932 (4) | W74: 3296009022 (4) | X74: 3296009022 (4) | Y74: 3295506462 (4) | Z74: 3295506462 (4) | AA74: 3295506462 (4) | AB74: 3397008372 (2) | AC74: 3397008372 (2) | AD74: 3397008372 (2) | AE74: 3397008372 (2) | AF74: 3397008372 (2) | AG74: 3397008372 (2) | AH74: 3296009662 (4) | AI74: 3295506982 (4) | AJ74: 3295506982 (4) | AK74: 3295506982 (4) | AL74: 3397009062 (2) | AM74: 3397009062 (2) | AN74: 3397009062 (2) | AO74: 3397009062 (2) | AP74: 3397009062 (2) | AQ74: 3397009062 (2) | AR74: 3296010942 (4) | AS74: 3295507512 (4) | AT74: 3295507512 (4) | AU74: 3295507512 (4) | AV74: 3397009752 (2) | AW74: 3397009752 (2) | AX74: 3397009752 (2) | AY74: 3397009752 (2) | AZ74: 3397009752 (2) | BA74: 3397009752 (2) | BB74: 3396009112 (4) | BC74: 3295508042 (4) | BD74: 3295508042 (4) | BE74: 3295508042 (4) | BF74: 3397010442 (2) | BG74: 3397010442 (2) | BH74: 3397010442 (2) | BI74: 3397010442 (2) | BJ74: 3397010442 (2) | BK74: 3396009612 (4) | BL74: 3396009612 (4) | BM74: 3295508572 (4) | BN74: 3295508572 (4) | BO74: 3295508572 (4) | BP74: 3397011132 (2) | BQ74: 3397011132 (2) | BR74: 3397011132 (2) | BS74: 3397011132 (2) | BT74: 3397011132 (2)
B75: 184 | C75: 3296007112 (4) | D75: 3296007112 (4) | E75: 3296007112 (4) | F75: 3295505412 (4) | G75: 3295505412 (4) | H75: 3295505412 (4) | I75: 3295505412 (4) | J75: 3295505412 (4) | K75: 3295505412 (4) | L75: 3295505412 (4) | M75: 3296007752 (4) | N75: 3296008382 (4) | O75: 3296008382 (4) | P75: 3295505932 (4) | Q75: 3295505932 (4) | R75: 3295505932 (4) | S75: 3295505932 (4) | T75: 3295505932 (4) | U75: 3295505932 (4) | V75: 3295505932 (4) | W75: 3296009022 (4) | X75: 3296009022 (4) | Y75: 3296009022 (4) | Z75: 3295506462 (4) | AA75: 3295506462 (4) | AB75: 3295506462 (4) | AC75: 3397008372 (2) | AD75: 3397008372 (2) | AE75: 3397008372 (2) | AF75: 3397008372 (2) | AG75: 3397008372 (2) | AH75: 3296009662 (4) | AI75: 3296009662 (4) | AJ75: 3295506982 (4) | AK75: 3295506982 (4) | AL75: 3295506982 (4) | AM75: 3397009062 (2) | AN75: 3397009062 (2) | AO75: 3397009062 (2) | AP75: 3397009062 (2) | AQ75: 3397009062 (2) | AR75: 3296010302 (4) | AS75: 3296010942 (4) | AT75: 3295507512 (4) | AU75: 3295507512 (4) | AV75: 3295507512 (4) | AW75: 3295507512 (4) | AX75: 3397009752 (2) | AY75: 3397009752 (2) | AZ75: 3397009752 (2) | BA75: 3397009752 (2) | BB75: 3396009112 (4) | BC75: 3396009112 (4) | BD75: 3295508042 (4) | BE75: 3295508042 (4) | BF75: 3295508042 (4) | BG75: 3295508042 (4) | BH75: 3397010442 (2) | BI75: 3397010442 (2) | BJ75: 3397010442 (2) | BK75: 3396009612 (4) | BL75: 3396009612 (4) | BM75: 3396009612 (4) | BN75: 3295508572 (4) | BO75: 3295508572 (4) | BP75: 3295508572 (4) | BQ75: 3295508572 (4) | BR75: 3397011132 (2) | BS75: 3397011132 (2) | BT75: 3397011132 (2)
B76: 186 | C76: 3296007112 (4) | D76: 3296007112 (4) | E76: 3296007112 (4) | F76: 3296007752 (4) | G76: 3295505412 (4) | H76: 3295505412 (4) | I76: 3295505412 (4) | J76: 3295505412 (4) | K76: 3295505412 (4) | L76: 3295505412 (4) | M76: 3296007752 (4) | N76: 3296008382 (4) | O76: 3296008382 (4) | P76: 3296008382 (4) | Q76: 3295505932 (4) | R76: 3295505932 (4) | S76: 3295505932 (4) | T76: 3295505932 (4) | U76: 3295505932 (4) | V76: 3296009022 (4) | W76: 3296009022 (4) | X76: 3296009022 (4) | Y76: 3296009022 (4) | Z76: 3296009022 (4) | AA76: 3295506462 (4) | AB76: 3295506462 (4) | AC76: 3295506462 (4) | AD76: 3397008372 (2) | AE76: 3397008372 (2) | AF76: 3397008372 (2) | AG76: 3397008372 (2) | AH76: 3296009662 (4) | AI76: 3296009662 (4) | AJ76: 3296009662 (4) | AK76: 3295506982 (4) | AL76: 3295506982 (4) | AM76: 3295506982 (4) | AN76: 3295506982 (4) | AO76: 3397009062 (2) | AP76: 3397009062 (2) | AQ76: 3397009062 (2) | AR76: 3296010302 (4) | AS76: 3296010302 (4) | AT76: 3296010942 (4) | AU76: 3296010942 (4) | AV76: 3295507512 (4) | AW76: 3295507512 (4) | AX76: 3295507512 (4) | AY76: 3397009752 (2) | AZ76: 3397009752 (2) | BA76: 3296010942 (4) | BB76: 3396009112 (4) | BC76: 3396009112 (4) | BD76: 3396009112 (4) | BE76: 3396009112 (4) | BF76: 3295508042 (4) | BG76: 3295508042 (4) | BH76: 3295508042 (4) | BI76: 3396009112 (4) | BJ76: 3397010442 (2) | BK76: 3396009612 (4) | BL76: 3396009612 (4) | BM76: 3396009612 (4) | BN76: 3396009612 (4) | BO76: 3396009612 (4) | BP76: 3295508572 (4) | BQ76: 3295508572 (4) | BR76: 3295508572 (4) | BS76: 3295508572 (4) | BT76: 3397011132 (2)
B77: 188 | C77: 3296007112 (4) | D77: 3296007112 (4) | E77: 3296007112 (4) | F77: 3296007112 (4) | G77: 3296007752 (4) | H77: 3295505412 (4) | I77: 3295505412 (4) | J77: 3295505412 (4) | K77: 3295505412 (4) | L77: 3295505412 (4) | M77: 3296007752 (4) | N77: 3296007752 (4) | O77: 3296008382 (4) | P77: 3296008382 (4) | Q77: 3296008382 (4) | R77: 3295505932 (4) | S77: 3295505932 (4) | T77: 3295505932 (4) | U77: 3295505932 (4) | V77: 3296008382 (4) | W77: 3296009022 (4) | X77: 3296009022 (4) | Y77: 3296009022 (4) | Z77: 3296009022 (4) | AA77: 3296009022 (4) | AB77: 3296009022 (4) | AC77: 3295506462 (4) | AD77: 3295506462 (4) | AE77: 3295506462 (4) | AF77: 3397008372 (2) | AG77: 3397008372 (2) | AH77: 3296009662 (4) | AI77: 3296009662 (4) | AJ77: 3296009662 (4) | AK77: 3296009662 (4) | AL77: 3296009662 (4) | AM77: 3295506982 (4) | AN77: 3295506982 (4) | AO77: 3296010302 (4) | AP77: 3397009062 (2) | AQ77: 3397009062 (2) | AR77: 3296010302 (4) | AS77: 3296010302 (4) | AT77: 3296010302 (4) | AU77: 3296010302 (4) | AV77: 3296010942 (4) | AW77: 3295507512 (4) | AX77: 3295507512 (4) | AY77: 3296010942 (4) | AZ77: 3296010942 (4) | BA77: 3296010942 (4) | BB77: 3296010942 (4) | BC77: 3296010942 (4) | BD77: 3396009112 (4) | BE77: 3396009112 (4) | BF77: 3396009112 (4) | BG77: 3295508042 (4) | BH77: 3295508042 (4) | BI77: 3396009112 (4) | BJ77: 3396009112 (4) | BK77: 3396009112 (4) | BL77: 3396009612 (4) | BM77: 3396009612 (4) | BN77: 3396009612 (4) | BO77: 3396009612 (4) | BP77: 3396009612 (4) | BQ77: 3396009612 (4) | BR77: 3396009612 (4) | BS77: 3396009612 (4) | BT77: 3295508572 (4)
B78: 190 | C78: 3296007112 (4) | D78: 3296007112 (4) | E78: 3296007112 (4) | F78: 3296007112 (4) | G78: 3296007112 (4) | H78: 3296007752 (4) | I78: 3295505412 (4) | J78: 3295505412 (4) | K78: 3295505412 (4) | L78: 3295505412 (4) | M78: 3296007752 (4) | N78: 3296007752 (4) | O78: 3296007752 (4) | P78: 3296008382 (4) | Q78: 3296008382 (4) | R78: 3296008382 (4) | S78: 3295505932 (4) | T78: 3295505932 (4) | U78: 3295505932 (4) | V78: 3296008382 (4) | W78: 3296008382 (4) | X78: 3296009022 (4) | Y78: 3296009022 (4) | Z78: 3296009022 (4) | AA78: 3296009022 (4) | AB78: 3296009022 (4) | AC78: 3296009022 (4) | AD78: 3295506462 (4) | AE78: 3295506462 (4) | AF78: 3296009022 (4) | AG78: 3397008372 (2) | AH78: 3296009662 (4) | AI78: 3296009662 (4) | AJ78: 3296009662 (4) | AK78: 3296009662 (4) | AL78: 3296009662 (4) | AM78: 3296009662 (4) | AN78: 3295506982 (4) | AO78: 3296010302 (4) | AP78: 3296010302 (4) | AQ78: 3296010302 (4) | AR78: 3296010302 (4) | AS78: 3296010302 (4) | AT78: 3296010302 (4) | AU78: 3296010302 (4) | AV78: 3296010302 (4) | AW78: 3296010942 (4) | AX78: 3295507512 (4) | AY78: 3296010942 (4) | AZ78: 3296010942 (4) | BA78: 3296010942 (4) | BB78: 3296010942 (4) | BC78: 3296010942 (4) | BD78: 3296010942 (4) | BE78: 3396009112 (4) | BF78: 3396009112 (4) | BG78: 3396009112 (4) | BH78: 3396009112 (4) | BI78: 3396009112 (4) | BJ78: 3396009112 (4) | BK78: 3396009112 (4) | BL78: 3396009112 (4) | BM78: 3396009612 (4) | BN78: 3396009612 (4) | BO78: 3396009612 (4) | BP78: 3396009612 (4) | BQ78: 3396009612 (4) | BR78: 3396009612 (4) | BS78: 3396009612 (4) | BT78: 3396009612 (4)
B79: 192 | C79: 3296007112 (4) | D79: 3296007112 (4) | E79: 3296007112 (4) | F79: 3296007112 (4) | G79: 3296007112 (4) | H79: 3296007112 (4) | I79: 3296007752 (4) | J79: 3295505412 (4) | K79: 3295505412 (4) | L79: 3296007752 (4) | M79: 3296007752 (4) | N79: 3296007752 (4) | O79: 3296007752 (4) | P79: 3296007752 (4) | Q79: 3296008382 (4) | R79: 3296008382 (4) | S79: 3296008382 (4) | T79: 3295505932 (4) | U79: 3295505932 (4) | V79: 3296008382 (4) | W79: 3296008382 (4) | X79: 3296008382 (4) | Y79: 3296008382 (4) | Z79: 3296009022 (4) | AA79: 3296009022 (4) | AB79: 3296009022 (4) | AC79: 3296009022 (4) | AD79: 3296009022 (4) | AE79: 3295506462 (4) | AF79: 3296009022 (4) | AG79: 3296009022 (4) | AH79: 3296009662 (4) | AI79: 3296009662 (4) | AJ79: 3296009662 (4) | AK79: 3296009662 (4) | AL79: 3296009662 (4) | AM79: 3296009662 (4) | AN79: 3296009662 (4) | AO79: 3296009662 (4) | AP79: 3296010302 (4) | AQ79: 3296010302 (4) | AR79: 3296010302 (4) | AS79: 3296010302 (4) | AT79: 3296010302 (4) | AU79: 3296010302 (4) | AV79: 3296010302 (4) | AW79: 3296010302 (4) | AX79: 3296010942 (4) | AY79: 3296010942 (4) | AZ79: 3296010942 (4) | BA79: 3296010942 (4) | BB79: 3296010942 (4) | BC79: 3296010942 (4) | BD79: 3296010942 (4) | BE79: 3296010942 (4) | BF79: 3396009112 (4) | BG79: 3396009112 (4) | BH79: 3396009112 (4) | BI79: 3396009112 (4) | BJ79: 3396009112 (4) | BK79: 3396009112 (4) | BL79: 3396009112 (4) | BM79: 3396009112 (4) | BN79: 3396009112 (4) | BO79: 3396009612 (4) | BP79: 3396009612 (4) | BQ79: 3396009612 (4) | BR79: 3396009612 (4) | BS79: 3396009612 (4) | BT79: 3396009612 (4)
B80: 194 | C80: 3296007112 (4) | D80: 3296007112 (4) | E80: 3296007112 (4) | F80: 3296007112 (4) | G80: 3296007112 (4) | H80: 3296007112 (4) | I80: 3296007112 (4) | J80: 3296007752 (4) | K80: 3295505412 (4) | L80: 3296007752 (4) | M80: 3296007752 (4) | N80: 3296007752 (4) | O80: 3296007752 (4) | P80: 3296007752 (4) | Q80: 3296007752 (4) | R80: 3296008382 (4) | S80: 3296008382 (4) | T80: 3296008382 (4) | U80: 3296008382 (4) | V80: 3296008382 (4) | W80: 3296008382 (4) | X80: 3296008382 (4) | Y80: 3296008382 (4) | Z80: 3296008382 (4) | AA80: 3296009022 (4) | AB80: 3296009022 (4) | AC80: 3296009022 (4) | AD80: 3296009022 (4) | AE80: 3296009022 (4) | AF80: 3296009022 (4) | AG80: 3296009022 (4) | AH80: 3296009022 (4) | AI80: 3296009662 (4) | AJ80: 3296009662 (4) | AK80: 3296009662 (4) | AL80: 3296009662 (4) | AM80: 3296009662 (4) | AN80: 3296009662 (4) | AO80: 3296009662 (4) | AP80: 3296009662 (4) | AQ80: 3296010302 (4) | AR80: 3296010302 (4) | AS80: 3296010302 (4) | AT80: 3296010302 (4) | AU80: 3296010302 (4) | AV80: 3296010302 (4) | AW80: 3296010302 (4) | AX80: 3296010302 (4) | AY80: 3296010302 (4) | AZ80: 3296010942 (4) | BA80: 3296010942 (4) | BB80: 3296010942 (4) | BC80: 3296010942 (4) | BD80: 3296010942 (4) | BE80: 3296010942 (4) | BF80: 3296010942 (4) | BG80: 3296010942 (4) | BH80: 3396009112 (4) | BI80: 3396009112 (4) | BJ80: 3396009112 (4) | BK80: 3396009112 (4) | BL80: 3396009112 (4) | BM80: 3396009112 (4) | BN80: 3396009112 (4) | BO80: 3396009112 (4) | BP80: 3396009612 (4) | BQ80: 3396009612 (4) | BR80: 3396009612 (4) | BS80: 3396009612 (4) | BT80: 3396009612 (4)
B81: =B80+2 -> 196 | C81: 3296007112 (4) | D81: 3296007112 (4) | E81: 3296007112 (4) | F81: 3296007112 (4) | G81: 3296007112 (4) | H81: 3296007112 (4) | I81: 3296007112 (4) | J81: 3296007112 (4) | K81: 3296007752 (4) | L81: 3296007752 (4) | M81: 3296007752 (4) | N81: 3296007752 (4) | O81: 3296007752 (4) | P81: 3296007752 (4) | Q81: 3296007752 (4) | R81: 3296007752 (4) | S81: 3296008382 (4) | T81: 3296008382 (4) | U81: 3296008382 (4) | V81: 3296008382 (4) | W81: 3296008382 (4) | X81: 3296008382 (4) | Y81: 3296008382 (4) | Z81: 3296008382 (4) | AA81: 3296008382 (4) | AB81: 3296009022 (4) | AC81: 3296009022 (4) | AD81: 3296009022 (4) | AE81: 3296009022 (4) | AF81: 3296009022 (4) | AG81: 3296009022 (4) | AH81: 3296009022 (4) | AI81: 3296009022 (4) | AJ81: 3296009662 (4) | AK81: 3296009662 (4) | AL81: 3296009662 (4) | AM81: 3296009662 (4) | AN81: 3296009662 (4) | AO81: 3296009662 (4) | AP81: 3296009662 (4) | AQ81: 3296009662 (4) | AR81: 3296010302 (4) | AS81: 3296010302 (4) | AT81: 3296010302 (4) | AU81: 3296010302 (4) | AV81: 3296010302 (4) | AW81: 3296010302 (4) | AX81: 3296010302 (4) | AY81: 3296010302 (4) | AZ81: 3296010302 (4) | BA81: 3296010942 (4) | BB81: 3296010942 (4) | BC81: 3296010942 (4) | BD81: 3296010942 (4) | BE81: 3296010942 (4) | BF81: 3296010942 (4) | BG81: 3296010942 (4) | BH81: 3296010942 (4) | BI81: 3396009112 (4) | BJ81: 3396009112 (4) | BK81: 3396009112 (4) | BL81: 3396009112 (4) | BM81: 3396009112 (4) | BN81: 3396009112 (4) | BO81: 3396009112 (4) | BP81: 3396009112 (4) | BQ81: 3396009112 (4) | BR81: 3396009612 (4) | BS81: 3396009612 (4) | BT81: 3396009612 (4)
B82: =B81+2 -> 198 | C82: 3296007112 (4) | D82: 3296007112 (4) | E82: 3296007112 (4) | F82: 3296007112 (4) | G82: 3296007112 (4) | H82: 3296007112 (4) | I82: 3296007112 (4) | J82: 3296007112 (4) | K82: 3296007112 (4) | L82: 3296007752 (4) | M82: 3296007752 (4) | N82: 3296007752 (4) | O82: 3296007752 (4) | P82: 3296007752 (4) | Q82: 3296007752 (4) | R82: 3296007752 (4) | S82: 3296007752 (4) | T82: 3296008382 (4) | U82: 3296008382 (4) | V82: 3296008382 (4) | W82: 3296008382 (4) | X82: 3296008382 (4) | Y82: 3296008382 (4) | Z82: 3296008382 (4) | AA82: 3296008382 (4) | AB82: 3296008382 (4) | AC82: 3296009022 (4) | AD82: 3296009022 (4) | AE82: 3296009022 (4) | AF82: 3296009022 (4) | AG82: 3296009022 (4) | AH82: 3296009022 (4) | AI82: 3296009022 (4) | AJ82: 3296009022 (4) | AK82: 3296009662 (4) | AL82: 3296009662 (4) | AM82: 3296009662 (4) | AN82: 3296009662 (4) | AO82: 3296009662 (4) | AP82: 3296009662 (4) | AQ82: 3296009662 (4) | AR82: 3296009662 (4) | AS82: 3296009662 (4) | AT82: 3296010302 (4) | AU82: 3296010302 (4) | AV82: 3296010302 (4) | AW82: 3296010302 (4) | AX82: 3296010302 (4) | AY82: 3296010302 (4) | AZ82: 3296010302 (4) | BA82: 3296010302 (4) | BB82: 3296010942 (4) | BC82: 3296010942 (4) | BD82: 3296010942 (4) | BE82: 3296010942 (4) | BF82: 3296010942 (4) | BG82: 3296010942 (4) | BH82: 3296010942 (4) | BI82: 3296010942 (4) | BJ82: 3296010942 (4) | BK82: 3396009112 (4) | BL82: 3396009112 (4) | BM82: 3396009112 (4) | BN82: 3396009112 (4) | BO82: 3396009112 (4) | BP82: 3396009112 (4) | BQ82: 3396009112 (4) | BR82: 3396009112 (4) | BS82: 3396009612 (4) | BT82: 3396009612 (4)
B83: 200 | C83: 3296006482 (4) | D83: 3296007112 (4) | E83: 3296007112 (4) | F83: 3296007112 (4) | G83: 3296007112 (4) | H83: 3296007112 (4) | I83: 3296007112 (4) | J83: 3296007112 (4) | K83: 3296007112 (4) | L83: 3296007112 (4) | M83: 3296007752 (4) | N83: 3296007752 (4) | O83: 3296007752 (4) | P83: 3296007752 (4) | Q83: 3296007752 (4) | R83: 3296007752 (4) | S83: 3296007752 (4) | T83: 3296007752 (4) | U83: 3296008382 (4) | V83: 3296008382 (4) | W83: 3296008382 (4) | X83: 3296008382 (4) | Y83: 3296008382 (4) | Z83: 3296008382 (4) | AA83: 3296008382 (4) | AB83: 3296008382 (4) | AC83: 3296008382 (4) | AD83: 3296009022 (4) | AE83: 3296009022 (4) | AF83: 3296009022 (4) | AG83: 3296009022 (4) | AH83: 3296009022 (4) | AI83: 3296009022 (4) | AJ83: 3296009022 (4) | AK83: 3296009022 (4) | AL83: 3296009662 (4) | AM83: 3296009662 (4) | AN83: 3296009662 (4) | AO83: 3296009662 (4) | AP83: 3296009662 (4) | AQ83: 3296009662 (4) | AR83: 3296009662 (4) | AS83: 3296009662 (4) | AT83: 3296009662 (4) | AU83: 3296010302 (4) | AV83: 3296010302 (4) | AW83: 3296010302 (4) | AX83: 3296010302 (4) | AY83: 3296010302 (4) | AZ83: 3296010302 (4) | BA83: 3296010302 (4) | BB83: 3296010302 (4) | BC83: 3296010942 (4) | BD83: 3296010942 (4) | BE83: 3296010942 (4) | BF83: 3296010942 (4) | BG83: 3296010942 (4) | BH83: 3296010942 (4) | BI83: 3296010942 (4) | BJ83: 3296010942 (4) | BK83: 3296010942 (4) | BL83: 3396009112 (4) | BM83: 3396009112 (4) | BN83: 3396009112 (4) | BO83: 3396009112 (4) | BP83: 3396009112 (4) | BQ83: 3396009112 (4) | BR83: 3396009112 (4) | BS83: 3396009112 (4) | BT83: 3396009112 (4)
B84: 202 | C84: 3296006482 (4) | D84: 3296006482 (4) | E84: 3296007112 (4) | F84: 3296007112 (4) | G84: 3296007112 (4) | H84: 3296007112 (4) | I84: 3296007112 (4) | J84: 3296007112 (4) | K84: 3296007112 (4) | L84: 3296007112 (4) | M84: 3296007112 (4) | N84: 3296007752 (4) | O84: 3296007752 (4) | P84: 3296007752 (4) | Q84: 3296007752 (4) | R84: 3296007752 (4) | S84: 3296007752 (4) | T84: 3296007752 (4) | U84: 3296007752 (4) | V84: 3296008382 (4) | W84: 3296008382 (4) | X84: 3296008382 (4) | Y84: 3296008382 (4) | Z84: 3296008382 (4) | AA84: 3296008382 (4) | AB84: 3296008382 (4) | AC84: 3296008382 (4) | AD84: 3296008382 (4) | AE84: 3296009022 (4) | AF84: 3296009022 (4) | AG84: 3296009022 (4) | AH84: 3296009022 (4) | AI84: 3296009022 (4) | AJ84: 3296009022 (4) | AK84: 3296009022 (4) | AL84: 3296009022 (4) | AM84: 3296009662 (4) | AN84: 3296009662 (4) | AO84: 3296009662 (4) | AP84: 3296009662 (4) | AQ84: 3296009662 (4) | AR84: 3296009662 (4) | AS84: 3296009662 (4) | AT84: 3296009662 (4) | AU84: 3296009662 (4) | AV84: 3296010302 (4) | AW84: 3296010302 (4) | AX84: 3296010302 (4) | AY84: 3296010302 (4) | AZ84: 3296010302 (4) | BA84: 3296010302 (4) | BB84: 3296010302 (4) | BC84: 3296010302 (4) | BD84: 3296010302 (4) | BE84: 3296010942 (4) | BF84: 3296010942 (4) | BG84: 3296010942 (4) | BH84: 3296010942 (4) | BI84: 3296010942 (4) | BJ84: 3296010942 (4) | BK84: 3296010942 (4) | BL84: 3296010942 (4) | BM84: 3396009112 (4) | BN84: 3396009112 (4) | BO84: 3396009112 (4) | BP84: 3396009112 (4) | BQ84: 3396009112 (4) | BR84: 3396009112 (4) | BS84: 3396009112 (4) | BT84: 3396009112 (4)
B85: 204 | C85: 3296006482 (4) | D85: 3296006482 (4) | E85: 3296006482 (4) | F85: 3296007112 (4) | G85: 3296007112 (4) | H85: 3296007112 (4) | I85: 3296007112 (4) | J85: 3296007112 (4) | K85: 3296007112 (4) | L85: 3296007112 (4) | M85: 3296007112 (4) | N85: 3296007752 (4) | O85: 3296007752 (4) | P85: 3296007752 (4) | Q85: 3296007752 (4) | R85: 3296007752 (4) | S85: 3296007752 (4) | T85: 3296007752 (4) | U85: 3296007752 (4) | V85: 3296007752 (4) | W85: 3296008382 (4) | X85: 3296008382 (4) | Y85: 3296008382 (4) | Z85: 3296008382 (4) | AA85: 3296008382 (4) | AB85: 3296008382 (4) | AC85: 3296008382 (4) | AD85: 3296008382 (4) | AE85: 3296008382 (4) | AF85: 3296009022 (4) | AG85: 3296009022 (4) | AH85: 3296009022 (4) | AI85: 3296009022 (4) | AJ85: 3296009022 (4) | AK85: 3296009022 (4) | AL85: 3296009022 (4) | AM85: 3296009022 (4) | AN85: 3296009022 (4) | AO85: 3296009662 (4) | AP85: 3296009662 (4) | AQ85: 3296009662 (4) | AR85: 3296009662 (4) | AS85: 3296009662 (4) | AT85: 3296009662 (4) | AU85: 3296009662 (4) | AV85: 3296009662 (4) | AW85: 3296010302 (4) | AX85: 3296010302 (4) | AY85: 3296010302 (4) | AZ85: 3296010302 (4) | BA85: 3296010302 (4) | BB85: 3296010302 (4) | BC85: 3296010302 (4) | BD85: 3296010302 (4) | BE85: 3296010302 (4) | BF85: 3296010942 (4) | BG85: 3296010942 (4) | BH85: 3296010942 (4) | BI85: 3296010942 (4) | BJ85: 3296010942 (4) | BK85: 3296010942 (4) | BL85: 3296010942 (4) | BM85: 3296010942 (4) | BN85: 3296010942 (4) | BO85: 3396009112 (4) | BP85: 3396009112 (4) | BQ85: 3396009112 (4) | BR85: 3396009112 (4) | BS85: 3396009112 (4) | BT85: 3396009112 (4)
B86: 206 | C86: 3296006482 (4) | D86: 3296006482 (4) | E86: 3296006482 (4) | F86: 3296006482 (4) | G86: 3296007112 (4) | H86: 3296007112 (4) | I86: 3296007112 (4) | J86: 3296007112 (4) | K86: 3296007112 (4) | L86: 3296007112 (4) | M86: 3296007112 (4) | N86: 3296007112 (4) | O86: 3296007752 (4) | P86: 3296007752 (4) | Q86: 3296007752 (4) | R86: 3296007752 (4) | S86: 3296007752 (4) | T86: 3296007752 (4) | U86: 3296007752 (4) | V86: 3296007752 (4) | W86: 3296007752 (4) | X86: 3296008382 (4) | Y86: 3296008382 (4) | Z86: 3296008382 (4) | AA86: 3296008382 (4) | AB86: 3296008382 (4) | AC86: 3296008382 (4) | AD86: 3296008382 (4) | AE86: 3296008382 (4) | AF86: 3296008382 (4) | AG86: 3296009022 (4) | AH86: 3296009022 (4) | AI86: 3296009022 (4) | AJ86: 3296009022 (4) | AK86: 3296009022 (4) | AL86: 3296009022 (4) | AM86: 3296009022 (4) | AN86: 3296009022 (4) | AO86: 3296009022 (4) | AP86: 3296009662 (4) | AQ86: 3296009662 (4) | AR86: 3296009662 (4) | AS86: 3296009662 (4) | AT86: 3296009662 (4) | AU86: 3296009662 (4) | AV86: 3296009662 (4) | AW86: 3296009662 (4) | AX86: 3296009662 (4) | AY86: 3296010302 (4) | AZ86: 3296010302 (4) | BA86: 3296010302 (4) | BB86: 3296010302 (4) | BC86: 3296010302 (4) | BD86: 3296010302 (4) | BE86: 3296010302 (4) | BF86: 3296010302 (4) | BG86: 3296010942 (4) | BH86: 3296010942 (4) | BI86: 3296010942 (4) | BJ86: 3296010942 (4) | BK86: 3296010942 (4) | BL86: 3296010942 (4) | BM86: 3296010942 (4) | BN86: 3296010942 (4) | BO86: 3296010942 (4) | BP86: 3396009112 (4) | BQ86: 3396009112 (4) | BR86: 3396009112 (4) | BS86: 3396009112 (4) | BT86: 3396009112 (4)
B87: 208 | C87: 3296006482 (4) | D87: 3296006482 (4) | E87: 3296006482 (4) | F87: 3296006482 (4) | G87: 3296007112 (4) | H87: 3296007112 (4) | I87: 3296007112 (4) | J87: 3296007112 (4) | K87: 3296007112 (4) | L87: 3296007112 (4) | M87: 3296007112 (4) | N87: 3296007112 (4) | O87: 3296007112 (4) | P87: 3296007752 (4) | Q87: 3296007752 (4) | R87: 3296007752 (4) | S87: 3296007752 (4) | T87: 3296007752 (4) | U87: 3296007752 (4) | V87: 3296007752 (4) | W87: 3296007752 (4) | X87: 3296007752 (4) | Y87: 3296008382 (4) | Z87: 3296008382 (4) | AA87: 3296008382 (4) | AB87: 3296008382 (4) | AC87: 3296008382 (4) | AD87: 3296008382 (4) | AE87: 3296008382 (4) | AF87: 3296008382 (4) | AG87: 3296008382 (4) | AH87: 3296009022 (4) | AI87: 3296009022 (4) | AJ87: 3296009022 (4) | AK87: 3296009022 (4) | AL87: 3296009022 (4) | AM87: 3296009022 (4) | AN87: 3296009022 (4) | AO87: 3296009022 (4) | AP87: 3296009022 (4) | AQ87: 3296009662 (4) | AR87: 3296009662 (4) | AS87: 3296009662 (4) | AT87: 3296009662 (4) | AU87: 3296009662 (4) | AV87: 3296009662 (4) | AW87: 3296009662 (4) | AX87: 3296009662 (4) | AY87: 3296009662 (4) | AZ87: 3296010302 (4) | BA87: 3296010302 (4) | BB87: 3296010302 (4) | BC87: 3296010302 (4) | BD87: 3296010302 (4) | BE87: 3296010302 (4) | BF87: 3296010302 (4) | BG87: 3296010302 (4) | BH87: 3296010302 (4) | BI87: 3296010942 (4) | BJ87: 3296010942 (4) | BK87: 3296010942 (4) | BL87: 3296010942 (4) | BM87: 3296010942 (4) | BN87: 3296010942 (4) | BO87: 3296010942 (4) | BP87: 3296010942 (4) | BQ87: 3296010942 (4) | BR87: 3396009112 (4) | BS87: 3396009112 (4) | BT87: 3396009112 (4)
B88: 210 | C88: 3296006482 (4) | D88: 3296006482 (4) | E88: 3296006482 (4) | F88: 3296006482 (4) | G88: 3296006482 (4) | H88: 3296007112 (4) | I88: 3296007112 (4) | J88: 3296007112 (4) | K88: 3296007112 (4) | L88: 3296007112 (4) | M88: 3296007112 (4) | N88: 3296007112 (4) | O88: 3296007112 (4) | P88: 3296007112 (4) | Q88: 3296007752 (4) | R88: 3296007752 (4) | S88: 3296007752 (4) | T88: 3296007752 (4) | U88: 3296007752 (4) | V88: 3296007752 (4) | W88: 3296007752 (4) | X88: 3296007752 (4) | Y88: 3296007752 (4) | Z88: 3296008382 (4) | AA88: 3296008382 (4) | AB88: 3296008382 (4) | AC88: 3296008382 (4) | AD88: 3296008382 (4) | AE88: 3296008382 (4) | AF88: 3296008382 (4) | AG88: 3296008382 (4) | AH88: 3296008382 (4) | AI88: 3296009022 (4) | AJ88: 3296009022 (4) | AK88: 3296009022 (4) | AL88: 3296009022 (4) | AM88: 3296009022 (4) | AN88: 3296009022 (4) | AO88: 3296009022 (4) | AP88: 3296009022 (4) | AQ88: 3296009022 (4) | AR88: 3296009662 (4) | AS88: 3296009662 (4) | AT88: 3296009662 (4) | AU88: 3296009662 (4) | AV88: 3296009662 (4) | AW88: 3296009662 (4) | AX88: 3296009662 (4) | AY88: 3296009662 (4) | AZ88: 3296009662 (4) | BA88: 3296010302 (4) | BB88: 3296010302 (4) | BC88: 3296010302 (4) | BD88: 3296010302 (4) | BE88: 3296010302 (4) | BF88: 3296010302 (4) | BG88: 3296010302 (4) | BH88: 3296010302 (4) | BI88: 3296010302 (4) | BJ88: 3296010942 (4) | BK88: 3296010942 (4) | BL88: 3296010942 (4) | BM88: 3296010942 (4) | BN88: 3296010942 (4) | BO88: 3296010942 (4) | BP88: 3296010942 (4) | BQ88: 3296010942 (4) | BR88: 3296010942 (4) | BS88: 3396009112 (4) | BT88: 3396009112 (4)
B89: 212 | C89: 3296006482 (4) | D89: 3296006482 (4) | E89: 3296006482 (4) | F89: 3296006482 (4) | G89: 3296006482 (4) | H89: 3296006482 (4) | I89: 3296007112 (4) | J89: 3296007112 (4) | K89: 3296007112 (4) | L89: 3296007112 (4) | M89: 3296007112 (4) | N89: 3296007112 (4) | O89: 3296007112 (4) | P89: 3296007112 (4) | Q89: 3296007112 (4) | R89: 3296007752 (4) | S89: 3296007752 (4) | T89: 3296007752 (4) | U89: 3296007752 (4) | V89: 3296007752 (4) | W89: 3296007752 (4) | X89: 3296007752 (4) | Y89: 3296007752 (4) | Z89: 3296007752 (4) | AA89: 3296008382 (4) | AB89: 3296008382 (4) | AC89: 3296008382 (4) | AD89: 3296008382 (4) | AE89: 3296008382 (4) | AF89: 3296008382 (4) | AG89: 3296008382 (4) | AH89: 3296008382 (4) | AI89: 3296008382 (4) | AJ89: 3296009022 (4) | AK89: 3296009022 (4) | AL89: 3296009022 (4) | AM89: 3296009022 (4) | AN89: 3296009022 (4) | AO89: 3296009022 (4) | AP89: 3296009022 (4) | AQ89: 3296009022 (4) | AR89: 3296009022 (4) | AS89: 3296009662 (4) | AT89: 3296009662 (4) | AU89: 3296009662 (4) | AV89: 3296009662 (4) | AW89: 3296009662 (4) | AX89: 3296009662 (4) | AY89: 3296009662 (4) | AZ89: 3296009662 (4) | BA89: 3296009662 (4) | BB89: 3296010302 (4) | BC89: 3296010302 (4) | BD89: 3296010302 (4) | BE89: 3296010302 (4) | BF89: 3296010302 (4) | BG89: 3296010302 (4) | BH89: 3296010302 (4) | BI89: 3296010302 (4) | BJ89: 3296010302 (4) | BK89: 3296010942 (4) | BL89: 3296010942 (4) | BM89: 3296010942 (4) | BN89: 3296010942 (4) | BO89: 3296010942 (4) | BP89: 3296010942 (4) | BQ89: 3296010942 (4) | BR89: 3296010942 (4) | BS89: 3296010942 (4) | BT89: 3396009112 (4)
B90: 214 | C90: 3296006482 (4) | D90: 3296006482 (4) | E90: 3296006482 (4) | F90: 3296006482 (4) | G90: 3296006482 (4) | H90: 3296006482 (4) | I90: 3296006482 (4) | J90: 3296007112 (4) | K90: 3296007112 (4) | L90: 3296007112 (4) | M90: 3296007112 (4) | N90: 3296007112 (4) | O90: 3296007112 (4) | P90: 3296007112 (4) | Q90: 3296007112 (4) | R90: 3296007112 (4) | S90: 3296007752 (4) | T90: 3296007752 (4) | U90: 3296007752 (4) | V90: 3296007752 (4) | W90: 3296007752 (4) | X90: 3296007752 (4) | Y90: 3296007752 (4) | Z90: 3296007752 (4) | AA90: 3296007752 (4) | AB90: 3296008382 (4) | AC90: 3296008382 (4) | AD90: 3296008382 (4) | AE90: 3296008382 (4) | AF90: 3296008382 (4) | AG90: 3296008382 (4) | AH90: 3296008382 (4) | AI90: 3296008382 (4) | AJ90: 3296008382 (4) | AK90: 3296009022 (4) | AL90: 3296009022 (4) | AM90: 3296009022 (4) | AN90: 3296009022 (4) | AO90: 3296009022 (4) | AP90: 3296009022 (4) | AQ90: 3296009022 (4) | AR90: 3296009022 (4) | AS90: 3296009022 (4) | AT90: 3296009662 (4) | AU90: 3296009662 (4) | AV90: 3296009662 (4) | AW90: 3296009662 (4) | AX90: 3296009662 (4) | AY90: 3296009662 (4) | AZ90: 3296009662 (4) | BA90: 3296009662 (4) | BB90: 3296009662 (4) | BC90: 3296010302 (4) | BD90: 3296010302 (4) | BE90: 3296010302 (4) | BF90: 3296010302 (4) | BG90: 3296010302 (4) | BH90: 3296010302 (4) | BI90: 3296010302 (4) | BJ90: 3296010302 (4) | BK90: 3296010302 (4) | BL90: 3296010302 (4) | BM90: 3296010942 (4) | BN90: 3296010942 (4) | BO90: 3296010942 (4) | BP90: 3296010942 (4) | BQ90: 3296010942 (4) | BR90: 3296010942 (4) | BS90: 3296010942 (4) | BT90: 3296010942 (4)
B91: 216 | C91: 3296006482 (4) | D91: 3296006482 (4) | E91: 3296006482 (4) | F91: 3296006482 (4) | G91: 3296006482 (4) | H91: 3296006482 (4) | I91: 3296006482 (4) | J91: 3296006482 (4) | K91: 3296007112 (4) | L91: 3296007112 (4) | M91: 3296007112 (4) | N91: 3296007112 (4) | O91: 3296007112 (4) | P91: 3296007112 (4) | Q91: 3296007112 (4) | R91: 3296007112 (4) | S91: 3296007112 (4) | T91: 3296007752 (4) | U91: 3296007752 (4) | V91: 3296007752 (4) | W91: 3296007752 (4) | X91: 3296007752 (4) | Y91: 3296007752 (4) | Z91: 3296007752 (4) | AA91: 3296007752 (4) | AB91: 3296007752 (4) | AC91: 3296008382 (4) | AD91: 3296008382 (4) | AE91: 3296008382 (4) | AF91: 3296008382 (4) | AG91: 3296008382 (4) | AH91: 3296008382 (4) | AI91: 3296008382 (4) | AJ91: 3296008382 (4) | AK91: 3296008382 (4) | AL91: 3296009022 (4) | AM91: 3296009022 (4) | AN91: 3296009022 (4) | AO91: 3296009022 (4) | AP91: 3296009022 (4) | AQ91: 3296009022 (4) | AR91: 3296009022 (4) | AS91: 3296009022 (4) | AT91: 3296009022 (4) | AU91: 3296009662 (4) | AV91: 3296009662 (4) | AW91: 3296009662 (4) | AX91: 3296009662 (4) | AY91: 3296009662 (4) | AZ91: 3296009662 (4) | BA91: 3296009662 (4) | BB91: 3296009662 (4) | BC91: 3296009662 (4) | BD91: 3296009662 (4) | BE91: 3296010302 (4) | BF91: 3296010302 (4) | BG91: 3296010302 (4) | BH91: 3296010302 (4) | BI91: 3296010302 (4) | BJ91: 3296010302 (4) | BK91: 3296010302 (4) | BL91: 3296010302 (4) | BM91: 3296010302 (4) | BN91: 3296010942 (4) | BO91: 3296010942 (4) | BP91: 3296010942 (4) | BQ91: 3296010942 (4) | BR91: 3296010942 (4) | BS91: 3296010942 (4) | BT91: 3296010942 (4)
B92: 218 | C92: 3296006482 (4) | D92: 3296006482 (4) | E92: 3296006482 (4) | F92: 3296006482 (4) | G92: 3296006482 (4) | H92: 3296006482 (4) | I92: 3296006482 (4) | J92: 3296006482 (4) | K92: 3296007112 (4) | L92: 3296007112 (4) | M92: 3296007112 (4) | N92: 3296007112 (4) | O92: 3296007112 (4) | P92: 3296007112 (4) | Q92: 3296007112 (4) | R92: 3296007112 (4) | S92: 3296007112 (4) | T92: 3296007112 (4) | U92: 3296007752 (4) | V92: 3296007752 (4) | W92: 3296007752 (4) | X92: 3296007752 (4) | Y92: 3296007752 (4) | Z92: 3296007752 (4) | AA92: 3296007752 (4) | AB92: 3296007752 (4) | AC92: 3296007752 (4) | AD92: 3296008382 (4) | AE92: 3296008382 (4) | AF92: 3296008382 (4) | AG92: 3296008382 (4) | AH92: 3296008382 (4) | AI92: 3296008382 (4) | AJ92: 3296008382 (4) | AK92: 3296008382 (4) | AL92: 3296008382 (4) | AM92: 3296009022 (4) | AN92: 3296009022 (4) | AO92: 3296009022 (4) | AP92: 3296009022 (4) | AQ92: 3296009022 (4) | AR92: 3296009022 (4) | AS92: 3296009022 (4) | AT92: 3296009022 (4) | AU92: 3296009022 (4) | AV92: 3296009022 (4) | AW92: 3296009662 (4) | AX92: 3296009662 (4) | AY92: 3296009662 (4) | AZ92: 3296009662 (4) | BA92: 3296009662 (4) | BB92: 3296009662 (4) | BC92: 3296009662 (4) | BD92: 3296009662 (4) | BE92: 3296009662 (4) | BF92: 3296010302 (4) | BG92: 3296010302 (4) | BH92: 3296010302 (4) | BI92: 3296010302 (4) | BJ92: 3296010302 (4) | BK92: 3296010302 (4) | BL92: 3296010302 (4) | BM92: 3296010302 (4) | BN92: 3296010302 (4) | BO92: 3296010942 (4) | BP92: 3296010942 (4) | BQ92: 3296010942 (4) | BR92: 3296010942 (4) | BS92: 3296010942 (4) | BT92: 3296010942 (4)
B93: 220 | C93: 3296006482 (4) | D93: 3296006482 (4) | E93: 3296006482 (4) | F93: 3296006482 (4) | G93: 3296006482 (4) | H93: 3296006482 (4) | I93: 3296006482 (4) | J93: 3296006482 (4) | K93: 3296006482 (4) | L93: 3296007112 (4) | M93: 3296007112 (4) | N93: 3296007112 (4) | O93: 3296007112 (4) | P93: 3296007112 (4) | Q93: 3296007112 (4) | R93: 3296007112 (4) | S93: 3296007112 (4) | T93: 3296007112 (4) | U93: 3296007112 (4) | V93: 3296007752 (4) | W93: 3296007752 (4) | X93: 3296007752 (4) | Y93: 3296007752 (4) | Z93: 3296007752 (4) | AA93: 3296007752 (4) | AB93: 3296007752 (4) | AC93: 3296007752 (4) | AD93: 3296007752 (4) | AE93: 3296008382 (4) | AF93: 3296008382 (4) | AG93: 3296008382 (4) | AH93: 3296008382 (4) | AI93: 3296008382 (4) | AJ93: 3296008382 (4) | AK93: 3296008382 (4) | AL93: 3296008382 (4) | AM93: 3296008382 (4) | AN93: 3296009022 (4) | AO93: 3296009022 (4) | AP93: 3296009022 (4) | AQ93: 3296009022 (4) | AR93: 3296009022 (4) | AS93: 3296009022 (4) | AT93: 3296009022 (4) | AU93: 3296009022 (4) | AV93: 3296009022 (4) | AW93: 3296009022 (4) | AX93: 3296009662 (4) | AY93: 3296009662 (4) | AZ93: 3296009662 (4) | BA93: 3296009662 (4) | BB93: 3296009662 (4) | BC93: 3296009662 (4) | BD93: 3296009662 (4) | BE93: 3296009662 (4) | BF93: 3296009662 (4) | BG93: 3296010302 (4) | BH93: 3296010302 (4) | BI93: 3296010302 (4) | BJ93: 3296010302 (4) | BK93: 3296010302 (4) | BL93: 3296010302 (4) | BM93: 3296010302 (4) | BN93: 3296010302 (4) | BO93: 3296010302 (4) | BP93: 3296010942 (4) | BQ93: 3296010942 (4) | BR93: 3296010942 (4) | BS93: 3296010942 (4) | BT93: 3296010942 (4)
B94: 222 | C94: 3296006482 (4) | D94: 3296006482 (4) | E94: 3296006482 (4) | F94: 3296006482 (4) | G94: 3296006482 (4) | H94: 3296006482 (4) | I94: 3296006482 (4) | J94: 3296006482 (4) | K94: 3296006482 (4) | L94: 3296006482 (4) | M94: 3296007112 (4) | N94: 3296007112 (4) | O94: 3296007112 (4) | P94: 3296007112 (4) | Q94: 3296007112 (4) | R94: 3296007112 (4) | S94: 3296007112 (4) | T94: 3296007112 (4) | U94: 3296007112 (4) | V94: 3296007752 (4) | W94: 3296007752 (4) | X94: 3296007752 (4) | Y94: 3296007752 (4) | Z94: 3296007752 (4) | AA94: 3296007752 (4) | AB94: 3296007752 (4) | AC94: 3296007752 (4) | AD94: 3296007752 (4) | AE94: 3296007752 (4) | AF94: 3296008382 (4) | AG94: 3296008382 (4) | AH94: 3296008382 (4) | AI94: 3296008382 (4) | AJ94: 3296008382 (4) | AK94: 3296008382 (4) | AL94: 3296008382 (4) | AM94: 3296008382 (4) | AN94: 3296008382 (4) | AO94: 3296009022 (4) | AP94: 3296009022 (4) | AQ94: 3296009022 (4) | AR94: 3296009022 (4) | AS94: 3296009022 (4) | AT94: 3296009022 (4) | AU94: 3296009022 (4) | AV94: 3296009022 (4) | AW94: 3296009022 (4) | AX94: 3296009022 (4) | AY94: 3296009662 (4) | AZ94: 3296009662 (4) | BA94: 3296009662 (4) | BB94: 3296009662 (4) | BC94: 3296009662 (4) | BD94: 3296009662 (4) | BE94: 3296009662 (4) | BF94: 3296009662 (4) | BG94: 3296009662 (4) | BH94: 3296010302 (4) | BI94: 3296010302 (4) | BJ94: 3296010302 (4) | BK94: 3296010302 (4) | BL94: 3296010302 (4) | BM94: 3296010302 (4) | BN94: 3296010302 (4) | BO94: 3296010302 (4) | BP94: 3296010302 (4) | BQ94: 3296010302 (4) | BR94: 3296010942 (4) | BS94: 3296010942 (4) | BT94: 3296010942 (4)
B95: 224 | C95: 3296006482 (4) | D95: 3296006482 (4) | E95: 3296006482 (4) | F95: 3296006482 (4) | G95: 3296006482 (4) | H95: 3296006482 (4) | I95: 3296006482 (4) | J95: 3296006482 (4) | K95: 3296006482 (4) | L95: 3296006482 (4) | M95: 3296006482 (4) | N95: 3296007112 (4) | O95: 3296007112 (4) | P95: 3296007112 (4) | Q95: 3296007112 (4) | R95: 3296007112 (4) | S95: 3296007112 (4) | T95: 3296007112 (4) | U95: 3296007112 (4) | V95: 3296007112 (4) | W95: 3296007752 (4) | X95: 3296007752 (4) | Y95: 3296007752 (4) | Z95: 3296007752 (4) | AA95: 3296007752 (4) | AB95: 3296007752 (4) | AC95: 3296007752 (4) | AD95: 3296007752 (4) | AE95: 3296007752 (4) | AF95: 3296007752 (4) | AG95: 3296008382 (4) | AH95: 3296008382 (4) | AI95: 3296008382 (4) | AJ95: 3296008382 (4) | AK95: 3296008382 (4) | AL95: 3296008382 (4) | AM95: 3296008382 (4) | AN95: 3296008382 (4) | AO95: 3296008382 (4) | AP95: 3296009022 (4) | AQ95: 3296009022 (4) | AR95: 3296009022 (4) | AS95: 3296009022 (4) | AT95: 3296009022 (4) | AU95: 3296009022 (4) | AV95: 3296009022 (4) | AW95: 3296009022 (4) | AX95: 3296009022 (4) | AY95: 3296009022 (4) | AZ95: 3296009662 (4) | BA95: 3296009662 (4) | BB95: 3296009662 (4) | BC95: 3296009662 (4) | BD95: 3296009662 (4) | BE95: 3296009662 (4) | BF95: 3296009662 (4) | BG95: 3296009662 (4) | BH95: 3296009662 (4) | BI95: 3296009662 (4) | BJ95: 3296010302 (4) | BK95: 3296010302 (4) | BL95: 3296010302 (4) | BM95: 3296010302 (4) | BN95: 3296010302 (4) | BO95: 3296010302 (4) | BP95: 3296010302 (4) | BQ95: 3296010302 (4) | BR95: 3296010302 (4) | BS95: 3296010942 (4) | BT95: 3296010942 (4)
B96: 226 | C96: 3296006482 (4) | D96: 3296006482 (4) | E96: 3296006482 (4) | F96: 3296006482 (4) | G96: 3296006482 (4) | H96: 3296006482 (4) | I96: 3296006482 (4) | J96: 3296006482 (4) | K96: 3296006482 (4) | L96: 3296006482 (4) | M96: 3296006482 (4) | N96: 3296007112 (4) | O96: 3296007112 (4) | P96: 3296007112 (4) | Q96: 3296007112 (4) | R96: 3296007112 (4) | S96: 3296007112 (4) | T96: 3296007112 (4) | U96: 3296007112 (4) | V96: 3296007112 (4) | W96: 3296007112 (4) | X96: 3296007752 (4) | Y96: 3296007752 (4) | Z96: 3296007752 (4) | AA96: 3296007752 (4) | AB96: 3296007752 (4) | AC96: 3296007752 (4) | AD96: 3296007752 (4) | AE96: 3296007752 (4) | AF96: 3296007752 (4) | AG96: 3296007752 (4) | AH96: 3296008382 (4) | AI96: 3296008382 (4) | AJ96: 3296008382 (4) | AK96: 3296008382 (4) | AL96: 3296008382 (4) | AM96: 3296008382 (4) | AN96: 3296008382 (4) | AO96: 3296008382 (4) | AP96: 3296008382 (4) | AQ96: 3296009022 (4) | AR96: 3296009022 (4) | AS96: 3296009022 (4) | AT96: 3296009022 (4) | AU96: 3296009022 (4) | AV96: 3296009022 (4) | AW96: 3296009022 (4) | AX96: 3296009022 (4) | AY96: 3296009022 (4) | AZ96: 3296009022 (4) | BA96: 3296009662 (4) | BB96: 3296009662 (4) | BC96: 3296009662 (4) | BD96: 3296009662 (4) | BE96: 3296009662 (4) | BF96: 3296009662 (4) | BG96: 3296009662 (4) | BH96: 3296009662 (4) | BI96: 3296009662 (4) | BJ96: 3296010302 (4) | BK96: 3296010302 (4) | BL96: 3296010302 (4) | BM96: 3296010302 (4) | BN96: 3296010302 (4) | BO96: 3296010302 (4) | BP96: 3296010302 (4) | BQ96: 3296010302 (4) | BR96: 3296010302 (4) | BS96: 3296010302 (4) | BT96: 3296010942 (4)
B97: 228 | C97: 3296508382 (4) | D97: 3296006482 (4) | E97: 3296006482 (4) | F97: 3296006482 (4) | G97: 3296006482 (4) | H97: 3296006482 (4) | I97: 3296006482 (4) | J97: 3296006482 (4) | K97: 3296006482 (4) | L97: 3296006482 (4) | M97: 3296006482 (4) | N97: 3296007112 (4) | O97: 3296007112 (4) | P97: 3296007112 (4) | Q97: 3296007112 (4) | R97: 3296007112 (4) | S97: 3296007112 (4) | T97: 3296007112 (4) | U97: 3296007112 (4) | V97: 3296007112 (4) | W97: 3296007112 (4) | X97: 3296007752 (4) | Y97: 3296007752 (4) | Z97: 3296007752 (4) | AA97: 3296007752 (4) | AB97: 3296007752 (4) | AC97: 3296007752 (4) | AD97: 3296007752 (4) | AE97: 3296007752 (4) | AF97: 3296007752 (4) | AG97: 3296008382 (4) | AH97: 3296008382 (4) | AI97: 3296008382 (4) | AJ97: 3296008382 (4) | AK97: 3296008382 (4) | AL97: 3296008382 (4) | AM97: 3296008382 (4) | AN97: 3296008382 (4) | AO97: 3296008382 (4) | AP97: 3296008382 (4) | AQ97: 3296009022 (4) | AR97: 3296009022 (4) | AS97: 3296009022 (4) | AT97: 3296009022 (4) | AU97: 3296009022 (4) | AV97: 3296009022 (4) | AW97: 3296009022 (4) | AX97: 3296009022 (4) | AY97: 3296009022 (4) | AZ97: 3296009022 (4) | BA97: 3296009662 (4) | BB97: 3296009662 (4) | BC97: 3296009662 (4) | BD97: 3296009662 (4) | BE97: 3296009662 (4) | BF97: 3296009662 (4) | BG97: 3296009662 (4) | BH97: 3296009662 (4) | BI97: 3296009662 (4) | BJ97: 3396511372 (4) | BK97: 3296010302 (4) | BL97: 3296010302 (4) | BM97: 3296010302 (4) | BN97: 3296010302 (4) | BO97: 3296010302 (4) | BP97: 3296010302 (4) | BQ97: 3296010302 (4) | BR97: 3296010302 (4) | BS97: 3296010302 (4) | BT97: 3296010302 (4)
B98: 230 | C98: 3296508382 (4) | D98: 3296006482 (4) | E98: 3296006482 (4) | F98: 3296006482 (4) | G98: 3296006482 (4) | H98: 3296006482 (4) | I98: 3296006482 (4) | J98: 3296006482 (4) | K98: 3296006482 (4) | L98: 3296006482 (4) | M98: 3296006482 (4) | N98: 3296007112 (4) | O98: 3296007112 (4) | P98: 3296007112 (4) | Q98: 3296007112 (4) | R98: 3296007112 (4) | S98: 3296007112 (4) | T98: 3296007112 (4) | U98: 3296007112 (4) | V98: 3296007112 (4) | W98: 3296007112 (4) | X98: 3296007752 (4) | Y98: 3296007752 (4) | Z98: 3296007752 (4) | AA98: 3296007752 (4) | AB98: 3296007752 (4) | AC98: 3296007752 (4) | AD98: 3296007752 (4) | AE98: 3296007752 (4) | AF98: 3296007752 (4) | AG98: 3296511402 (4) | AH98: 3296008382 (4) | AI98: 3296008382 (4) | AJ98: 3296008382 (4) | AK98: 3296008382 (4) | AL98: 3296008382 (4) | AM98: 3296008382 (4) | AN98: 3296008382 (4) | AO98: 3296008382 (4) | AP98: 3296008382 (4) | AQ98: 3296512162 (4) | AR98: 3296009022 (4) | AS98: 3296009022 (4) | AT98: 3296009022 (4) | AU98: 3296009022 (4) | AV98: 3296009022 (4) | AW98: 3296009022 (4) | AX98: 3296009022 (4) | AY98: 3296009022 (4) | AZ98: 3296009022 (4) | BA98: 3396510772 (4) | BB98: 3296009662 (4) | BC98: 3296009662 (4) | BD98: 3296009662 (4) | BE98: 3296009662 (4) | BF98: 3296009662 (4) | BG98: 3296009662 (4) | BH98: 3296009662 (4) | BI98: 3296009662 (4) | BJ98: 3396511372 (4) | BK98: 3396511372 (4) | BL98: 3296010302 (4) | BM98: 3296010302 (4) | BN98: 3296010302 (4) | BO98: 3296010302 (4) | BP98: 3296010302 (4) | BQ98: 3296010302 (4) | BR98: 3296010302 (4) | BS98: 3296010302 (4) | BT98: 3296010302 (4)
B99: 232 | C99: 3296508382 (4) | D99: 3296508382 (4) | E99: 3296006482 (4) | F99: 3296006482 (4) | G99: 3296006482 (4) | H99: 3296006482 (4) | I99: 3296006482 (4) | J99: 3296006482 (4) | K99: 3296006482 (4) | L99: 3296006482 (4) | M99: 3296006482 (4) | N99: 3296509892 (4) | O99: 3296007112 (4) | P99: 3296007112 (4) | Q99: 3296007112 (4) | R99: 3296007112 (4) | S99: 3296007112 (4) | T99: 3296007112 (4) | U99: 3296007112 (4) | V99: 3296007112 (4) | W99: 3296007112 (4) | X99: 3296510642 (4) | Y99: 3296007752 (4) | Z99: 3296007752 (4) | AA99: 3296007752 (4) | AB99: 3296007752 (4) | AC99: 3296007752 (4) | AD99: 3296007752 (4) | AE99: 3296007752 (4) | AF99: 3296007752 (4) | AG99: 3296511402 (4) | AH99: 3296511402 (4) | AI99: 3296008382 (4) | AJ99: 3296008382 (4) | AK99: 3296008382 (4) | AL99: 3296008382 (4) | AM99: 3296008382 (4) | AN99: 3296008382 (4) | AO99: 3296008382 (4) | AP99: 3296008382 (4) | AQ99: 3296512162 (4) | AR99: 3296512162 (4) | AS99: 3296009022 (4) | AT99: 3296009022 (4) | AU99: 3296009022 (4) | AV99: 3296009022 (4) | AW99: 3296009022 (4) | AX99: 3296009022 (4) | AY99: 3296009022 (4) | AZ99: 3396510182 (4) | BA99: 3396510182 (4) | BB99: 3396510772 (4) | BC99: 3296009662 (4) | BD99: 3296009662 (4) | BE99: 3296009662 (4) | BF99: 3296009662 (4) | BG99: 3296009662 (4) | BH99: 3296009662 (4) | BI99: 3296009662 (4) | BJ99: 3396511372 (4) | BK99: 3396511372 (4) | BL99: 3396511372 (4) | BM99: 3296010302 (4) | BN99: 3296010302 (4) | BO99: 3296010302 (4) | BP99: 3296010302 (4) | BQ99: 3296010302 (4) | BR99: 3296010302 (4) | BS99: 3296010302 (4) | BT99: 3296010302 (4)
B100: 234 | C100: 3296508382 (4) | D100: 3296508382 (4) | E100: 3296508382 (4) | F100: 3296006482 (4) | G100: 3296006482 (4) | H100: 3296006482 (4) | I100: 3296006482 (4) | J100: 3296006482 (4) | K100: 3296006482 (4) | L100: 3296006482 (4) | M100: 3296006482 (4) | N100: 3296509132 (4) | O100: 3296509892 (4) | P100: 3296007112 (4) | Q100: 3296007112 (4) | R100: 3296007112 (4) | S100: 3296007112 (4) | T100: 3296007112 (4) | U100: 3296007112 (4) | V100: 3296007112 (4) | W100: 3296510642 (4) | X100: 3296510642 (4) | Y100: 3296510642 (4) | Z100: 3296007752 (4) | AA100: 3296007752 (4) | AB100: 3296007752 (4) | AC100: 3296007752 (4) | AD100: 3296007752 (4) | AE100: 3296007752 (4) | AF100: 3296007752 (4) | AG100: 3296511402 (4) | AH100: 3296511402 (4) | AI100: 3296511402 (4) | AJ100: 3296008382 (4) | AK100: 3296008382 (4) | AL100: 3296008382 (4) | AM100: 3296008382 (4) | AN100: 3296008382 (4) | AO100: 3296008382 (4) | AP100: 3296008382 (4) | AQ100: 3296512162 (4) | AR100: 3296512162 (4) | AS100: 3296512162 (4) | AT100: 3296512162 (4) | AU100: 3296009022 (4) | AV100: 3296009022 (4) | AW100: 3296009022 (4) | AX100: 3296009022 (4) | AY100: 3296009022 (4) | AZ100: 3396510182 (4) | BA100: 3396510182 (4) | BB100: 3396510182 (4) | BC100: 3396510772 (4) | BD100: 3396510772 (4) | BE100: 3296009662 (4) | BF100: 3296009662 (4) | BG100: 3296009662 (4) | BH100: 3296009662 (4) | BI100: 3296009662 (4) | BJ100: 3396510772 (4) | BK100: 3396511372 (4) | BL100: 3396511372 (4) | BM100: 3396511372 (4) | BN100: 3396511372 (4) | BO100: 3296010302 (4) | BP100: 3296010302 (4) | BQ100: 3296010302 (4) | BR100: 3296010302 (4) | BS100: 3296010302 (4) | BT100: 3296010302 (4)
B101: 236 | C101: 3296508382 (4) | D101: 3296508382 (4) | E101: 3296508382 (4) | F101: 3296508382 (4) | G101: 3296006482 (4) | H101: 3296006482 (4) | I101: 3296006482 (4) | J101: 3296006482 (4) | K101: 3296006482 (4) | L101: 3296006482 (4) | M101: 3296006482 (4) | N101: 3296509132 (4) | O101: 3296509132 (4) | P101: 3296509892 (4) | Q101: 3296007112 (4) | R101: 3296007112 (4) | S101: 3296007112 (4) | T101: 3296007112 (4) | U101: 3296007112 (4) | V101: 3296007112 (4) | W101: 3296509892 (4) | X101: 3296510642 (4) | Y101: 3296510642 (4) | Z101: 3296510642 (4) | AA101: 3296007752 (4) | AB101: 3296007752 (4) | AC101: 3296007752 (4) | AD101: 3296007752 (4) | AE101: 3296007752 (4) | AF101: 3296007752 (4) | AG101: 3296511402 (4) | AH101: 3296511402 (4) | AI101: 3296511402 (4) | AJ101: 3296511402 (4) | AK101: 3296511402 (4) | AL101: 3296008382 (4) | AM101: 3296008382 (4) | AN101: 3296008382 (4) | AO101: 3296008382 (4) | AP101: 3296008382 (4) | AQ101: 3296512162 (4) | AR101: 3296512162 (4) | AS101: 3296512162 (4) | AT101: 3296512162 (4) | AU101: 3296512162 (4) | AV101: 3296009022 (4) | AW101: 3296009022 (4) | AX101: 3296009022 (4) | AY101: 3296009022 (4) | AZ101: 3396510182 (4) | BA101: 3396510182 (4) | BB101: 3396510182 (4) | BC101: 3396510182 (4) | BD101: 3396510182 (4) | BE101: 3396510772 (4) | BF101: 3296009662 (4) | BG101: 3296009662 (4) | BH101: 3296009662 (4) | BI101: 3296009662 (4) | BJ101: 3396510772 (4) | BK101: 3396510772 (4) | BL101: 3396510772 (4) | BM101: 3396511372 (4) | BN101: 3396511372 (4) | BO101: 3396511372 (4) | BP101: 3296010302 (4) | BQ101: 3296010302 (4) | BR101: 3296010302 (4) | BS101: 3396511372 (4) | BT101: 3396511372 (4)
B102: 238 | C102: 3296508382 (4) | D102: 3296508382 (4) | E102: 3296508382 (4) | F102: 3296508382 (4) | G102: 3296508382 (4) | H102: 3296006482 (4) | I102: 3296006482 (4) | J102: 3296006482 (4) | K102: 3296006482 (4) | L102: 3296006482 (4) | M102: 3296006482 (4) | N102: 3296509132 (4) | O102: 3296509132 (4) | P102: 3296509132 (4) | Q102: 3296509892 (4) | R102: 3296007112 (4) | S102: 3296007112 (4) | T102: 3296007112 (4) | U102: 3296007112 (4) | V102: 3296007112 (4) | W102: 3296509892 (4) | X102: 3296509892 (4) | Y102: 3296510642 (4) | Z102: 3296510642 (4) | AA102: 3296510642 (4) | AB102: 3296007752 (4) | AC102: 3296007752 (4) | AD102: 3296007752 (4) | AE102: 3296007752 (4) | AF102: 3296007752 (4) | AG102: 3296511402 (4) | AH102: 3296511402 (4) | AI102: 3296511402 (4) | AJ102: 3296511402 (4) | AK102: 3296511402 (4) | AL102: 3296511402 (4) | AM102: 3296008382 (4) | AN102: 3296008382 (4) | AO102: 3296008382 (4) | AP102: 3296512162 (4) | AQ102: 3296512162 (4) | AR102: 3296512162 (4) | AS102: 3296512162 (4) | AT102: 3296512162 (4) | AU102: 3296512162 (4) | AV102: 3296512162 (4) | AW102: 3296009022 (4) | AX102: 3296009022 (4) | AY102: 3296009022 (4) | AZ102: 3396510182 (4) | BA102: 3396510182 (4) | BB102: 3396510182 (4) | BC102: 3396510182 (4) | BD102: 3396510182 (4) | BE102: 3396510182 (4) | BF102: 3396510772 (4) | BG102: 3296009662 (4) | BH102: 3296009662 (4) | BI102: 3296009662 (4) | BJ102: 3396510772 (4) | BK102: 3396510772 (4) | BL102: 3396510772 (4) | BM102: 3396510772 (4) | BN102: 3396511372 (4) | BO102: 3396511372 (4) | BP102: 3396511372 (4) | BQ102: 3296010302 (4) | BR102: 3296010302 (4) | BS102: 3396511372 (4) | BT102: 3396511372 (4)
B103: 240 | C103: 3296508382 (4) | D103: 3296508382 (4) | E103: 3296508382 (4) | F103: 3296508382 (4) | G103: 3296508382 (4) | H103: 3296006482 (4) | I103: 3296006482 (4) | J103: 3296006482 (4) | K103: 3296006482 (4) | L103: 3296006482 (4) | M103: 3296509132 (4) | N103: 3296509132 (4) | O103: 3296509132 (4) | P103: 3296509132 (4) | Q103: 3296509132 (4) | R103: 3296509892 (4) | S103: 3296007112 (4) | T103: 3296007112 (4) | U103: 3296007112 (4) | V103: 3296007112 (4) | W103: 3296509892 (4) | X103: 3296509892 (4) | Y103: 3296509892 (4) | Z103: 3296510642 (4) | AA103: 3296510642 (4) | AB103: 3296510642 (4) | AC103: 3296007752 (4) | AD103: 3296007752 (4) | AE103: 3296007752 (4) | AF103: 3296007752 (4) | AG103: 3296510642 (4) | AH103: 3296511402 (4) | AI103: 3296511402 (4) | AJ103: 3296511402 (4) | AK103: 3296511402 (4) | AL103: 3296511402 (4) | AM103: 3296511402 (4) | AN103: 3296008382 (4) | AO103: 3296008382 (4) | AP103: 3296512162 (4) | AQ103: 3296512162 (4) | AR103: 3296512162 (4) | AS103: 3296512162 (4) | AT103: 3296512162 (4) | AU103: 3296512162 (4) | AV103: 3296512162 (4) | AW103: 3296512162 (4) | AX103: 3296009022 (4) | AY103: 3296009022 (4) | AZ103: 3396510182 (4) | BA103: 3396510182 (4) | BB103: 3396510182 (4) | BC103: 3396510182 (4) | BD103: 3396510182 (4) | BE103: 3396510182 (4) | BF103: 3396510182 (4) | BG103: 3396510772 (4) | BH103: 3296009662 (4) | BI103: 3296009662 (4) | BJ103: 3396510772 (4) | BK103: 3396510772 (4) | BL103: 3396510772 (4) | BM103: 3396510772 (4) | BN103: 3396510772 (4) | BO103: 3396511372 (4) | BP103: 3396511372 (4) | BQ103: 3396511372 (4) | BR103: 3396511372 (4) | BS103: 3396511372 (4) | BT103: 3396511372 (4)
B104: 242 | C104: 3296508382 (4) | D104: 3296508382 (4) | E104: 3296508382 (4) | F104: 3296508382 (4) | G104: 3296508382 (4) | H104: 3296508382 (4) | I104: 3296006482 (4) | J104: 3296006482 (4) | K104: 3296006482 (4) | L104: 3296006482 (4) | M104: 3296509132 (4) | N104: 3296509132 (4) | O104: 3296509132 (4) | P104: 3296509132 (4) | Q104: 3296509132 (4) | R104: 3296509892 (4) | S104: 3296509892 (4) | T104: 3296007112 (4) | U104: 3296007112 (4) | V104: 3296007112 (4) | W104: 3296509892 (4) | X104: 3296509892 (4) | Y104: 3296509892 (4) | Z104: 3296509892 (4) | AA104: 3296510642 (4) | AB104: 3296510642 (4) | AC104: 3296510642 (4) | AD104: 3296007752 (4) | AE104: 3296007752 (4) | AF104: 3296007752 (4) | AG104: 3296510642 (4) | AH104: 3296510642 (4) | AI104: 3296511402 (4) | AJ104: 3296511402 (4) | AK104: 3296511402 (4) | AL104: 3296511402 (4) | AM104: 3296511402 (4) | AN104: 3296511402 (4) | AO104: 3296008382 (4) | AP104: 3296511402 (4) | AQ104: 3296512162 (4) | AR104: 3296512162 (4) | AS104: 3296512162 (4) | AT104: 3296512162 (4) | AU104: 3296512162 (4) | AV104: 3296512162 (4) | AW104: 3296512162 (4) | AX104: 3296512162 (4) | AY104: 3296009022 (4) | AZ104: 3396510182 (4) | BA104: 3396510182 (4) | BB104: 3396510182 (4) | BC104: 3396510182 (4) | BD104: 3396510182 (4) | BE104: 3396510182 (4) | BF104: 3396510182 (4) | BG104: 3396510182 (4) | BH104: 3396510772 (4) | BI104: 3396510772 (4) | BJ104: 3396510772 (4) | BK104: 3396510772 (4) | BL104: 3396510772 (4) | BM104: 3396510772 (4) | BN104: 3396510772 (4) | BO104: 3396510772 (4) | BP104: 3396511372 (4) | BQ104: 3396511372 (4) | BR104: 3396511372 (4) | BS104: 3396511372 (4) | BT104: 3396511372 (4)
B105: 244 | C105: 3296508382 (4) | D105: 3296508382 (4) | E105: 3296508382 (4) | F105: 3296508382 (4) | G105: 3296508382 (4) | H105: 3296508382 (4) | I105: 3296508382 (4) | J105: 3296006482 (4) | K105: 3296006482 (4) | L105: 3296006482 (4) | M105: 3296509132 (4) | N105: 3296509132 (4) | O105: 3296509132 (4) | P105: 3296509132 (4) | Q105: 3296509132 (4) | R105: 3296509132 (4) | S105: 3296509892 (4) | T105: 3296509892 (4) | U105: 3296007112 (4) | V105: 3296007112 (4) | W105: 3296509892 (4) | X105: 3296509892 (4) | Y105: 3296509892 (4) | Z105: 3296509892 (4) | AA105: 3296509892 (4) | AB105: 3296510642 (4) | AC105: 3296510642 (4) | AD105: 3296510642 (4) | AE105: 3296007752 (4) | AF105: 3296007752 (4) | AG105: 3296510642 (4) | AH105: 3296510642 (4) | AI105: 3296510642 (4) | AJ105: 3296511402 (4) | AK105: 3296511402 (4) | AL105: 3296511402 (4) | AM105: 3296511402 (4) | AN105: 3296511402 (4) | AO105: 3296511402 (4) | AP105: 3296511402 (4) | AQ105: 3296511402 (4) | AR105: 3296512162 (4) | AS105: 3296512162 (4) | AT105: 3296512162 (4) | AU105: 3296512162 (4) | AV105: 3296512162 (4) | AW105: 3296512162 (4) | AX105: 3296512162 (4) | AY105: 3296512162 (4) | AZ105: 3296512162 (4) | BA105: 3396510182 (4) | BB105: 3396510182 (4) | BC105: 3396510182 (4) | BD105: 3396510182 (4) | BE105: 3396510182 (4) | BF105: 3396510182 (4) | BG105: 3396510182 (4) | BH105: 3396510182 (4) | BI105: 3396510772 (4) | BJ105: 3396510772 (4) | BK105: 3396510772 (4) | BL105: 3396510772 (4) | BM105: 3396510772 (4) | BN105: 3396510772 (4) | BO105: 3396510772 (4) | BP105: 3396510772 (4) | BQ105: 3396511372 (4) | BR105: 3396511372 (4) | BS105: 3396511372 (4) | BT105: 3396511372 (4)
B106: 246 | C106: 3296508382 (4) | D106: 3296508382 (4) | E106: 3296508382 (4) | F106: 3296508382 (4) | G106: 3296508382 (4) | H106: 3296508382 (4) | I106: 3296508382 (4) | J106: 3296508382 (4) | K106: 3296006482 (4) | L106: 3296006482 (4) | M106: 3296509132 (4) | N106: 3296509132 (4) | O106: 3296509132 (4) | P106: 3296509132 (4) | Q106: 3296509132 (4) | R106: 3296509132 (4) | S106: 3296509132 (4) | T106: 3296509892 (4) | U106: 3296509892 (4) | V106: 3296007112 (4) | W106: 3296509892 (4) | X106: 3296509892 (4) | Y106: 3296509892 (4) | Z106: 3296509892 (4) | AA106: 3296509892 (4) | AB106: 3296510642 (4) | AC106: 3296510642 (4) | AD106: 3296510642 (4) | AE106: 3296510642 (4) | AF106: 3296510642 (4) | AG106: 3296510642 (4) | AH106: 3296510642 (4) | AI106: 3296510642 (4) | AJ106: 3296510642 (4) | AK106: 3296511402 (4) | AL106: 3296511402 (4) | AM106: 3296511402 (4) | AN106: 3296511402 (4) | AO106: 3296511402 (4) | AP106: 3296511402 (4) | AQ106: 3296511402 (4) | AR106: 3296511402 (4) | AS106: 3296512162 (4) | AT106: 3296512162 (4) | AU106: 3296512162 (4) | AV106: 3296512162 (4) | AW106: 3296512162 (4) | AX106: 3296512162 (4) | AY106: 3296512162 (4) | AZ106: 3296512162 (4) | BA106: 3296512162 (4) | BB106: 3396510182 (4) | BC106: 3396510182 (4) | BD106: 3396510182 (4) | BE106: 3396510182 (4) | BF106: 3396510182 (4) | BG106: 3396510182 (4) | BH106: 3396510182 (4) | BI106: 3396510182 (4) | BJ106: 3396510772 (4) | BK106: 3396510772 (4) | BL106: 3396510772 (4) | BM106: 3396510772 (4) | BN106: 3396510772 (4) | BO106: 3396510772 (4) | BP106: 3396510772 (4) | BQ106: 3396510772 (4) | BR106: 3396511372 (4) | BS106: 3396511372 (4) | BT106: 3396511372 (4)
B107: 248 | C107: 3296507632 (4) | D107: 3296508382 (4) | E107: 3296508382 (4) | F107: 3296508382 (4) | G107: 3296508382 (4) | H107: 3296508382 (4) | I107: 3296508382 (4) | J107: 3296508382 (4) | K107: 3296508382 (4) | L107: 3296006482 (4) | M107: 3296509132 (4) | N107: 3296509132 (4) | O107: 3296509132 (4) | P107: 3296509132 (4) | Q107: 3296509132 (4) | R107: 3296509132 (4) | S107: 3296509132 (4) | T107: 3296509132 (4) | U107: 3296509892 (4) | V107: 3296509892 (4) | W107: 3296509892 (4) | X107: 3296509892 (4) | Y107: 3296509892 (4) | Z107: 3296509892 (4) | AA107: 3296509892 (4) | AB107: 3296509892 (4) | AC107: 3296510642 (4) | AD107: 3296510642 (4) | AE107: 3296510642 (4) | AF107: 3296510642 (4) | AG107: 3296510642 (4) | AH107: 3296510642 (4) | AI107: 3296510642 (4) | AJ107: 3296510642 (4) | AK107: 3296510642 (4) | AL107: 3296511402 (4) | AM107: 3296511402 (4) | AN107: 3296511402 (4) | AO107: 3296511402 (4) | AP107: 3296511402 (4) | AQ107: 3296511402 (4) | AR107: 3296511402 (4) | AS107: 3296511402 (4) | AT107: 3296512162 (4) | AU107: 3296512162 (4) | AV107: 3296512162 (4) | AW107: 3296512162 (4) | AX107: 3296512162 (4) | AY107: 3296512162 (4) | AZ107: 3296512162 (4) | BA107: 3296512162 (4) | BB107: 3296512162 (4) | BC107: 3396510182 (4) | BD107: 3396510182 (4) | BE107: 3396510182 (4) | BF107: 3396510182 (4) | BG107: 3396510182 (4) | BH107: 3396510182 (4) | BI107: 3396510182 (4) | BJ107: 3396510182 (4) | BK107: 3396510772 (4) | BL107: 3396510772 (4) | BM107: 3396510772 (4) | BN107: 3396510772 (4) | BO107: 3396510772 (4) | BP107: 3396510772 (4) | BQ107: 3396510772 (4) | BR107: 3396510772 (4) | BS107: 3396510772 (4) | BT107: 3396511372 (4)
B108: 250 | C108: 3296507632 (4) | D108: 3296508382 (4) | E108: 3296508382 (4) | F108: 3296508382 (4) | G108: 3296508382 (4) | H108: 3296508382 (4) | I108: 3296508382 (4) | J108: 3296508382 (4) | K108: 3296508382 (4) | L108: 3296508382 (4) | M108: 3296509132 (4) | N108: 3296509132 (4) | O108: 3296509132 (4) | P108: 3296509132 (4) | Q108: 3296509132 (4) | R108: 3296509132 (4) | S108: 3296509132 (4) | T108: 3296509132 (4) | U108: 3296509892 (4) | V108: 3296509892 (4) | W108: 3296509892 (4) | X108: 3296509892 (4) | Y108: 3296509892 (4) | Z108: 3296509892 (4) | AA108: 3296509892 (4) | AB108: 3296509892 (4) | AC108: 3296509892 (4) | AD108: 3296510642 (4) | AE108: 3296510642 (4) | AF108: 3296510642 (4) | AG108: 3296510642 (4) | AH108: 3296510642 (4) | AI108: 3296510642 (4) | AJ108: 3296510642 (4) | AK108: 3296510642 (4) | AL108: 3296510642 (4) | AM108: 3296511402 (4) | AN108: 3296511402 (4) | AO108: 3296511402 (4) | AP108: 3296511402 (4) | AQ108: 3296511402 (4) | AR108: 3296511402 (4) | AS108: 3296511402 (4) | AT108: 3296511402 (4) | AU108: 3296512162 (4) | AV108: 3296512162 (4) | AW108: 3296512162 (4) | AX108: 3296512162 (4) | AY108: 3296512162 (4) | AZ108: 3296512162 (4) | BA108: 3296512162 (4) | BB108: 3296512162 (4) | BC108: 3296512162 (4) | BD108: 3396510182 (4) | BE108: 3396510182 (4) | BF108: 3396510182 (4) | BG108: 3396510182 (4) | BH108: 3396510182 (4) | BI108: 3396510182 (4) | BJ108: 3396510182 (4) | BK108: 3396510182 (4) | BL108: 3396510772 (4) | BM108: 3396510772 (4) | BN108: 3396510772 (4) | BO108: 3396510772 (4) | BP108: 3396510772 (4) | BQ108: 3396510772 (4) | BR108: 3396510772 (4) | BS108: 3396510772 (4) | BT108: 3396510772 (4)
B109: 252 | C109: 3296507632 (4) | D109: 3296507632 (4) | E109: 3296508382 (4) | F109: 3296508382 (4) | G109: 3296508382 (4) | H109: 3296508382 (4) | I109: 3296508382 (4) | J109: 3296508382 (4) | K109: 3296508382 (4) | L109: 3296508382 (4) | M109: 3296508382 (4) | N109: 3296509132 (4) | O109: 3296509132 (4) | P109: 3296509132 (4) | Q109: 3296509132 (4) | R109: 3296509132 (4) | S109: 3296509132 (4) | T109: 3296509132 (4) | U109: 3296509132 (4) | V109: 3296509892 (4) | W109: 3296509892 (4) | X109: 3296509892 (4) | Y109: 3296509892 (4) | Z109: 3296509892 (4) | AA109: 3296509892 (4) | AB109: 3296509892 (4) | AC109: 3296509892 (4) | AD109: 3296509892 (4) | AE109: 3296510642 (4) | AF109: 3296510642 (4) | AG109: 3296510642 (4) | AH109: 3296510642 (4) | AI109: 3296510642 (4) | AJ109: 3296510642 (4) | AK109: 3296510642 (4) | AL109: 3296510642 (4) | AM109: 3296511402 (4) | AN109: 3296511402 (4) | AO109: 3296511402 (4) | AP109: 3296511402 (4) | AQ109: 3296511402 (4) | AR109: 3296511402 (4) | AS109: 3296511402 (4) | AT109: 3296511402 (4) | AU109: 3296511402 (4) | AV109: 3296512162 (4) | AW109: 3296512162 (4) | AX109: 3296512162 (4) | AY109: 3296512162 (4) | AZ109: 3296512162 (4) | BA109: 3296512162 (4) | BB109: 3296512162 (4) | BC109: 3296512162 (4) | BD109: 3296512162 (4) | BE109: 3396510182 (4) | BF109: 3396510182 (4) | BG109: 3396510182 (4) | BH109: 3396510182 (4) | BI109: 3396510182 (4) | BJ109: 3396510182 (4) | BK109: 3396510182 (4) | BL109: 3396510182 (4) | BM109: 3396510772 (4) | BN109: 3396510772 (4) | BO109: 3396510772 (4) | BP109: 3396510772 (4) | BQ109: 3396510772 (4) | BR109: 3396510772 (4) | BS109: 3396510772 (4) | BT109: 3396510772 (4)
B110: 254 | C110: 3296507632 (4) | D110: 3296507632 (4) | E110: 3296507632 (4) | F110: 3296508382 (4) | G110: 3296508382 (4) | H110: 3296508382 (4) | I110: 3296508382 (4) | J110: 3296508382 (4) | K110: 3296508382 (4) | L110: 3296508382 (4) | M110: 3296508382 (4) | N110: 3296509132 (4) | O110: 3296509132 (4) | P110: 3296509132 (4) | Q110: 3296509132 (4) | R110: 3296509132 (4) | S110: 3296509132 (4) | T110: 3296509132 (4) | U110: 3296509132 (4) | V110: 3296509132 (4) | W110: 3296509892 (4) | X110: 3296509892 (4) | Y110: 3296509892 (4) | Z110: 3296509892 (4) | AA110: 3296509892 (4) | AB110: 3296509892 (4) | AC110: 3296509892 (4) | AD110: 3296509892 (4) | AE110: 3296509892 (4) | AF110: 3296510642 (4) | AG110: 3296510642 (4) | AH110: 3296510642 (4) | AI110: 3296510642 (4) | AJ110: 3296510642 (4) | AK110: 3296510642 (4) | AL110: 3296510642 (4) | AM110: 3296510642 (4) | AN110: 3296511402 (4) | AO110: 3296511402 (4) | AP110: 3296511402 (4) | AQ110: 3296511402 (4) | AR110: 3296511402 (4) | AS110: 3296511402 (4) | AT110: 3296511402 (4) | AU110: 3296511402 (4) | AV110: 3296511402 (4) | AW110: 3296512162 (4) | AX110: 3296512162 (4) | AY110: 3296512162 (4) | AZ110: 3296512162 (4) | BA110: 3296512162 (4) | BB110: 3296512162 (4) | BC110: 3296512162 (4) | BD110: 3296512162 (4) | BE110: 3296512162 (4) | BF110: 3396510182 (4) | BG110: 3396510182 (4) | BH110: 3396510182 (4) | BI110: 3396510182 (4) | BJ110: 3396510182 (4) | BK110: 3396510182 (4) | BL110: 3396510182 (4) | BM110: 3396510182 (4) | BN110: 3396510182 (4) | BO110: 3396510772 (4) | BP110: 3396510772 (4) | BQ110: 3396510772 (4) | BR110: 3396510772 (4) | BS110: 3396510772 (4) | BT110: 3396510772 (4)
B111: 256 | C111: 3296507632 (4) | D111: 3296507632 (4) | E111: 3296507632 (4) | F111: 3296508382 (4) | G111: 3296508382 (4) | H111: 3296508382 (4) | I111: 3296508382 (4) | J111: 3296508382 (4) | K111: 3296508382 (4) | L111: 3296508382 (4) | M111: 3296508382 (4) | N111: 3296508382 (4) | O111: 3296509132 (4) | P111: 3296509132 (4) | Q111: 3296509132 (4) | R111: 3296509132 (4) | S111: 3296509132 (4) | T111: 3296509132 (4) | U111: 3296509132 (4) | V111: 3296509132 (4) | W111: 3296509132 (4) | X111: 3296509892 (4) | Y111: 3296509892 (4) | Z111: 3296509892 (4) | AA111: 3296509892 (4) | AB111: 3296509892 (4) | AC111: 3296509892 (4) | AD111: 3296509892 (4) | AE111: 3296509892 (4) | AF111: 3296509892 (4) | AG111: 3296510642 (4) | AH111: 3296510642 (4) | AI111: 3296510642 (4) | AJ111: 3296510642 (4) | AK111: 3296510642 (4) | AL111: 3296510642 (4) | AM111: 3296510642 (4) | AN111: 3296510642 (4) | AO111: 3296511402 (4) | AP111: 3296511402 (4) | AQ111: 3296511402 (4) | AR111: 3296511402 (4) | AS111: 3296511402 (4) | AT111: 3296511402 (4) | AU111: 3296511402 (4) | AV111: 3296511402 (4) | AW111: 3296511402 (4) | AX111: 3296512162 (4) | AY111: 3296512162 (4) | AZ111: 3296512162 (4) | BA111: 3296512162 (4) | BB111: 3296512162 (4) | BC111: 3296512162 (4) | BD111: 3296512162 (4) | BE111: 3296512162 (4) | BF111: 3296512162 (4) | BG111: 3396510182 (4) | BH111: 3396510182 (4) | BI111: 3396510182 (4) | BJ111: 3396510182 (4) | BK111: 3396510182 (4) | BL111: 3396510182 (4) | BM111: 3396510182 (4) | BN111: 3396510182 (4) | BO111: 3396510182 (4) | BP111: 3396510772 (4) | BQ111: 3396510772 (4) | BR111: 3396510772 (4) | BS111: 3396510772 (4) | BT111: 3396510772 (4)
B112: 258 | C112: 3296507632 (4) | D112: 3296507632 (4) | E112: 3296507632 (4) | F112: 3296507632 (4) | G112: 3296508382 (4) | H112: 3296508382 (4) | I112: 3296508382 (4) | J112: 3296508382 (4) | K112: 3296508382 (4) | L112: 3296508382 (4) | M112: 3296508382 (4) | N112: 3296508382 (4) | O112: 3296508382 (4) | P112: 3296509132 (4) | Q112: 3296509132 (4) | R112: 3296509132 (4) | S112: 3296509132 (4) | T112: 3296509132 (4) | U112: 3296509132 (4) | V112: 3296509132 (4) | W112: 3296509132 (4) | X112: 3296509132 (4) | Y112: 3296509892 (4) | Z112: 3296509892 (4) | AA112: 3296509892 (4) | AB112: 3296509892 (4) | AC112: 3296509892 (4) | AD112: 3296509892 (4) | AE112: 3296509892 (4) | AF112: 3296509892 (4) | AG112: 3296510642 (4) | AH112: 3296510642 (4) | AI112: 3296510642 (4) | AJ112: 3296510642 (4) | AK112: 3296510642 (4) | AL112: 3296510642 (4) | AM112: 3296510642 (4) | AN112: 3296510642 (4) | AO112: 3296510642 (4) | AP112: 3296511402 (4) | AQ112: 3296511402 (4) | AR112: 3296511402 (4) | AS112: 3296511402 (4) | AT112: 3296511402 (4) | AU112: 3296511402 (4) | AV112: 3296511402 (4) | AW112: 3296511402 (4) | AX112: 3296511402 (4) | AY112: 3296512162 (4) | AZ112: 3296512162 (4) | BA112: 3296512162 (4) | BB112: 3296512162 (4) | BC112: 3296512162 (4) | BD112: 3296512162 (4) | BE112: 3296512162 (4) | BF112: 3296512162 (4) | BG112: 3296512162 (4) | BH112: 3396510182 (4) | BI112: 3396510182 (4) | BJ112: 3396510182 (4) | BK112: 3396510182 (4) | BL112: 3396510182 (4) | BM112: 3396510182 (4) | BN112: 3396510182 (4) | BO112: 3396510182 (4) | BP112: 3396510182 (4) | BQ112: 3396510772 (4) | BR112: 3396510772 (4) | BS112: 3396510772 (4) | BT112: 3396510772 (4)
B113: 260 | C113: 3296507632 (4) | D113: 3296507632 (4) | E113: 3296507632 (4) | F113: 3296507632 (4) | G113: 3296507632 (4) | H113: 3296508382 (4) | I113: 3296508382 (4) | J113: 3296508382 (4) | K113: 3296508382 (4) | L113: 3296508382 (4) | M113: 3296508382 (4) | N113: 3296508382 (4) | O113: 3296508382 (4) | P113: 3296509132 (4) | Q113: 3296509132 (4) | R113: 3296509132 (4) | S113: 3296509132 (4) | T113: 3296509132 (4) | U113: 3296509132 (4) | V113: 3296509132 (4) | W113: 3296509132 (4) | X113: 3296509132 (4) | Y113: 3296509892 (4) | Z113: 3296509892 (4) | AA113: 3296509892 (4) | AB113: 3296509892 (4) | AC113: 3296509892 (4) | AD113: 3296509892 (4) | AE113: 3296509892 (4) | AF113: 3296509892 (4) | AG113: 3296509892 (4) | AH113: 3296510642 (4) | AI113: 3296510642 (4) | AJ113: 3296510642 (4) | AK113: 3296510642 (4) | AL113: 3296510642 (4) | AM113: 3296510642 (4) | AN113: 3296510642 (4) | AO113: 3296510642 (4) | AP113: 3296510642 (4) | AQ113: 3296511402 (4) | AR113: 3296511402 (4) | AS113: 3296511402 (4) | AT113: 3296511402 (4) | AU113: 3296511402 (4) | AV113: 3296511402 (4) | AW113: 3296511402 (4) | AX113: 3296511402 (4) | AY113: 3296511402 (4) | AZ113: 3296512162 (4) | BA113: 3296512162 (4) | BB113: 3296512162 (4) | BC113: 3296512162 (4) | BD113: 3296512162 (4) | BE113: 3296512162 (4) | BF113: 3296512162 (4) | BG113: 3296512162 (4) | BH113: 3396510182 (4) | BI113: 3396510182 (4) | BJ113: 3396510182 (4) | BK113: 3396510182 (4) | BL113: 3396510182 (4) | BM113: 3396510182 (4) | BN113: 3396510182 (4) | BO113: 3396510182 (4) | BP113: 3396510182 (4) | BQ113: 3396510182 (4) | BR113: 3396510772 (4) | BS113: 3396510772 (4) | BT113: 3396510772 (4)
B114: 262 | C114: 3296507632 (4) | D114: 3296507632 (4) | E114: 3296507632 (4) | F114: 3296507632 (4) | G114: 3296507632 (4) | H114: 3296508382 (4) | I114: 3296508382 (4) | J114: 3296508382 (4) | K114: 3296508382 (4) | L114: 3296508382 (4) | M114: 3296508382 (4) | N114: 3296508382 (4) | O114: 3296508382 (4) | P114: 3296508382 (4) | Q114: 3296509132 (4) | R114: 3296509132 (4) | S114: 3296509132 (4) | T114: 3296509132 (4) | U114: 3296509132 (4) | V114: 3296509132 (4) | W114: 3296509132 (4) | X114: 3296509132 (4) | Y114: 3296509132 (4) | Z114: 3296509892 (4) | AA114: 3296509892 (4) | AB114: 3296509892 (4) | AC114: 3296509892 (4) | AD114: 3296509892 (4) | AE114: 3296509892 (4) | AF114: 3296509892 (4) | AG114: 3296509892 (4) | AH114: 3296509892 (4) | AI114: 3296510642 (4) | AJ114: 3296510642 (4) | AK114: 3296510642 (4) | AL114: 3296510642 (4) | AM114: 3296510642 (4) | AN114: 3296510642 (4) | AO114: 3296510642 (4) | AP114: 3296510642 (4) | AQ114: 3296510642 (4) | AR114: 3296511402 (4) | AS114: 3296511402 (4) | AT114: 3296511402 (4) | AU114: 3296511402 (4) | AV114: 3296511402 (4) | AW114: 3296511402 (4) | AX114: 3296511402 (4) | AY114: 3296511402 (4) | AZ114: 3296511402 (4) | BA114: 3296512162 (4) | BB114: 3296512162 (4) | BC114: 3296512162 (4) | BD114: 3296512162 (4) | BE114: 3296512162 (4) | BF114: 3296512162 (4) | BH114: 3396510182 (4) | BI114: 3396510182 (4) | BJ114: 3396510182 (4) | BK114: 3396510182 (4) | BL114: 3396510182 (4) | BM114: 3396510182 (4) | BN114: 3396510182 (4) | BO114: 3396510182 (4) | BP114: 3396510182 (4) | BQ114: 3396510182 (4) | BR114: 3396510182 (4) | BS114: 3396510772 (4) | BT114: 3396510772 (4)
B115: 264 | C115: 3296507632 (4) | D115: 3296507632 (4) | E115: 3296507632 (4) | F115: 3296507632 (4) | G115: 3296507632 (4) | H115: 3296507632 (4) | I115: 3296508382 (4) | J115: 3296508382 (4) | K115: 3296508382 (4) | L115: 3296508382 (4) | M115: 3296508382 (4) | N115: 3296508382 (4) | O115: 3296508382 (4) | P115: 3296508382 (4) | Q115: 3296508382 (4) | R115: 3296509132 (4) | S115: 3296509132 (4) | T115: 3296509132 (4) | U115: 3296509132 (4) | V115: 3296509132 (4) | W115: 3296509132 (4) | X115: 3296509132 (4) | Y115: 3296509132 (4) | Z115: 3296509132 (4) | AA115: 3296509892 (4) | AB115: 3296509892 (4) | AC115: 3296509892 (4) | AD115: 3296509892 (4) | AE115: 3296509892 (4) | AF115: 3296509892 (4) | AG115: 3296509892 (4) | AH115: 3296509892 (4) | AI115: 3296509892 (4) | AJ115: 3296510642 (4) | AK115: 3296510642 (4) | AL115: 3296510642 (4) | AM115: 3296510642 (4) | AN115: 3296510642 (4) | AO115: 3296510642 (4) | AP115: 3296510642 (4) | AQ115: 3296510642 (4) | AR115: 3296510642 (4) | AS115: 3296511402 (4) | AT115: 3296511402 (4) | AU115: 3296511402 (4) | AV115: 3296511402 (4) | AW115: 3296511402 (4) | AX115: 3296511402 (4) | AY115: 3296511402 (4) | AZ115: 3296511402 (4) | BA115: 3296511402 (4) | BB115: 3296512162 (4) | BC115: 3296512162 (4) | BD115: 3296512162 (4) | BE115: 3296512162 (4) | BF115: 3296512162 (4) | BI115: 3396510182 (4) | BJ115: 3396510182 (4) | BK115: 3396510182 (4) | BL115: 3396510182 (4) | BM115: 3396510182 (4) | BN115: 3396510182 (4) | BO115: 3396510182 (4) | BP115: 3396510182 (4) | BQ115: 3396510182 (4) | BR115: 3396510182 (4) | BS115: 3396510182 (4) | BT115: 3396510772 (4)
B116: 266 | C116: 3296507632 (4) | D116: 3296507632 (4) | E116: 3296507632 (4) | F116: 3296507632 (4) | G116: 3296507632 (4) | H116: 3296507632 (4) | I116: 3296507632 (4) | J116: 3296508382 (4) | K116: 3296508382 (4) | L116: 3296508382 (4) | M116: 3296508382 (4) | N116: 3296508382 (4) | O116: 3296508382 (4) | P116: 3296508382 (4) | Q116: 3296508382 (4) | R116: 3296508382 (4) | S116: 3296509132 (4) | T116: 3296509132 (4) | U116: 3296509132 (4) | V116: 3296509132 (4) | W116: 3296509132 (4) | X116: 3296509132 (4) | Y116: 3296509132 (4) | Z116: 3296509132 (4) | AA116: 3296509132 (4) | AB116: 3296509892 (4) | AC116: 3296509892 (4) | AD116: 3296509892 (4) | AE116: 3296509892 (4) | AF116: 3296509892 (4) | AG116: 3296509892 (4) | AH116: 3296509892 (4) | AI116: 3296509892 (4) | AJ116: 3296509892 (4) | AK116: 3296510642 (4) | AL116: 3296510642 (4) | AM116: 3296510642 (4) | AN116: 3296510642 (4) | AO116: 3296510642 (4) | AP116: 3296510642 (4) | AQ116: 3296510642 (4) | AR116: 3296510642 (4) | AS116: 3296510642 (4) | AT116: 3296511402 (4) | AU116: 3296511402 (4) | AV116: 3296511402 (4) | AW116: 3296511402 (4) | AX116: 3296511402 (4) | AY116: 3296511402 (4) | AZ116: 3296511402 (4) | BA116: 3296511402 (4) | BB116: 3296511402 (4) | BC116: 3296512162 (4) | BD116: 3296512162 (4) | BE116: 3296512162 (4) | BF116: 3296512162 (4) | BJ116: 3396510182 (4) | BK116: 3396510182 (4) | BL116: 3396510182 (4) | BM116: 3396510182 (4) | BN116: 3396510182 (4) | BO116: 3396510182 (4) | BP116: 3396510182 (4) | BQ116: 3396510182 (4) | BR116: 3396510182 (4) | BS116: 3396510182 (4) | BT116: 3396510182 (4)
B117: 268 | C117: 3296507632 (4) | D117: 3296507632 (4) | E117: 3296507632 (4) | F117: 3296507632 (4) | G117: 3296507632 (4) | H117: 3296507632 (4) | I117: 3296507632 (4) | J117: 3296508382 (4) | K117: 3296508382 (4) | L117: 3296508382 (4) | M117: 3296508382 (4) | N117: 3296508382 (4) | O117: 3296508382 (4) | P117: 3296508382 (4) | Q117: 3296508382 (4) | R117: 3296508382 (4) | S117: 3296509132 (4) | T117: 3296509132 (4) | U117: 3296509132 (4) | V117: 3296509132 (4) | W117: 3296509132 (4) | X117: 3296509132 (4) | Y117: 3296509132 (4) | Z117: 3296509132 (4) | AA117: 3296509132 (4) | AB117: 3296509892 (4) | AC117: 3296509892 (4) | AD117: 3296509892 (4) | AE117: 3296509892 (4) | AF117: 3296509892 (4) | AG117: 3296509892 (4) | AH117: 3296509892 (4) | AI117: 3296509892 (4) | AJ117: 3296509892 (4) | AK117: 3296509892 (4) | AL117: 3296510642 (4) | AM117: 3296510642 (4) | AN117: 3296510642 (4) | AO117: 3296510642 (4) | AP117: 3296510642 (4) | AQ117: 3296510642 (4) | AR117: 3296510642 (4) | AS117: 3296510642 (4) | AT117: 3296510642 (4) | AU117: 3296511402 (4) | AV117: 3296511402 (4) | AW117: 3296511402 (4) | AX117: 3296511402 (4) | AY117: 3296511402 (4) | AZ117: 3296511402 (4) | BA117: 3296511402 (4) | BB117: 3296511402 (4) | BC117: 3296511402 (4) | BD117: 3296512162 (4) | BE117: 3296512162 (4) | BF117: 3296512162 (4) | BL117: 3396510182 (4) | BM117: 3396510182 (4) | BN117: 3396510182 (4) | BO117: 3396510182 (4) | BP117: 3396510182 (4) | BQ117: 3396510182 (4) | BR117: 3396510182 (4) | BS117: 3396510182 (4) | BT117: 3396510182 (4)
B118: 270 | C118: 3296507632 (4) | D118: 3296507632 (4) | E118: 3296507632 (4) | F118: 3296507632 (4) | G118: 3296507632 (4) | H118: 3296507632 (4) | I118: 3296507632 (4) | J118: 3296507632 (4) | K118: 3296508382 (4) | L118: 3296508382 (4) | M118: 3296508382 (4) | N118: 3296508382 (4) | O118: 3296508382 (4) | P118: 3296508382 (4) | Q118: 3296508382 (4) | R118: 3296508382 (4) | S118: 3296508382 (4) | T118: 3296509132 (4) | U118: 3296509132 (4) | V118: 3296509132 (4) | W118: 3296509132 (4) | X118: 3296509132 (4) | Y118: 3296509132 (4) | Z118: 3296509132 (4) | AA118: 3296509132 (4) | AB118: 3296509132 (4) | AC118: 3296509892 (4) | AD118: 3296509892 (4) | AE118: 3296509892 (4) | AF118: 3296509892 (4) | AG118: 3296509892 (4) | AH118: 3296509892 (4) | AI118: 3296509892 (4) | AJ118: 3296509892 (4) | AK118: 3296509892 (4) | AL118: 3296510642 (4) | AM118: 3296510642 (4) | AN118: 3296510642 (4) | AO118: 3296510642 (4) | AP118: 3296510642 (4) | AQ118: 3296510642 (4) | AR118: 3296510642 (4) | AS118: 3296510642 (4) | AT118: 3296510642 (4) | AU118: 3296510642 (4) | AV118: 3296511402 (4) | AW118: 3296511402 (4) | AX118: 3296511402 (4) | AY118: 3296511402 (4) | AZ118: 3296511402 (4) | BA118: 3296511402 (4) | BB118: 3296511402 (4) | BC118: 3296511402 (4) | BD118: 3296511402 (4) | BE118: 3296512162 (4) | BF118: 3296512162 (4) | BM118: 3396510182 (4) | BN118: 3396510182 (4) | BO118: 3396510182 (4) | BP118: 3396510182 (4) | BQ118: 3396510182 (4) | BR118: 3396510182 (4) | BS118: 3396510182 (4) | BT118: 3396510182 (4)
B119: 272 | C119: 3296507632 (4) | D119: 3296507632 (4) | E119: 3296507632 (4) | F119: 3296507632 (4) | G119: 3296507632 (4) | H119: 3296507632 (4) | I119: 3296507632 (4) | J119: 3296507632 (4) | K119: 3296508382 (4) | L119: 3296508382 (4) | M119: 3296508382 (4) | N119: 3296508382 (4) | O119: 3296508382 (4) | P119: 3296508382 (4) | Q119: 3296508382 (4) | R119: 3296508382 (4) | S119: 3296508382 (4) | T119: 3296508382 (4) | U119: 3296509132 (4) | V119: 3296509132 (4) | W119: 3296509132 (4) | X119: 3296509132 (4) | Y119: 3296509132 (4) | Z119: 3296509132 (4) | AA119: 3296509132 (4) | AB119: 3296509132 (4) | AC119: 3296509132 (4) | AD119: 3296509892 (4) | AE119: 3296509892 (4) | AF119: 3296509892 (4) | AG119: 3296509892 (4) | AH119: 3296509892 (4) | AI119: 3296509892 (4) | AJ119: 3296509892 (4) | AK119: 3296509892 (4) | AL119: 3296509892 (4) | AM119: 3296510642 (4) | AN119: 3296510642 (4) | AO119: 3296510642 (4) | AP119: 3296510642 (4) | AQ119: 3296510642 (4) | AR119: 3296510642 (4) | AS119: 3296510642 (4) | AT119: 3296510642 (4) | AU119: 3296510642 (4) | AV119: 3296510642 (4) | AW119: 3296511402 (4) | AX119: 3296511402 (4) | AY119: 3296511402 (4) | AZ119: 3296511402 (4) | BA119: 3296511402 (4) | BB119: 3296511402 (4) | BC119: 3296511402 (4) | BD119: 3296511402 (4) | BE119: 3296511402 (4) | BF119: 3296512162 (4) | BN119: 3396510182 (4) | BO119: 3396510182 (4) | BP119: 3396510182 (4) | BQ119: 3396510182 (4) | BR119: 3396510182 (4) | BS119: 3396510182 (4) | BT119: 3396510182 (4)
B120: 274 | C120: 3296507632 (4) | D120: 3296507632 (4) | E120: 3296507632 (4) | F120: 3296507632 (4) | G120: 3296507632 (4) | H120: 3296507632 (4) | I120: 3296507632 (4) | J120: 3296507632 (4) | K120: 3296507632 (4) | L120: 3296508382 (4) | M120: 3296508382 (4) | N120: 3296508382 (4) | O120: 3296508382 (4) | P120: 3296508382 (4) | Q120: 3296508382 (4) | R120: 3296508382 (4) | S120: 3296508382 (4) | T120: 3296508382 (4) | U120: 3296509132 (4) | V120: 3296509132 (4) | W120: 3296509132 (4) | X120: 3296509132 (4) | Y120: 3296509132 (4) | Z120: 3296509132 (4) | AA120: 3296509132 (4) | AB120: 3296509132 (4) | AC120: 3296509132 (4) | AD120: 3296509132 (4) | AE120: 3296509892 (4) | AF120: 3296509892 (4) | AG120: 3296509892 (4) | AH120: 3296509892 (4) | AI120: 3296509892 (4) | AJ120: 3296509892 (4) | AK120: 3296509892 (4) | AL120: 3296509892 (4) | AM120: 3296509892 (4) | AN120: 3296510642 (4) | AO120: 3296510642 (4) | AP120: 3296510642 (4) | AQ120: 3296510642 (4) | AR120: 3296510642 (4) | AS120: 3296510642 (4) | AT120: 3296510642 (4) | AU120: 3296510642 (4) | AV120: 3296510642 (4) | AW120: 3296511402 (4) | AX120: 3296511402 (4) | AY120: 3296511402 (4) | AZ120: 3296511402 (4) | BA120: 3296511402 (4) | BB120: 3296511402 (4) | BC120: 3296511402 (4) | BD120: 3296511402 (4) | BE120: 3296511402 (4) | BF120: 3296511402 (4) | BO120: 3396510182 (4) | BP120: 3396510182 (4) | BQ120: 3396510182 (4) | BR120: 3396510182 (4) | BS120: 3396510182 (4) | BT120: 3396510182 (4)
B121: 276 | C121: 3296507632 (4) | D121: 3296507632 (4) | E121: 3296507632 (4) | F121: 3296507632 (4) | G121: 3296507632 (4) | H121: 3296507632 (4) | I121: 3296507632 (4) | J121: 3296507632 (4) | K121: 3296507632 (4) | L121: 3296507632 (4) | M121: 3296508382 (4) | N121: 3296508382 (4) | O121: 3296508382 (4) | P121: 3296508382 (4) | Q121: 3296508382 (4) | R121: 3296508382 (4) | S121: 3296508382 (4) | T121: 3296508382 (4) | U121: 3296508382 (4) | V121: 3296509132 (4) | W121: 3296509132 (4) | X121: 3296509132 (4) | Y121: 3296509132 (4) | Z121: 3296509132 (4) | AA121: 3296509132 (4) | AB121: 3296509132 (4) | AC121: 3296509132 (4) | AD121: 3296509132 (4) | AE121: 3296509132 (4) | AF121: 3296509892 (4) | AG121: 3296509892 (4) | AH121: 3296509892 (4) | AI121: 3296509892 (4) | AJ121: 3296509892 (4) | AK121: 3296509892 (4) | AL121: 3296509892 (4) | AM121: 3296509892 (4) | AN121: 3296509892 (4) | AO121: 3296510642 (4) | AP121: 3296510642 (4) | AQ121: 3296510642 (4) | AR121: 3296510642 (4) | AS121: 3296510642 (4) | AT121: 3296510642 (4) | AU121: 3296510642 (4) | AV121: 3296510642 (4) | AW121: 3296510642 (4) | AX121: 3296511402 (4) | AY121: 3296511402 (4) | AZ121: 3296511402 (4) | BA121: 3296511402 (4) | BB121: 3296511402 (4) | BC121: 3296511402 (4) | BD121: 3296511402 (4) | BE121: 3296511402 (4) | BF121: 3296511402 (4) | BG121: 3296511402 (4) | BP121: 3396510182 (4) | BQ121: 3396510182 (4) | BR121: 3396510182 (4) | BS121: 3396510182 (4) | BT121: 3396510182 (4)
B122: 278 | C122: 3296507632 (4) | D122: 3296507632 (4) | E122: 3296507632 (4) | F122: 3296507632 (4) | G122: 3296507632 (4) | H122: 3296507632 (4) | I122: 3296507632 (4) | J122: 3296507632 (4) | K122: 3296507632 (4) | L122: 3296507632 (4) | M122: 3296508382 (4) | N122: 3296508382 (4) | O122: 3296508382 (4) | P122: 3296508382 (4) | Q122: 3296508382 (4) | R122: 3296508382 (4) | S122: 3296508382 (4) | T122: 3296508382 (4) | U122: 3296508382 (4) | V122: 3296508382 (4) | W122: 3296509132 (4) | X122: 3296509132 (4) | Y122: 3296509132 (4) | Z122: 3296509132 (4) | AA122: 3296509132 (4) | AB122: 3296509132 (4) | AC122: 3296509132 (4) | AD122: 3296509132 (4) | AE122: 3296509132 (4) | AF122: 3296509892 (4) | AG122: 3296509892 (4) | AH122: 3296509892 (4) | AI122: 3296509892 (4) | AJ122: 3296509892 (4) | AK122: 3296509892 (4) | AL122: 3296509892 (4) | AM122: 3296509892 (4) | AN122: 3296509892 (4) | AO122: 3296509892 (4) | AP122: 3296510642 (4) | AQ122: 3296510642 (4) | AR122: 3296510642 (4) | AS122: 3296510642 (4) | AT122: 3296510642 (4) | AU122: 3296510642 (4) | AV122: 3296510642 (4) | AW122: 3296510642 (4) | AX122: 3296510642 (4) | AY122: 3296511402 (4) | AZ122: 3296511402 (4) | BA122: 3296511402 (4) | BB122: 3296511402 (4) | BC122: 3296511402 (4) | BD122: 3296511402 (4) | BE122: 3296511402 (4) | BF122: 3296511402 (4) | BG122: 3296511402 (4) | BH122: 3296511402 (4) | BQ122: 3396510182 (4) | BR122: 3396510182 (4) | BS122: 3396510182 (4) | BT122: 3396510182 (4)
B123: 280 | C123: 3296507632 (4) | D123: 3296507632 (4) | E123: 3296507632 (4) | F123: 3296507632 (4) | G123: 3296507632 (4) | H123: 3296507632 (4) | I123: 3296507632 (4) | J123: 3296507632 (4) | K123: 3296507632 (4) | L123: 3296507632 (4) | M123: 3296507632 (4) | N123: 3296508382 (4) | O123: 3296508382 (4) | P123: 3296508382 (4) | Q123: 3296508382 (4) | R123: 3296508382 (4) | S123: 3296508382 (4) | T123: 3296508382 (4) | U123: 3296508382 (4) | V123: 3296508382 (4) | W123: 3296508382 (4) | X123: 3296509132 (4) | Y123: 3296509132 (4) | Z123: 3296509132 (4) | AA123: 3296509132 (4) | AB123: 3296509132 (4) | AC123: 3296509132 (4) | AD123: 3296509132 (4) | AE123: 3296509132 (4) | AF123: 3296509132 (4) | AG123: 3296509892 (4) | AH123: 3296509892 (4) | AI123: 3296509892 (4) | AJ123: 3296509892 (4) | AK123: 3296509892 (4) | AL123: 3296509892 (4) | AM123: 3296509892 (4) | AN123: 3296509892 (4) | AO123: 3296509892 (4) | AP123: 3296509892 (4) | AQ123: 3296510642 (4) | AR123: 3296510642 (4) | AS123: 3296510642 (4) | AT123: 3296510642 (4) | AU123: 3296510642 (4) | AV123: 3296510642 (4) | AW123: 3296510642 (4) | AX123: 3296510642 (4) | AY123: 3296510642 (4) | AZ123: 3296511402 (4) | BA123: 3296511402 (4) | BB123: 3296511402 (4) | BC123: 3296511402 (4) | BD123: 3296511402 (4) | BE123: 3296511402 (4) | BF123: 3296511402 (4) | BG123: 3296511402 (4) | BH123: 3296511402 (4) | BI123: 3296511402 (4) | BR123: 3396510182 (4) | BS123: 3396510182 (4) | BT123: 3396510182 (4)
B124: 282 | C124: 3296507632 (4) | D124: 3296507632 (4) | E124: 3296507632 (4) | F124: 3296507632 (4) | G124: 3296507632 (4) | H124: 3296507632 (4) | I124: 3296507632 (4) | J124: 3296507632 (4) | K124: 3296507632 (4) | L124: 3296507632 (4) | M124: 3296507632 (4) | N124: 3296507632 (4) | O124: 3296508382 (4) | P124: 3296508382 (4) | Q124: 3296508382 (4) | R124: 3296508382 (4) | S124: 3296508382 (4) | T124: 3296508382 (4) | U124: 3296508382 (4) | V124: 3296508382 (4) | W124: 3296508382 (4) | X124: 3296509132 (4) | Y124: 3296509132 (4) | Z124: 3296509132 (4) | AA124: 3296509132 (4) | AB124: 3296509132 (4) | AC124: 3296509132 (4) | AD124: 3296509132 (4) | AE124: 3296509132 (4) | AF124: 3296509132 (4) | AG124: 3296509132 (4) | AH124: 3296509892 (4) | AI124: 3296509892 (4) | AJ124: 3296509892 (4) | AK124: 3296509892 (4) | AL124: 3296509892 (4) | AM124: 3296509892 (4) | AN124: 3296509892 (4) | AO124: 3296509892 (4) | AP124: 3296509892 (4) | AQ124: 3296509892 (4) | AR124: 3296510642 (4) | AS124: 3296510642 (4) | AT124: 3296510642 (4) | AU124: 3296510642 (4) | AV124: 3296510642 (4) | AW124: 3296510642 (4) | AX124: 3296510642 (4) | AY124: 3296510642 (4) | AZ124: 3296510642 (4) | BA124: 3296511402 (4) | BB124: 3296511402 (4) | BC124: 3296511402 (4) | BD124: 3296511402 (4) | BE124: 3296511402 (4) | BF124: 3296511402 (4) | BG124: 3296511402 (4) | BH124: 3296511402 (4) | BI124: 3296511402 (4) | BJ124: 3296511402 (4) | BS124: 3396510182 (4) | BT124: 3396510182 (4)
B125: 284 | C125: 3296507632 (4) | D125: 3296507632 (4) | E125: 3296507632 (4) | F125: 3296507632 (4) | G125: 3296507632 (4) | H125: 3296507632 (4) | I125: 3296507632 (4) | J125: 3296507632 (4) | K125: 3296507632 (4) | L125: 3296507632 (4) | M125: 3296507632 (4) | N125: 3296507632 (4) | O125: 3296508382 (4) | P125: 3296508382 (4) | Q125: 3296508382 (4) | R125: 3296508382 (4) | S125: 3296508382 (4) | T125: 3296508382 (4) | U125: 3296508382 (4) | V125: 3296508382 (4) | W125: 3296508382 (4) | X125: 3296508382 (4) | Y125: 3296509132 (4) | Z125: 3296509132 (4) | AA125: 3296509132 (4) | AB125: 3296509132 (4) | AC125: 3296509132 (4) | AD125: 3296509132 (4) | AE125: 3296509132 (4) | AF125: 3296509132 (4) | AG125: 3296509132 (4) | AH125: 3296509892 (4) | AI125: 3296509892 (4) | AJ125: 3296509892 (4) | AK125: 3296509892 (4) | AL125: 3296509892 (4) | AM125: 3296509892 (4) | AN125: 3296509892 (4) | AO125: 3296509892 (4) | AP125: 3296509892 (4) | AQ125: 3296509892 (4) | AR125: 3296510642 (4) | AS125: 3296510642 (4) | AT125: 3296510642 (4) | AU125: 3296510642 (4) | AV125: 3296510642 (4) | AW125: 3296510642 (4) | AX125: 3296510642 (4) | AY125: 3296510642 (4) | AZ125: 3296510642 (4) | BA125: 3296510642 (4) | BB125: 3296511402 (4) | BC125: 3296511402 (4) | BD125: 3296511402 (4) | BE125: 3296511402 (4) | BF125: 3296511402 (4) | BG125: 3296511402 (4) | BH125: 3296511402 (4) | BI125: 3296511402 (4) | BJ125: 3296511402 (4) | BK125: 3296511402 (4) | BT125: 3396510182 (4)
B126: 286 | C126: 3397008372 (4) | D126: 3296507632 (4) | E126: 3296507632 (4) | F126: 3296507632 (4) | G126: 3296507632 (4) | H126: 3296507632 (4) | I126: 3296507632 (4) | J126: 3296507632 (4) | K126: 3296507632 (4) | L126: 3296507632 (4) | M126: 3296507632 (4) | N126: 3296507632 (4) | O126: 3296508382 (4) | P126: 3296508382 (4) | Q126: 3296508382 (4) | R126: 3296508382 (4) | S126: 3296508382 (4) | T126: 3296508382 (4) | U126: 3296508382 (4) | V126: 3296508382 (4) | W126: 3296508382 (4) | X126: 3296509132 (4) | Y126: 3296509132 (4) | Z126: 3296509132 (4) | AA126: 3296509132 (4) | AB126: 3296509132 (4) | AC126: 3296509132 (4) | AD126: 3296509132 (4) | AE126: 3296509132 (4) | AF126: 3296509132 (4) | AG126: 3296509132 (4) | AH126: 3296509892 (4) | AI126: 3296509892 (4) | AJ126: 3296509892 (4) | AK126: 3296509892 (4) | AL126: 3296509892 (4) | AM126: 3296509892 (4) | AN126: 3296509892 (4) | AO126: 3296509892 (4) | AP126: 3296509892 (4) | AQ126: 3296509892 (4) | AR126: 3296510642 (4) | AS126: 3296510642 (4) | AT126: 3296510642 (4) | AU126: 3296510642 (4) | AV126: 3296510642 (4) | AW126: 3296510642 (4) | AX126: 3296510642 (4) | AY126: 3296510642 (4) | AZ126: 3296510642 (4) | BA126: 3397011832 (4) | BB126: 3296511402 (4) | BC126: 3296511402 (4) | BD126: 3296511402 (4) | BE126: 3296511402 (4) | BF126: 3296511402 (4) | BG126: 3296511402 (4) | BH126: 3296511402 (4) | BI126: 3296511402 (4) | BJ126: 3296511402 (4) | BK126: 3296511402 (4) | BL126: 3296511402 (4)
B127: 288 | C127: 3397008372 (4) | D127: 3397008372 (4) | E127: 3296507632 (4) | F127: 3296507632 (4) | G127: 3296507632 (4) | H127: 3296507632 (4) | I127: 3296507632 (4) | J127: 3296507632 (4) | K127: 3296507632 (4) | L127: 3296507632 (4) | M127: 3296507632 (4) | N127: 3296507632 (4) | O127: 3296508382 (4) | P127: 3296508382 (4) | Q127: 3296508382 (4) | R127: 3296508382 (4) | S127: 3296508382 (4) | T127: 3296508382 (4) | U127: 3296508382 (4) | V127: 3296508382 (4) | W127: 3296508382 (4) | X127: 3397009752 (4) | Y127: 3296509132 (4) | Z127: 3296509132 (4) | AA127: 3296509132 (4) | AB127: 3296509132 (4) | AC127: 3296509132 (4) | AD127: 3296509132 (4) | AE127: 3296509132 (4) | AF127: 3296509132 (4) | AG127: 3296509132 (4) | AH127: 3397010442 (4) | AI127: 3296509892 (4) | AJ127: 3296509892 (4) | AK127: 3296509892 (4) | AL127: 3296509892 (4) | AM127: 3296509892 (4) | AN127: 3296509892 (4) | AO127: 3296509892 (4) | AP127: 3296509892 (4) | AQ127: 3296509892 (4) | AR127: 3397011132 (4) | AS127: 3296510642 (4) | AT127: 3296510642 (4) | AU127: 3296510642 (4) | AV127: 3296510642 (4) | AW127: 3296510642 (4) | AX127: 3296510642 (4) | AY127: 3296510642 (4) | AZ127: 3296510642 (4) | BA127: 3397011832 (4) | BB127: 3397011832 (4) | BC127: 3296511402 (4) | BD127: 3296511402 (4) | BE127: 3296511402 (4) | BF127: 3296511402 (4) | BG127: 3296511402 (4) | BH127: 3296511402 (4) | BI127: 3296511402 (4) | BJ127: 3296511402 (4) | BK127: 3296511402 (4) | BL127: 3296511402 (4) | BM127: 3296511402 (4)
B128: 290 | D128: 3397008372 (4) | E128: 3296507632 (4) | F128: 3296507632 (4) | G128: 3296507632 (4) | H128: 3296507632 (4) | I128: 3296507632 (4) | J128: 3296507632 (4) | K128: 3296507632 (4) | L128: 3296507632 (4) | M128: 3296507632 (4) | N128: 3296507632 (4) | O128: 3397008372 (4) | P128: 3296508382 (4) | Q128: 3296508382 (4) | R128: 3296508382 (4) | S128: 3296508382 (4) | T128: 3296508382 (4) | U128: 3296508382 (4) | V128: 3296508382 (4) | W128: 3296508382 (4) | X128: 3397009752 (4) | Y128: 3397009752 (4) | Z128: 3296509132 (4) | AA128: 3296509132 (4) | AB128: 3296509132 (4) | AC128: 3296509132 (4) | AD128: 3296509132 (4) | AE128: 3296509132 (4) | AF128: 3296509132 (4) | AG128: 3296509132 (4) | AH128: 3397010442 (4) | AI128: 3397010442 (4) | AJ128: 3296509892 (4) | AK128: 3296509892 (4) | AL128: 3296509892 (4) | AM128: 3296509892 (4) | AN128: 3296509892 (4) | AO128: 3296509892 (4) | AP128: 3296509892 (4) | AQ128: 3296509892 (4) | AR128: 3397011132 (4) | AS128: 3397011132 (4) | AT128: 3296510642 (4) | AU128: 3296510642 (4) | AV128: 3296510642 (4) | AW128: 3296510642 (4) | AX128: 3296510642 (4) | AY128: 3296510642 (4) | AZ128: 3296510642 (4) | BA128: 3397011832 (4) | BB128: 3397011832 (4) | BC128: 3397011832 (4) | BD128: 3296511402 (4) | BE128: 3296511402 (4) | BF128: 3296511402 (4) | BG128: 3296511402 (4) | BH128: 3296511402 (4) | BI128: 3296511402 (4) | BJ128: 3296511402 (4) | BK128: 3296511402 (4) | BL128: 3296511402 (4) | BM128: 3296511402 (4) | BN128: 3296511402 (4)
B129: 292 | E129: 3397008372 (4) | F129: 3296507632 (4) | G129: 3296507632 (4) | H129: 3296507632 (4) | I129: 3296507632 (4) | J129: 3296507632 (4) | K129: 3296507632 (4) | L129: 3296507632 (4) | M129: 3296507632 (4) | N129: 3296507632 (4) | O129: 3397008372 (4) | P129: 3296508382 (4) | Q129: 3296508382 (4) | R129: 3296508382 (4) | S129: 3296508382 (4) | T129: 3296508382 (4) | U129: 3296508382 (4) | V129: 3296508382 (4) | W129: 3296508382 (4) | X129: 3397009752 (4) | Y129: 3397009752 (4) | Z129: 3296509132 (4) | AA129: 3296509132 (4) | AB129: 3296509132 (4) | AC129: 3296509132 (4) | AD129: 3296509132 (4) | AE129: 3296509132 (4) | AF129: 3296509132 (4) | AG129: 3296509132 (4) | AH129: 3397010442 (4) | AI129: 3397010442 (4) | AJ129: 3397010442 (4) | AK129: 3296509892 (4) | AL129: 3296509892 (4) | AM129: 3296509892 (4) | AN129: 3296509892 (4) | AO129: 3296509892 (4) | AP129: 3296509892 (4) | AQ129: 3296509892 (4) | AR129: 3397011132 (4) | AS129: 3397011132 (4) | AT129: 3397011132 (4) | AU129: 3296510642 (4) | AV129: 3296510642 (4) | AW129: 3296510642 (4) | AX129: 3296510642 (4) | AY129: 3296510642 (4) | AZ129: 3296510642 (4) | BA129: 3397011832 (4) | BB129: 3397011832 (4) | BC129: 3397011832 (4) | BD129: 3397011832 (4) | BE129: 3296511402 (4) | BF129: 3296511402 (4) | BG129: 3296511402 (4) | BH129: 3296511402 (4) | BI129: 3296511402 (4) | BJ129: 3296511402 (4) | BK129: 3296511402 (4) | BL129: 3296511402 (4) | BM129: 3296511402 (4) | BN129: 3296511402 (4) | BO129: 3296511402 (4)
B130: 294 | E130: 3397008372 (4) | F130: 3397008372 (4) | G130: 3296507632 (4) | H130: 3296507632 (4) | I130: 3296507632 (4) | J130: 3296507632 (4) | K130: 3296507632 (4) | L130: 3296507632 (4) | M130: 3296507632 (4) | N130: 3397008372 (4) | O130: 3397008372 (4) | P130: 3397008372 (4) | Q130: 3296508382 (4) | R130: 3296508382 (4) | S130: 3296508382 (4) | T130: 3296508382 (4) | U130: 3296508382 (4) | V130: 3296508382 (4) | W130: 3296508382 (4) | X130: 3397009062 (4) | Y130: 3397009752 (4) | Z130: 3397009752 (4) | AA130: 3296509132 (4) | AB130: 3296509132 (4) | AC130: 3296509132 (4) | AD130: 3296509132 (4) | AE130: 3296509132 (4) | AF130: 3296509132 (4) | AG130: 3296509132 (4) | AH130: 3397010442 (4) | AI130: 3397010442 (4) | AJ130: 3397010442 (4) | AK130: 3296509892 (4) | AL130: 3296509892 (4) | AM130: 3296509892 (4) | AN130: 3296509892 (4) | AO130: 3296509892 (4) | AP130: 3296509892 (4) | AQ130: 3397011132 (4) | AR130: 3397011132 (4) | AS130: 3397011132 (4) | AT130: 3397011132 (4) | AU130: 3397011132 (4) | AV130: 3296510642 (4) | AW130: 3296510642 (4) | AX130: 3296510642 (4) | AY130: 3296510642 (4) | AZ130: 3296510642 (4) | BA130: 3397011832 (4) | BB130: 3397011832 (4) | BC130: 3397011832 (4) | BD130: 3397011832 (4) | BE130: 3397011832 (4) | BF130: 3296511402 (4) | BG130: 3296511402 (4) | BH130: 3296511402 (4) | BI130: 3296511402 (4) | BJ130: 3296511402 (4) | BK130: 3296511402 (4) | BL130: 3296511402 (4) | BM130: 3296511402 (4) | BN130: 3296511402 (4) | BO130: 3296511402 (4) | BP130: 3296511402 (4)
B131: 296 | F131: 3397008372 (4) | G131: 3296507632 (4) | H131: 3296507632 (4) | I131: 3296507632 (4) | J131: 3296507632 (4) | K131: 3296507632 (4) | L131: 3296507632 (4) | M131: 3296507632 (4) | N131: 3397008372 (4) | O131: 3397008372 (4) | P131: 3397008372 (4) | Q131: 3397008372 (4) | R131: 3296508382 (4) | S131: 3296508382 (4) | T131: 3296508382 (4) | U131: 3296508382 (4) | V131: 3296508382 (4) | W131: 3296508382 (4) | X131: 3397009062 (4) | Y131: 3397009062 (4) | Z131: 3397009752 (4) | AA131: 3397009752 (4) | AB131: 3296509132 (4) | AC131: 3296509132 (4) | AD131: 3296509132 (4) | AE131: 3296509132 (4) | AF131: 3296509132 (4) | AG131: 3296509132 (4) | AH131: 3397010442 (4) | AI131: 3397010442 (4) | AJ131: 3397010442 (4) | AK131: 3397010442 (4) | AL131: 3296509892 (4) | AM131: 3296509892 (4) | AN131: 3296509892 (4) | AO131: 3296509892 (4) | AP131: 3296509892 (4) | AQ131: 3397011132 (4) | AR131: 3397011132 (4) | AS131: 3397011132 (4) | AT131: 3397011132 (4) | AU131: 3397011132 (4) | AV131: 3296510642 (4) | AW131: 3296510642 (4) | AX131: 3296510642 (4) | AY131: 3296510642 (4) | AZ131: 3296510642 (4) | BA131: 3397011832 (4) | BB131: 3397011832 (4) | BC131: 3397011832 (4) | BD131: 3397011832 (4) | BE131: 3397011832 (4) | BF131: 3397011832 (4) | BG131: 3296511402 (4) | BH131: 3296511402 (4) | BI131: 3296511402 (4) | BJ131: 3296511402 (4) | BK131: 3296511402 (4) | BL131: 3296511402 (4) | BM131: 3296511402 (4) | BN131: 3296511402 (4) | BO131: 3296511402 (4) | BP131: 3296511402 (4) | BQ131: 3296511402 (4)
B132: 298 | F132: 3397008372 (4) | G132: 3397008372 (4) | H132: 3296507632 (4) | I132: 3296507632 (4) | J132: 3296507632 (4) | K132: 3296507632 (4) | L132: 3296507632 (4) | M132: 3296507632 (4) | N132: 3397008372 (4) | O132: 3397008372 (4) | P132: 3397008372 (4) | Q132: 3397008372 (4) | R132: 3296508382 (4) | S132: 3296508382 (4) | T132: 3296508382 (4) | U132: 3296508382 (4) | V132: 3296508382 (4) | W132: 3296508382 (4) | X132: 3397009062 (4) | Y132: 3397009062 (4) | Z132: 3397009062 (4) | AA132: 3397009752 (4) | AB132: 3397009752 (4) | AC132: 3296509132 (4) | AD132: 3296509132 (4) | AE132: 3296509132 (4) | AF132: 3296509132 (4) | AG132: 3296509132 (4) | AH132: 3397009752 (4) | AI132: 3397010442 (4) | AJ132: 3397010442 (4) | AK132: 3397010442 (4) | AL132: 3397010442 (4) | AM132: 3296509892 (4) | AN132: 3296509892 (4) | AO132: 3296509892 (4) | AP132: 3296509892 (4) | AQ132: 3397011132 (4) | AR132: 3397011132 (4) | AS132: 3397011132 (4) | AT132: 3397011132 (4) | AU132: 3397011132 (4) | AV132: 3397011132 (4) | AW132: 3296510642 (4) | AX132: 3296510642 (4) | AY132: 3296510642 (4) | AZ132: 3296510642 (4) | BA132: 3397011832 (4) | BB132: 3397011832 (4) | BC132: 3397011832 (4) | BD132: 3397011832 (4) | BE132: 3397011832 (4) | BF132: 3397011832 (4) | BG132: 3397011832 (4) | BH132: 3296511402 (4) | BI132: 3296511402 (4) | BJ132: 3296511402 (4) | BK132: 3296511402 (4) | BL132: 3296511402 (4) | BM132: 3296511402 (4) | BN132: 3296511402 (4) | BO132: 3296511402 (4) | BP132: 3296511402 (4) | BQ132: 3296511402 (4) | BR132: 3296511402 (4)
B133: 300 | G133: 3397008372 (4) | H133: 3397008372 (4) | I133: 3296507632 (4) | J133: 3296507632 (4) | K133: 3296507632 (4) | L133: 3296507632 (4) | M133: 3296507632 (4) | N133: 3397008372 (4) | O133: 3397008372 (4) | P133: 3397008372 (4) | Q133: 3397008372 (4) | R133: 3397008372 (4) | S133: 3296508382 (4) | T133: 3296508382 (4) | U133: 3296508382 (4) | V133: 3296508382 (4) | W133: 3296508382 (4) | X133: 3397009062 (4) | Y133: 3397009062 (4) | Z133: 3397009062 (4) | AA133: 3397009752 (4) | AB133: 3397009752 (4) | AC133: 3397009752 (4) | AD133: 3296509132 (4) | AE133: 3296509132 (4) | AF133: 3296509132 (4) | AG133: 3397009752 (4) | AH133: 3397009752 (4) | AI133: 3397009752 (4) | AJ133: 3397010442 (4) | AK133: 3397010442 (4) | AL133: 3397010442 (4) | AM133: 3397010442 (4) | AN133: 3296509892 (4) | AO133: 3296509892 (4) | AP133: 3296509892 (4) | AQ133: 3397010442 (4) | AR133: 3397011132 (4) | AS133: 3397011132 (4) | AT133: 3397011132 (4) | AU133: 3397011132 (4) | AV133: 3397011132 (4) | AW133: 3397011132 (4) | AX133: 3296510642 (4) | AY133: 3296510642 (4) | AZ133: 3296510642 (4) | BA133: 3397011832 (4) | BB133: 3397011832 (4) | BC133: 3397011832 (4) | BD133: 3397011832 (4) | BE133: 3397011832 (4) | BF133: 3397011832 (4) | BG133: 3397011832 (4) | BH133: 3397011832 (4) | BI133: 3296511402 (4) | BJ133: 3296511402 (4) | BK133: 3296511402 (4) | BL133: 3296511402 (4) | BM133: 3296511402 (4) | BN133: 3296511402 (4) | BO133: 3296511402 (4) | BP133: 3296511402 (4) | BQ133: 3296511402 (4) | BR133: 3296511402 (4) | BS133: 3296511402 (4)
